Workbook

Sheet Info (hidden)
A1: Info: | B1: Dieses Tabellenblatt bitte weder löschen noch verändern.

Sheet Calendar Backup (hidden)
D1: Auswahl der gesetzlichen Feiertage (mit einem kleinen x ankreuzen)
D2: Jan | E2: 1 | F2: 2 | G2: 3 | H2: 4 | I2: 5 | J2: 6 | K2: 7 | L2: 8 | M2: 9 | N2: 10 | O2: 11 | P2: 12 | Q2: 13 | R2: 14 | S2: 15 | T2: 16 | U2: 17 | V2: 18 | W2: 19 | X2: 20 | Y2: 21 | Z2: 22 | AA2: 23 | AB2: 24 | AC2: 25 | AD2: 26 | AE2: 27 | AF2: 28 | AG2: 29 | AH2: 30 | AI2: 31
D4: Feb | E4: 1 | F4: 2 | G4: 3 | H4: 4 | I4: 5 | J4: 6 | K4: 7 | L4: 8 | M4: 9 | N4: 10 | O4: 11 | P4: 12 | Q4: 13 | R4: 14 | S4: 15 | T4: 16 | U4: 17 | V4: 18 | W4: 19 | X4: 20 | Y4: 21 | Z4: 22 | AA4: 23 | AB4: 24 | AC4: 25 | AD4: 26 | AE4: 27 | AF4: 28 | AG4: 29
D6: Mrz | E6: 1 | F6: 2 | G6: 3 | H6: 4 | I6: 5 | J6: 6 | K6: 7 | L6: 8 | M6: 9 | N6: 10 | O6: 11 | P6: 12 | Q6: 13 | R6: 14 | S6: 15 | T6: 16 | U6: 17 | V6: 18 | W6: 19 | X6: 20 | Y6: 21 | Z6: 22 | AA6: 23 | AB6: 24 | AC6: 25 | AD6: 26 | AE6: 27 | AF6: 28 | AG6: 29 | AH6: 30 | AI6: 31
D8: Apr | E8: 1 | F8: 2 | G8: 3 | H8: 4 | I8: 5 | J8: 6 | K8: 7 | L8: 8 | M8: 9 | N8: 10 | O8: 11 | P8: 12 | Q8: 13 | R8: 14 | S8: 15 | T8: 16 | U8: 17 | V8: 18 | W8: 19 | X8: 20 | Y8: 21 | Z8: 22 | AA8: 23 | AB8: 24 | AC8: 25 | AD8: 26 | AE8: 27 | AF8: 28 | AG8: 29 | AH8: 30
D10: Mai | E10: 1 | F10: 2 | G10: 3 | H10: 4 | I10: 5 | J10: 6 | K10: 7 | L10: 8 | M10: 9 | N10: 10 | O10: 11 | P10: 12 | Q10: 13 | R10: 14 | S10: 15 | T10: 16 | U10: 17 | V10: 18 | W10: 19 | X10: 20 | Y10: 21 | Z10: 22 | AA10: 23 | AB10: 24 | AC10: 25 | AD10: 26 | AE10: 27 | AF10: 28 | AG10: 29 | AH10: 30 | AI10: 31
D12: Jun | E12: 1 | F12: 2 | G12: 3 | H12: 4 | I12: 5 | J12: 6 | K12: 7 | L12: 8 | M12: 9 | N12: 10 | O12: 11 | P12: 12 | Q12: 13 | R12: 14 | S12: 15 | T12: 16 | U12: 17 | V12: 18 | W12: 19 | X12: 20 | Y12: 21 | Z12: 22 | AA12: 23 | AB12: 24 | AC12: 25 | AD12: 26 | AE12: 27 | AF12: 28 | AG12: 29 | AH12: 30
D14: Jul | E14: 1 | F14: 2 | G14: 3 | H14: 4 | I14: 5 | J14: 6 | K14: 7 | L14: 8 | M14: 9 | N14: 10 | O14: 11 | P14: 12 | Q14: 13 | R14: 14 | S14: 15 | T14: 16 | U14: 17 | V14: 18 | W14: 19 | X14: 20 | Y14: 21 | Z14: 22 | AA14: 23 | AB14: 24 | AC14: 25 | AD14: 26 | AE14: 27 | AF14: 28 | AG14: 29 | AH14: 30 | AI14: 31
D16: Aug | E16: 1 | F16: 2 | G16: 3 | H16: 4 | I16: 5 | J16: 6 | K16: 7 | L16: 8 | M16: 9 | N16: 10 | O16: 11 | P16: 12 | Q16: 13 | R16: 14 | S16: 15 | T16: 16 | U16: 17 | V16: 18 | W16: 19 | X16: 20 | Y16: 21 | Z16: 22 | AA16: 23 | AB16: 24 | AC16: 25 | AD16: 26 | AE16: 27 | AF16: 28 | AG16: 29 | AH16: 30 | AI16: 31
D18: Sep | E18: 1 | F18: 2 | G18: 3 | H18: 4 | I18: 5 | J18: 6 | K18: 7 | L18: 8 | M18: 9 | N18: 10 | O18: 11 | P18: 12 | Q18: 13 | R18: 14 | S18: 15 | T18: 16 | U18: 17 | V18: 18 | W18: 19 | X18: 20 | Y18: 21 | Z18: 22 | AA18: 23 | AB18: 24 | AC18: 25 | AD18: 26 | AE18: 27 | AF18: 28 | AG18: 29 | AH18: 30
D20: Okt | E20: 1 | F20: 2 | G20: 3 | H20: 4 | I20: 5 | J20: 6 | K20: 7 | L20: 8 | M20: 9 | N20: 10 | O20: 11 | P20: 12 | Q20: 13 | R20: 14 | S20: 15 | T20: 16 | U20: 17 | V20: 18 | W20: 19 | X20: 20 | Y20: 21 | Z20: 22 | AA20: 23 | AB20: 24 | AC20: 25 | AD20: 26 | AE20: 27 | AF20: 28 | AG20: 29 | AH20: 30 | AI20: 31
D22: Nov | E22: 1 | F22: 2 | G22: 3 | H22: 4 | I22: 5 | J22: 6 | K22: 7 | L22: 8 | M22: 9 | N22: 10 | O22: 11 | P22: 12 | Q22: 13 | R22: 14 | S22: 15 | T22: 16 | U22: 17 | V22: 18 | W22: 19 | X22: 20 | Y22: 21 | Z22: 22 | AA22: 23 | AB22: 24 | AC22: 25 | AD22: 26 | AE22: 27 | AF22: 28 | AG22: 29 | AH22: 30
D24: Dez | E24: 1 | F24: 2 | G24: 3 | H24: 4 | I24: 5 | J24: 6 | K24: 7 | L24: 8 | M24: 9 | N24: 10 | O24: 11 | P24: 12 | Q24: 13 | R24: 14 | S24: 15 | T24: 16 | U24: 17 | V24: 18 | W24: 19 | X24: 20 | Y24: 21 | Z24: 22 | AA24: 23 | AB24: 24 | AC24: 25 | AD24: 26 | AE24: 27 | AF24: 28 | AG24: 29 | AH24: 30 | AI24: 31

Sheet KALENDER
D1: Auswahl der gesetzlichen Feiertage (mit einem kleinen x ankreuzen)
D2: Jan | E2: 1 | F2: 2 | G2: 3 | H2: 4 | I2: 5 | J2: 6 | K2: 7 | L2: 8 | M2: 9 | N2: 10 | O2: 11 | P2: 12 | Q2: 13 | R2: 14 | S2: 15 | T2: 16 | U2: 17 | V2: 18 | W2: 19 | X2: 20 | Y2: 21 | Z2: 22 | AA2: 23 | AB2: 24 | AC2: 25 | AD2: 26 | AE2: 27 | AF2: 28 | AG2: 29 | AH2: 30 | AI2: 31
D4: Feb | E4: 1 | F4: 2 | G4: 3 | H4: 4 | I4: 5 | J4: 6 | K4: 7 | L4: 8 | M4: 9 | N4: 10 | O4: 11 | P4: 12 | Q4: 13 | R4: 14 | S4: 15 | T4: 16 | U4: 17 | V4: 18 | W4: 19 | X4: 20 | Y4: 21 | Z4: 22 | AA4: 23 | AB4: 24 | AC4: 25 | AD4: 26 | AE4: 27 | AF4: 28 | AG4: 29
D6: Mrz | E6: 1 | F6: 2 | G6: 3 | H6: 4 | I6: 5 | J6: 6 | K6: 7 | L6: 8 | M6: 9 | N6: 10 | O6: 11 | P6: 12 | Q6: 13 | R6: 14 | S6: 15 | T6: 16 | U6: 17 | V6: 18 | W6: 19 | X6: 20 | Y6: 21 | Z6: 22 | AA6: 23 | AB6: 24 | AC6: 25 | AD6: 26 | AE6: 27 | AF6: 28 | AG6: 29 | AH6: 30 | AI6: 31
D8: Apr | E8: 1 | F8: 2 | G8: 3 | H8: 4 | I8: 5 | J8: 6 | K8: 7 | L8: 8 | M8: 9 | N8: 10 | O8: 11 | P8: 12 | Q8: 13 | R8: 14 | S8: 15 | T8: 16 | U8: 17 | V8: 18 | W8: 19 | X8: 20 | Y8: 21 | Z8: 22 | AA8: 23 | AB8: 24 | AC8: 25 | AD8: 26 | AE8: 27 | AF8: 28 | AG8: 29 | AH8: 30
D10: Mai | E10: 1 | F10: 2 | G10: 3 | H10: 4 | I10: 5 | J10: 6 | K10: 7 | L10: 8 | M10: 9 | N10: 10 | O10: 11 | P10: 12 | Q10: 13 | R10: 14 | S10: 15 | T10: 16 | U10: 17 | V10: 18 | W10: 19 | X10: 20 | Y10: 21 | Z10: 22 | AA10: 23 | AB10: 24 | AC10: 25 | AD10: 26 | AE10: 27 | AF10: 28 | AG10: 29 | AH10: 30 | AI10: 31
D12: Jun | E12: 1 | F12: 2 | G12: 3 | H12: 4 | I12: 5 | J12: 6 | K12: 7 | L12: 8 | M12: 9 | N12: 10 | O12: 11 | P12: 12 | Q12: 13 | R12: 14 | S12: 15 | T12: 16 | U12: 17 | V12: 18 | W12: 19 | X12: 20 | Y12: 21 | Z12: 22 | AA12: 23 | AB12: 24 | AC12: 25 | AD12: 26 | AE12: 27 | AF12: 28 | AG12: 29 | AH12: 30
D14: Jul | E14: 1 | F14: 2 | G14: 3 | H14: 4 | I14: 5 | J14: 6 | K14: 7 | L14: 8 | M14: 9 | N14: 10 | O14: 11 | P14: 12 | Q14: 13 | R14: 14 | S14: 15 | T14: 16 | U14: 17 | V14: 18 | W14: 19 | X14: 20 | Y14: 21 | Z14: 22 | AA14: 23 | AB14: 24 | AC14: 25 | AD14: 26 | AE14: 27 | AF14: 28 | AG14: 29 | AH14: 30 | AI14: 31
D16: Aug | E16: 1 | F16: 2 | G16: 3 | H16: 4 | I16: 5 | J16: 6 | K16: 7 | L16: 8 | M16: 9 | N16: 10 | O16: 11 | P16: 12 | Q16: 13 | R16: 14 | S16: 15 | T16: 16 | U16: 17 | V16: 18 | W16: 19 | X16: 20 | Y16: 21 | Z16: 22 | AA16: 23 | AB16: 24 | AC16: 25 | AD16: 26 | AE16: 27 | AF16: 28 | AG16: 29 | AH16: 30 | AI16: 31
D18: Sep | E18: 1 | F18: 2 | G18: 3 | H18: 4 | I18: 5 | J18: 6 | K18: 7 | L18: 8 | M18: 9 | N18: 10 | O18: 11 | P18: 12 | Q18: 13 | R18: 14 | S18: 15 | T18: 16 | U18: 17 | V18: 18 | W18: 19 | X18: 20 | Y18: 21 | Z18: 22 | AA18: 23 | AB18: 24 | AC18: 25 | AD18: 26 | AE18: 27 | AF18: 28 | AG18: 29 | AH18: 30
D20: Okt | E20: 1 | F20: 2 | G20: 3 | H20: 4 | I20: 5 | J20: 6 | K20: 7 | L20: 8 | M20: 9 | N20: 10 | O20: 11 | P20: 12 | Q20: 13 | R20: 14 | S20: 15 | T20: 16 | U20: 17 | V20: 18 | W20: 19 | X20: 20 | Y20: 21 | Z20: 22 | AA20: 23 | AB20: 24 | AC20: 25 | AD20: 26 | AE20: 27 | AF20: 28 | AG20: 29 | AH20: 30 | AI20: 31
D22: Nov | E22: 1 | F22: 2 | G22: 3 | H22: 4 | I22: 5 | J22: 6 | K22: 7 | L22: 8 | M22: 9 | N22: 10 | O22: 11 | P22: 12 | Q22: 13 | R22: 14 | S22: 15 | T22: 16 | U22: 17 | V22: 18 | W22: 19 | X22: 20 | Y22: 21 | Z22: 22 | AA22: 23 | AB22: 24 | AC22: 25 | AD22: 26 | AE22: 27 | AF22: 28 | AG22: 29 | AH22: 30
D24: Dez | E24: 1 | F24: 2 | G24: 3 | H24: 4 | I24: 5 | J24: 6 | K24: 7 | L24: 8 | M24: 9 | N24: 10 | O24: 11 | P24: 12 | Q24: 13 | R24: 14 | S24: 15 | T24: 16 | U24: 17 | V24: 18 | W24: 19 | X24: 20 | Y24: 21 | Z24: 22 | AA24: 23 | AB24: 24 | AC24: 25 | AD24: 26 | AE24: 27 | AF24: 28 | AG24: 29 | AH24: 30 | AI24: 31

Sheet Konfiguration (hidden)
A1: Globale Konfiguration
H2: Memo =>
A3: Jahr | B3: 2019 | C3: ="01.01."&B3 -> 01.01.2019 | D3: Schaljahr j/n | E3: =IF(F3=1,"ja","nein") -> nein | F3: =IF(MOD(YEAR($C$3),400)=0,"",IF(MOD(YEAR($C$3),100)=0,"kein",IF(MOD(YEAR($C$3),4)=0,1,0))) -> 0 | H3: 1.Tag des Jahes | I3: formel
A4: max. Std/Woche gem. GAV | B4: 48 | H4: letzter Tag des Jahres | I4: formel
A5: Std/Tag gem. GAV | B5: 8 | D5: Jahresbruttosollstunden | H5: Anz. Wochentage | I5: formel
H6: % Nachzuschlag | I6: eingabe
H7: % Sonn- & Feiertagszuschlag | I7: eingabe
H8: % Wochenzuschlag | I8: eingabe
H9: Ausahlung mit Zuschlag (max. Std) | I9: eingabe
A11: Standard Kalender | B11: calendar
A14: Standard Sprache | B14: DE | H14: Sprachen | I14: Deutsch | J14: DE
I15: Français | J15: FR
I16: English | J16: EN
I17: Italiano | J17: IT

Sheet Labels (hidden)
A1: Achtung: | B1: lange Texte sind jeweils manuell einzusetzen
A3: gewählte Sprache | B3: DE
A12: Index | B12: Dargestellt | C12: DE | D12: EN | E12: FR | F12: IT
A13: 2 | B13: =HLOOKUP($B$3,$C$12:$F$506,A13,FALSE) -> [$-807] | C13: [$-807] | D13: [$-409] | E13: [$-40C] | F13: [$-410]
A14: 3 | B14: SMGV | C14: SMGV | D14: =C14 -> SMGV | E14: ASEPP | F14: ASIPG
A15: 4 | B15: GAV | C15: GAV | D15: CEC | E15: CCT | F15: CCL
A16: 5 | B16: Kontrolle | C16: Kontrolle | D16: Record | E16: Contrôle | F16: Controllo
A17: 6 | B17: A r b e i t s z e i t k o n t r o l l e | C17: A r b e i t s z e i t k o n t r o l l e | D17: Timesheet | E17: Contrôle des heures de travail | F17: Controllo d'orario di lavoro
A18: 7 | B18: Mitarbeiter/In | C18: Mitarbeiter/In | D18: Employee | E18: Nom/Prénom | F18: Nome/Conome
A19: 8 | B19: Muster Peter | C19: Muster Peter | D19: Smith John | E19: Modèle Pierre | F19: Modello Pietro
A20: 9 | B20: Anstellung % | C20: Anstellung % | D20: Level of employment % | E20: Emploi % | F20: Occupazione %
A21: 10 | B21: Saldo für das Jahr | C21: Saldo für das Jahr | D21: Balance (year) | E21: Solde année en cours | F21: =C21 -> Saldo für das Jahr
A22: 11 | B22: Saldo Vorjahresstunden (+) | C22: Saldo Vorjahresstunden (+) | D22: Balance previous year (+) | E22: Solde année passée (+) | F22: =C22 -> Saldo Vorjahresstunden (+)
A23: 12 | B23: Saldo Vorjahresstunden (-) | C23: Saldo Vorjahresstunden (-) | D23: Balance previous year (-) | E23: Solde année passée (-) | F23: Saldo Vorjahresstunden (-)
A24: 13 | B24: Ferienguthaben Vorjahr | C24: Ferienguthaben Vorjahr | D24: Remaining holidays (prev. year) | E24: Solde vacances année passée | F24: Ferienguthaben Vorjahr
A25: 14 | B25: Ferienguthaben laufendes Jahr | C25: Ferienguthaben laufendes Jahr | D25: Total holidays current year | E25: Vacances selon art. 12.1. CCT | F25: Ferienguthaben laufendes Jahr
A26: 15 | B26: Stunden | C26: Stunden | D26: Hours | E26: Heures | F26: Stunden
A27: 16 | B27: Max. Std / Woche gemäss GAV | C27: Max. Std / Woche gemäss GAV | D27: Max. hours / week according CEC | E27: max heures / semain CCT | F27: Max. Std / Woche gemäss GAV
A28: 17 | B28: Std/Tag gemäss GAV | C28: Std/Tag gemäss GAV | D28: hours/day according CEC | E28: heures/jour CCT | F28: Std/Tag gemäss GAV
A29: 18 | B29: Schaltjahr (j/n) | C29: Schaltjahr (j/n) | D29: leap year (y/n) | E29: Année bissextile (j/n) | F29: Schaltjahr (j/n)
A30: 19 | B30: Arbeitstage (Jahr) | C30: Arbeitstage (Jahr) | D30: Working Days (year) | E30: jours ouvrables (année) | F30: Arbeitstage (Jahr)
A31: 20 | B31: Jahresbruttosollstunden | C31: Jahresbruttosollstunden | D31: Annual gross target hours | E31: brut annuel d'heures | F31: Jahresbruttosollstunden
A32: 21 | B32: Saldo Monat + / - | C32: Saldo Monat + / - | D32: Balance month +/- | E32: Solde mois + / - | F32: Saldo Monat + / -
A33: 22 | B33: = | C33: = | D33: =C33 -> = | E33: = | F33: =
A34: 23 | B34: Gelbe Felder müssen ausgefüllt werden (die übrigen werden automatisch berechnet) | C34: Gelbe Felder müssen ausgefüllt werden (die übrigen werden automatisch berechnet) | D34: Yellow fields must be filled (all others are calculated) | E34: Les cases marquées en jaune doivent être remplies (les autres seront calculées automatiquement) | F34: Gelbe Felder müssen ausgefüllt werden (die übrigen werden automatisch berechnet)
A35: 24 | B35: Tag | C35: Tag | D35: Day | E35: Jour | F35: Tag
A36: 25 | B36: Kalenderwoche | C36: Kalenderwoche | D36: Calendar week | E36: semaine civile | F36: Kalenderwoche
A37: 26 | B37: Sollstunden | C37: Sollstunden | D37: Target hours | E37: Théorique sel. CCT | F37: Sollstunden
A38: 27 | B38: Absenz in Std | C38: Absenz in Std | D38: Absence (hours) | E38: Absences | F38: Absenz in Std
A39: 28 | B39: Code | C39: Code | D39: Code | E39: Code | F39: Code
A40: 29 | B40: 00.00-06.00h | C40: 00.00-06.00h | D40: 00.00-06.00h | E40: 00h00-06h00 1) | F40: 00.00-06.00
A41: 30 | B41: 06.00-20.00h | C41: 06.00-20.00h | D41: 06.00-20.00h | E41: 06h00-20h00 2) | F41: 06.00-20.00
A42: 31 | B42: 20.00-24.00h | C42: 20.00-24.00h | D42: 20.00-24.00h | E42: 20h00-24h00 3) | F42: 20.00-24.00
A43: 32 | B43: Feiertag "ft" | C43: Feiertag "ft" | D43: Holiday "ft" | E43: Jours fériés "jf" | F43: Giorni festivi "gf"
A44: 33 | B44: Gutschrift "ft" | C44: Gutschrift "ft" | D44: Credit "ft" | E44: Majoration "jf" | F44: Credito "gf"
A45: 34 | B45: Tagestotal | C45: Tagestotal | D45: Daily total | E45: total quotidien | F45: totale quotidiano
A46: 35 | B46: . | C46: . | D46: . | E46: . | F46: .
A47: 36 | B47: . | C47: . | D47: . | E47: . | F47: .
A48: 37 | B48: Monatsübergang | C48: Monatsübergang | D48: Monthly transfer | E48: transition mois | F48: transizione mensile
A49: 38 | B49: Wochentotal | C49: Wochentotal | D49: Weekly total | E49: Total hebdomadaire | F49: totale settimana
A50: 39 | B50: Zeitzuschlag 1) | C50: Zeitzuschlag 1) | D50: Bonus hours 1) | E50: Majorations temp. 1) | F50: Supplemento in ore 1)
A51: 40 | B51: Zeitzuschlag 2) | C51: Zeitzuschlag 2) | D51: Bonus hours 2) | E51: Majorations temp. 2) | F51: Supplemento in ore 2)
A52: 41 | B52: Zeitzuschlag 3) | C52: Zeitzuschlag 3) | D52: Bonus hours 3) | E52: Majorations temp. 3) | F52: Supplemento in ore 3)
A53: 42 | B53: Sonntag Tag | C53: Sonntag Tag | D53: Sunday day | E53: Dimanche journée | F53: Domenica giorno
A54: 43 | B54: Sonntag Nacht | C54: Sonntag Nacht | D54: Sunday night | E54: Dimanche nuit | F54: Domenica notte
A55: 44 | B55: ft-Tazuschlag | C55: ft-Tazuschlag | D55: ft-daybonus | E55: jf-jomajoration | F55: gf-gisupplemento
A56: 45 | B56: ft-Nazuschlag | C56: ft-Nazuschlag | D56: ft-nightbonus | E56: jf-numajoration | F56: gf-nosupplemento
A57: 46 | B57: Zuschlag blind (Wochentotal) | C57: Zuschlag blind (Wochentotal) | D57: bonus hidden (week total) | E57: majoration caché (total hebd.) | F57: Supplemento nascosto (totale sett.)
A58: 47 | B58: 1) 25% Zeitzuschlag für Überschreitung Wochentotal | C58: 1) 25% Zeitzuschlag für Überschreitung Wochentotal | D58: 1) 25% bonus for exceeding weekly total hours | E58: 1) 25% majoration temporelle pour depassement total hebdomadaire | F58: 1) 25%
A59: 48 | B59: 2) 100% Zeitzuschlag für Nachtarbeit | C59: 2) 100% Zeitzuschlag für Nachtarbeit | D59: 2) 100% bonus for nighttime work | E59: 2) 100% majoration temporelle pour travail de nuit | F59: 2) 100%
A60: 49 | B60: 3) 100% Zeitzuschlag für Sonn- und Feiertagsarbeit | C60: 3) 100% Zeitzuschlag für Sonn- und Feiertagsarbeit | D60: 3) 100% bonus for Sunday and holiday work | E60: 3) 100% majoration temporelle pour travail du dimanche et jour férié | F60: 3) 100%
A61: 50 | B61: Eingabe der ausbezahlten Stunden Vorjahressaldo | C61: Eingabe der ausbezahlten Stunden Vorjahressaldo | D61: Enter payed out hours (prev. Year) | E61: Saisie des heures payées l'année passée | F61: =C61 -> Eingabe der ausbezahlten Stunden Vorjahressaldo
A62: 51 | B62: Eingabe der ausbezahlten Stunden laufendes Jahr (Überstunden) | C62: Eingabe der ausbezahlten Stunden laufendes Jahr (Überstunden) | D62: Enter payed out hours (current Year) | E62: Saisie des heures payées exercice en cours (heures supplémentaires) | F62: =C62 -> Eingabe der ausbezahlten Stunden laufendes Jahr (Überstunden)
A63: 52 | B63: Tage | C63: Tage | D63: Days | E63: Jours | F63: Tage
A64: 53 | B64: Druckvorschau aufheben | C64: Druckvorschau aufheben | D64: Reset print preview | E64: Annulation de la sélection | F64: Druckvorschau aufheben
A65: 54 | B65: Januar | C65: Januar | D65: January | E65: Janvier | F65: Gennaio
A66: 55 | B66: Februar | C66: Februar | D66: February | E66: Février | F66: Febbraio
A67: 56 | B67: März | C67: März | D67: March | E67: Mars | F67: Marzo
A68: 57 | B68: April | C68: April | D68: April | E68: April | F68: Aprile
A69: 58 | B69: Mai | C69: Mai | D69: May | E69: Mai | F69: Maggio
A70: 59 | B70: Juni | C70: Juni | D70: June | E70: Juin | F70: Giugno
A71: 60 | B71: Juli | C71: Juli | D71: July | E71: Juillet | F71: Iuglio
A72: 61 | B72: August | C72: August | D72: August | E72: Août | F72: Agosto
A73: 62 | B73: September | C73: September | D73: September | E73: Septembre | F73: Settembre
A74: 63 | B74: Oktober | C74: Oktober | D74: October | E74: Octobre | F74: Ottobre
A75: 64 | B75: November | C75: November | D75: November | E75: Novembre | F75: Novembre
A76: 65 | B76: Dezember | C76: Dezember | D76: December | E76: Décembre | F76: Dicembre
A77: 66 | B77: =HLOOKUP($B$3,$C$12:$F$506,A77,FALSE) -> Jan | C77: Jan | D77: Jan | E77: Jan | F77: Gen
A78: 67 | B78: Feb | C78: Feb | D78: Feb | E78: Fév | F78: Feb
A79: 68 | B79: Mrz | C79: Mrz | D79: Mar | E79: Mar | F79: Mar
A80: 69 | B80: Apr | C80: Apr | D80: Apr | E80: Avr | F80: Apr
A81: 70 | B81: Mai | C81: Mai | D81: May | E81: Mai | F81: Mag
A82: 71 | B82: Jun | C82: Jun | D82: Jun | E82: Jun | F82: Giu
A83: 72 | B83: Jul | C83: Jul | D83: Jul | E83: Jul | F83: Iug
A84: 73 | B84: Aug | C84: Aug | D84: Aug | E84: Aoû | F84: Ago
A85: 74 | B85: Sep | C85: Sep | D85: Sep | E85: Sep | F85: Set
A86: 75 | B86: Okt | C86: Okt | D86: Oct | E86: Oct | F86: Ott
A87: 76 | B87: Nov | C87: Nov | D87: Nov | E87: Nov | F87: Nov
A88: 77 | B88: Dez | C88: Dez | D88: Dec | E88: Déc | F88: Dic
A89: 78 | B89: im Januar | C89: im Januar | D89: in January | E89: en janvier | F89: a Gennaio
A90: 79 | B90: im Februar | C90: im Februar | D90: in February | E90: en février | F90: a Febbraio
A91: 80 | B91: im März | C91: im März | D91: in March | E91: en mars | F91: a Marzo
A92: 81 | B92: im April | C92: im April | D92: in April | E92: en avril | F92: ad Aprile
A93: 82 | B93: im Mai | C93: im Mai | D93: in May | E93: en mai | F93: a Maggio
A94: 83 | B94: im Juni | C94: im Juni | D94: in June | E94: en juin | F94: a Giugno
A95: 84 | B95: im Juli | C95: im Juli | D95: in July | E95: en juillet | F95: a Iuglio
A96: 85 | B96: im August | C96: im August | D96: in August | E96: en août | F96: ad Agosto
A97: 86 | B97: im September | C97: im September | D97: in September | E97: en septembre | F97: a Settembre
A98: 87 | B98: im Oktober | C98: im Oktober | D98: in October | E98: en octobre | F98: ad Ottobre
A99: 88 | B99: im November | C99: im November | D99: in November | E99: en novembre | F99: a Novembre
A100: 89 | B100: im Dezember | C100: im Dezember | D100: in December | E100: en décembre | F100: a Dicembre
A101: 90 | B101: Jahr | C101: Jahr | D101: Year | E101: Année | F101: Anno
A102: 91 | B102: Total | C102: Total | D102: Total | E102: Total | F102: Total
A103: 92 | B103: Zusammenstellung | C103: Zusammenstellung | D103: Report | E103: Résumé | F103: Zusammenstellung
A104: 93 | B104: Sollstunden gemäss GAV | C104: Sollstunden gemäss GAV | D104: Planed hours acc.to CEC | E104: Heures théoriques selon CCT | F104: Orario teoricamente sec. CCL
A105: 94 | B105: Produktive Stunden | C105: Produktive Stunden | D105: Productive hours | E105: Total heures productives | F105: Orario produttivo totale
A106: 95 | B106: 06.00 - 20.00 Uhr | C106: 06.00 - 20.00 Uhr | D106: 06.00-20.00h | E106: 06.00 - 20.00 h | F106: 06.00 - 20.00
A107: 96 | B107: Nacht-, Sonn-, Feiertagsarbeit | C107: Nacht-, Sonn-, Feiertagsarbeit | D107: Night, Sunday and holiday work | E107: nuit, dimanche et jour férié | F107: notturno, domenica e festivo
A108: 97 | B108: Zeitzuschläge | C108: Zeitzuschläge | D108: Bonus time | E108: Majorations temporelles | F108: Supplemento in ore
A109: 98 | B109: aus Wochentotal | C109: aus Wochentotal | D109: for exceeding week total | E109: total hebdomadaire | F109: di lavoro settimanale
A110: 99 | B110: aus Nacht-, Sonn-, Feiertagsarbeiten | C110: aus Nacht-, Sonn-, Feiertagsarbeiten | D110: for night, Sundays and holiday work | E110: nuit, dimanche et jour férié | F110: di notturno, domenica e festivo
A111: 100 | B111: Unproduktive Stunden | C111: Unproduktive Stunden | D111: Idle hours | E111: Heures inproductives | F111: orario non produttivo
A112: 101 | B112: Absenzen, Kurzabsenzen Art. 11 GAV | C112: Absenzen, Kurzabsenzen Art. 11 GAV | D112: Abcenses, Short abcenses Art. 11 CEC | E112: Absences art. 11 CCT | F112: Assenze art. 11 CCL
A113: 102 | B113: a | C113: a | D113: =C113 -> a | E113: ab | F113: as
A114: 103 | B114: Ferien Art. 12.1 GAV | C114: Ferien Art. 12.1 GAV | D114: Holidays Art. 12.1 CEC | E114: Vacances art. 12.1 CCT | F114: Vacanze art. 12.1 CCL
A115: 104 | B115: f | C115: f | D115: f | E115: va | F115: va
A116: 105 | B116: Feiertage Art. 12.2 GAV | C116: Feiertage Art. 12.2 GAV | D116: Public Holidays Art. 12.2 CEC | E116: Jours fériés art. 12.2 CCT | F116: Giorni festivi art. 12.2 CCL
A117: 106 | B117: zu viele ft !) | C117: zu viele ft !) | D117: Too many ft !) | E117: trop de jf !) | F117: (tropo giorni festivi !)
A118: 107 | B118: ft | C118: ft | D118: ft | E118: jf | F118: gf
A119: 108 | B119: Krankheit Art. 13 GAV | C119: Krankheit Art. 13 GAV | D119: Illness Art. 13 CEC | E119: Maladie art. 13 CCT | F119: Malattia art. 13 CCL
A120: 109 | B120: k | C120: k | D120: k | E120: ma | F120: ma
A121: 110 | B121: Unfall Art. 14 GAV | C121: Unfall Art. 14 GAV | D121: Accident Art. 14 CEC | E121: Accident art. 14 CCT | F121: Infortunio art. 14 CCL
A122: 111 | B122: u | C122: u | D122: u | E122: ac | F122: in
A123: 112 | B123: Schwangerschaft/Mutterschaft Art. 15 GAV | C123: Schwangerschaft/Mutterschaft Art. 15 GAV | D123: Maternetiy leave Art. 15 CEC | E123: Grossesse/Maternité art. 15 CCT | F123: Gravidanza/Maternità art. 15 CCL
A124: 113 | B124: s | C124: s | D124: s | E124: gm | F124: gm
A125: 114 | B125: Militär/Beförderung/Zivilschutz Art. 16 GAV | C125: Militär/Beförderung/Zivilschutz Art. 16 GAV | D125: Military service/promotion/civil defence Art. 16. CEC | E125: Militaire/Promotion/Protection civile art. 16 CCT | F125: Militare/Promotione/Civile art. 16 CCL
A126: 115 | B126: m | C126: m | D126: m | E126: mi | F126: mi
A127: 116 | B127: Kurzarbeit und Schlechtwetterausfälle | C127: Kurzarbeit und Schlechtwetterausfälle | D127: Short-time work/bad weather | E127: Chômage partiel et perte de travail cause d'intempéries | F127: =C127 -> Kurzarbeit und Schlechtwetterausfälle
A128: 117 | B128: ka | C128: ka | D128: ka | E128: ch | F128: =C128 -> ka
A129: 118 | B129: Berufsschule | C129: Berufsschule | D129: School | E129: Ecole professionnelle | F129: Berufsschule
A130: 119 | B130: bs | C130: bs | D130: bs | E130: ep | F130: bs
A131: 120 | B131: Kurse | C131: Kurse | D131: Courses | E131: Cours | F131: Kurse
A132: 121 | B132: ku | C132: ku | D132: ku | E132: co | F132: ku
A133: 122 | B133: Kompensations-Std | C133: Kompensations-Std | D133: Compensation hours | E133: Heures de compensation | F133: Kompensations-Std
A134: 123 | B134: aus Vorjahr | C134: aus Vorjahr | D134: prev. Year | E134: de l'année passée | F134: aus Vorjahr
A135: 124 | B135: kv | C135: kv | D135: kv | E135: cp | F135: kv
A136: 125 | B136: aus laufendem Jahr (Kontrolle) | C136: aus laufendem Jahr (Kontrolle) | D136: current year (verification) | E136: de l'année en cours (contrôle) | F136: aus laufendem Jahr (Kontrolle)
A137: 126 | B137: kj | C137: kj | D137: kj | E137: cc | F137: kj
A138: 127 | B138: Auszahlung | C138: Auszahlung | D138: payment of hours | E138: Paiement des heures | F138: Auszahlung
A139: 128 | B139: Stunden Vorjahressaldo | C139: Stunden Vorjahressaldo | D139: hours prev. Year | E139: de l'année passée | F139: Stunden Vorjahressaldo
A140: 129 | B140: Differenz | C140: Differenz | D140: difference | E140: Différence en heures | F140: Differenz
A141: 130 | B141: =HLOOKUP($B$3,$C$12:$F$506,A141,FALSE) -> nach Kompensation und Auszahlung | C141: nach Kompensation und Auszahlung | D141: after compensation and payment | E141: après compensation et paiement | F141: nach Kompensation und Auszahlung
A142: 131 | B142: Stunden laufendes Jahr | C142: Stunden laufendes Jahr | D142: hours current year | E142: de l'année en cours | F142: Stunden laufendes Jahr
A143: 132 | B143: Fehlstunden | C143: Fehlstunden | D143: missed hours | E143: Heures manquantes | F143: Fehlstunden
A144: 133 | B144: laufendes Jahr (Kontrolle) | C144: laufendes Jahr (Kontrolle) | D144: current year (verification) | E144: de l'année en cours (contrôle) | F144: laufendes Jahr (Kontrolle)
A145: 134 | B145: fe | C145: fe | D145: fe | E145: hm | F145: fe
A146: 135 | B146: Total inkl. Zeitzuschläge | C146: Total inkl. Zeitzuschläge | D146: total (incl. extra time) | E146: Total (majorations inclus) | F146: Total inkl. Zeitzuschläge
A147: 136 | B147: Stunden produktiv und unproduktiv | C147: Stunden produktiv und unproduktiv | D147: hours productive and idle | E147: heures productives et inproductives | F147: Stunden produktiv und unproduktiv
A148: 137 | B148: Vergleich | C148: Vergleich | D148: Comparison of hours | E148: Comparaison des heures | F148: Vergleich
A149: 138 | B149: Stunden zu Soll-Stunden (inkl. allfälli- ge Minusstunden Vorjahr) | C149: Stunden zu Soll-Stunden (inkl. allfälli- ge Minusstunden Vorjahr) | D149: balance hours <-> target hours (incl. missing hours prev. year) | E149: aux heures théorique CCT (heures manquantes de l'année passée incl.) | F149: Stunden zu Soll-Stunden (inkl. allfälli- ge Minusstunden Vorjahr)
A150: 139 | B150: [] | C150: [] | D150: [] | E150: [] | F150: []
A151: 140 | B151: Stunden zu Soll-Stunden (kumuliert) | C151: Stunden zu Soll-Stunden (kumuliert) | D151: balance hours <-> target hours (cumulative) | E151: aux heures théorique (cumulées) | F151: Stunden zu Soll-Stunden (kumuliert)
A152: 141 | B152: . | C152: . | D152: . | E152: . | F152: .
A153: 142 | B153: Ferienkontrolle | C153: Ferienkontrolle | D153: Holiday Balance | E153: Vacances (contrôle) | F153: Ferienkontrolle
A154: 143 | B154: Ferienguthaben Vorjahr | C154: Ferienguthaben Vorjahr | D154: Remaining holidays (prev. year) | E154: Vacances année passée | F154: Ferienguthaben Vorjahr
A155: 144 | B155: Ferienguthaben nach Art. 12.1 GAV | C155: Ferienguthaben nach Art. 12.1 GAV | D155: Holidays acc. Art. 12.1 CEC | E155: Vacances selon art 12.1 CCT | F155: Ferienguthaben nach Art. 12.1 GAV
A156: 145 | B156: Ferienguthaben total | C156: Ferienguthaben total | D156: Holidays total | E156: Total des vacances | F156: Ferienguthaben total
A157: 146 | B157: Ferien bezogen | C157: Ferien bezogen | D157: Holidays taken | E157: Vacances prises | F157: Ferien bezogen
A158: 147 | B158: Aktuelles Ferienguthaben | C158: Aktuelles Ferienguthaben | D158: Current holiday balance | E158: Vacances restantes | F158: Aktuelles Ferienguthaben
A159: 148 | B159: Bemerkungen | C159: Bemerkungen | D159: Annotations | E159: Notes | F159: Bemerkungen
A160: 149 | B160: Anzahl ft | C160: Anzahl ft | D160: No. Of public holidays (ft) | E160: Nombre jf | F160: Anzahl ft
A161: 150 | B161: Meldung | C161: Meldung | D161: Message | E161: Message | F161: Meldung
A162: 151 | B162: Feiertagzuschläge gemäss Anstellungsprozent | C162: Feiertagzuschläge gemäss Anstellungsprozent | D162: Bonus for holiday work according level of employment % | E162: Majorations selon emploi % | F162: Feiertagzuschläge gemäss Anstellungsprozent
A163: 152 | B163: div | C163: div | D163: div | E163: div | F163: div
A164: 153 | B164: Den gewünschten Monat mit einem Klick wählen (gehe zu) Den gewünschten Monat mit einem Klick in die Druckvorschau versetzen (für Druck) | C164: Den gewünschten Monat mit einem Klick wählen (gehe zu) Den gewünschten Monat mit einem Klick in die Druckvorschau versetzen (für Druck) | D164: Select desired month by clicking (goto) Select desired month for printing | E164: Sélectionnez le mois désiré en un clic Sélectionnez le mois à imprimer en un clic | F164: Den gewünschten Monat mit einem Klick wählen (gehe zu) Den gewünschten Monat mit einem Klick in die Druckvorschau versetzen (für Druck)
A165: 154 | B165: Produktivstunden | C165: Produktivstunden | D165: Productive hours | E165: Heures productives | F165: Produktivstunden
A166: 155 | B166: Feiertage [ft] | C166: Feiertage [ft] | D166: Public holidays [ft] | E166: Jours fériés [jf] | F166: Feiertage [ft]
A167: 156 | B167: Ferien [f] | C167: Ferien [f] | D167: holidays [f] | E167: Vacances [va] | F167: Ferien [f]
A168: 157 | B168: Kompensation (Vorjahr) [kv] | C168: Kompensation (Vorjahr) [kv] | D168: Compensation hours (prev. year) [kv] | E168: Compensation (année passée) [cp] | F168: Kompensation (Vorjahr) [kv]
A169: 158 | B169: Kompensation (laufend) [kj] | C169: Kompensation (laufend) [kj] | D169: Compensation hours (current) [kj] | E169: Compensation (année courant) [cc] | F169: Kompensation (laufend) [kj]
A170: 159 | B170: Absenzen, Kurzabsenzen [a] | C170: Absenzen, Kurzabsenzen [a] | D170: Absences, short absences [a] | E170: Absences [ab] | F170: Absenzen, Kurzabsenzen [a]
A171: 160 | B171: Krankheit [k] | C171: Krankheit [k] | D171: Illness [k] | E171: Maladie [ma] | F171: Krankheit [k]
A172: 161 | B172: Unfall [u] | C172: Unfall [u] | D172: Accident [u] | E172: Accident [ac] | F172: Unfall [u]
A173: 162 | B173: Schwangerschaft/Mutterschaft [s] | C173: Schwangerschaft/Mutterschaft [s] | D173: Maternity leave [s] | E173: Grossesse/Maternité [gm] | F173: Schwangerschaft/Mutterschaft [s]
A174: 163 | B174: Militär/Beförderung/Zivilschutz [m] | C174: Militär/Beförderung/Zivilschutz [m] | D174: Military service/promotion/civil defence [m] | E174: Militaire/Promotion/Protection civile [mi] | F174: Militär/Beförderung/Zivilschutz [m]
A175: 164 | B175: Berufsschule [bs] | C175: Berufsschule [bs] | D175: School [bs] | E175: Ecole professionelle [ep] | F175: Berufsschule [bs]
A176: 165 | B176: Kurse [ku] | C176: Kurse [ku] | D176: Courses [ku] | E176: Cours [co] | F176: Kurse [ku]
A177: 166 | B177: Kurzarbeit und Schlechtwetter [ka] | C177: Kurzarbeit und Schlechtwetter [ka] | D177: Short-time work/bad weather [ka] | E177: Chômage partiel et intempéries [ch] | F177: Kurzarbeit und Schlechtwetter [ka]
A178: 167 | B178: Fehlstunden (unbezahlt) [fe] | C178: Fehlstunden (unbezahlt) [fe] | D178: Missed hours (not payed) [fe] | E178: Heures manquantes [hm] | F178: Fehlstunden (unbezahlt) [fe]
A179: 168 | B179: Ferien unbezahlt [fu] | C179: Ferien unbezahlt [fu] | D179: Unpaid holidays [fu] | E179: Vacances non payées [vn] | F179: Ferien unbezahlt [fu]
A180: 169 | B180: fu | C180: fu | D180: =C180 -> fu | E180: vn | F180: fu
A181: 170 | B181: Ferien unbezahlt | C181: Ferien unbezahlt | D181: =C181 -> Ferien unbezahlt | F181: Ferien unbezahlt
A182: 171 | B182: fu | C182: fu | D182: fu | F182: fu
A183: 172 | B183: 0 | D183: 0 | F183: 0
A184: 173 | B184: 0 | D184: 0 | F184: 0
A185: 174 | B185: 0 | D185: 0 | F185: 0
A186: 175 | B186: 0 | D186: 0 | F186: 0
A187: 176 | B187: 0 | D187: 0 | F187: 0
A188: 177 | B188: 0 | D188: 0 | F188: 0
A189: 178 | B189: 0 | D189: 0 | F189: 0
A190: 179 | B190: 0 | D190: 0 | F190: 0
A191: 180 | B191: 0 | D191: 0 | F191: 0
A192: 181 | B192: 0 | D192: 0 | F192: =C192 -> 0
A193: 182 | B193: 0 | D193: 0 | F193: 0
A194: 183 | B194: 0 | D194: 0 | F194: 0
A195: 184 | B195: 0 | D195: 0 | F195: 0
A196: 185 | B196: 0 | D196: 0 | F196: 0
A197: 186 | B197: 0 | D197: 0 | F197: 0
A198: 187 | B198: 0 | D198: 0 | F198: 0
A199: 188 | B199: 0 | D199: 0 | F199: 0
A200: 189 | B200: 0 | D200: 0 | F200: 0
A201: 190 | B201: 0 | D201: 0 | F201: 0
A202: 191 | B202: 0 | D202: 0 | F202: 0
A203: 192 | B203: 0 | D203: 0 | F203: 0
A204: 193 | B204: 0 | D204: 0 | F204: 0
A205: 194 | B205: =HLOOKUP($B$3,$C$12:$F$506,A205,FALSE) -> 0 | D205: 0 | F205: 0
A206: 195 | B206: 0 | D206: 0 | F206: 0
A207: 196 | B207: 0 | D207: 0 | F207: 0
A208: 197 | B208: 0 | D208: 0 | F208: 0
A209: 198 | B209: 0 | D209: 0 | F209: 0
... 297 more rows

Sheet MITARBEITER
A1: Nummer | B1: Name | C1: Vorname | D1: Adresse | E1: PLZ | F1: Ort | G1: Telefon
A2: 1 | B2: Muster | C2: Peter | D2: Mustergasse 550 | E2: 5000 | F2: Aarau | G2: +41 00 000 00 00
A3: 2
A4: 3
A5: 4
A6: 5
A7: 6
A8: 7
A9: 8
A10: 9
A11: 10
A12: 11
A13: 12
A14: 13
A15: 14
A16: 15
A17: 16
A18: 17
A19: 18
A20: 19
A21: 20
A22: 21
A23: 22
A24: 23
A25: 24
A26: 25
A27: 26
A28: 27
A29: 28
A30: 29
A31: 30
A32: 31
A33: 32
A34: 33
A35: 34
A36: 35
A37: 36
A38: 37
A39: 38
A40: 39
A41: 40
A42: 41
A43: 42
A44: 43
A45: 44
A46: 45
A47: 46
A48: 47
A49: 48
A50: 49
A51: 50
A52: 51
A53: 52
A54: 53
A55: 54
A56: 55
A57: 56
A58: 57
A59: 58
A60: 59
A61: 60
A62: 61
A63: 62
A64: 63
A65: 64
A66: 65
A67: 66
A68: 67
A69: 68
A70: 69
A71: 70
A72: 71
A73: 72
A74: 73
A75: 74
A76: 75
A77: 76
A78: 77
A79: 78
A80: 79
A81: 80
A82: 81
A83: 82
A84: 83
A85: 84
A86: 85
A87: 86
A88: 87
A89: 88
A90: 89
A91: 90
A92: 91
A93: 92
A94: 93
A95: 94
A96: 95
A97: 96
A98: 97
A99: 98
A100: 99
A101: 100

Sheet Timesheet Backup (hidden)
A1: =Labels!B164 -> Den gewünschten Monat mit einem Klick wählen (gehe zu) Den gewünschten Monat mit einem Klick in die Druckvorschau versetzen (für Druck)
A2: =Labels!B17 &B5 -> A r b e i t s z e i t k o n t r o l l e 2022 | AG2: 2022 | AI2: Hilfstabelle | AJ2: =Labels!B77 -> Jan | AK2: =Labels!B78 -> Feb | AL2: =Labels!B79 -> Mrz | AM2: =Labels!B80 -> Apr | AN2: =Labels!B81 -> Mai | AO2: =Labels!B82 -> Jun | AP2: =Labels!B83 -> Jul | AQ2: =Labels!B84 -> Aug | AR2: =Labels!B85 -> Sep | AS2: =Labels!B86 -> Okt | AT2: =Labels!B87 -> Nov | AU2: =Labels!B88 -> Dez | AV2: =Labels!B102 -> Total | AX2: Legenden, Erklärungen & Meldungen
A3: =Labels!B18 -> Mitarbeiter/In | B3: =Labels!B19 -> Muster Peter | AI3: =Labels!B113 -> a | AJ3: =AG820 -> 0 | AK3: =AG843 -> 0 | AL3: =AG866 -> 0 | AM3: =AG889 -> 0 | AN3: =AG912 -> 0 | AO3: =AG935 -> 0 | AP3: =AG958 -> 0 | AQ3: =AG981 -> 0 | AR3: =AG1004 -> 0 | AS3: =AG1027 -> 0 | AT3: =AG1050 -> 0 | AU3: =AG1073 -> 0 | AV3: =SUM(AJ3:AU3) -> 0
A4: =Labels!B20 -> Anstellung % | B4: =$AL$44 -> 100 | D4: =Labels!B89 -> im Januar | K4: =Labels!B22 -> Saldo Vorjahresstunden (+) | U4: =Labels!B24 -> Ferienguthaben Vorjahr | AC4: =Labels!B26 -> Stunden | AI4: =Labels!B115 -> f | AJ4: =AG817 -> 0 | AK4: =AG840 -> 0 | AL4: =AG863 -> 0 | AM4: =AG886 -> 0 | AN4: =AG909 -> 0 | AO4: =AG932 -> 0 | AP4: =AG955 -> 0 | AQ4: =AG978 -> 0 | AR4: =AG1001 -> 0 | AS4: =AG1024 -> 0 | AT4: =AG1047 -> 0 | AU4: =AG1070 -> 0 | AV4: 0 | AX4: Legende Stunden zu Zuschläge (DE)
A5: =Labels!B21 -> Saldo für das Jahr | B5: =AG2 -> 2022 | D5: =IF($AE$65=0,0,$AE$65) -> -2080 | K5: =Labels!B23 -> Saldo Vorjahresstunden (-) | U5: =Labels!B25 -> Ferienguthaben laufendes Jahr | AA5: 0 | AC5: =Labels!B26 -> Stunden | AI5: =Labels!B120 -> k | AJ5: =AG821 -> 0 | AK5: =AG844 -> 0 | AL5: =AG867 -> 0 | AM5: =AG890 -> 0 | AN5: =AG913 -> 0 | AO5: =AG936 -> 0 | AP5: =AG959 -> 0 | AQ5: =AG982 -> 0 | AR5: =AG1005 -> 0 | AS5: =AG1028 -> 0 | AT5: =AG1051 -> 0 | AU5: =AG1074 -> 0 | AV5: 0
AI6: =Labels!B122 -> u | AJ6: 0 | AK6: 0 | AL6: 0 | AM6: 0 | AN6: 0 | AO6: 0 | AP6: 0 | AQ6: 0 | AR6: 0 | AS6: 0 | AT6: 0 | AU6: 0 | AV6: 0 | AX6: [0] | AY6: Feiertagzuschläge gemäss Anstellungsprozent
A7: =IF(ISERROR(DATEVALUE(TEXT("01.01."&B5,"TT.MM.JJ"))),"01/01/"&B5,"01.01."&B5) -> 01.01.2022 | B7: 48 | C7: =Labels!B27 -> Max. Std / Woche gemäss GAV | J7: 8 | K7: =Labels!B28 -> Std/Tag gemäss GAV | P7: =IF(MOD(YEAR($A$7),400)=0,"n",IF(MOD(YEAR($A$7),100)=0,"n",IF(MOD(YEAR($A$7),4)=0,"j","n"))) -> n | Q7: =Labels!B29 -> Schaltjahr (j/n) | U7: =NETWORKDAYS(DATE(B5,1,1),DATE(B5,12,31)) -> 260 | V7: =Labels!B30 -> Arbeitstage (Jahr) | Z7: =J7*U7 -> 2080 | AA7: =Labels!B31 -> Jahresbruttosollstunden | AI7: =Labels!B124 -> s | AJ7: 0 | AK7: 0 | AL7: 0 | AM7: 0 | AN7: 0 | AO7: 0 | AP7: 0 | AQ7: 0 | AR7: 0 | AS7: 0 | AT7: 0 | AU7: 0 | AV7: 0 | AX7: [1] | AY7: Sonntag Tag Zuschlag
AI8: =Labels!B126 -> m | AJ8: 0 | AK8: 0 | AL8: 0 | AM8: 0 | AN8: 0 | AO8: 0 | AP8: 0 | AQ8: 0 | AR8: 0 | AS8: 0 | AT8: 0 | AU8: 0 | AV8: 0 | AX8: [2] | AY8: Sonntag Nacht Zuschlag
A9: =TEXT(AP29,"MMMM"&Labels!B13) -> Januar | B9: =Labels!B32 -> Saldo Monat + / - | F9: =(AG12-(SUM(AG13:AG27)-AE34))*-1 -> -168 | K9: =Labels!B33 -> = | L9: =Labels!B34 -> Gelbe Felder müssen ausgefüllt werden (die übrigen werden automatisch berechnet) | AI9: =Labels!B130 -> bs | AJ9: 0 | AK9: 0 | AL9: 0 | AM9: 0 | AN9: 0 | AO9: 0 | AP9: 0 | AQ9: 0 | AR9: 0 | AS9: 0 | AT9: 0 | AU9: 0 | AV9: 0 | AX9: [3] | AY9: Zuschläge für ft-Tagarbeit
A10: =Labels!B35 -> Tag | B10: =AP29 -> 2022-01-01 | C10: =B10+1 -> 2022-01-02 | D10: 2022-01-03 | E10: 2022-01-04 | F10: 2022-01-05 | G10: 2022-01-06 | H10: 2022-01-07 | I10: 2022-01-08 | J10: 2022-01-09 | K10: 2022-01-10 | L10: 2022-01-11 | M10: 2022-01-12 | N10: 2022-01-13 | O10: 2022-01-14 | P10: 2022-01-15 | Q10: 2022-01-16 | R10: 2022-01-17 | S10: 2022-01-18 | T10: 2022-01-19 | U10: 2022-01-20 | V10: 2022-01-21 | W10: 2022-01-22 | X10: 2022-01-23 | Y10: 2022-01-24 | Z10: 2022-01-25 | AA10: 2022-01-26 | AB10: 2022-01-27 | AC10: 2022-01-28 | AD10: 2022-01-29 | AE10: 2022-01-30 | AF10: 2022-01-31 | AG10: =COUNT(B12:AF12)&" "&Labels!$B$63 -> 21 Tage | AI10: =Labels!B132 -> ku | AJ10: 0 | AK10: 0 | AL10: 0 | AM10: 0 | AN10: 0 | AO10: 0 | AP10: 0 | AQ10: 0 | AR10: 0 | AS10: 0 | AT10: 0 | AU10: 0 | AV10: 0 | AX10: [4] | AY10: Zuschläge für ft-Nachtarbeit
A11: =Labels!B36 -> Kalenderwoche | B11: =IF(B10="","",TRUNC((B10-DATE(YEAR(B10+3-MOD(B10-2,7)),1,MOD(B10-2,7)-9))/7)) -> 52 | C11: =IF(C10="","",TRUNC((C10-DATE(YEAR(C10+3-MOD(C10-2,7)),1,MOD(C10-2,7)-9))/7)) -> 52 | D11: 1 | E11: 1 | F11: 1 | G11: 1 | H11: 1 | I11: 1 | J11: 1 | K11: 2 | L11: 2 | M11: 2 | N11: 2 | O11: 2 | P11: 2 | Q11: 2 | R11: 3 | S11: 3 | T11: 3 | U11: 3 | V11: 3 | W11: 3 | X11: 3 | Y11: 4 | Z11: 4 | AA11: 4 | AB11: 4 | AC11: 4 | AD11: 4 | AE11: 4 | AF11: 5 | AI11: =Labels!B128 -> ka | AJ11: 0 | AK11: 0 | AL11: 0 | AM11: 0 | AN11: 0 | AO11: 0 | AP11: 0 | AQ11: 0 | AR11: 0 | AS11: 0 | AT11: 0 | AU11: 0 | AV11: 0 | AX11: [5] | AY11: Produktive Stunden Tag 06.00-20.00 Uhr
A12: =Labels!B37 -> Sollstunden | B12: =IF(AND(MOD(B10,7)>=2,SUMPRODUCT(($AM$56:$AQ$56=MOD(B10,7))*$AM$44:$AQ$44)),($J$7*5/$AR$44)*$B$4%,"") ->  | C12: =IF(AND(MOD(C10,7)>=2,SUMPRODUCT(($AM$56:$AQ$56=MOD(C10,7))*$AM$44:$AQ$44)),($J$7*5/$AR$44)*$B$4%,"") ->  | D12: =IF(AND(MOD(D10,7)>=2,SUMPRODUCT(($AM$56:$AQ$56=MOD(D10,7))*$AM$44:$AQ$44)),($J$7*5/$AR$44)*$B$4%,"") -> 8 | E12: =IF(AND(MOD(E10,7)>=2,SUMPRODUCT(($AM$56:$AQ$56=MOD(E10,7))*$AM$44:$AQ$44)),($J$7*5/$AR$44)*$B$4%,"") -> 8 | F12: =IF(AND(MOD(F10,7)>=2,SUMPRODUCT(($AM$56:$AQ$56=MOD(F10,7))*$AM$44:$AQ$44)),($J$7*5/$AR$44)*$B$4%,"") -> 8 | G12: =IF(AND(MOD(G10,7)>=2,SUMPRODUCT(($AM$56:$AQ$56=MOD(G10,7))*$AM$44:$AQ$44)),($J$7*5/$AR$44)*$B$4%,"") -> 8 | H12: =IF(AND(MOD(H10,7)>=2,SUMPRODUCT(($AM$56:$AQ$56=MOD(H10,7))*$AM$44:$AQ$44)),($J$7*5/$AR$44)*$B$4%,"") -> 8 | I12: =IF(AND(MOD(I10,7)>=2,SUMPRODUCT(($AM$56:$AQ$56=MOD(I10,7))*$AM$44:$AQ$44)),($J$7*5/$AR$44)*$B$4%,"") ->  | J12: =IF(AND(MOD(J10,7)>=2,SUMPRODUCT(($AM$56:$AQ$56=MOD(J10,7))*$AM$44:$AQ$44)),($J$7*5/$AR$44)*$B$4%,"") ->  | K12: =IF(AND(MOD(K10,7)>=2,SUMPRODUCT(($AM$56:$AQ$56=MOD(K10,7))*$AM$44:$AQ$44)),($J$7*5/$AR$44)*$B$4%,"") -> 8 | L12: =IF(AND(MOD(L10,7)>=2,SUMPRODUCT(($AM$56:$AQ$56=MOD(L10,7))*$AM$44:$AQ$44)),($J$7*5/$AR$44)*$B$4%,"") -> 8 | M12: =IF(AND(MOD(M10,7)>=2,SUMPRODUCT(($AM$56:$AQ$56=MOD(M10,7))*$AM$44:$AQ$44)),($J$7*5/$AR$44)*$B$4%,"") -> 8 | N12: =IF(AND(MOD(N10,7)>=2,SUMPRODUCT(($AM$56:$AQ$56=MOD(N10,7))*$AM$44:$AQ$44)),($J$7*5/$AR$44)*$B$4%,"") -> 8 | O12: =IF(AND(MOD(O10,7)>=2,SUMPRODUCT(($AM$56:$AQ$56=MOD(O10,7))*$AM$44:$AQ$44)),($J$7*5/$AR$44)*$B$4%,"") -> 8 | P12: =IF(AND(MOD(P10,7)>=2,SUMPRODUCT(($AM$56:$AQ$56=MOD(P10,7))*$AM$44:$AQ$44)),($J$7*5/$AR$44)*$B$4%,"") ->  | Q12: =IF(AND(MOD(Q10,7)>=2,SUMPRODUCT(($AM$56:$AQ$56=MOD(Q10,7))*$AM$44:$AQ$44)),($J$7*5/$AR$44)*$B$4%,"") ->  | R12: =IF(AND(MOD(R10,7)>=2,SUMPRODUCT(($AM$56:$AQ$56=MOD(R10,7))*$AM$44:$AQ$44)),($J$7*5/$AR$44)*$B$4%,"") -> 8 | S12: =IF(AND(MOD(S10,7)>=2,SUMPRODUCT(($AM$56:$AQ$56=MOD(S10,7))*$AM$44:$AQ$44)),($J$7*5/$AR$44)*$B$4%,"") -> 8 | T12: =IF(AND(MOD(T10,7)>=2,SUMPRODUCT(($AM$56:$AQ$56=MOD(T10,7))*$AM$44:$AQ$44)),($J$7*5/$AR$44)*$B$4%,"") -> 8 | U12: =IF(AND(MOD(U10,7)>=2,SUMPRODUCT(($AM$56:$AQ$56=MOD(U10,7))*$AM$44:$AQ$44)),($J$7*5/$AR$44)*$B$4%,"") -> 8 | V12: =IF(AND(MOD(V10,7)>=2,SUMPRODUCT(($AM$56:$AQ$56=MOD(V10,7))*$AM$44:$AQ$44)),($J$7*5/$AR$44)*$B$4%,"") -> 8 | W12: =IF(AND(MOD(W10,7)>=2,SUMPRODUCT(($AM$56:$AQ$56=MOD(W10,7))*$AM$44:$AQ$44)),($J$7*5/$AR$44)*$B$4%,"") ->  | X12: =IF(AND(MOD(X10,7)>=2,SUMPRODUCT(($AM$56:$AQ$56=MOD(X10,7))*$AM$44:$AQ$44)),($J$7*5/$AR$44)*$B$4%,"") ->  | Y12: =IF(AND(MOD(Y10,7)>=2,SUMPRODUCT(($AM$56:$AQ$56=MOD(Y10,7))*$AM$44:$AQ$44)),($J$7*5/$AR$44)*$B$4%,"") -> 8 | Z12: =IF(AND(MOD(Z10,7)>=2,SUMPRODUCT(($AM$56:$AQ$56=MOD(Z10,7))*$AM$44:$AQ$44)),($J$7*5/$AR$44)*$B$4%,"") -> 8 | AA12: =IF(AND(MOD(AA10,7)>=2,SUMPRODUCT(($AM$56:$AQ$56=MOD(AA10,7))*$AM$44:$AQ$44)),($J$7*5/$AR$44)*$B$4%,"") -> 8 | AB12: =IF(AND(MOD(AB10,7)>=2,SUMPRODUCT(($AM$56:$AQ$56=MOD(AB10,7))*$AM$44:$AQ$44)),($J$7*5/$AR$44)*$B$4%,"") -> 8 | AC12: =IF(AND(MOD(AC10,7)>=2,SUMPRODUCT(($AM$56:$AQ$56=MOD(AC10,7))*$AM$44:$AQ$44)),($J$7*5/$AR$44)*$B$4%,"") -> 8 | AD12: =IF(AND(MOD(AD10,7)>=2,SUMPRODUCT(($AM$56:$AQ$56=MOD(AD10,7))*$AM$44:$AQ$44)),($J$7*5/$AR$44)*$B$4%,"") ->  | AE12: =IF(AND(MOD(AE10,7)>=2,SUMPRODUCT(($AM$56:$AQ$56=MOD(AE10,7))*$AM$44:$AQ$44)),($J$7*5/$AR$44)*$B$4%,"") ->  | AF12: =IF(AND(MOD(AF10,7)>=2,SUMPRODUCT(($AM$56:$AQ$56=MOD(AF10,7))*$AM$44:$AQ$44)),($J$7*5/$AR$44)*$B$4%,"") -> 8 | AG12: =SUM(B12:AF12) -> 168 | AI12: =Labels!B135 -> kv | AJ12: =AG818 -> 0 | AK12: =AG841 -> 0 | AL12: =AG864 -> 0 | AM12: =AG887 -> 0 | AN12: =AG910 -> 0 | AO12: =AG933 -> 0 | AP12: =AG956 -> 0 | AQ12: =AG979 -> 0 | AR12: =AG1002 -> 0 | AS12: =AG1025 -> 0 | AT12: =AG1048 -> 0 | AU12: =AG1071 -> 0 | AV12: =SUM(AJ12:AU12) -> 0 | AX12: [6] | AY12: Produktive Stunden Nacht 20.00-06.00 Uhr
A13: =Labels!B38 -> Absenz in Std | B13: =B831 -> 0 | C13: =C831 -> 0 | D13: 0 | E13: 0 | F13: 0 | G13: 0 | H13: 0 | I13: 0 | J13: 0 | K13: 0 | L13: 0 | M13: 0 | N13: 0 | O13: 0 | P13: 0 | Q13: 0 | R13: 0 | S13: 0 | T13: 0 | U13: 0 | V13: 0 | W13: 0 | X13: 0 | Y13: 0 | Z13: 0 | AA13: 0 | AB13: 0 | AC13: 0 | AD13: 0 | AE13: 0 | AF13: 0 | AG13: =SUM(AJ3:AJ13) -> 0 | AI13: =Labels!B180 -> fu | AJ13: =AG828 -> 0 | AK13: =AG851 -> 0 | AL13: =AG874 -> 0 | AM13: =AG897 -> 0 | AN13: =AG920 -> 0 | AO13: =AG943 -> 0 | AP13: =AG966 -> 0 | AQ13: =AG989 -> 0 | AR13: =AG1012 -> 0 | AS13: =AG1035 -> 0 | AT13: =AG1058 -> 0 | AU13: =AG1081 -> 0 | AV13: =SUM(AJ13:AU13) -> 0 | AX13: [7] | AY13: Produktive Stunden im Monat ohne Zeitzuschläge und Absenzen
A14: =Labels!B39 -> Code | B14: =IF(B831<>0,IF(MAX(B818:B830)<B831,Labels!$B$163,INDEX($AH$817:$AH$829,MATCH(MAX(B818:B830),B818:B830,0))),"") ->  | C14: =IF(C831<>0,IF(MAX(C818:C830)<C831,Labels!$B$163,INDEX($AH$817:$AH$829,MATCH(MAX(C818:C830),C818:C830,0))),"") ->  | D14: =IF(D831<>0,IF(MAX(D818:D830)<D831,Labels!$B$163,INDEX($AH$817:$AH$829,MATCH(MAX(D818:D830),D818:D830,0))),"") ->  | E14: =IF(E831<>0,IF(MAX(E818:E830)<E831,Labels!$B$163,INDEX($AH$817:$AH$829,MATCH(MAX(E818:E830),E818:E830,0))),"") ->  | F14: =IF(F831<>0,IF(MAX(F818:F830)<F831,Labels!$B$163,INDEX($AH$817:$AH$829,MATCH(MAX(F818:F830),F818:F830,0))),"") ->  | G14: =IF(G831<>0,IF(MAX(G818:G830)<G831,Labels!$B$163,INDEX($AH$817:$AH$829,MATCH(MAX(G818:G830),G818:G830,0))),"") ->  | H14: =IF(H831<>0,IF(MAX(H818:H830)<H831,Labels!$B$163,INDEX($AH$817:$AH$829,MATCH(MAX(H818:H830),H818:H830,0))),"") ->  | I14: =IF(I831<>0,IF(MAX(I818:I830)<I831,Labels!$B$163,INDEX($AH$817:$AH$829,MATCH(MAX(I818:I830),I818:I830,0))),"") ->  | J14: =IF(J831<>0,IF(MAX(J818:J830)<J831,Labels!$B$163,INDEX($AH$817:$AH$829,MATCH(MAX(J818:J830),J818:J830,0))),"") ->  | K14: =IF(K831<>0,IF(MAX(K818:K830)<K831,Labels!$B$163,INDEX($AH$817:$AH$829,MATCH(MAX(K818:K830),K818:K830,0))),"") ->  | L14: =IF(L831<>0,IF(MAX(L818:L830)<L831,Labels!$B$163,INDEX($AH$817:$AH$829,MATCH(MAX(L818:L830),L818:L830,0))),"") ->  | M14: =IF(M831<>0,IF(MAX(M818:M830)<M831,Labels!$B$163,INDEX($AH$817:$AH$829,MATCH(MAX(M818:M830),M818:M830,0))),"") ->  | N14: =IF(N831<>0,IF(MAX(N818:N830)<N831,Labels!$B$163,INDEX($AH$817:$AH$829,MATCH(MAX(N818:N830),N818:N830,0))),"") ->  | O14: =IF(O831<>0,IF(MAX(O818:O830)<O831,Labels!$B$163,INDEX($AH$817:$AH$829,MATCH(MAX(O818:O830),O818:O830,0))),"") ->  | P14: =IF(P831<>0,IF(MAX(P818:P830)<P831,Labels!$B$163,INDEX($AH$817:$AH$829,MATCH(MAX(P818:P830),P818:P830,0))),"") ->  | Q14: =IF(Q831<>0,IF(MAX(Q818:Q830)<Q831,Labels!$B$163,INDEX($AH$817:$AH$829,MATCH(MAX(Q818:Q830),Q818:Q830,0))),"") ->  | R14: =IF(R831<>0,IF(MAX(R818:R830)<R831,Labels!$B$163,INDEX($AH$817:$AH$829,MATCH(MAX(R818:R830),R818:R830,0))),"") ->  | S14: =IF(S831<>0,IF(MAX(S818:S830)<S831,Labels!$B$163,INDEX($AH$817:$AH$829,MATCH(MAX(S818:S830),S818:S830,0))),"") ->  | T14: =IF(T831<>0,IF(MAX(T818:T830)<T831,Labels!$B$163,INDEX($AH$817:$AH$829,MATCH(MAX(T818:T830),T818:T830,0))),"") ->  | U14: =IF(U831<>0,IF(MAX(U818:U830)<U831,Labels!$B$163,INDEX($AH$817:$AH$829,MATCH(MAX(U818:U830),U818:U830,0))),"") ->  | V14: =IF(V831<>0,IF(MAX(V818:V830)<V831,Labels!$B$163,INDEX($AH$817:$AH$829,MATCH(MAX(V818:V830),V818:V830,0))),"") ->  | W14: =IF(W831<>0,IF(MAX(W818:W830)<W831,Labels!$B$163,INDEX($AH$817:$AH$829,MATCH(MAX(W818:W830),W818:W830,0))),"") ->  | X14: =IF(X831<>0,IF(MAX(X818:X830)<X831,Labels!$B$163,INDEX($AH$817:$AH$829,MATCH(MAX(X818:X830),X818:X830,0))),"") ->  | Y14: =IF(Y831<>0,IF(MAX(Y818:Y830)<Y831,Labels!$B$163,INDEX($AH$817:$AH$829,MATCH(MAX(Y818:Y830),Y818:Y830,0))),"") ->  | Z14: =IF(Z831<>0,IF(MAX(Z818:Z830)<Z831,Labels!$B$163,INDEX($AH$817:$AH$829,MATCH(MAX(Z818:Z830),Z818:Z830,0))),"") ->  | AA14: =IF(AA831<>0,IF(MAX(AA818:AA830)<AA831,Labels!$B$163,INDEX($AH$817:$AH$829,MATCH(MAX(AA818:AA830),AA818:AA830,0))),"") ->  | AB14: =IF(AB831<>0,IF(MAX(AB818:AB830)<AB831,Labels!$B$163,INDEX($AH$817:$AH$829,MATCH(MAX(AB818:AB830),AB818:AB830,0))),"") ->  | AC14: =IF(AC831<>0,IF(MAX(AC818:AC830)<AC831,Labels!$B$163,INDEX($AH$817:$AH$829,MATCH(MAX(AC818:AC830),AC818:AC830,0))),"") ->  | AD14: =IF(AD831<>0,IF(MAX(AD818:AD830)<AD831,Labels!$B$163,INDEX($AH$817:$AH$829,MATCH(MAX(AD818:AD830),AD818:AD830,0))),"") ->  | AE14: =IF(AE831<>0,IF(MAX(AE818:AE830)<AE831,Labels!$B$163,INDEX($AH$817:$AH$829,MATCH(MAX(AE818:AE830),AE818:AE830,0))),"") ->  | AF14: =IF(AF831<>0,IF(MAX(AF818:AF830)<AF831,Labels!$B$163,INDEX($AH$817:$AH$829,MATCH(MAX(AF818:AF830),AF818:AF830,0))),"") ->  | AI14: =Labels!B145 -> fe | AJ14: =AG829 -> 0 | AK14: =AG852 -> 0 | AL14: =AG875 -> 0 | AM14: =AG898 -> 0 | AN14: =AG921 -> 0 | AO14: =AG944 -> 0 | AP14: =AG967 -> 0 | AQ14: =AG990 -> 0 | AR14: =AG1013 -> 0 | AS14: =AG1036 -> 0 | AT14: =AG1059 -> 0 | AU14: =AG1082 -> 0 | AV14: =SUM(AJ14:AU14) -> 0 | AX14: [8] | AY14: Unproduktive Stunden (Feiertag, Absenzen)
A15: =Labels!B40 -> 00.00-06.00h | AG15: =SUM(B15:AF15) -> 0 | AI15: =Labels!B137 -> kj | AJ15: =AG819 -> 0 | AK15: =AG842 -> 0 | AL15: =AG865 -> 0 | AM15: =AG888 -> 0 | AN15: =AG911 -> 0 | AO15: =AG934 -> 0 | AP15: =AG957 -> 0 | AQ15: =AG980 -> 0 | AR15: =AG1003 -> 0 | AS15: =AG1026 -> 0 | AT15: =AG1049 -> 0 | AU15: =AG1072 -> 0 | AV15: =SUM(AJ15:AU15) -> 0 | AX15: [9] | AY15: Total gearbeitete Std. im Monat mit Zeitzuschlägen und Absenzen abz. ausbezahlte Stunden
A16: =Labels!B41 -> 06.00-20.00h | AG16: =SUM(B16:AF16) -> 0 | AI16: =Labels!B118 -> ft | AJ16: =SUMIF($B$18:$AF$18,$AI$16,$B$19:$AF$19) -> 0 | AK16: =SUMIF($B$82:$AD$82,$AI$16,$B$83:$AD$83) -> 0 | AL16: =SUMIF($B$146:$AF$146,$AI$16,$B$147:$AF$147) -> 0 | AM16: =SUMIF($B$210:$AE$210,$AI$16,$B$211:$AE$211) -> 0 | AN16: =SUMIF($B$274:$AF$274,$AI$16,$B$275:$AF$275) -> 0 | AO16: =SUMIF($B$338:$AE$338,$AI$16,$B$339:$AE$339) -> 0 | AP16: =SUMIF($B$402:$AF$402,$AI$16,$B$403:$AF$403) -> 0 | AQ16: =SUMIF($B$466:$AF$466,$AI$16,$B$467:$AF$467) -> 0 | AR16: =SUMIF($B$530:$AE$530,$AI$16,$B$531:$AE$531) -> 0 | AS16: =SUMIF($B$594:$AF$594,$AI$16,$B$595:$AF$595) -> 0 | AT16: =SUMIF($B$658:$AE$658,$AI$16,$B$659:$AE$659) -> 0 | AU16: =SUMIF($B$722:$AF$722,$AI$16,$B$723:$AF$723) -> 0 | AV16: =SUM(AJ16:AU16) -> 0 | AX16: [10] | AY16: Soll-Stunden
A17: =Labels!B42 -> 20.00-24.00h | AG17: =SUM(B17:AF17) -> 0 | AI17: =Labels!B160 -> Anzahl ft | AJ17: =COUNTIF($B$18:$AF$18,$AI$16) -> 0 | AK17: =COUNTIF($B$82:$AD$82,$AI$16) -> 0 | AL17: =COUNTIF($B$146:$AF$146,$AI$16) -> 0 | AM17: =COUNTIF($B$210:$AE$210,$AI$16) -> 0 | AN17: =COUNTIF($B$274:$AF$274,$AI$16) -> 0 | AO17: =COUNTIF($B$338:$AE$338,$AI$16) -> 0 | AP17: =COUNTIF($B$402:$AF$402,$AI$16) -> 0 | AQ17: =COUNTIF($B$466:$AF$466,$AI$16) -> 0 | AR17: =COUNTIF($B$530:$AE$530,$AI$16) -> 0 | AS17: =COUNTIF($B$594:$AF$594,$AI$16) -> 0 | AT17: =COUNTIF($B$658:$AE$658,$AI$16) -> 0 | AU17: =COUNTIF($B$722:$AF$722,$AI$16) -> 0 | AV17: 0 | AX17: [11] | AY17: Vergleich im Monat gearbeitete Std. inkl. Zeitzuschläge minus Zahlung Vorjahr zu Soll-Stunden + / -
A18: =Labels!B43 -> Feiertag "ft" | B18: =IF(WEEKDAY(B10,2)<=6,IF(KALENDER!E3="x",Labels!$B$118,""),"") ->  | C18: =IF(WEEKDAY(C10,2)<=6,IF(KALENDER!F3="x",Labels!$B$118,""),"") ->  | D18: =IF(WEEKDAY(D10,2)<=6,IF(KALENDER!G3="x",Labels!$B$118,""),"") ->  | E18: =IF(WEEKDAY(E10,2)<=6,IF(KALENDER!H3="x",Labels!$B$118,""),"") ->  | F18: =IF(WEEKDAY(F10,2)<=6,IF(KALENDER!I3="x",Labels!$B$118,""),"") ->  | G18: =IF(WEEKDAY(G10,2)<=6,IF(KALENDER!J3="x",Labels!$B$118,""),"") ->  | H18: =IF(WEEKDAY(H10,2)<=6,IF(KALENDER!K3="x",Labels!$B$118,""),"") ->  | I18: =IF(WEEKDAY(I10,2)<=6,IF(KALENDER!L3="x",Labels!$B$118,""),"") ->  | J18: =IF(WEEKDAY(J10,2)<=6,IF(KALENDER!M3="x",Labels!$B$118,""),"") ->  | K18: =IF(WEEKDAY(K10,2)<=6,IF(KALENDER!N3="x",Labels!$B$118,""),"") ->  | L18: =IF(WEEKDAY(L10,2)<=6,IF(KALENDER!O3="x",Labels!$B$118,""),"") ->  | M18: =IF(WEEKDAY(M10,2)<=6,IF(KALENDER!P3="x",Labels!$B$118,""),"") ->  | N18: =IF(WEEKDAY(N10,2)<=6,IF(KALENDER!Q3="x",Labels!$B$118,""),"") ->  | O18: =IF(WEEKDAY(O10,2)<=6,IF(KALENDER!R3="x",Labels!$B$118,""),"") ->  | P18: =IF(WEEKDAY(P10,2)<=6,IF(KALENDER!S3="x",Labels!$B$118,""),"") ->  | Q18: =IF(WEEKDAY(Q10,2)<=6,IF(KALENDER!T3="x",Labels!$B$118,""),"") ->  | R18: =IF(WEEKDAY(R10,2)<=6,IF(KALENDER!U3="x",Labels!$B$118,""),"") ->  | S18: =IF(WEEKDAY(S10,2)<=6,IF(KALENDER!V3="x",Labels!$B$118,""),"") ->  | T18: =IF(WEEKDAY(T10,2)<=6,IF(KALENDER!W3="x",Labels!$B$118,""),"") ->  | U18: =IF(WEEKDAY(U10,2)<=6,IF(KALENDER!X3="x",Labels!$B$118,""),"") ->  | V18: =IF(WEEKDAY(V10,2)<=6,IF(KALENDER!Y3="x",Labels!$B$118,""),"") ->  | W18: =IF(WEEKDAY(W10,2)<=6,IF(KALENDER!Z3="x",Labels!$B$118,""),"") ->  | X18: =IF(WEEKDAY(X10,2)<=6,IF(KALENDER!AA3="x",Labels!$B$118,""),"") ->  | Y18: =IF(WEEKDAY(Y10,2)<=6,IF(KALENDER!AB3="x",Labels!$B$118,""),"") ->  | Z18: =IF(WEEKDAY(Z10,2)<=6,IF(KALENDER!AC3="x",Labels!$B$118,""),"") ->  | AA18: =IF(WEEKDAY(AA10,2)<=6,IF(KALENDER!AD3="x",Labels!$B$118,""),"") ->  | AB18: =IF(WEEKDAY(AB10,2)<=6,IF(KALENDER!AE3="x",Labels!$B$118,""),"") ->  | AC18: =IF(WEEKDAY(AC10,2)<=6,IF(KALENDER!AF3="x",Labels!$B$118,""),"") ->  | AD18: =IF(WEEKDAY(AD10,2)<=6,IF(KALENDER!AG3="x",Labels!$B$118,""),"") ->  | AE18: =IF(WEEKDAY(AE10,2)<=6,IF(KALENDER!AH3="x",Labels!$B$118,""),"") ->  | AF18: =IF(WEEKDAY(AF10,2)<=6,IF(KALENDER!AI3="x",Labels!$B$118,""),"") ->  | AH18: [0] | AI18: =Labels!B161 -> Meldung | AJ18: =IF($AV$17>9,"(" & $AV$17 & " = " & Labels!B117,"") -> 
A19: =Labels!B44 -> Gutschrift "ft" | B19: =IF(AND(B18=Labels!$B$118,WEEKDAY(B10,2)<6,B$12<>""),($J$7*5/$AR$44)*$B$4%,"") ->  | C19: =IF(AND(C18=Labels!$B$118,WEEKDAY(C10,2)<6,C$12<>""),($J$7*5/$AR$44)*$B$4%,"") ->  | D19: =IF(AND(D18=Labels!$B$118,WEEKDAY(D10,2)<6,D$12<>""),($J$7*5/$AR$44)*$B$4%,"") ->  | E19: =IF(AND(E18=Labels!$B$118,WEEKDAY(E10,2)<6,E$12<>""),($J$7*5/$AR$44)*$B$4%,"") ->  | F19: =IF(AND(F18=Labels!$B$118,WEEKDAY(F10,2)<6,F$12<>""),($J$7*5/$AR$44)*$B$4%,"") ->  | G19: =IF(AND(G18=Labels!$B$118,WEEKDAY(G10,2)<6,G$12<>""),($J$7*5/$AR$44)*$B$4%,"") ->  | H19: =IF(AND(H18=Labels!$B$118,WEEKDAY(H10,2)<6,H$12<>""),($J$7*5/$AR$44)*$B$4%,"") ->  | I19: =IF(AND(I18=Labels!$B$118,WEEKDAY(I10,2)<6,I$12<>""),($J$7*5/$AR$44)*$B$4%,"") ->  | J19: =IF(AND(J18=Labels!$B$118,WEEKDAY(J10,2)<6,J$12<>""),($J$7*5/$AR$44)*$B$4%,"") ->  | K19: =IF(AND(K18=Labels!$B$118,WEEKDAY(K10,2)<6,K$12<>""),($J$7*5/$AR$44)*$B$4%,"") ->  | L19: =IF(AND(L18=Labels!$B$118,WEEKDAY(L10,2)<6,L$12<>""),($J$7*5/$AR$44)*$B$4%,"") ->  | M19: =IF(AND(M18=Labels!$B$118,WEEKDAY(M10,2)<6,M$12<>""),($J$7*5/$AR$44)*$B$4%,"") ->  | N19: =IF(AND(N18=Labels!$B$118,WEEKDAY(N10,2)<6,N$12<>""),($J$7*5/$AR$44)*$B$4%,"") ->  | O19: =IF(AND(O18=Labels!$B$118,WEEKDAY(O10,2)<6,O$12<>""),($J$7*5/$AR$44)*$B$4%,"") ->  | P19: =IF(AND(P18=Labels!$B$118,WEEKDAY(P10,2)<6,P$12<>""),($J$7*5/$AR$44)*$B$4%,"") ->  | Q19: =IF(AND(Q18=Labels!$B$118,WEEKDAY(Q10,2)<6,Q$12<>""),($J$7*5/$AR$44)*$B$4%,"") ->  | R19: =IF(AND(R18=Labels!$B$118,WEEKDAY(R10,2)<6,R$12<>""),($J$7*5/$AR$44)*$B$4%,"") ->  | S19: =IF(AND(S18=Labels!$B$118,WEEKDAY(S10,2)<6,S$12<>""),($J$7*5/$AR$44)*$B$4%,"") ->  | T19: =IF(AND(T18=Labels!$B$118,WEEKDAY(T10,2)<6,T$12<>""),($J$7*5/$AR$44)*$B$4%,"") ->  | U19: =IF(AND(U18=Labels!$B$118,WEEKDAY(U10,2)<6,U$12<>""),($J$7*5/$AR$44)*$B$4%,"") ->  | V19: =IF(AND(V18=Labels!$B$118,WEEKDAY(V10,2)<6,V$12<>""),($J$7*5/$AR$44)*$B$4%,"") ->  | W19: =IF(AND(W18=Labels!$B$118,WEEKDAY(W10,2)<6,W$12<>""),($J$7*5/$AR$44)*$B$4%,"") ->  | X19: =IF(AND(X18=Labels!$B$118,WEEKDAY(X10,2)<6,X$12<>""),($J$7*5/$AR$44)*$B$4%,"") ->  | Y19: =IF(AND(Y18=Labels!$B$118,WEEKDAY(Y10,2)<6,Y$12<>""),($J$7*5/$AR$44)*$B$4%,"") ->  | Z19: =IF(AND(Z18=Labels!$B$118,WEEKDAY(Z10,2)<6,Z$12<>""),($J$7*5/$AR$44)*$B$4%,"") ->  | AA19: =IF(AND(AA18=Labels!$B$118,WEEKDAY(AA10,2)<6,AA$12<>""),($J$7*5/$AR$44)*$B$4%,"") ->  | AB19: =IF(AND(AB18=Labels!$B$118,WEEKDAY(AB10,2)<6,AB$12<>""),($J$7*5/$AR$44)*$B$4%,"") ->  | AC19: =IF(AND(AC18=Labels!$B$118,WEEKDAY(AC10,2)<6,AC$12<>""),($J$7*5/$AR$44)*$B$4%,"") ->  | AD19: =IF(AND(AD18=Labels!$B$118,WEEKDAY(AD10,2)<6,AD$12<>""),($J$7*5/$AR$44)*$B$4%,"") ->  | AE19: =IF(AND(AE18=Labels!$B$118,WEEKDAY(AE10,2)<6,AE$12<>""),($J$7*5/$AR$44)*$B$4%,"") ->  | AF19: =IF(AND(AF18=Labels!$B$118,WEEKDAY(AF10,2)<6,AF$12<>""),($J$7*5/$AR$44)*$B$4%,"") ->  | AG19: =SUM(B19:AF19) -> 0 | AI19: Bez VoJa | AJ19: =$AE$33 -> 0 | AK19: =$AE$97 -> 0 | AL19: =$AE$161 -> 0 | AM19: =$AE$225 -> 0 | AN19: =$AE$289 -> 0 | AO19: =$AE$353 -> 0 | AP19: =$AE$417 -> 0 | AQ19: =$AE$481 -> 0 | AR19: =$AE$545 -> 0 | AV19: =SUM(AJ19:AU19) -> 0
A20: =Labels!B45 -> Tagestotal | B20: =SUM(B15:B17) -> 0 | C20: =SUM(C15:C17) -> 0 | D20: 0 | E20: 0 | F20: 0 | G20: 0 | H20: 0 | I20: 0 | J20: 0 | K20: 0 | L20: 0 | M20: 0 | N20: 0 | O20: 0 | P20: 0 | Q20: 0 | R20: 0 | S20: 0 | T20: 0 | U20: 0 | V20: 0 | W20: 0 | X20: 0 | Y20: 0 | Z20: 0 | AA20: 0 | AB20: 0 | AC20: 0 | AD20: 0 | AE20: 0 | AF20: 0 | AI20: Bez LaJa | AJ20: =$AE$34 -> 0 | AK20: =$AE$98 -> 0 | AL20: =$AE$162 -> 0 | AM20: =$AE$226 -> 0 | AN20: =$AE$290 -> 0 | AO20: =$AE$354 -> 0 | AP20: =$AE$418 -> 0 | AQ20: =$AE$482 -> 0 | AR20: =$AE$546 -> 0 | AS20: =$AE$610 -> 0 | AT20: =$AE$674 -> 0 | AU20: =$AE$738 -> 0 | AV20: =SUM(AJ20:AU20) -> 0 | AX20: Legende Absenztypen (DE)
A21: =Labels!B46 -> . | AI21: Zuschläge Nacht/Sonn-/Feiertag | AJ21: =SUM(AG26+AG27) -> 0 | AK21: =SUM(AG89+AG90) -> 0 | AL21: =SUM(AG153+AG154) -> 0 | AM21: =SUM(AG217+AG218) -> 0 | AN21: =SUM(AG281+AG282) -> 0 | AO21: =SUM(AG345+AG346) -> 0 | AP21: =SUM(AG409+AG410) -> 0 | AQ21: =SUM(AG473+AG474) -> 0 | AR21: =SUM(AG537+AG538) -> 0 | AS21: =SUM(AG601+AG602) -> 0 | AT21: =SUM(AG665+AG666) -> 0 | AU21: =SUM(AG729+AG730) -> 0 | AV21: =SUM(AJ21:AU21) -> 0
A22: =Labels!B47 -> . | AX22: a | AY22: Absenzen, Kurzabsenzen Art. 11 GAV
A23: =Labels!B48 -> Monatsübergang | B23: =IF(WEEKDAY(B10)=1,TEXT(B10-1,"MMM"&Labels!B13),"") ->  | AF23: =IF(AND(WEEKDAY(AF10)>1,WEEKDAY(AF10)<7),TEXT(DATE($B$5,MONTH(AF10)+1,1),"MMM"&Labels!B13),"") -> Feb | AX23: f | AY23: Ferien Art. 12.1. GAV
A24: =Labels!B49 -> Wochentotal | B24: =IF(WEEKDAY(B10)=7,SUMIF($B11:$AF11,B11,$B20:$AF20)+SUMIF($B75:$AD75,B11,$B84:$AD84),IF(WEEKDAY(B10)=1,SUMIF($B11:$AF11,B11,$B20:$AF20)+SUMIF($B75:$AD75,B11,$B84:$AD84),"")) -> 0 | C24: =IF(WEEKDAY(C10)=7,SUMIF($B11:$AF11,C11,$B20:$AF20)+SUMIF($B75:$AD75,C11,$B84:$AD84),"") ->  | I24: 0 | P24: 0 | W24: 0 | AD24: 0 | AF24: =IF(WEEKDAY(AF10)=7,SUMIF($B11:$AF11,AF11,$B20:$AF20)+SUMIF($B75:$AD75,AF11,$B84:$AD84),AF23) -> Feb | AX24: k | AY24: Krankheit Art. 13 GAV
A25: =Labels!B50 -> Zeitzuschlag 1) | B25: =IF(B32="FALSCH","",B32) ->  | C25: =IF(C32="FALSCH","",C32) ->  | AG25: =SUM(B25:AF25) -> 0 | AX25: m | AY25: Militär, Zivilschutz Art. 16 GAV
A26: =Labels!B51 -> Zeitzuschlag 2) | B26: =IF((B15+B17)=0,"",SUM(B15,B17)) ->  | C26: =IF((C15+C17)=0,"",SUM(C15,C17)) ->  | D26: =IF((D15+D17)=0,"",SUM(D15,D17)) ->  | E26: =IF((E15+E17)=0,"",SUM(E15,E17)) ->  | AG26: 0 | AH26: [1] | AX26: s | AY26: Schwanger-/Mutterschaft Art. 15 GAV
A27: =Labels!B52 -> Zeitzuschlag 3) | B27: =SUM(B28:B31) -> 0 | C27: 0 | D27: 0 | E27: 0 | F27: 0 | G27: 0 | H27: 0 | I27: 0 | J27: 0 | K27: 0 | L27: 0 | M27: 0 | N27: 0 | O27: 0 | P27: 0 | Q27: 0 | R27: 0 | S27: 0 | T27: 0 | U27: 0 | V27: 0 | W27: 0 | X27: 0 | Y27: 0 | Z27: 0 | AA27: 0 | AB27: 0 | AC27: 0 | AD27: 0 | AE27: 0 | AF27: 0 | AG27: =SUM(B27:AF27) -> 0 | AH27: [2] | AI27: Konfiguration (lokal) | AX27: u | AY27: Unfall Art. 14 GAV
A28: =Labels!B53 -> Sonntag Tag | B28: =IF(WEEKDAY(B10)=1,B16,"") ->  | C28: =IF(WEEKDAY(C10)=1,C16,"") -> 0 | J28: 0 | Q28: 0 | X28: 0 | AE28: 0 | AG28: 0 | AH28: [3] | AX28: bs | AY28: Berufsschule
A29: =Labels!B54 -> Sonntag Nacht | B29: =IF(WEEKDAY(B10)=1,SUM(B15+B17),"") ->  | C29: =IF(WEEKDAY(C10)=1,SUM(C15+C17),"") -> 0 | J29: 0 | Q29: 0 | X29: 0 | AE29: 0 | AG29: 0 | AH29: [4] | AI29: Erster Januar aktuelles Jahr | AP29: =DATE(YEAR($A$7),MONTH($A$7),DAY($A$7)) -> 2022-01-01 | AX29: fe | AY29: Fehlstunden zur Information ohne Berechnung in der Zusammenfassung
A30: =Labels!B55 -> ft-Tazuschlag | B30: =IF(B18=Labels!$B$118,B16,"") ->  | C30: =IF(C18=Labels!$B$118,C16,"") ->  | D30: =IF(D18=Labels!$B$118,D16,"") ->  | E30: =IF(E18=Labels!$B$118,E16,"") ->  | F30: =IF(F18=Labels!$B$118,F16,"") ->  | G30: =IF(G18=Labels!$B$118,G16,"") ->  | H30: =IF(H18=Labels!$B$118,H16,"") ->  | I30: =IF(I18=Labels!$B$118,I16,"") ->  | J30: =IF(J18=Labels!$B$118,J16,"") ->  | K30: =IF(K18=Labels!$B$118,K16,"") ->  | L30: =IF(L18=Labels!$B$118,L16,"") ->  | M30: =IF(M18=Labels!$B$118,M16,"") ->  | N30: =IF(N18=Labels!$B$118,N16,"") ->  | O30: =IF(O18=Labels!$B$118,O16,"") ->  | P30: =IF(P18=Labels!$B$118,P16,"") ->  | Q30: =IF(Q18=Labels!$B$118,Q16,"") ->  | R30: =IF(R18=Labels!$B$118,R16,"") ->  | S30: =IF(S18=Labels!$B$118,S16,"") ->  | T30: =IF(T18=Labels!$B$118,T16,"") ->  | U30: =IF(U18=Labels!$B$118,U16,"") ->  | V30: =IF(V18=Labels!$B$118,V16,"") ->  | W30: =IF(W18=Labels!$B$118,W16,"") ->  | X30: =IF(X18=Labels!$B$118,X16,"") ->  | Y30: =IF(Y18=Labels!$B$118,Y16,"") ->  | Z30: =IF(Z18=Labels!$B$118,Z16,"") ->  | AA30: =IF(AA18=Labels!$B$118,AA16,"") ->  | AB30: =IF(AB18=Labels!$B$118,AB16,"") ->  | AC30: =IF(AC18=Labels!$B$118,AC16,"") ->  | AD30: =IF(AD18=Labels!$B$118,AD16,"") ->  | AE30: =IF(AE18=Labels!$B$118,AE16,"") ->  | AF30: =IF(AF18=Labels!$B$118,AF16,"") ->  | AG30: 0 | AH30: [5] | AI30: (Berechnungsgrundlage Kalender) | AX30: ka | AY30: Kurzabeit, Schlechtwetterausfälle
A31: =Labels!B56 -> ft-Nazuschlag | B31: =IF(B18=Labels!$B$118,SUM(B15,B17),"") ->  | C31: =IF(C18=Labels!$B$118,SUM(C15,C17),"") ->  | D31: =IF(D18=Labels!$B$118,SUM(D15,D17),"") ->  | E31: =IF(E18=Labels!$B$118,SUM(E15,E17),"") ->  | F31: =IF(F18=Labels!$B$118,SUM(F15,F17),"") ->  | G31: =IF(G18=Labels!$B$118,SUM(G15,G17),"") ->  | H31: =IF(H18=Labels!$B$118,SUM(H15,H17),"") ->  | I31: =IF(I18=Labels!$B$118,SUM(I15,I17),"") ->  | J31: =IF(J18=Labels!$B$118,SUM(J15,J17),"") ->  | K31: =IF(K18=Labels!$B$118,SUM(K15,K17),"") ->  | L31: =IF(L18=Labels!$B$118,SUM(L15,L17),"") ->  | M31: =IF(M18=Labels!$B$118,SUM(M15,M17),"") ->  | N31: =IF(N18=Labels!$B$118,SUM(N15,N17),"") ->  | O31: =IF(O18=Labels!$B$118,SUM(O15,O17),"") ->  | P31: =IF(P18=Labels!$B$118,SUM(P15,P17),"") ->  | Q31: =IF(Q18=Labels!$B$118,SUM(Q15,Q17),"") ->  | R31: =IF(R18=Labels!$B$118,SUM(R15,R17),"") ->  | S31: =IF(S18=Labels!$B$118,SUM(S15,S17),"") ->  | T31: =IF(T18=Labels!$B$118,SUM(T15,T17),"") ->  | U31: =IF(U18=Labels!$B$118,SUM(U15,U17),"") ->  | V31: =IF(V18=Labels!$B$118,SUM(V15,V17),"") ->  | W31: =IF(W18=Labels!$B$118,SUM(W15,W17),"") ->  | X31: =IF(X18=Labels!$B$118,SUM(X15,X17),"") ->  | Y31: =IF(Y18=Labels!$B$118,SUM(Y15,Y17),"") ->  | Z31: =IF(Z18=Labels!$B$118,SUM(Z15,Z17),"") ->  | AA31: =IF(AA18=Labels!$B$118,SUM(AA15,AA17),"") ->  | AB31: =IF(AB18=Labels!$B$118,SUM(AB15,AB17),"") ->  | AC31: =IF(AC18=Labels!$B$118,SUM(AC15,AC17),"") ->  | AD31: =IF(AD18=Labels!$B$118,SUM(AD15,AD17),"") ->  | AE31: =IF(AE18=Labels!$B$118,SUM(AE15,AE17),"") ->  | AF31: =IF(AF18=Labels!$B$118,SUM(AF15,AF17),"") ->  | AG31: 0 | AH31: [6] | AX31: kj | AY31: Kompensation laufendes Jahr siehe Zusammenfassung
A32: =Labels!B57 -> Zuschlag blind (Wochentotal) | B32: =IF(OR(ISTEXT(B24),B24="",B24<$B$7),"",ROUND(((B24-$B$7)*25%)/25,4)*25) ->  | C32: =IF(OR(ISTEXT(C24),C24="",C24<$B$7),"",ROUND(((C24-$B$7)*25%)/25,4)*25) ->  | AG32: =AG16 -> 0 | AH32: [7] | AI32: Hilfszelle Feiertage | AQ32: =Labels!$B$118 -> ft | AX32: ku | AY32: Kurse
B33: =Labels!B58 -> 1) 25% Zeitzuschlag für Überschreitung Wochentotal | L33: =Labels!B59 -> 2) 100% Zeitzuschlag für Nachtarbeit | T33: =Labels!B61 -> Eingabe der ausbezahlten Stunden Vorjahressaldo | AG33: =SUM(AG15+AG17) -> 0 | AH33: [8] | AX33: kv | AY33: Kompensation Vorjahressaldo für Abrechnung in der Zusammenfassung
B34: =Labels!B60 -> 3) 100% Zeitzuschlag für Sonn- und Feiertagsarbeit | T34: =Labels!B62 -> Eingabe der ausbezahlten Stunden laufendes Jahr (Überstunden) | AG34: =SUM(AG15:AG17) -> 0 | AH34: [9] | AI34: aktueller Kalender | AK34: calendar | AQ34: KALENDER | AX34: fu | AY34: Ferien unbezahlt
A35: =Labels!B159 -> Bemerkungen | AG35: =SUM(AG13+AG19) -> 0 | AH35: [10]
AG36: =SUM(AG13:AG27) -> 0 | AH36: [11]
AG37: =AG12 -> 168 | AI37: alter Kalender | AK37: calendar1 | AQ37: Kalender Müller | AX37: Meldungen & Beschriftungen
AG38: =SUM(AG36-AG12) -> -168 | AI38: neuer Kalender | AK38: calendar | AQ38: KALENDER
A39: =Labels!B103 -> Zusammenstellung | G39: =Labels!B77 -> Jan | I39: =Labels!B78 -> Feb | K39: =Labels!B79 -> Mrz | M39: =Labels!B80 -> Apr | O39: =Labels!B81 -> Mai | Q39: =Labels!B82 -> Jun | S39: =Labels!B83 -> Jul | U39: =Labels!B84 -> Aug | W39: =Labels!B85 -> Sep | Y39: =Labels!B86 -> Okt | AA39: =Labels!B87 -> Nov | AC39: =Labels!B88 -> Dez | AE39: =Labels!B101 -> Jahr | AY39: ="Das Vorjahresguthaben beträgt noch "&TEXT(W61,"0.0000")&" Std." -> Das Vorjahresguthaben beträgt noch 0.0000 Std.
A40: =Labels!B20 -> Anstellung % | G40: =IF($B$4=0,0,$B$4) -> 100 | I40: =IF($B$71=0,0,$B$71) -> 100 | K40: =IF($B$135=0,0,$B$135) -> 100 | M40: =IF($B$199=0,0,$B$199) -> 100 | O40: =IF($B$263=0,0,$B$263) -> 100 | Q40: =IF($B$327=0,0,$B$327) -> 100 | S40: =IF($B$391=0,0,$B$391) -> 100 | U40: =IF($B$455=0,0,$B$455) -> 100 | W40: =IF($B$519=0,0,$B$519) -> 100 | Y40: =IF($B$583=0,0,$B$583) -> 100 | AA40: =IF($B$647=0,0,$B$647) -> 100 | AC40: =IF($B$711=0,0,$B$711) -> 100 | AY40: Total
A41: =Labels!B104 -> Sollstunden gemäss GAV | G41: =IF($AG$37=0,0,$AG$37) -> 168 | I41: =IF($AG$100=0,0,$AG$100) -> 160 | K41: =IF($AG$139=0,0,$AG$139) -> 184 | M41: =IF($AG$228=0,0,$AG$228) -> 168 | O41: =IF($AG$292=0,0,$AG$292) -> 176 | Q41: =IF($AG$356=0,0,$AG$356) -> 176 | S41: =IF($AG$420=0,0,$AG$420) -> 168 | U41: =IF($AG$484=0,0,$AG$484) -> 184 | W41: =IF($AG$548=0,0,$AG$548) -> 176 | Y41: =IF($AG$612=0,0,$AG$612) -> 168 | AA41: =IF($AG$676=0,0,$AG$676) -> 176 | AC41: =IF($AG$740=0,0,$AG$740) -> 176 | AE41: =SUM(G41:AD41) -> 2080 | AI41: Anstellungsdetails | AK41: Name: | AL41: Muster Peter | AO41: Default-% | AQ41: 100
A42: =Labels!B105 -> Produktive Stunden | B42: =Labels!B106 -> 06.00 - 20.00 Uhr | G42: =IF($AG$32=0,0,$AG$32) -> 0 | I42: =IF($AG$95=0,0,$AG$95) -> 0 | K42: =IF($AG$159=0,0,$AG$159) -> 0 | M42: =IF($AG$223=0,0,$AG$223) -> 0 | O42: =IF($AG$287=0,0,$AG$287) -> 0 | Q42: =IF($AG$351=0,0,$AG$351) -> 0 | S42: =IF($AG$415=0,0,$AG$415) -> 0 | U42: =IF($AG$479=0,0,$AG$479) -> 0 | W42: =IF($AG$543=0,0,$AG$543) -> 0 | Y42: =IF($AG$607=0,0,$AG$607) -> 0 | AA42: =IF($AG$671=0,0,$AG$671) -> 0 | AC42: =IF($AG$735=0,0,$AG$735) -> 0 | AE42: =SUM(G42:AD42) -> 0
B43: =Labels!B107 -> Nacht-, Sonn-, Feiertagsarbeit | G43: =IF($AG$33=0,0,$AG$33) -> 0 | I43: =IF($AG$96=0,0,$AG$96) -> 0 | K43: =IF($AG$160=0,0,$AG$160) -> 0 | M43: =IF($AG$224=0,0,$AG$224) -> 0 | O43: =IF($AG$288=0,0,$AG$288) -> 0 | Q43: =IF($AG$352=0,0,$AG$352) -> 0 | S43: =IF($AG$416=0,0,$AG$416) -> 0 | U43: =IF($AG$480=0,0,$AG$480) -> 0 | W43: =IF($AG$544=0,0,$AG$544) -> 0 | Y43: =IF($AG$608=0,0,$AG$608) -> 0 | AA43: =IF($AG$672=0,0,$AG$672) -> 0 | AC43: =IF($AG$736=0,0,$AG$736) -> 0 | AE43: =SUM(G43:AD43) -> 0 | AI43: Ganzes Jahr gleich? | AJ43: TRUE | AL43: % | AM43: MO | AN43: DI | AO43: MI | AP43: DO | AQ43: FR | AR43: Arbeitst.
A44: =Labels!B108 -> Zeitzuschläge | B44: =Labels!B109 -> aus Wochentotal | G44: =IF($AG$25=0,0,$AG$25) -> 0 | I44: =IF($AG$88=0,0,$AG$88) -> 0 | K44: =IF($AG$152=0,0,$AG$152) -> 0 | M44: =IF($AG$216=0,0,$AG$216) -> 0 | O44: =IF($AG$280=0,0,$AG$280) -> 0 | Q44: =IF($AG$344=0,0,$AG$344) -> 0 | S44: =IF($AG$408=0,0,$AG$408) -> 0 | U44: =IF($AG$472=0,0,$AG$472) -> 0 | W44: =IF($AG$536=0,0,$AG$536) -> 0 | Y44: =IF($AG$600=0,0,$AG$600) -> 0 | AA44: =IF($AG$664=0,0,$AG$664) -> 0 | AC44: =IF($AG$728=0,0,$AG$728) -> 0 | AE44: =SUM(G44:AD44) -> 0 | AK44: Jan | AL44: 100 | AM44: TRUE | AN44: TRUE | AO44: TRUE | AP44: TRUE | AQ44: TRUE | AR44: =COUNTIF(AM44:AQ44,TRUE) -> 5
B45: =Labels!B110 -> aus Nacht-, Sonn-, Feiertagsarbeiten | G45: =IF($AJ$21=0,0,$AJ$21) -> 0 | I45: =IF($AK$21=0,0,$AK$21) -> 0 | K45: =IF($AL$21=0,0,$AL$21) -> 0 | M45: =IF($AM$21=0,0,$AM$21) -> 0 | O45: =IF($AN$21=0,0,$AN$21) -> 0 | Q45: =IF($AO$21=0,0,$AO$21) -> 0 | S45: =IF($AP$21=0,0,$AP$21) -> 0 | U45: =IF($AQ$21=0,0,$AQ$21) -> 0 | W45: =IF($AR$21=0,0,$AR$21) -> 0 | Y45: =IF($AS$21=0,0,$AS$21) -> 0 | AA45: =IF($AT$21=0,0,$AT$21) -> 0 | AC45: =IF($AU$21=0,0,$AU$21) -> 0 | AE45: =SUM(G45:AD45) -> 0 | AK45: Feb | AL45: 100 | AM45: TRUE | AN45: TRUE | AO45: TRUE | AP45: TRUE | AQ45: TRUE | AR45: =COUNTIF(AM45:AQ45,TRUE) -> 5
A46: =Labels!B111 -> Unproduktive Stunden | AK46: Mrz | AL46: 100 | AM46: TRUE | AN46: TRUE | AO46: TRUE | AP46: TRUE | AQ46: TRUE | AR46: 5
A47: =Labels!B112 -> Absenzen, Kurzabsenzen Art. 11 GAV | F47: =Labels!B113 -> a | G47: =IF($AJ$3=0,0,$AJ$3) -> 0 | I47: =IF($AK$3=0,0,$AK$3) -> 0 | K47: =IF($AL$3=0,0,$AL$3) -> 0 | M47: =IF($AM$3=0,0,$AM$3) -> 0 | O47: =IF($AN$3=0,0,$AN$3) -> 0 | Q47: =IF($AO$3=0,0,$AO$3) -> 0 | S47: =IF($AP$3=0,0,$AP$3) -> 0 | U47: =IF($AQ$3=0,0,$AQ$3) -> 0 | W47: =IF($AR$3=0,0,$AR$3) -> 0 | Y47: =IF($AS$3=0,0,$AS$3) -> 0 | AA47: =IF(AT$3=0,0,$AT$3) -> 0 | AC47: =IF($AU$3=0,0,$AU$3) -> 0 | AE47: =IF($AV$3=0,0,$AV$3) -> 0 | AK47: Apr | AL47: 100 | AM47: TRUE | AN47: TRUE | AO47: TRUE | AP47: TRUE | AQ47: TRUE | AR47: 5
A48: =Labels!B114 -> Ferien Art. 12.1 GAV | F48: =Labels!B115 -> f | G48: =IF($AJ$4=0,0,$AJ$4) -> 0 | I48: =IF($AK$4=0,0,$AK$4) -> 0 | K48: =IF($AL$4=0,0,$AL$4) -> 0 | M48: =IF($AM$4=0,0,$AM$4) -> 0 | O48: =IF($AN$4=0,0,$AN$4) -> 0 | Q48: =IF($AO$4=0,0,$AO$4) -> 0 | S48: =IF($AP$4=0,0,$AP$4) -> 0 | U48: =IF($AQ$4=0,0,$AQ$4) -> 0 | W48: =IF($AR$4=0,0,$AR$4) -> 0 | Y48: =IF($AS$4=0,0,$AS$4) -> 0 | AA48: =IF($AT$4=0,0,$AT$4) -> 0 | AC48: =IF($AU$4=0,0,$AU$4) -> 0 | AE48: =IF($AV$4=0,0,$AV$4) -> 0 | AK48: Mai | AL48: 100 | AM48: TRUE | AN48: TRUE | AO48: TRUE | AP48: TRUE | AQ48: TRUE | AR48: 5
A49: =Labels!$B$181 -> Ferien unbezahlt | F49: =Labels!$B$182 -> fu | G49: =IF($AJ$13=0,0,$AJ$13) -> 0 | I49: =IF($AK$13=0,0,$AK$13) -> 0 | K49: =IF($AL$13=0,0,$AL$13) -> 0 | M49: =IF($AM$13=0,0,$AM$13) -> 0 | O49: =IF($AN$13=0,0,$AN$13) -> 0 | Q49: =IF($AO$13=0,0,$AO$13) -> 0 | S49: =IF($AP$13=0,0,$AP$13) -> 0 | U49: =IF($AQ$13=0,0,$AQ$13) -> 0 | W49: =IF($AR$13=0,0,$AR$13) -> 0 | Y49: =IF($AS$13=0,0,$AS$13) -> 0 | AA49: =IF($AT$13=0,0,$AT$13) -> 0 | AC49: =IF($AU$13=0,0,$AU$13) -> 0 | AE49: =IF($AV$13=0,0,$AV$13) -> 0 | AK49: Jun | AL49: 100 | AM49: TRUE | AN49: TRUE | AO49: TRUE | AP49: TRUE | AQ49: TRUE | AR49: 5
A50: =Labels!B116 -> Feiertage Art. 12.2 GAV | C50: =IF($AJ$18="","",$AJ$18) ->  | F50: =Labels!B118 -> ft | G50: =IF($AJ$16=0,0,$AJ$16) -> 0 | I50: =IF($AK$16=0,0,$AK$16) -> 0 | K50: =IF($AL$16=0,0,$AL$16) -> 0 | M50: =IF($AM$16=0,0,$AM$16) -> 0 | O50: =IF($AN$16=0,0,$AN$16) -> 0 | Q50: =IF($AO$16=0,0,$AO$16) -> 0 | S50: =IF($AP$16=0,0,$AP$16) -> 0 | U50: =IF($AQ$16=0,0,$AQ$16) -> 0 | W50: =IF($AR$16=0,0,$AR$16) -> 0 | Y50: =IF($AS$16=0,0,$AS$16) -> 0 | AA50: =IF($AT$16=0,0,$AT$16) -> 0 | AC50: =IF($AU$16=0,0,$AU$16) -> 0 | AE50: =IF($AV$16=0,0,$AV$16) -> 0 | AK50: Jul | AL50: 100 | AM50: TRUE | AN50: TRUE | AO50: TRUE | AP50: TRUE | AQ50: TRUE | AR50: 5
A51: =Labels!B119 -> Krankheit Art. 13 GAV | F51: =Labels!B120 -> k | G51: =IF($AJ$5=0,0,$AJ$5) -> 0 | I51: =IF($AK$5=0,0,$AK$5) -> 0 | K51: =IF($AL$5=0,0,$AL$5) -> 0 | M51: =IF($AM$5=0,0,$AM$5) -> 0 | O51: =IF($AN$5=0,0,$AN$5) -> 0 | Q51: =IF($AO$5=0,0,$AO$5) -> 0 | S51: =IF($AP$5=0,0,$AP$5) -> 0 | U51: =IF($AQ$5=0,0,$AQ$5) -> 0 | W51: =IF($AR$5=0,0,$AR$5) -> 0 | Y51: =IF($AS$5=0,0,$AS$5) -> 0 | AA51: =IF($AT$5=0,0,$AT$5) -> 0 | AC51: =IF($AU$5=0,0,$AU$5) -> 0 | AE51: =IF($AV$5=0,0,$AV$5) -> 0 | AK51: Aug | AL51: 100 | AM51: TRUE | AN51: TRUE | AO51: TRUE | AP51: TRUE | AQ51: TRUE | AR51: 5
A52: =Labels!B121 -> Unfall Art. 14 GAV | F52: =Labels!B122 -> u | G52: =IF($AJ$6=0,0,$AJ$6) -> 0 | I52: =IF($AK$6=0,0,$AK$6) -> 0 | K52: =IF($AL$6=0,0,$AL$6) -> 0 | M52: =IF($AM$6=0,0,$AM$6) -> 0 | O52: =IF($AN$6=0,0,$AN$6) -> 0 | Q52: =IF($AO$6=0,0,$AO$6) -> 0 | S52: =IF($AP$6=0,0,$AP$6) -> 0 | U52: =IF($AQ$6=0,0,$AQ$6) -> 0 | W52: =IF($AR$6=0,0,$AR$6) -> 0 | Y52: =IF($AS$6=0,0,$AS$6) -> 0 | AA52: =IF($AT$6=0,0,$AT$6) -> 0 | AC52: =IF($AU$6=0,0,$AU$6) -> 0 | AE52: =IF($AV$6=0,0,$AV$6) -> 0 | AK52: Sep | AL52: 100 | AM52: TRUE | AN52: TRUE | AO52: TRUE | AP52: TRUE | AQ52: TRUE | AR52: 5
A53: =Labels!B123 -> Schwangerschaft/Mutterschaft Art. 15 GAV | F53: =Labels!B124 -> s | G53: =IF($AJ$7=0,0,$AJ$7) -> 0 | I53: =IF($AK$7=0,0,$AK$7) -> 0 | K53: =IF($AL$7=0,0,$AL$7) -> 0 | M53: =IF($AM$7=0,0,$AM$7) -> 0 | O53: =IF($AN$7=0,0,$AN$7) -> 0 | Q53: =IF($AO$7=0,0,$AO$7) -> 0 | S53: =IF($AP$7=0,0,$AP$7) -> 0 | U53: =IF($AQ$7=0,0,$AQ$7) -> 0 | W53: =IF($AR$7=0,0,$AR$7) -> 0 | Y53: =IF($AS$7=0,0,$AS$7) -> 0 | AA53: =IF($AT$7=0,0,$AT$7) -> 0 | AC53: =IF($AU$7=0,0,$AU$7) -> 0 | AE53: =IF($AV$7=0,0,$AV$7) -> 0 | AK53: Okt | AL53: 100 | AM53: TRUE | AN53: TRUE | AO53: TRUE | AP53: TRUE | AQ53: TRUE | AR53: 5
A54: =Labels!B125 -> Militär/Beförderung/Zivilschutz Art. 16 GAV | F54: =Labels!B126 -> m | G54: =IF($AJ$8=0,0,$AJ$8) -> 0 | I54: =IF($AK$8=0,0,$AK$8) -> 0 | K54: =IF($AL$8=0,0,$AL$8) -> 0 | M54: =IF($AM$8=0,0,$AM$8) -> 0 | O54: =IF($AN$8=0,0,$AN$8) -> 0 | Q54: =IF($AO$8=0,0,$AO$8) -> 0 | S54: =IF($AP$8=0,0,$AP$8) -> 0 | U54: =IF($AQ$8=0,0,$AQ$8) -> 0 | W54: =IF($AR$8=0,0,$AR$8) -> 0 | Y54: =IF($AS$8=0,0,$AS$8) -> 0 | AA54: =IF($AT$8=0,0,$AT$8) -> 0 | AC54: =IF($AU$8=0,0,$AU$8) -> 0 | AE54: =IF($AV$8=0,0,$AV$8) -> 0 | AK54: Nov | AL54: 100 | AM54: TRUE | AN54: TRUE | AO54: TRUE | AP54: TRUE | AQ54: TRUE | AR54: 5
A55: =Labels!B127 -> Kurzarbeit und Schlechtwetterausfälle | F55: =Labels!B128 -> ka | G55: =IF($AJ$11=0,0,$AJ$11) -> 0 | I55: =IF($AK$11=0,0,$AK$11) -> 0 | K55: =IF($AL$11=0,0,$AL$11) -> 0 | M55: =IF($AM$11=0,0,$AM$11) -> 0 | O55: =IF($AN$11=0,0,$AN$11) -> 0 | Q55: =IF($AO$11=0,0,$AO$11) -> 0 | S55: =IF($AP$11=0,0,$AP$11) -> 0 | U55: =IF($AQ$11=0,0,$AQ$11) -> 0 | W55: =IF($AR$11=0,0,$AR$11) -> 0 | Y55: =IF($AS$11=0,0,$AS$11) -> 0 | AA55: =IF($AT$11=0,0,$AT$11) -> 0 | AC55: =IF($AU$11=0,0,$AU$11) -> 0 | AE55: =IF($AV$11=0,0,$AV$11) -> 0 | AK55: Dez | AL55: 100 | AM55: TRUE | AN55: TRUE | AO55: TRUE | AP55: TRUE | AQ55: TRUE | AR55: 5
A56: =Labels!B129 -> Berufsschule | F56: =Labels!B130 -> bs | G56: =IF($AJ$9=0,0,$AJ$9) -> 0 | I56: =IF($AK$9=0,0,$AK$9) -> 0 | K56: =IF($AL$9=0,0,$AL$9) -> 0 | M56: =IF($AM$9=0,0,$AM$9) -> 0 | O56: =IF($AN$9=0,0,$AN$9) -> 0 | Q56: =IF($AO$9=0,0,$AO$9) -> 0 | S56: =IF($AP$9=0,0,$AP$9) -> 0 | U56: =IF($AQ$9=0,0,$AQ$9) -> 0 | W56: =IF($AR$9=0,0,$AR$9) -> 0 | Y56: =IF($AS$9=0,0,$AS$9) -> 0 | AA56: =IF($AT$9=0,0,$AT$9) -> 0 | AC56: =IF($AU$9=0,0,$AU$9) -> 0 | AE56: =IF($AV$9=0,0,$AV$9) -> 0 | AK56: Avg | AL56: =SUM(AL44:AL55)/12 -> 100 | AM56: 2 | AN56: 3 | AO56: 4 | AP56: 5 | AQ56: 6
A57: =Labels!B131 -> Kurse | F57: =Labels!B132 -> ku | G57: =IF($AJ$10=0,0,$AJ$10) -> 0 | I57: =IF($AK$10=0,0,$AK$10) -> 0 | K57: =IF($AL$10=0,0,$AL$10) -> 0 | M57: =IF($AM$10=0,0,$AM$10) -> 0 | O57: =IF($AN$10=0,0,$AN$10) -> 0 | Q57: =IF($AO$10=0,0,$AO$10) -> 0 | S57: =IF($AP$10=0,0,$AP$10) -> 0 | U57: =IF($AQ$10=0,0,$AQ$10) -> 0 | W57: =IF($AR$10=0,0,$AR$10) -> 0 | Y57: =IF($AS$10=0,0,$AS$10) -> 0 | AA57: =IF($AT$10=0,0,$AT$10) -> 0 | AC57: =IF($AU$10=0,0,$AU$10) -> 0 | AE57: =IF($AV$10=0,0,$AV$10) -> 0
A58: =Labels!B133 -> Kompensations-Std | B58: =Labels!B134 -> aus Vorjahr | F58: =Labels!B135 -> kv | G58: =IF($AJ$12=0,0,$AJ$12) -> 0 | I58: =IF($AK$12=0,0,$AK$12) -> 0 | K58: =IF($AL$12=0,0,$AL$12) -> 0 | M58: =IF($AM$12=0,0,$AM$12) -> 0 | O58: =IF($AN$12=0,0,$AN$12) -> 0 | Q58: =IF($AO$12=0,0,$AO$12) -> 0 | S58: =IF($AP$12=0,0,$AP$12) -> 0 | U58: =IF($AQ$12=0,0,$AQ$12) -> 0 | W58: =IF($AR$12=0,0,$AR$12) -> 0 | AE58: =IF($AV$12=0,0,$AV$12) -> 0
B59: =Labels!B136 -> aus laufendem Jahr (Kontrolle) | F59: =Labels!B137 -> kj | G59: =IF($AJ$15=0,0,$AJ$15) -> 0 | I59: =IF($AK$15=0,0,$AK$15) -> 0 | K59: =IF($AL$15=0,0,$AL$15) -> 0 | M59: =IF($AM$15=0,0,$AM$15) -> 0 | O59: =IF($AN$15=0,0,$AN$15) -> 0 | Q59: =IF($AO$15=0,0,$AO$15) -> 0 | S59: =IF($AP$15=0,0,$AP$15) -> 0 | U59: =IF($AQ$15=0,0,$AQ$15) -> 0 | W59: =IF($AR$15=0,0,$AR$15) -> 0 | Y59: =IF($AS$15=0,0,$AS$15) -> 0 | AA59: =IF($AT$15=0,0,$AT$15) -> 0 | AC59: =IF($AU$15=0,0,$AU$15) -> 0 | AE59: =IF($AV$15=0,0,$AV$15) -> 0
A60: =Labels!B138 -> Auszahlung | B60: =Labels!B139 -> Stunden Vorjahressaldo | G60: =IF($AJ$19=0,0,$AJ$19) -> 0 | I60: =IF($AK$19=0,0,$AK$19) -> 0 | K60: =IF($AL$19=0,0,$AL$19) -> 0 | M60: =IF($AM$19=0,0,$AM$19) -> 0 | O60: =IF($AN$19=0,0,$AN$19) -> 0 | Q60: =IF($AO$19=0,0,$AO$19) -> 0 | S60: =IF($AP$19=0,0,$AP$19) -> 0 | U60: =IF($AQ$19=0,0,$AQ$19) -> 0 | W60: =IF($AR$19=0,0,$AR$19) -> 0 | AE60: =IF($AV$19=0,0,$AV$19) -> 0
A61: =Labels!B140 -> Differenz | B61: =Labels!B141 -> nach Kompensation und Auszahlung | G61: =IF(ROUND($P$4,3)=0,0,$P$4-G58-G60) -> 0 | I61: =IF(ROUND(G61,3)=0,0,G61-(SUM(I58+I60))) -> 0 | K61: =IF(ROUND(I61,3)=0,0,I61-K60-K58) -> 0 | M61: =IF(ROUND(K61,3)=0,0,K61-(SUM(M60+M58))) -> 0 | O61: =IF(ROUND(M61,3)=0,0,M61-(SUM(O60+O58))) -> 0 | Q61: =IF(ROUND(O61,3)=0,0,O61-(SUM(Q60+Q58))) -> 0 | S61: =IF(ROUND(Q61,3)=0,0,Q61-(SUM(S60+S58))) -> 0 | U61: =IF(ROUND(S61,3)=0,0,S61-(SUM(U60+U58))) -> 0 | W61: =IF(ROUND(U61,3)=0,0,U61-(SUM(W60+W58))) -> 0 | Y61: =IF($W$61<0.1,"",AY39) -> 
A62: =Labels!B138 -> Auszahlung | B62: =Labels!B142 -> Stunden laufendes Jahr | G62: =IF($AJ$20=0,0,$AJ$20) -> 0 | I62: =IF($AK$20=0,0,$AK$20) -> 0 | K62: =IF($AL$20=0,0,$AL$20) -> 0 | M62: =IF($AM$20=0,0,$AM$20) -> 0 | O62: =IF($AN$20=0,0,$AN$20) -> 0 | Q62: =IF($AO$20=0,0,$AO$20) -> 0 | S62: =IF($AP$20=0,0,$AP$20) -> 0 | U62: =IF($AQ$20=0,0,$AQ$20) -> 0 | W62: =IF($AR$20=0,0,$AR$20) -> 0 | Y62: =IF($AS$20=0,0,$AS$20) -> 0 | AA62: =IF($AT$20=0,0,$AT$20) -> 0 | AC62: =IF($AU$20=0,0,$AU$20) -> 0 | AE62: =IF($AV$20=0,0,$AV$20) -> 0
A63: =Labels!B143 -> Fehlstunden | B63: =Labels!B144 -> laufendes Jahr (Kontrolle) | F63: =Labels!B145 -> fe | G63: =IF($AJ$14=0,0,$AJ$14) -> 0 | I63: =IF($AK$14=0,0,$AK$14) -> 0 | K63: =IF($AL$14=0,0,$AL$14) -> 0 | M63: =IF($AM$14=0,0,$AM$14) -> 0 | O63: =IF($AN$14=0,0,$AN$14) -> 0 | Q63: =IF($AO$14=0,0,$AO$14) -> 0 | S63: =IF($AP$14=0,0,$AP$14) -> 0 | U63: =IF($AQ$14=0,0,$AQ$14) -> 0 | W63: =IF($AR$14=0,0,$AR$14) -> 0 | Y63: =IF($AS$14=0,0,$AS$14) -> 0 | AA63: =IF($AT$14=0,0,$AT$14) -> 0 | AC63: =IF($AU$14=0,0,$AU$14) -> 0 | AE63: =IF($AV$14=0,0,$AV$14) -> 0
A64: =Labels!B146 -> Total inkl. Zeitzuschläge | B64: =Labels!B147 -> Stunden produktiv und unproduktiv | G64: =IF($AG$36=0,0,$AG$36) -> 0 | I64: =IF($AG$99=0,0,$AG$99) -> 0 | K64: =IF($AG$163=0,0,$AG$163) -> 0 | M64: =IF($AG$227=0,0,$AG$227) -> 0 | O64: =IF($AG$291=0,0,$AG$291) -> 0 | Q64: =IF($AG$355=0,0,$AG$355) -> 0 | S64: =IF($AG$419=0,0,$AG$419) -> 0 | U64: =IF($AG$483=0,0,$AG$483) -> 0 | W64: =IF($AG$547=0,0,$AG$547) -> 0 | Y64: =IF($AG$611=0,0,$AG$611) -> 0 | AA64: =IF($AG$675=0,0,$AG$675) -> 0 | AC64: =IF($AG$739=0,0,$AG$739) -> 0 | AE64: =SUM($G$64:$AD$64) -> 0
A65: =Labels!B148 -> Vergleich | B65: =Labels!B149 -> Stunden zu Soll-Stunden (inkl. allfälli- ge Minusstunden Vorjahr) | G65: =IF($AG$38=0,0,$AG$38)-$AE$34+$P$5 -> -168 | I65: =IF($AG$101=0,0,$AG$101)-$AE$98 -> -160 | K65: =IF($AG$165=0,0,$AG$165)-$AE$162 -> -184 | M65: =IF($AG$229=0,0,$AG$229)-$AE$226 -> -168 | O65: =IF($AG$293=0,0,$AG$293)-$AE$290 -> -176 | Q65: =IF($AG$357=0,0,$AG$357)-$AE$354 -> -176 | S65: =IF($AG$421=0,0,$AG$421)-$AE$418 -> -168 | U65: =IF($AG$485=0,0,$AG$485)-$AE$482 -> -184 | W65: =IF($AG$549=0,0,$AG$549)-$AE$546 -> -176 | Y65: =IF($AG$613=0,0,$AG$613)-$AE$610 -> -168 | AA65: =IF($AG$677=0,0,$AG$677)-$AE$674 -> -176 | AC65: =IF($AG$741=0,0,$AG$741)-$AE$738 -> -176 | AE65: =SUM($G$65:$AD$65) -> -2080
B66: =Labels!B151 -> Stunden zu Soll-Stunden (kumuliert) | G66: =IF(G40=0,0,$G$65) -> -168 | I66: =IF(I40=0,0,SUM($G$65:$J$65)) -> -328 | K66: =IF(K40=0,0,SUM($G$65:$L$65)) -> -512 | M66: =IF(M40=0,0,SUM($G$65:$N$65)) -> -680 | O66: =IF(O40=0,0,SUM($G$65:$P$65)) -> -856 | Q66: =IF(Q40=0,0,SUM($G$65:$R$65)) -> -1032 | S66: =IF(S40=0,0,SUM($G$65:$T$65)) -> -1200 | U66: =IF(U40=0,0,SUM($G$65:$V$65)) -> -1384 | W66: =IF(W40=0,0,SUM($G$65:$X$65)) -> -1560 | Y66: =IF(Y40=0,0,SUM($G$65:$Z$65)) -> -1728 | AA66: =IF(AA40=0,0,SUM($G$65:$AB$65)) -> -1904 | AC66: =IF(AC40=0,0,SUM($G$65:$AD$65)) -> -2080
A67: =Labels!B153 -> Ferienkontrolle | B67: =Labels!B154 -> Ferienguthaben Vorjahr | G67: =IF($AA$4=0,0,$AA$4) -> 0 | I67: =Labels!B155 -> Ferienguthaben nach Art. 12.1 GAV | M67: =IF($AA$5=0,0,$AA$5) -> 0 | O67: =Labels!B156 -> Ferienguthaben total | S67: =SUM(G67+M67) -> 0 | U67: =Labels!B157 -> Ferien bezogen | Y67: =IF($AV$4=0,0,$AV$4) -> 0 | AA67: =Labels!B158 -> Aktuelles Ferienguthaben | AE67: =IF(S67=0,0,S67-Y67) -> 0
A70: =$A$3 -> Mitarbeiter/In | B70: =IF($B$3="","",$B$3) -> Muster Peter | AF70: =AF3 -> 0
A71: =$A$4 -> Anstellung % | B71: =$AL$45 -> 100 | D71: =Labels!B90 -> im Februar
A72: =$A$5 -> Saldo für das Jahr | D72: =IF($AE$65=0,0,$AE$65) -> -2080
A73: =TEXT(DATE(YEAR(AP29),MONTH(AP29)+1,1),"MMMM"&Labels!B13) -> Februar | B73: =$B$9 -> Saldo Monat + / - | F73: =(AG75-(SUM(AG76:AG90)-AE98))*-1 -> -160 | K73: =$K$9 -> = | L73: =$L$9 -> Gelbe Felder müssen ausgefüllt werden (die übrigen werden automatisch berechnet) | AG73: =COUNT(B76:AF76)&" "&Labels!$B$63 -> 20 Tage
A74: =$A$10 -> Tag | B74: =AF10+1 -> 2022-02-01 | C74: =B74+1 -> 2022-02-02 | D74: 2022-02-03 | E74: 2022-02-04 | F74: 2022-02-05 | G74: 2022-02-06 | H74: 2022-02-07 | I74: 2022-02-08 | J74: 2022-02-09 | K74: 2022-02-10 | L74: 2022-02-11 | M74: 2022-02-12 | N74: 2022-02-13 | O74: 2022-02-14 | P74: 2022-02-15 | Q74: 2022-02-16 | R74: 2022-02-17 | S74: 2022-02-18 | T74: 2022-02-19 | U74: 2022-02-20 | V74: 2022-02-21 | W74: 2022-02-22 | X74: 2022-02-23 | Y74: 2022-02-24 | Z74: 2022-02-25 | AA74: 2022-02-26 | AB74: 2022-02-27 | AC74: 2022-02-28 | AD74: =IF(MOD($AE$96,4)=0,$AC$74+1,"") -> 
A75: =$A$11 -> Kalenderwoche | B75: =IF(B74="","",TRUNC((B74-DATE(YEAR(B74+3-MOD(B74-2,7)),1,MOD(B74-2,7)-9))/7)) -> 5 | C75: 5 | D75: 5 | E75: 5 | F75: 5 | G75: 5 | H75: 6 | I75: 6 | J75: 6 | K75: 6 | L75: 6 | M75: 6 | N75: 6 | O75: 7 | P75: 7 | Q75: 7 | R75: 7 | S75: 7 | T75: 7 | U75: 7 | V75: 8 | W75: 8 | X75: 8 | Y75: 8 | Z75: 8 | AA75: 8 | AB75: 8 | AC75: 9 | AG75: =IF($AD$74="",SUM(B76:AC76),SUM(B76:AF76)) -> 160
A76: =$A$12 -> Sollstunden | B76: =IF(AND(MOD(B74,7)>=2,SUMPRODUCT(($AM$56:$AQ$56=MOD(B74,7))*$AM$45:$AQ$45)),($J$7*5/$AR$45)*$B$71%,"") -> 8 | C76: =IF(AND(MOD(C74,7)>=2,SUMPRODUCT(($AM$56:$AQ$56=MOD(C74,7))*$AM$45:$AQ$45)),($J$7*5/$AR$45)*$B$71%,"") -> 8 | D76: =IF(AND(MOD(D74,7)>=2,SUMPRODUCT(($AM$56:$AQ$56=MOD(D74,7))*$AM$45:$AQ$45)),($J$7*5/$AR$45)*$B$71%,"") -> 8 | E76: =IF(AND(MOD(E74,7)>=2,SUMPRODUCT(($AM$56:$AQ$56=MOD(E74,7))*$AM$45:$AQ$45)),($J$7*5/$AR$45)*$B$71%,"") -> 8 | F76: =IF(AND(MOD(F74,7)>=2,SUMPRODUCT(($AM$56:$AQ$56=MOD(F74,7))*$AM$45:$AQ$45)),($J$7*5/$AR$45)*$B$71%,"") ->  | G76: =IF(AND(MOD(G74,7)>=2,SUMPRODUCT(($AM$56:$AQ$56=MOD(G74,7))*$AM$45:$AQ$45)),($J$7*5/$AR$45)*$B$71%,"") ->  | H76: =IF(AND(MOD(H74,7)>=2,SUMPRODUCT(($AM$56:$AQ$56=MOD(H74,7))*$AM$45:$AQ$45)),($J$7*5/$AR$45)*$B$71%,"") -> 8 | I76: =IF(AND(MOD(I74,7)>=2,SUMPRODUCT(($AM$56:$AQ$56=MOD(I74,7))*$AM$45:$AQ$45)),($J$7*5/$AR$45)*$B$71%,"") -> 8 | J76: =IF(AND(MOD(J74,7)>=2,SUMPRODUCT(($AM$56:$AQ$56=MOD(J74,7))*$AM$45:$AQ$45)),($J$7*5/$AR$45)*$B$71%,"") -> 8 | K76: =IF(AND(MOD(K74,7)>=2,SUMPRODUCT(($AM$56:$AQ$56=MOD(K74,7))*$AM$45:$AQ$45)),($J$7*5/$AR$45)*$B$71%,"") -> 8 | L76: =IF(AND(MOD(L74,7)>=2,SUMPRODUCT(($AM$56:$AQ$56=MOD(L74,7))*$AM$45:$AQ$45)),($J$7*5/$AR$45)*$B$71%,"") -> 8 | M76: =IF(AND(MOD(M74,7)>=2,SUMPRODUCT(($AM$56:$AQ$56=MOD(M74,7))*$AM$45:$AQ$45)),($J$7*5/$AR$45)*$B$71%,"") ->  | N76: =IF(AND(MOD(N74,7)>=2,SUMPRODUCT(($AM$56:$AQ$56=MOD(N74,7))*$AM$45:$AQ$45)),($J$7*5/$AR$45)*$B$71%,"") ->  | O76: =IF(AND(MOD(O74,7)>=2,SUMPRODUCT(($AM$56:$AQ$56=MOD(O74,7))*$AM$45:$AQ$45)),($J$7*5/$AR$45)*$B$71%,"") -> 8 | P76: =IF(AND(MOD(P74,7)>=2,SUMPRODUCT(($AM$56:$AQ$56=MOD(P74,7))*$AM$45:$AQ$45)),($J$7*5/$AR$45)*$B$71%,"") -> 8 | Q76: =IF(AND(MOD(Q74,7)>=2,SUMPRODUCT(($AM$56:$AQ$56=MOD(Q74,7))*$AM$45:$AQ$45)),($J$7*5/$AR$45)*$B$71%,"") -> 8 | R76: =IF(AND(MOD(R74,7)>=2,SUMPRODUCT(($AM$56:$AQ$56=MOD(R74,7))*$AM$45:$AQ$45)),($J$7*5/$AR$45)*$B$71%,"") -> 8 | S76: =IF(AND(MOD(S74,7)>=2,SUMPRODUCT(($AM$56:$AQ$56=MOD(S74,7))*$AM$45:$AQ$45)),($J$7*5/$AR$45)*$B$71%,"") -> 8 | T76: =IF(AND(MOD(T74,7)>=2,SUMPRODUCT(($AM$56:$AQ$56=MOD(T74,7))*$AM$45:$AQ$45)),($J$7*5/$AR$45)*$B$71%,"") ->  | U76: =IF(AND(MOD(U74,7)>=2,SUMPRODUCT(($AM$56:$AQ$56=MOD(U74,7))*$AM$45:$AQ$45)),($J$7*5/$AR$45)*$B$71%,"") ->  | V76: =IF(AND(MOD(V74,7)>=2,SUMPRODUCT(($AM$56:$AQ$56=MOD(V74,7))*$AM$45:$AQ$45)),($J$7*5/$AR$45)*$B$71%,"") -> 8 | W76: =IF(AND(MOD(W74,7)>=2,SUMPRODUCT(($AM$56:$AQ$56=MOD(W74,7))*$AM$45:$AQ$45)),($J$7*5/$AR$45)*$B$71%,"") -> 8 | X76: =IF(AND(MOD(X74,7)>=2,SUMPRODUCT(($AM$56:$AQ$56=MOD(X74,7))*$AM$45:$AQ$45)),($J$7*5/$AR$45)*$B$71%,"") -> 8 | Y76: =IF(AND(MOD(Y74,7)>=2,SUMPRODUCT(($AM$56:$AQ$56=MOD(Y74,7))*$AM$45:$AQ$45)),($J$7*5/$AR$45)*$B$71%,"") -> 8 | Z76: =IF(AND(MOD(Z74,7)>=2,SUMPRODUCT(($AM$56:$AQ$56=MOD(Z74,7))*$AM$45:$AQ$45)),($J$7*5/$AR$45)*$B$71%,"") -> 8 | AA76: =IF(AND(MOD(AA74,7)>=2,SUMPRODUCT(($AM$56:$AQ$56=MOD(AA74,7))*$AM$45:$AQ$45)),($J$7*5/$AR$45)*$B$71%,"") ->  | AB76: =IF(AND(MOD(AB74,7)>=2,SUMPRODUCT(($AM$56:$AQ$56=MOD(AB74,7))*$AM$45:$AQ$45)),($J$7*5/$AR$45)*$B$71%,"") ->  | AC76: =IF(AND(MOD(AC74,7)>=2,SUMPRODUCT(($AM$56:$AQ$56=MOD(AC74,7))*$AM$45:$AQ$45)),($J$7*5/$AR$45)*$B$71%,"") -> 8 | AD76: =IF(AND(MOD(AD74,7)>=2,SUMPRODUCT(($AM$56:$AQ$56=MOD(AD74,7))*$AM$45:$AQ$45)),($J$7*5/$AR$45)*$B$71%,"") ->  | AG76: =SUM(AK3:AK13) -> 0
A77: =$A$13 -> Absenz in Std | B77: =B854 -> 0 | C77: =C854 -> 0 | D77: 0 | E77: 0 | F77: 0 | G77: 0 | H77: 0 | I77: 0 | J77: 0 | K77: 0 | L77: 0 | M77: 0 | N77: 0 | O77: 0 | P77: 0 | Q77: 0 | R77: 0 | S77: 0 | T77: 0 | U77: 0 | V77: 0 | W77: 0 | X77: 0 | Y77: 0 | Z77: 0 | AA77: 0 | AB77: 0 | AC77: 0 | AD77: =IF(AD74<>"",AD854,"") -> 
A78: =$A$14 -> Code | B78: =IF(B854<>0,IF(MAX(B841:B853)<B854,Labels!$B$163,INDEX($AH$840:$AH$852,MATCH(MAX(B841:B853),B841:B853,0))),"") ->  | C78: =IF(C854<>0,IF(MAX(C841:C853)<C854,Labels!$B$163,INDEX($AH$840:$AH$852,MATCH(MAX(C841:C853),C841:C853,0))),"") ->  | D78: =IF(D854<>0,IF(MAX(D841:D853)<D854,Labels!$B$163,INDEX($AH$840:$AH$852,MATCH(MAX(D841:D853),D841:D853,0))),"") ->  | E78: =IF(E854<>0,IF(MAX(E841:E853)<E854,Labels!$B$163,INDEX($AH$840:$AH$852,MATCH(MAX(E841:E853),E841:E853,0))),"") ->  | F78: =IF(F854<>0,IF(MAX(F841:F853)<F854,Labels!$B$163,INDEX($AH$840:$AH$852,MATCH(MAX(F841:F853),F841:F853,0))),"") ->  | G78: =IF(G854<>0,IF(MAX(G841:G853)<G854,Labels!$B$163,INDEX($AH$840:$AH$852,MATCH(MAX(G841:G853),G841:G853,0))),"") ->  | H78: =IF(H854<>0,IF(MAX(H841:H853)<H854,Labels!$B$163,INDEX($AH$840:$AH$852,MATCH(MAX(H841:H853),H841:H853,0))),"") ->  | I78: =IF(I854<>0,IF(MAX(I841:I853)<I854,Labels!$B$163,INDEX($AH$840:$AH$852,MATCH(MAX(I841:I853),I841:I853,0))),"") ->  | J78: =IF(J854<>0,IF(MAX(J841:J853)<J854,Labels!$B$163,INDEX($AH$840:$AH$852,MATCH(MAX(J841:J853),J841:J853,0))),"") ->  | K78: =IF(K854<>0,IF(MAX(K841:K853)<K854,Labels!$B$163,INDEX($AH$840:$AH$852,MATCH(MAX(K841:K853),K841:K853,0))),"") ->  | L78: =IF(L854<>0,IF(MAX(L841:L853)<L854,Labels!$B$163,INDEX($AH$840:$AH$852,MATCH(MAX(L841:L853),L841:L853,0))),"") ->  | M78: =IF(M854<>0,IF(MAX(M841:M853)<M854,Labels!$B$163,INDEX($AH$840:$AH$852,MATCH(MAX(M841:M853),M841:M853,0))),"") ->  | N78: =IF(N854<>0,IF(MAX(N841:N853)<N854,Labels!$B$163,INDEX($AH$840:$AH$852,MATCH(MAX(N841:N853),N841:N853,0))),"") ->  | O78: =IF(O854<>0,IF(MAX(O841:O853)<O854,Labels!$B$163,INDEX($AH$840:$AH$852,MATCH(MAX(O841:O853),O841:O853,0))),"") ->  | P78: =IF(P854<>0,IF(MAX(P841:P853)<P854,Labels!$B$163,INDEX($AH$840:$AH$852,MATCH(MAX(P841:P853),P841:P853,0))),"") ->  | Q78: =IF(Q854<>0,IF(MAX(Q841:Q853)<Q854,Labels!$B$163,INDEX($AH$840:$AH$852,MATCH(MAX(Q841:Q853),Q841:Q853,0))),"") ->  | R78: =IF(R854<>0,IF(MAX(R841:R853)<R854,Labels!$B$163,INDEX($AH$840:$AH$852,MATCH(MAX(R841:R853),R841:R853,0))),"") ->  | S78: =IF(S854<>0,IF(MAX(S841:S853)<S854,Labels!$B$163,INDEX($AH$840:$AH$852,MATCH(MAX(S841:S853),S841:S853,0))),"") ->  | T78: =IF(T854<>0,IF(MAX(T841:T853)<T854,Labels!$B$163,INDEX($AH$840:$AH$852,MATCH(MAX(T841:T853),T841:T853,0))),"") ->  | U78: =IF(U854<>0,IF(MAX(U841:U853)<U854,Labels!$B$163,INDEX($AH$840:$AH$852,MATCH(MAX(U841:U853),U841:U853,0))),"") ->  | V78: =IF(V854<>0,IF(MAX(V841:V853)<V854,Labels!$B$163,INDEX($AH$840:$AH$852,MATCH(MAX(V841:V853),V841:V853,0))),"") ->  | W78: =IF(W854<>0,IF(MAX(W841:W853)<W854,Labels!$B$163,INDEX($AH$840:$AH$852,MATCH(MAX(W841:W853),W841:W853,0))),"") ->  | X78: =IF(X854<>0,IF(MAX(X841:X853)<X854,Labels!$B$163,INDEX($AH$840:$AH$852,MATCH(MAX(X841:X853),X841:X853,0))),"") ->  | Y78: =IF(Y854<>0,IF(MAX(Y841:Y853)<Y854,Labels!$B$163,INDEX($AH$840:$AH$852,MATCH(MAX(Y841:Y853),Y841:Y853,0))),"") ->  | Z78: =IF(Z854<>0,IF(MAX(Z841:Z853)<Z854,Labels!$B$163,INDEX($AH$840:$AH$852,MATCH(MAX(Z841:Z853),Z841:Z853,0))),"") ->  | AA78: =IF(AA854<>0,IF(MAX(AA841:AA853)<AA854,Labels!$B$163,INDEX($AH$840:$AH$852,MATCH(MAX(AA841:AA853),AA841:AA853,0))),"") ->  | AB78: =IF(AB854<>0,IF(MAX(AB841:AB853)<AB854,Labels!$B$163,INDEX($AH$840:$AH$852,MATCH(MAX(AB841:AB853),AB841:AB853,0))),"") ->  | AC78: =IF(AC854<>0,IF(MAX(AC841:AC853)<AC854,Labels!$B$163,INDEX($AH$840:$AH$852,MATCH(MAX(AC841:AC853),AC841:AC853,0))),"") ->  | AD78: =IF(AD854<>0,IF(MAX(AD841:AD853)<AD854,Labels!$B$163,INDEX($AH$840:$AH$852,MATCH(MAX(AD841:AD853),AD841:AD853,0))),"") -> div | AG78: =IF($AD$74="",SUM(B79:AC79),SUM(B79:AF79)) -> 0
A79: =$A$15 -> 00.00-06.00h | AG79: =IF($AD$74="",SUM(B80:AC80),SUM(B80:AF80)) -> 0
A80: =$A$16 -> 06.00-20.00h | AG80: =IF($AD$74="",SUM(B81:AC81),SUM(B81:AF81)) -> 0 | AH80: [0]
A81: =$A$17 -> 20.00-24.00h
A82: =$A$18 -> Feiertag "ft" | B82: =IF(WEEKDAY(B74,2)<=6,IF(KALENDER!E5="x",Labels!$B$118,""),"") ->  | C82: =IF(WEEKDAY(C74,2)<=6,IF(KALENDER!F5="x",Labels!$B$118,""),"") ->  | D82: =IF(WEEKDAY(D74,2)<=6,IF(KALENDER!G5="x",Labels!$B$118,""),"") ->  | E82: =IF(WEEKDAY(E74,2)<=6,IF(KALENDER!H5="x",Labels!$B$118,""),"") ->  | F82: =IF(WEEKDAY(F74,2)<=6,IF(KALENDER!I5="x",Labels!$B$118,""),"") ->  | G82: =IF(WEEKDAY(G74,2)<=6,IF(KALENDER!J5="x",Labels!$B$118,""),"") ->  | H82: =IF(WEEKDAY(H74,2)<=6,IF(KALENDER!K5="x",Labels!$B$118,""),"") ->  | I82: =IF(WEEKDAY(I74,2)<=6,IF(KALENDER!L5="x",Labels!$B$118,""),"") ->  | J82: =IF(WEEKDAY(J74,2)<=6,IF(KALENDER!M5="x",Labels!$B$118,""),"") ->  | K82: =IF(WEEKDAY(K74,2)<=6,IF(KALENDER!N5="x",Labels!$B$118,""),"") ->  | L82: =IF(WEEKDAY(L74,2)<=6,IF(KALENDER!O5="x",Labels!$B$118,""),"") ->  | M82: =IF(WEEKDAY(M74,2)<=6,IF(KALENDER!P5="x",Labels!$B$118,""),"") ->  | N82: =IF(WEEKDAY(N74,2)<=6,IF(KALENDER!Q5="x",Labels!$B$118,""),"") ->  | O82: =IF(WEEKDAY(O74,2)<=6,IF(KALENDER!R5="x",Labels!$B$118,""),"") ->  | P82: =IF(WEEKDAY(P74,2)<=6,IF(KALENDER!S5="x",Labels!$B$118,""),"") ->  | Q82: =IF(WEEKDAY(Q74,2)<=6,IF(KALENDER!T5="x",Labels!$B$118,""),"") ->  | R82: =IF(WEEKDAY(R74,2)<=6,IF(KALENDER!U5="x",Labels!$B$118,""),"") ->  | S82: =IF(WEEKDAY(S74,2)<=6,IF(KALENDER!V5="x",Labels!$B$118,""),"") ->  | T82: =IF(WEEKDAY(T74,2)<=6,IF(KALENDER!W5="x",Labels!$B$118,""),"") ->  | U82: =IF(WEEKDAY(U74,2)<=6,IF(KALENDER!X5="x",Labels!$B$118,""),"") ->  | V82: =IF(WEEKDAY(V74,2)<=6,IF(KALENDER!Y5="x",Labels!$B$118,""),"") ->  | W82: =IF(WEEKDAY(W74,2)<=6,IF(KALENDER!Z5="x",Labels!$B$118,""),"") ->  | X82: =IF(WEEKDAY(X74,2)<=6,IF(KALENDER!AA5="x",Labels!$B$118,""),"") ->  | Y82: =IF(WEEKDAY(Y74,2)<=6,IF(KALENDER!AB5="x",Labels!$B$118,""),"") ->  | Z82: =IF(WEEKDAY(Z74,2)<=6,IF(KALENDER!AC5="x",Labels!$B$118,""),"") ->  | AA82: =IF(WEEKDAY(AA74,2)<=6,IF(KALENDER!AD5="x",Labels!$B$118,""),"") ->  | AB82: =IF(WEEKDAY(AB74,2)<=6,IF(KALENDER!AE5="x",Labels!$B$118,""),"") ->  | AC82: =IF(WEEKDAY(AC74,2)<=6,IF(KALENDER!AF5="x",Labels!$B$118,""),"") ->  | AD82: =IF(WEEKDAY(AD74,2)<=6,IF(KALENDER!AG5="x",Labels!$B$118,""),"") ->  | AE82: =IF(WEEKDAY(AE74,2)<=6,IF(KALENDER!AH5="x",Labels!$B$118,""),"") ->  | AF82: =IF(WEEKDAY(AF74,2)<=6,IF(KALENDER!AI5="x",Labels!$B$118,""),"") ->  | AG82: 0
A83: =$A$19 -> Gutschrift "ft" | B83: =IF(AND(B82=Labels!$B$118,WEEKDAY(B74,2)<6,B$76<>""),($J$7*5/$AR$45)*$B$71%,"") ->  | C83: =IF(AND(C82=Labels!$B$118,WEEKDAY(C74,2)<6,C$76<>""),($J$7*5/$AR$45)*$B$71%,"") ->  | D83: =IF(AND(D82=Labels!$B$118,WEEKDAY(D74,2)<6,D$76<>""),($J$7*5/$AR$45)*$B$71%,"") ->  | E83: =IF(AND(E82=Labels!$B$118,WEEKDAY(E74,2)<6,E$76<>""),($J$7*5/$AR$45)*$B$71%,"") ->  | F83: =IF(AND(F82=Labels!$B$118,WEEKDAY(F74,2)<6,F$76<>""),($J$7*5/$AR$45)*$B$71%,"") ->  | G83: =IF(AND(G82=Labels!$B$118,WEEKDAY(G74,2)<6,G$76<>""),($J$7*5/$AR$45)*$B$71%,"") ->  | H83: =IF(AND(H82=Labels!$B$118,WEEKDAY(H74,2)<6,H$76<>""),($J$7*5/$AR$45)*$B$71%,"") ->  | I83: =IF(AND(I82=Labels!$B$118,WEEKDAY(I74,2)<6,I$76<>""),($J$7*5/$AR$45)*$B$71%,"") ->  | J83: =IF(AND(J82=Labels!$B$118,WEEKDAY(J74,2)<6,J$76<>""),($J$7*5/$AR$45)*$B$71%,"") ->  | K83: =IF(AND(K82=Labels!$B$118,WEEKDAY(K74,2)<6,K$76<>""),($J$7*5/$AR$45)*$B$71%,"") ->  | L83: =IF(AND(L82=Labels!$B$118,WEEKDAY(L74,2)<6,L$76<>""),($J$7*5/$AR$45)*$B$71%,"") ->  | M83: =IF(AND(M82=Labels!$B$118,WEEKDAY(M74,2)<6,M$76<>""),($J$7*5/$AR$45)*$B$71%,"") ->  | N83: =IF(AND(N82=Labels!$B$118,WEEKDAY(N74,2)<6,N$76<>""),($J$7*5/$AR$45)*$B$71%,"") ->  | O83: =IF(AND(O82=Labels!$B$118,WEEKDAY(O74,2)<6,O$76<>""),($J$7*5/$AR$45)*$B$71%,"") ->  | P83: =IF(AND(P82=Labels!$B$118,WEEKDAY(P74,2)<6,P$76<>""),($J$7*5/$AR$45)*$B$71%,"") ->  | Q83: =IF(AND(Q82=Labels!$B$118,WEEKDAY(Q74,2)<6,Q$76<>""),($J$7*5/$AR$45)*$B$71%,"") ->  | R83: =IF(AND(R82=Labels!$B$118,WEEKDAY(R74,2)<6,R$76<>""),($J$7*5/$AR$45)*$B$71%,"") ->  | S83: =IF(AND(S82=Labels!$B$118,WEEKDAY(S74,2)<6,S$76<>""),($J$7*5/$AR$45)*$B$71%,"") ->  | T83: =IF(AND(T82=Labels!$B$118,WEEKDAY(T74,2)<6,T$76<>""),($J$7*5/$AR$45)*$B$71%,"") ->  | U83: =IF(AND(U82=Labels!$B$118,WEEKDAY(U74,2)<6,U$76<>""),($J$7*5/$AR$45)*$B$71%,"") ->  | V83: =IF(AND(V82=Labels!$B$118,WEEKDAY(V74,2)<6,V$76<>""),($J$7*5/$AR$45)*$B$71%,"") ->  | W83: =IF(AND(W82=Labels!$B$118,WEEKDAY(W74,2)<6,W$76<>""),($J$7*5/$AR$45)*$B$71%,"") ->  | X83: =IF(AND(X82=Labels!$B$118,WEEKDAY(X74,2)<6,X$76<>""),($J$7*5/$AR$45)*$B$71%,"") ->  | Y83: =IF(AND(Y82=Labels!$B$118,WEEKDAY(Y74,2)<6,Y$76<>""),($J$7*5/$AR$45)*$B$71%,"") ->  | Z83: =IF(AND(Z82=Labels!$B$118,WEEKDAY(Z74,2)<6,Z$76<>""),($J$7*5/$AR$45)*$B$71%,"") ->  | AA83: =IF(AND(AA82=Labels!$B$118,WEEKDAY(AA74,2)<6,AA$76<>""),($J$7*5/$AR$45)*$B$71%,"") ->  | AB83: =IF(AND(AB82=Labels!$B$118,WEEKDAY(AB74,2)<6,AB$76<>""),($J$7*5/$AR$45)*$B$71%,"") ->  | AC83: =IF(AND(AC82=Labels!$B$118,WEEKDAY(AC74,2)<6,AC$76<>""),($J$7*5/$AR$45)*$B$71%,"") ->  | AD83: =IF(AND(AD82=Labels!$B$118,WEEKDAY(AD74,2)<6,AD$76<>""),($J$7*5/$AR$45)*$B$71%,"") ->  | AE83: =IF(AND(AE82=Labels!$B$118,WEEKDAY(AE74,2)<6),$J$7*$B$71%,"") ->  | AF83: =IF(AND(AF82=Labels!$B$118,WEEKDAY(AF74,2)<6),$J$7*$B$71%,"") -> 
A84: =$A$20 -> Tagestotal | B84: =SUM(B79:B81) -> 0 | C84: =SUM(C79:C81) -> 0 | D84: 0 | E84: 0 | F84: 0 | G84: 0 | H84: 0 | I84: 0 | J84: 0 | K84: 0 | L84: 0 | M84: 0 | N84: 0 | O84: 0 | P84: 0 | Q84: 0 | R84: 0 | S84: 0 | T84: 0 | U84: 0 | V84: 0 | W84: 0 | X84: 0 | Y84: 0 | Z84: 0 | AA84: 0 | AB84: 0 | AC84: 0 | AD84: =IF(AD74="","",SUM(AD79:AD81)) -> 
A85: =$A$21 -> .
A86: =$A$22 -> .
A87: =$A$23 -> Monatsübergang | B87: =IF(WEEKDAY(B74)=1,TEXT(B74-1,"MMM"&Labels!B13),"") ->  | AC87: =IF(AND(WEEKDAY(AC74)>1,WEEKDAY(AC74)<7,AD74=""),TEXT(DATE($B$5,MONTH(AC74)+1,1),"MMM"&Labels!B13),"") -> Mär | AD87: =IF(ISERROR(WEEKDAY(AD74)),"",IF(AND(WEEKDAY(AD74)>1,WEEKDAY(AD74)<7),TEXT(DATE($B$5,MONTH(AD74)+1,1),"MMM"&Labels!B13),"")) -> 
A88: =$A$24 -> Wochentotal | B88: =IF(WEEKDAY(B74)=7,SUMIF($B11:$AF11,B75,$B20:$AF20)+SUMIF($B75:$AF75,B75,$B84:$AF84)+SUMIF($B139:$AF139,B75,$B148:$AF148),B87) ->  | C88: =IF(WEEKDAY(C74)=7,SUMIF($B11:$AF11,C75,$B20:$AF20)+SUMIF($B75:$AF75,C75,$B84:$AF84)+SUMIF($B139:$AF139,C75,$B148:$AF148),"") ->  | F88: 0 | M88: 0 | T88: 0 | AA88: 0 | AC88: =IF(WEEKDAY(AC74)=7,SUMIF($B11:$AF11,AC75,$B20:$AF20)+SUMIF($B75:$AF75,AC75,$B84:$AF84)+SUMIF($B139:$AF139,AC75,$B148:$AF148),AC87) -> Mär | AD88: =IF(ISERROR(WEEKDAY(AD74)=7),"",IF(WEEKDAY(AD74)=7,SUMIF($B11:$AF11,AD75,$B20:$AF20)+SUMIF($B75:$AF75,AD75,$B84:$AF84)+SUMIF($B139:$AF139,AD75,$B148:$AF148),AD87)) ->  | AG88: 0
A89: =$A$25 -> Zeitzuschlag 1) | B89: =IF(B96="FALSCH","",B96) ->  | C89: =IF(C96="FALSCH","",C96) ->  | AG89: 0 | AH89: [1]
A90: =$A$26 -> Zeitzuschlag 2) | B90: =IF((B79+B81)=0,"",SUM(B79,B81)) ->  | C90: =IF((C79+C81)=0,"",SUM(C79,C81)) ->  | AG90: 0 | AH90: [2]
A91: =$A$27 -> Zeitzuschlag 3) | B91: =SUM(B92:B95) -> 0 | C91: =SUM(C92:C95) -> 0 | D91: 0 | E91: 0 | F91: 0 | G91: 0 | H91: 0 | I91: 0 | J91: 0 | K91: 0 | L91: 0 | M91: 0 | N91: 0 | O91: 0 | P91: 0 | Q91: 0 | R91: 0 | S91: 0 | T91: 0 | U91: 0 | V91: 0 | W91: 0 | X91: 0 | Y91: 0 | Z91: 0 | AA91: 0 | AB91: 0 | AC91: 0 | AD91: =IF(ISERROR(WEEKDAY(AD74)=1),"",SUM(AD92:AD95)) ->  | AG91: 0 | AH91: [3]
A92: =$A$28 -> Sonntag Tag | B92: =IF(WEEKDAY(B74)=1,B80,"") ->  | C92: =IF(WEEKDAY(C74)=1,C80,"") ->  | G92: 0 | N92: 0 | U92: 0 | AB92: 0 | AD92: =IF(ISERROR(WEEKDAY(AD74)=1),"",IF(WEEKDAY(AD74)=1,AD80,"")) ->  | AG92: 0 | AH92: [4]
A93: =$A$29 -> Sonntag Nacht | B93: =IF(WEEKDAY(B74)=1,SUM(B79+B81),"") ->  | C93: =IF(WEEKDAY(C74)=1,SUM(C79+C81),"") ->  | G93: 0 | N93: 0 | U93: 0 | AB93: 0 | AD93: =IF(ISERROR(WEEKDAY(AD74)=1),"",IF(WEEKDAY(AD74)=1,SUM(AD79+AD81),"")) ->  | AG93: 0 | AH93: [5]
A94: =$A$30 -> ft-Tazuschlag | B94: =IF(B82=Labels!$B$118,B80,"") ->  | C94: =IF(C82=Labels!$B$118,C80,"") ->  | D94: =IF(D82=Labels!$B$118,D80,"") ->  | E94: =IF(E82=Labels!$B$118,E80,"") ->  | F94: =IF(F82=Labels!$B$118,F80,"") ->  | G94: =IF(G82=Labels!$B$118,G80,"") ->  | H94: =IF(H82=Labels!$B$118,H80,"") ->  | I94: =IF(I82=Labels!$B$118,I80,"") ->  | J94: =IF(J82=Labels!$B$118,J80,"") ->  | K94: =IF(K82=Labels!$B$118,K80,"") ->  | L94: =IF(L82=Labels!$B$118,L80,"") ->  | M94: =IF(M82=Labels!$B$118,M80,"") ->  | N94: =IF(N82=Labels!$B$118,N80,"") ->  | O94: =IF(O82=Labels!$B$118,O80,"") ->  | P94: =IF(P82=Labels!$B$118,P80,"") ->  | Q94: =IF(Q82=Labels!$B$118,Q80,"") ->  | R94: =IF(R82=Labels!$B$118,R80,"") ->  | S94: =IF(S82=Labels!$B$118,S80,"") ->  | T94: =IF(T82=Labels!$B$118,T80,"") ->  | U94: =IF(U82=Labels!$B$118,U80,"") ->  | V94: =IF(V82=Labels!$B$118,V80,"") ->  | W94: =IF(W82=Labels!$B$118,W80,"") ->  | X94: =IF(X82=Labels!$B$118,X80,"") ->  | Y94: =IF(Y82=Labels!$B$118,Y80,"") ->  | Z94: =IF(Z82=Labels!$B$118,Z80,"") ->  | AA94: =IF(AA82=Labels!$B$118,AA80,"") ->  | AB94: =IF(AB82=Labels!$B$118,AB80,"") ->  | AC94: =IF(AC82=Labels!$B$118,AC80,"") ->  | AD94: =IF(AD82=Labels!$B$118,AD80,"") ->  | AG94: 0 | AH94: [6]
A95: =$A$31 -> ft-Nazuschlag | B95: =IF(B82=Labels!$B$118,SUM(B79,B81),"") ->  | C95: =IF(C82=Labels!$B$118,SUM(C79,C81),"") ->  | D95: =IF(D82=Labels!$B$118,SUM(D79,D81),"") ->  | E95: =IF(E82=Labels!$B$118,SUM(E79,E81),"") ->  | F95: =IF(F82=Labels!$B$118,SUM(F79,F81),"") ->  | G95: =IF(G82=Labels!$B$118,SUM(G79,G81),"") ->  | H95: =IF(H82=Labels!$B$118,SUM(H79,H81),"") ->  | I95: =IF(I82=Labels!$B$118,SUM(I79,I81),"") ->  | J95: =IF(J82=Labels!$B$118,SUM(J79,J81),"") ->  | K95: =IF(K82=Labels!$B$118,SUM(K79,K81),"") ->  | L95: =IF(L82=Labels!$B$118,SUM(L79,L81),"") ->  | M95: =IF(M82=Labels!$B$118,SUM(M79,M81),"") ->  | N95: =IF(N82=Labels!$B$118,SUM(N79,N81),"") ->  | O95: =IF(O82=Labels!$B$118,SUM(O79,O81),"") ->  | P95: =IF(P82=Labels!$B$118,SUM(P79,P81),"") ->  | Q95: =IF(Q82=Labels!$B$118,SUM(Q79,Q81),"") ->  | R95: =IF(R82=Labels!$B$118,SUM(R79,R81),"") ->  | S95: =IF(S82=Labels!$B$118,SUM(S79,S81),"") ->  | T95: =IF(T82=Labels!$B$118,SUM(T79,T81),"") ->  | U95: =IF(U82=Labels!$B$118,SUM(U79,U81),"") ->  | V95: =IF(V82=Labels!$B$118,SUM(V79,V81),"") ->  | W95: =IF(W82=Labels!$B$118,SUM(W79,W81),"") ->  | X95: =IF(X82=Labels!$B$118,SUM(X79,X81),"") ->  | Y95: =IF(Y82=Labels!$B$118,SUM(Y79,Y81),"") ->  | Z95: =IF(Z82=Labels!$B$118,SUM(Z79,Z81),"") ->  | AA95: =IF(AA82=Labels!$B$118,SUM(AA79,AA81),"") ->  | AB95: =IF(AB82=Labels!$B$118,SUM(AB79,AB81),"") ->  | AC95: =IF(AC82=Labels!$B$118,SUM(AC79,AC81),"") ->  | AD95: =IF(AD82=Labels!$B$118,SUM(AD79,AD81),"") ->  | AG95: =AG79 -> 0 | AH95: [7]
A96: =$A$32 -> Zuschlag blind (Wochentotal) | B96: =IF(OR(ISTEXT(B88),B88="",B88<$B$7),"",ROUND(((B88-$B$7)*25%)/25,4)*25) ->  | C96: =IF(OR(ISTEXT(C88),C88="",C88<$B$7),"",ROUND(((C88-$B$7)*25%)/25,4)*25) ->  | AE96: =YEAR(AC74) -> 2022 | AG96: =SUM(AG78+AG80) -> 0 | AH96: [8]
B97: =$B$33 -> 1) 25% Zeitzuschlag für Überschreitung Wochentotal | L97: =$L$33 -> 2) 100% Zeitzuschlag für Nachtarbeit | T97: =$T$33 -> Eingabe der ausbezahlten Stunden Vorjahressaldo | AG97: =SUM(AG78:AG80) -> 0 | AH97: [9]
B98: =$B$34 -> 3) 100% Zeitzuschlag für Sonn- und Feiertagsarbeit | T98: =$T$34 -> Eingabe der ausbezahlten Stunden laufendes Jahr (Überstunden) | AG98: =SUM(AG76+AG82) -> 0 | AH98: [10]
A99: =$A$35 -> Bemerkungen | AG99: =SUM(AG76:AG90) -> 0 | AH99: [11]
AG100: =AG75 -> 160
AG101: =SUM(AG99-AG75) -> -160
A103: =$A$39 -> Zusammenstellung | G103: =$G$39 -> Jan | I103: =$I$39 -> Feb | K103: =$K$39 -> Mrz | M103: =$M$39 -> Apr | O103: =$O$39 -> Mai | Q103: =$Q$39 -> Jun | S103: =$S$39 -> Jul | U103: =$U$39 -> Aug | W103: =$W$39 -> Sep | Y103: =$Y$39 -> Okt | AA103: =$AA$39 -> Nov | AC103: =$AC$39 -> Dez | AE103: =$AE$39 -> Jahr
A104: =$A$40 -> Anstellung % | G104: =IF($B$4=0,0,$B$4) -> 100 | I104: =IF($B$71=0,0,$B$71) -> 100 | K104: =IF($B$135=0,0,$B$135) -> 100 | M104: =IF($B$199=0,0,$B$199) -> 100 | O104: =IF($B$263=0,0,$B$263) -> 100 | Q104: =IF($B$327=0,0,$B$327) -> 100 | S104: =IF($B$391=0,0,$B$391) -> 100 | U104: =IF($B$455=0,0,$B$455) -> 100 | W104: =IF($B$519=0,0,$B$519) -> 100 | Y104: =IF($B$583=0,0,$B$583) -> 100 | AA104: =IF($B$647=0,0,$B$647) -> 100 | AC104: =IF($B$711=0,0,$B$711) -> 100
A105: =$A$41 -> Sollstunden gemäss GAV | G105: =IF($AG$37=0,0,$AG$37) -> 168 | I105: =IF($AG$100=0,0,$AG$100) -> 160 | K105: =IF($AG$139=0,0,$AG$139) -> 184 | M105: =IF($AG$228=0,0,$AG$228) -> 168 | O105: =IF($AG$292=0,0,$AG$292) -> 176 | Q105: =IF($AG$356=0,0,$AG$356) -> 176 | S105: =IF($AG$420=0,0,$AG$420) -> 168 | U105: =IF($AG$484=0,0,$AG$484) -> 184 | W105: =IF($AG$548=0,0,$AG$548) -> 176 | Y105: =IF($AG$612=0,0,$AG$612) -> 168 | AA105: =IF($AG$676=0,0,$AG$676) -> 176 | AC105: =IF($AG$740=0,0,$AG$740) -> 176 | AE105: =SUM(G105:AD105) -> 2080
A106: =$A$42 -> Produktive Stunden | B106: =$B$42 -> 06.00 - 20.00 Uhr | G106: =IF($AG$32=0,0,$AG$32) -> 0 | I106: =IF($AG$95=0,0,$AG$95) -> 0 | K106: =IF($AG$159=0,0,$AG$159) -> 0 | M106: =IF($AG$223=0,0,$AG$223) -> 0 | O106: =IF($AG$287=0,0,$AG$287) -> 0 | Q106: =IF($AG$351=0,0,$AG$351) -> 0 | S106: =IF($AG$415=0,0,$AG$415) -> 0 | U106: =IF($AG$479=0,0,$AG$479) -> 0 | W106: =IF($AG$543=0,0,$AG$543) -> 0 | Y106: =IF($AG$607=0,0,$AG$607) -> 0 | AA106: =IF($AG$671=0,0,$AG$671) -> 0 | AC106: =IF($AG$735=0,0,$AG$735) -> 0 | AE106: =SUM(G106:AD106) -> 0
B107: =$B$43 -> Nacht-, Sonn-, Feiertagsarbeit | G107: =IF($AG$33=0,0,$AG$33) -> 0 | I107: =IF($AG$96=0,0,$AG$96) -> 0 | K107: =IF($AG$160=0,0,$AG$160) -> 0 | M107: =IF($AG$224=0,0,$AG$224) -> 0 | O107: =IF($AG$288=0,0,$AG$288) -> 0 | Q107: =IF($AG$352=0,0,$AG$352) -> 0 | S107: =IF($AG$416=0,0,$AG$416) -> 0 | U107: =IF($AG$480=0,0,$AG$480) -> 0 | W107: =IF($AG$544=0,0,$AG$544) -> 0 | Y107: =IF($AG$608=0,0,$AG$608) -> 0 | AA107: =IF($AG$672=0,0,$AG$672) -> 0 | AC107: =IF($AG$736=0,0,$AG$736) -> 0 | AE107: =SUM(G107:AD107) -> 0
A108: =$A$44 -> Zeitzuschläge | B108: =$B$44 -> aus Wochentotal | G108: =IF($AG$25=0,0,$AG$25) -> 0 | I108: =IF($AG$88=0,0,$AG$88) -> 0 | K108: =IF($AG$152=0,0,$AG$152) -> 0 | M108: =IF($AG$216=0,0,$AG$216) -> 0 | O108: =IF($AG$280=0,0,$AG$280) -> 0 | Q108: =IF($AG$344=0,0,$AG$344) -> 0 | S108: =IF($AG$408=0,0,$AG$408) -> 0 | U108: =IF($AG$472=0,0,$AG$472) -> 0 | W108: =IF($AG$536=0,0,$AG$536) -> 0 | Y108: =IF($AG$600=0,0,$AG$600) -> 0 | AA108: =IF($AG$664=0,0,$AG$664) -> 0 | AC108: =IF($AG$728=0,0,$AG$728) -> 0 | AE108: =SUM(G108:AD108) -> 0
B109: =$B$45 -> aus Nacht-, Sonn-, Feiertagsarbeiten | G109: =IF($AJ$21=0,0,$AJ$21) -> 0 | I109: =IF($AK$21=0,0,$AK$21) -> 0 | K109: =IF($AL$21=0,0,$AL$21) -> 0 | M109: =IF($AM$21=0,0,$AM$21) -> 0 | O109: =IF($AN$21=0,0,$AN$21) -> 0 | Q109: =IF($AO$21=0,0,$AO$21) -> 0 | S109: =IF($AP$21=0,0,$AP$21) -> 0 | U109: =IF($AQ$21=0,0,$AQ$21) -> 0 | W109: =IF($AR$21=0,0,$AR$21) -> 0 | Y109: =IF($AS$21=0,0,$AS$21) -> 0 | AA109: =IF($AT$21=0,0,$AT$21) -> 0 | AC109: =IF($AU$21=0,0,$AU$21) -> 0 | AE109: =SUM(G109:AD109) -> 0
A110: =$A$46 -> Unproduktive Stunden
A111: =$A$47 -> Absenzen, Kurzabsenzen Art. 11 GAV | F111: =$F$47 -> a | G111: =IF($AJ$3=0,0,$AJ$3) -> 0 | I111: =IF($AK$3=0,0,$AK$3) -> 0 | K111: =IF($AL$3=0,0,$AL$3) -> 0 | M111: =IF($AM$3=0,0,$AM$3) -> 0 | O111: =IF($AN$3=0,0,$AN$3) -> 0 | Q111: =IF($AO$3=0,0,$AO$3) -> 0 | S111: =IF($AP$3=0,0,$AP$3) -> 0 | U111: =IF($AQ$3=0,0,$AQ$3) -> 0 | W111: =IF($AR$3=0,0,$AR$3) -> 0 | Y111: =IF($AS$3=0,0,$AS$3) -> 0 | AA111: =IF(AT$3=0,0,$AT$3) -> 0 | AC111: =IF($AU$3=0,0,$AU$3) -> 0 | AE111: =IF($AV$3=0,0,$AV$3) -> 0
A112: =$A$48 -> Ferien Art. 12.1 GAV | F112: =$F$48 -> f | G112: =IF($AJ$4=0,0,$AJ$4) -> 0 | I112: =IF($AK$4=0,0,$AK$4) -> 0 | K112: =IF($AL$4=0,0,$AL$4) -> 0 | M112: =IF($AM$4=0,0,$AM$4) -> 0 | O112: =IF($AN$4=0,0,$AN$4) -> 0 | Q112: =IF($AO$4=0,0,$AO$4) -> 0 | S112: =IF($AP$4=0,0,$AP$4) -> 0 | U112: =IF($AQ$4=0,0,$AQ$4) -> 0 | W112: =IF($AR$4=0,0,$AR$4) -> 0 | Y112: =IF($AS$4=0,0,$AS$4) -> 0 | AA112: =IF($AT$4=0,0,$AT$4) -> 0 | AC112: =IF($AU$4=0,0,$AU$4) -> 0 | AE112: =IF($AV$4=0,0,$AV$4) -> 0
A113: =Labels!$B$181 -> Ferien unbezahlt | F113: =Labels!$B$182 -> fu | G113: =IF($AJ$13=0,0,$AJ$13) -> 0 | I113: =IF($AK$13=0,0,$AK$13) -> 0 | K113: =IF($AL$13=0,0,$AL$13) -> 0 | M113: =IF($AM$13=0,0,$AM$13) -> 0 | O113: =IF($AN$13=0,0,$AN$13) -> 0 | Q113: =IF($AO$13=0,0,$AO$13) -> 0 | S113: =IF($AP$13=0,0,$AP$13) -> 0 | U113: =IF($AQ$13=0,0,$AQ$13) -> 0 | W113: =IF($AR$13=0,0,$AR$13) -> 0 | Y113: =IF($AS$13=0,0,$AS$13) -> 0 | AA113: =IF($AT$13=0,0,$AT$13) -> 0 | AC113: =IF($AU$13=0,0,$AU$13) -> 0 | AE113: =IF($AV$13=0,0,$AV$13) -> 0
A114: =$A$50 -> Feiertage Art. 12.2 GAV | C114: =IF($AJ$18="","",$AJ$18) ->  | F114: =$F$50 -> ft | G114: =IF($AJ$16=0,0,$AJ$16) -> 0 | I114: =IF($AK$16=0,0,$AK$16) -> 0 | K114: =IF($AL$16=0,0,$AL$16) -> 0 | M114: =IF($AM$16=0,0,$AM$16) -> 0 | O114: =IF($AN$16=0,0,$AN$16) -> 0 | Q114: =IF($AO$16=0,0,$AO$16) -> 0 | S114: =IF($AP$16=0,0,$AP$16) -> 0 | U114: =IF($AQ$16=0,0,$AQ$16) -> 0 | W114: =IF($AR$16=0,0,$AR$16) -> 0 | Y114: =IF($AS$16=0,0,$AS$16) -> 0 | AA114: =IF($AT$16=0,0,$AT$16) -> 0 | AC114: =IF($AU$16=0,0,$AU$16) -> 0 | AE114: =IF($AV$16=0,0,$AV$16) -> 0
A115: =$A$51 -> Krankheit Art. 13 GAV | F115: =$F$51 -> k | G115: =IF($AJ$5=0,0,$AJ$5) -> 0 | I115: =IF($AK$5=0,0,$AK$5) -> 0 | K115: =IF($AL$5=0,0,$AL$5) -> 0 | M115: =IF($AM$5=0,0,$AM$5) -> 0 | O115: =IF($AN$5=0,0,$AN$5) -> 0 | Q115: =IF($AO$5=0,0,$AO$5) -> 0 | S115: =IF($AP$5=0,0,$AP$5) -> 0 | U115: =IF($AQ$5=0,0,$AQ$5) -> 0 | W115: =IF($AR$5=0,0,$AR$5) -> 0 | Y115: =IF($AS$5=0,0,$AS$5) -> 0 | AA115: =IF($AT$5=0,0,$AT$5) -> 0 | AC115: =IF($AU$5=0,0,$AU$5) -> 0 | AE115: =IF($AV$5=0,0,$AV$5) -> 0
A116: =$A$52 -> Unfall Art. 14 GAV | F116: =$F$52 -> u | G116: =IF($AJ$6=0,0,$AJ$6) -> 0 | I116: =IF($AK$6=0,0,$AK$6) -> 0 | K116: =IF($AL$6=0,0,$AL$6) -> 0 | M116: =IF($AM$6=0,0,$AM$6) -> 0 | O116: =IF($AN$6=0,0,$AN$6) -> 0 | Q116: =IF($AO$6=0,0,$AO$6) -> 0 | S116: =IF($AP$6=0,0,$AP$6) -> 0 | U116: =IF($AQ$6=0,0,$AQ$6) -> 0 | W116: =IF($AR$6=0,0,$AR$6) -> 0 | Y116: =IF($AS$6=0,0,$AS$6) -> 0 | AA116: =IF($AT$6=0,0,$AT$6) -> 0 | AC116: =IF($AU$6=0,0,$AU$6) -> 0 | AE116: =IF($AV$6=0,0,$AV$6) -> 0
A117: =$A$53 -> Schwangerschaft/Mutterschaft Art. 15 GAV | F117: =$F$53 -> s | G117: =IF($AJ$7=0,0,$AJ$7) -> 0 | I117: =IF($AK$7=0,0,$AK$7) -> 0 | K117: =IF($AL$7=0,0,$AL$7) -> 0 | M117: =IF($AM$7=0,0,$AM$7) -> 0 | O117: =IF($AN$7=0,0,$AN$7) -> 0 | Q117: =IF($AO$7=0,0,$AO$7) -> 0 | S117: =IF($AP$7=0,0,$AP$7) -> 0 | U117: =IF($AQ$7=0,0,$AQ$7) -> 0 | W117: =IF($AR$7=0,0,$AR$7) -> 0 | Y117: =IF($AS$7=0,0,$AS$7) -> 0 | AA117: =IF($AT$7=0,0,$AT$7) -> 0 | AC117: =IF($AU$7=0,0,$AU$7) -> 0 | AE117: =IF($AV$7=0,0,$AV$7) -> 0
A118: =$A$54 -> Militär/Beförderung/Zivilschutz Art. 16 GAV | F118: =$F$54 -> m | G118: =IF($AJ$8=0,0,$AJ$8) -> 0 | I118: =IF($AK$8=0,0,$AK$8) -> 0 | K118: =IF($AL$8=0,0,$AL$8) -> 0 | M118: =IF($AM$8=0,0,$AM$8) -> 0 | O118: =IF($AN$8=0,0,$AN$8) -> 0 | Q118: =IF($AO$8=0,0,$AO$8) -> 0 | S118: =IF($AP$8=0,0,$AP$8) -> 0 | U118: =IF($AQ$8=0,0,$AQ$8) -> 0 | W118: =IF($AR$8=0,0,$AR$8) -> 0 | Y118: =IF($AS$8=0,0,$AS$8) -> 0 | AA118: =IF($AT$8=0,0,$AT$8) -> 0 | AC118: =IF($AU$8=0,0,$AU$8) -> 0 | AE118: =IF($AV$8=0,0,$AV$8) -> 0
A119: =$A$55 -> Kurzarbeit und Schlechtwetterausfälle | F119: =$F$55 -> ka | G119: =IF($AJ$11=0,0,$AJ$11) -> 0 | I119: =IF($AK$11=0,0,$AK$11) -> 0 | K119: =IF($AL$11=0,0,$AL$11) -> 0 | M119: =IF($AM$11=0,0,$AM$11) -> 0 | O119: =IF($AN$11=0,0,$AN$11) -> 0 | Q119: =IF($AO$11=0,0,$AO$11) -> 0 | S119: =IF($AP$11=0,0,$AP$11) -> 0 | U119: =IF($AQ$11=0,0,$AQ$11) -> 0 | W119: =IF($AR$11=0,0,$AR$11) -> 0 | Y119: =IF($AS$11=0,0,$AS$11) -> 0 | AA119: =IF($AT$11=0,0,$AT$11) -> 0 | AC119: =IF($AU$11=0,0,$AU$11) -> 0 | AE119: =IF($AV$11=0,0,$AV$11) -> 0
A120: =$A$56 -> Berufsschule | F120: =$F$56 -> bs | G120: =IF($AJ$9=0,0,$AJ$9) -> 0 | I120: =IF($AK$9=0,0,$AK$9) -> 0 | K120: =IF($AL$9=0,0,$AL$9) -> 0 | M120: =IF($AM$9=0,0,$AM$9) -> 0 | O120: =IF($AN$9=0,0,$AN$9) -> 0 | Q120: =IF($AO$9=0,0,$AO$9) -> 0 | S120: =IF($AP$9=0,0,$AP$9) -> 0 | U120: =IF($AQ$9=0,0,$AQ$9) -> 0 | W120: =IF($AR$9=0,0,$AR$9) -> 0 | Y120: =IF($AS$9=0,0,$AS$9) -> 0 | AA120: =IF($AT$9=0,0,$AT$9) -> 0 | AC120: =IF($AU$9=0,0,$AU$9) -> 0 | AE120: =IF($AV$9=0,0,$AV$9) -> 0
A121: =$A$57 -> Kurse | F121: =$F$57 -> ku | G121: =IF($AJ$10=0,0,$AJ$10) -> 0 | I121: =IF($AK$10=0,0,$AK$10) -> 0 | K121: =IF($AL$10=0,0,$AL$10) -> 0 | M121: =IF($AM$10=0,0,$AM$10) -> 0 | O121: =IF($AN$10=0,0,$AN$10) -> 0 | Q121: =IF($AO$10=0,0,$AO$10) -> 0 | S121: =IF($AP$10=0,0,$AP$10) -> 0 | U121: =IF($AQ$10=0,0,$AQ$10) -> 0 | W121: =IF($AR$10=0,0,$AR$10) -> 0 | Y121: =IF($AS$10=0,0,$AS$10) -> 0 | AA121: =IF($AT$10=0,0,$AT$10) -> 0 | AC121: =IF($AU$10=0,0,$AU$10) -> 0 | AE121: =IF($AV$10=0,0,$AV$10) -> 0
A122: =$A$58 -> Kompensations-Std | B122: =$B$58 -> aus Vorjahr | F122: =$F$58 -> kv | G122: =IF($AJ$12=0,0,$AJ$12) -> 0 | I122: =IF($AK$12=0,0,$AK$12) -> 0 | K122: =IF($AL$12=0,0,$AL$12) -> 0 | M122: =IF($AM$12=0,0,$AM$12) -> 0 | O122: =IF($AN$12=0,0,$AN$12) -> 0 | Q122: =IF($AO$12=0,0,$AO$12) -> 0 | S122: =IF($AP$12=0,0,$AP$12) -> 0 | U122: =IF($AQ$12=0,0,$AQ$12) -> 0 | W122: =IF($AR$12=0,0,$AR$12) -> 0 | AE122: =IF($AV$12=0,0,$AV$12) -> 0
B123: =$B$59 -> aus laufendem Jahr (Kontrolle) | F123: =$F$59 -> kj | G123: =IF($AJ$15=0,0,$AJ$15) -> 0 | I123: =IF($AK$15=0,0,$AK$15) -> 0 | K123: =IF($AL$15=0,0,$AL$15) -> 0 | M123: =IF($AM$15=0,0,$AM$15) -> 0 | O123: =IF($AN$15=0,0,$AN$15) -> 0 | Q123: =IF($AO$15=0,0,$AO$15) -> 0 | S123: =IF($AP$15=0,0,$AP$15) -> 0 | U123: =IF($AQ$15=0,0,$AQ$15) -> 0 | W123: =IF($AR$15=0,0,$AR$15) -> 0 | Y123: =IF($AS$15=0,0,$AS$15) -> 0 | AA123: =IF($AT$15=0,0,$AT$15) -> 0 | AC123: =IF($AU$15=0,0,$AU$15) -> 0 | AE123: =IF($AV$15=0,0,$AV$15) -> 0
A124: =$A$60 -> Auszahlung | B124: =$B$60 -> Stunden Vorjahressaldo | G124: =IF($AJ$19=0,0,$AJ$19) -> 0 | I124: =IF($AK$19=0,0,$AK$19) -> 0 | K124: =IF($AL$19=0,0,$AL$19) -> 0 | M124: =IF($AM$19=0,0,$AM$19) -> 0 | O124: =IF($AN$19=0,0,$AN$19) -> 0 | Q124: =IF($AO$19=0,0,$AO$19) -> 0 | S124: =IF($AP$19=0,0,$AP$19) -> 0 | U124: =IF($AQ$19=0,0,$AQ$19) -> 0 | W124: =IF($AR$19=0,0,$AR$19) -> 0 | AE124: =IF($AV$19=0,0,$AV$19) -> 0
A125: =$A$61 -> Differenz | B125: =$B$61 -> nach Kompensation und Auszahlung | G125: =IF(ROUND($P$4,3)=0,0,$P$4-SUM(G122+G124)) -> 0 | I125: =IF(ROUND(G125,3)=0,0,G125-(SUM(I124+I122))) -> 0 | K125: =IF(ROUND(I125,3)=0,0,I125-(SUM(K124+K122))) -> 0 | M125: =IF(ROUND(K125,3)=0,0,K125-(SUM(M124+M122))) -> 0 | O125: =IF(ROUND(M125,3)=0,0,M125-(SUM(O124+O122))) -> 0 | Q125: =IF(ROUND(O125,3)=0,0,O125-(SUM(Q124+Q122))) -> 0 | S125: =IF(ROUND(Q125,3)=0,0,Q125-(SUM(S124+S122))) -> 0 | U125: =IF(ROUND(S125,3)=0,0,S125-(SUM(U124+U122))) -> 0 | W125: =IF(ROUND(U125,3)=0,0,U125-(SUM(W124+W122))) -> 0 | Y125: =$Y$61 -> 
A126: =$A$62 -> Auszahlung | B126: =$B$62 -> Stunden laufendes Jahr | G126: =IF($AJ$20=0,0,$AJ$20) -> 0 | I126: =IF($AK$20=0,0,$AK$20) -> 0 | K126: =IF($AL$20=0,0,$AL$20) -> 0 | M126: =IF($AM$20=0,0,$AM$20) -> 0 | O126: =IF($AN$20=0,0,$AN$20) -> 0 | Q126: =IF($AO$20=0,0,$AO$20) -> 0 | S126: =IF($AP$20=0,0,$AP$20) -> 0 | U126: =IF($AQ$20=0,0,$AQ$20) -> 0 | W126: =IF($AR$20=0,0,$AR$20) -> 0 | Y126: =IF($AS$20=0,0,$AS$20) -> 0 | AA126: =IF($AT$20=0,0,$AT$20) -> 0 | AC126: =IF($AU$20=0,0,$AU$20) -> 0 | AE126: =IF($AV$20=0,0,$AV$20) -> 0
A127: =$A$63 -> Fehlstunden | B127: =$B$63 -> laufendes Jahr (Kontrolle) | F127: =$F$63 -> fe | G127: =IF($AJ$14=0,0,$AJ$14) -> 0 | I127: =IF($AK$14=0,0,$AK$14) -> 0 | K127: =IF($AL$14=0,0,$AL$14) -> 0 | M127: =IF($AM$14=0,0,$AM$14) -> 0 | O127: =IF($AN$14=0,0,$AN$14) -> 0 | Q127: =IF($AO$14=0,0,$AO$14) -> 0 | S127: =IF($AP$14=0,0,$AP$14) -> 0 | U127: =IF($AQ$14=0,0,$AQ$14) -> 0 | W127: =IF($AR$14=0,0,$AR$14) -> 0 | Y127: =IF($AS$14=0,0,$AS$14) -> 0 | AA127: =IF($AT$14=0,0,$AT$14) -> 0 | AC127: =IF($AU$14=0,0,$AU$14) -> 0 | AE127: =IF($AV$14=0,0,$AV$14) -> 0
A128: =$A$64 -> Total inkl. Zeitzuschläge | B128: =$B$64 -> Stunden produktiv und unproduktiv | G128: =IF($AG$36=0,0,$AG$36) -> 0 | I128: =IF($AG$99=0,0,$AG$99) -> 0 | K128: =IF($AG$163=0,0,$AG$163) -> 0 | M128: =IF($AG$227=0,0,$AG$227) -> 0 | O128: =IF($AG$291=0,0,$AG$291) -> 0 | Q128: =IF($AG$355=0,0,$AG$355) -> 0 | S128: =IF($AG$419=0,0,$AG$419) -> 0 | U128: =IF($AG$483=0,0,$AG$483) -> 0 | W128: =IF($AG$547=0,0,$AG$547) -> 0 | Y128: =IF($AG$611=0,0,$AG$611) -> 0 | AA128: =IF($AG$675=0,0,$AG$675) -> 0 | AC128: =IF($AG$739=0,0,$AG$739) -> 0 | AE128: =SUM($G$64:$AD$64) -> 0
A129: =$A$65 -> Vergleich | B129: =$B$65 -> Stunden zu Soll-Stunden (inkl. allfälli- ge Minusstunden Vorjahr) | G129: =$G$65 -> -168 | I129: =$I$65 -> -160 | K129: =$K$65 -> -184 | M129: =$M$65 -> -168 | O129: =$O$65 -> -176 | Q129: =$Q$65 -> -176 | S129: =$S$65 -> -168 | U129: =$U$65 -> -184 | W129: =$W$65 -> -176 | Y129: =$Y$65 -> -168 | AA129: =$AA$65 -> -176 | AC129: =$AC$65 -> -176 | AE129: =$AE$65 -> -2080
B130: =$B$66 -> Stunden zu Soll-Stunden (kumuliert) | G130: =$G$66 -> -168 | I130: =$I$66 -> -328 | K130: =$K$66 -> -512 | M130: =$M$66 -> -680 | O130: =$O$66 -> -856 | Q130: =$Q$66 -> -1032 | S130: =$S$66 -> -1200 | U130: =$U$66 -> -1384 | W130: =$W$66 -> -1560 | Y130: =$Y$66 -> -1728 | AA130: =$AA$66 -> -1904 | AC130: =$AC$66 -> -2080 | AE130: =$AE$66 -> 0
A131: =$A$67 -> Ferienkontrolle | B131: =$B$67 -> Ferienguthaben Vorjahr | G131: =IF($AA$4=0,0,$AA$4) -> 0 | I131: =$I$67 -> Ferienguthaben nach Art. 12.1 GAV | M131: =IF($AA$5=0,0,$AA$5) -> 0 | O131: =$O$67 -> Ferienguthaben total | S131: =SUM(G131+M131) -> 0 | U131: =$U$67 -> Ferien bezogen | Y131: =IF($AV$4=0,0,$AV$4) -> 0 | AA131: =$AA$67 -> Aktuelles Ferienguthaben | AE131: =IF(S131=0,0,S131-Y131) -> 0
A134: =$A$3 -> Mitarbeiter/In | B134: =IF($B$3="","",$B$3) -> Muster Peter | AF134: =AF3 -> 0
A135: =$A$4 -> Anstellung % | B135: =$AL$46 -> 100 | D135: =Labels!B91 -> im März
A136: =$A$5 -> Saldo für das Jahr | D136: =IF($AE$65=0,0,$AE$65) -> -2080
A137: =TEXT(DATE(YEAR(AP29),MONTH(AP29)+2,1),"MMMM"&Labels!B13) -> März | B137: =$B$9 -> Saldo Monat + / - | F137: =(AG139-(SUM(AG140:AG154)-AE162))*-1 -> -184 | K137: =$K$9 -> = | L137: =$L$9 -> Gelbe Felder müssen ausgefüllt werden (die übrigen werden automatisch berechnet) | AG137: =COUNT(B140:AF140)&" "&Labels!$B$63 -> 23 Tage
A138: =$A$10 -> Tag | B138: =IF(MOD($AE$96,4)>=1,$AC$74+1,$AC$74+2) -> 2022-03-01 | C138: =B138+1 -> 2022-03-02 | D138: 2022-03-03 | E138: 2022-03-04 | F138: 2022-03-05 | G138: 2022-03-06 | H138: 2022-03-07 | I138: 2022-03-08 | J138: 2022-03-09 | K138: 2022-03-10 | L138: 2022-03-11 | M138: 2022-03-12 | N138: 2022-03-13 | O138: 2022-03-14 | P138: 2022-03-15 | Q138: 2022-03-16 | R138: 2022-03-17 | S138: 2022-03-18 | T138: 2022-03-19 | U138: 2022-03-20 | V138: 2022-03-21 | W138: 2022-03-22 | X138: 2022-03-23 | Y138: 2022-03-24 | Z138: 2022-03-25 | AA138: 2022-03-26 | AB138: 2022-03-27 | AC138: 2022-03-28 | AD138: 2022-03-29 | AE138: 2022-03-30 | AF138: 2022-03-31
A139: =$A$11 -> Kalenderwoche | B139: =IF(B138="","",TRUNC((B138-DATE(YEAR(B138+3-MOD(B138-2,7)),1,MOD(B138-2,7)-9))/7)) -> 9 | C139: 9 | D139: 9 | E139: 9 | F139: 9 | G139: 9 | H139: 10 | I139: 10 | J139: 10 | K139: 10 | L139: 10 | M139: 10 | N139: 10 | O139: 11 | P139: 11 | Q139: 11 | R139: 11 | S139: 11 | T139: 11 | U139: 11 | V139: 12 | W139: 12 | X139: 12 | Y139: 12 | Z139: 12 | AA139: 12 | AB139: 12 | AC139: 13 | AD139: 13 | AE139: 13 | AF139: 13 | AG139: =SUM(B140:AF140) -> 184
A140: =$A$12 -> Sollstunden | B140: =IF(AND(MOD(B138,7)>=2,SUMPRODUCT(($AM$56:$AQ$56=MOD(B138,7))*$AM$46:$AQ$46)),($J$7*5/$AR$46)*$B$135%,"") -> 8 | C140: =IF(AND(MOD(C138,7)>=2,SUMPRODUCT(($AM$56:$AQ$56=MOD(C138,7))*$AM$46:$AQ$46)),($J$7*5/$AR$46)*$B$135%,"") -> 8 | D140: =IF(AND(MOD(D138,7)>=2,SUMPRODUCT(($AM$56:$AQ$56=MOD(D138,7))*$AM$46:$AQ$46)),($J$7*5/$AR$46)*$B$135%,"") -> 8 | E140: =IF(AND(MOD(E138,7)>=2,SUMPRODUCT(($AM$56:$AQ$56=MOD(E138,7))*$AM$46:$AQ$46)),($J$7*5/$AR$46)*$B$135%,"") -> 8 | F140: =IF(AND(MOD(F138,7)>=2,SUMPRODUCT(($AM$56:$AQ$56=MOD(F138,7))*$AM$46:$AQ$46)),($J$7*5/$AR$46)*$B$135%,"") ->  | G140: =IF(AND(MOD(G138,7)>=2,SUMPRODUCT(($AM$56:$AQ$56=MOD(G138,7))*$AM$46:$AQ$46)),($J$7*5/$AR$46)*$B$135%,"") ->  | H140: =IF(AND(MOD(H138,7)>=2,SUMPRODUCT(($AM$56:$AQ$56=MOD(H138,7))*$AM$46:$AQ$46)),($J$7*5/$AR$46)*$B$135%,"") -> 8 | I140: =IF(AND(MOD(I138,7)>=2,SUMPRODUCT(($AM$56:$AQ$56=MOD(I138,7))*$AM$46:$AQ$46)),($J$7*5/$AR$46)*$B$135%,"") -> 8 | J140: =IF(AND(MOD(J138,7)>=2,SUMPRODUCT(($AM$56:$AQ$56=MOD(J138,7))*$AM$46:$AQ$46)),($J$7*5/$AR$46)*$B$135%,"") -> 8 | K140: =IF(AND(MOD(K138,7)>=2,SUMPRODUCT(($AM$56:$AQ$56=MOD(K138,7))*$AM$46:$AQ$46)),($J$7*5/$AR$46)*$B$135%,"") -> 8 | L140: =IF(AND(MOD(L138,7)>=2,SUMPRODUCT(($AM$56:$AQ$56=MOD(L138,7))*$AM$46:$AQ$46)),($J$7*5/$AR$46)*$B$135%,"") -> 8 | M140: =IF(AND(MOD(M138,7)>=2,SUMPRODUCT(($AM$56:$AQ$56=MOD(M138,7))*$AM$46:$AQ$46)),($J$7*5/$AR$46)*$B$135%,"") ->  | N140: =IF(AND(MOD(N138,7)>=2,SUMPRODUCT(($AM$56:$AQ$56=MOD(N138,7))*$AM$46:$AQ$46)),($J$7*5/$AR$46)*$B$135%,"") ->  | O140: =IF(AND(MOD(O138,7)>=2,SUMPRODUCT(($AM$56:$AQ$56=MOD(O138,7))*$AM$46:$AQ$46)),($J$7*5/$AR$46)*$B$135%,"") -> 8 | P140: =IF(AND(MOD(P138,7)>=2,SUMPRODUCT(($AM$56:$AQ$56=MOD(P138,7))*$AM$46:$AQ$46)),($J$7*5/$AR$46)*$B$135%,"") -> 8 | Q140: =IF(AND(MOD(Q138,7)>=2,SUMPRODUCT(($AM$56:$AQ$56=MOD(Q138,7))*$AM$46:$AQ$46)),($J$7*5/$AR$46)*$B$135%,"") -> 8 | R140: =IF(AND(MOD(R138,7)>=2,SUMPRODUCT(($AM$56:$AQ$56=MOD(R138,7))*$AM$46:$AQ$46)),($J$7*5/$AR$46)*$B$135%,"") -> 8 | S140: =IF(AND(MOD(S138,7)>=2,SUMPRODUCT(($AM$56:$AQ$56=MOD(S138,7))*$AM$46:$AQ$46)),($J$7*5/$AR$46)*$B$135%,"") -> 8 | T140: =IF(AND(MOD(T138,7)>=2,SUMPRODUCT(($AM$56:$AQ$56=MOD(T138,7))*$AM$46:$AQ$46)),($J$7*5/$AR$46)*$B$135%,"") ->  | U140: =IF(AND(MOD(U138,7)>=2,SUMPRODUCT(($AM$56:$AQ$56=MOD(U138,7))*$AM$46:$AQ$46)),($J$7*5/$AR$46)*$B$135%,"") ->  | V140: =IF(AND(MOD(V138,7)>=2,SUMPRODUCT(($AM$56:$AQ$56=MOD(V138,7))*$AM$46:$AQ$46)),($J$7*5/$AR$46)*$B$135%,"") -> 8 | W140: =IF(AND(MOD(W138,7)>=2,SUMPRODUCT(($AM$56:$AQ$56=MOD(W138,7))*$AM$46:$AQ$46)),($J$7*5/$AR$46)*$B$135%,"") -> 8 | X140: =IF(AND(MOD(X138,7)>=2,SUMPRODUCT(($AM$56:$AQ$56=MOD(X138,7))*$AM$46:$AQ$46)),($J$7*5/$AR$46)*$B$135%,"") -> 8 | Y140: =IF(AND(MOD(Y138,7)>=2,SUMPRODUCT(($AM$56:$AQ$56=MOD(Y138,7))*$AM$46:$AQ$46)),($J$7*5/$AR$46)*$B$135%,"") -> 8 | Z140: =IF(AND(MOD(Z138,7)>=2,SUMPRODUCT(($AM$56:$AQ$56=MOD(Z138,7))*$AM$46:$AQ$46)),($J$7*5/$AR$46)*$B$135%,"") -> 8 | AA140: =IF(AND(MOD(AA138,7)>=2,SUMPRODUCT(($AM$56:$AQ$56=MOD(AA138,7))*$AM$46:$AQ$46)),($J$7*5/$AR$46)*$B$135%,"") ->  | AB140: =IF(AND(MOD(AB138,7)>=2,SUMPRODUCT(($AM$56:$AQ$56=MOD(AB138,7))*$AM$46:$AQ$46)),($J$7*5/$AR$46)*$B$135%,"") ->  | AC140: =IF(AND(MOD(AC138,7)>=2,SUMPRODUCT(($AM$56:$AQ$56=MOD(AC138,7))*$AM$46:$AQ$46)),($J$7*5/$AR$46)*$B$135%,"") -> 8 | AD140: =IF(AND(MOD(AD138,7)>=2,SUMPRODUCT(($AM$56:$AQ$56=MOD(AD138,7))*$AM$46:$AQ$46)),($J$7*5/$AR$46)*$B$135%,"") -> 8 | AE140: =IF(AND(MOD(AE138,7)>=2,SUMPRODUCT(($AM$56:$AQ$56=MOD(AE138,7))*$AM$46:$AQ$46)),($J$7*5/$AR$46)*$B$135%,"") -> 8 | AF140: =IF(AND(MOD(AF138,7)>=2,SUMPRODUCT(($AM$56:$AQ$56=MOD(AF138,7))*$AM$46:$AQ$46)),($J$7*5/$AR$46)*$B$135%,"") -> 8 | AG140: =SUM(AL3:AL13) -> 0
A141: =$A$13 -> Absenz in Std | B141: =B877 -> 0 | C141: =C877 -> 0 | D141: 0 | E141: 0 | F141: 0 | G141: 0 | H141: 0 | I141: 0 | J141: 0 | K141: 0 | L141: 0 | M141: 0 | N141: 0 | O141: 0 | P141: 0 | Q141: 0 | R141: 0 | S141: 0 | T141: 0 | U141: 0 | V141: 0 | W141: 0 | X141: 0 | Y141: 0 | Z141: 0 | AA141: 0 | AB141: 0 | AC141: 0 | AD141: 0 | AE141: 0 | AF141: 0
A142: =$A$14 -> Code | B142: =IF(B877<>0,IF(MAX(B864:B876)<B877,Labels!$B$163,INDEX($AH$863:$AH$875,MATCH(MAX(B864:B876),B864:B876,0))),"") ->  | C142: =IF(C877<>0,IF(MAX(C864:C876)<C877,Labels!$B$163,INDEX($AH$863:$AH$875,MATCH(MAX(C864:C876),C864:C876,0))),"") ->  | D142: =IF(D877<>0,IF(MAX(D864:D876)<D877,Labels!$B$163,INDEX($AH$863:$AH$875,MATCH(MAX(D864:D876),D864:D876,0))),"") ->  | E142: =IF(E877<>0,IF(MAX(E864:E876)<E877,Labels!$B$163,INDEX($AH$863:$AH$875,MATCH(MAX(E864:E876),E864:E876,0))),"") ->  | F142: =IF(F877<>0,IF(MAX(F864:F876)<F877,Labels!$B$163,INDEX($AH$863:$AH$875,MATCH(MAX(F864:F876),F864:F876,0))),"") ->  | G142: =IF(G877<>0,IF(MAX(G864:G876)<G877,Labels!$B$163,INDEX($AH$863:$AH$875,MATCH(MAX(G864:G876),G864:G876,0))),"") ->  | H142: =IF(H877<>0,IF(MAX(H864:H876)<H877,Labels!$B$163,INDEX($AH$863:$AH$875,MATCH(MAX(H864:H876),H864:H876,0))),"") ->  | I142: =IF(I877<>0,IF(MAX(I864:I876)<I877,Labels!$B$163,INDEX($AH$863:$AH$875,MATCH(MAX(I864:I876),I864:I876,0))),"") ->  | J142: =IF(J877<>0,IF(MAX(J864:J876)<J877,Labels!$B$163,INDEX($AH$863:$AH$875,MATCH(MAX(J864:J876),J864:J876,0))),"") ->  | K142: =IF(K877<>0,IF(MAX(K864:K876)<K877,Labels!$B$163,INDEX($AH$863:$AH$875,MATCH(MAX(K864:K876),K864:K876,0))),"") ->  | L142: =IF(L877<>0,IF(MAX(L864:L876)<L877,Labels!$B$163,INDEX($AH$863:$AH$875,MATCH(MAX(L864:L876),L864:L876,0))),"") ->  | M142: =IF(M877<>0,IF(MAX(M864:M876)<M877,Labels!$B$163,INDEX($AH$863:$AH$875,MATCH(MAX(M864:M876),M864:M876,0))),"") ->  | N142: =IF(N877<>0,IF(MAX(N864:N876)<N877,Labels!$B$163,INDEX($AH$863:$AH$875,MATCH(MAX(N864:N876),N864:N876,0))),"") ->  | O142: =IF(O877<>0,IF(MAX(O864:O876)<O877,Labels!$B$163,INDEX($AH$863:$AH$875,MATCH(MAX(O864:O876),O864:O876,0))),"") ->  | P142: =IF(P877<>0,IF(MAX(P864:P876)<P877,Labels!$B$163,INDEX($AH$863:$AH$875,MATCH(MAX(P864:P876),P864:P876,0))),"") ->  | Q142: =IF(Q877<>0,IF(MAX(Q864:Q876)<Q877,Labels!$B$163,INDEX($AH$863:$AH$875,MATCH(MAX(Q864:Q876),Q864:Q876,0))),"") ->  | R142: =IF(R877<>0,IF(MAX(R864:R876)<R877,Labels!$B$163,INDEX($AH$863:$AH$875,MATCH(MAX(R864:R876),R864:R876,0))),"") ->  | S142: =IF(S877<>0,IF(MAX(S864:S876)<S877,Labels!$B$163,INDEX($AH$863:$AH$875,MATCH(MAX(S864:S876),S864:S876,0))),"") ->  | T142: =IF(T877<>0,IF(MAX(T864:T876)<T877,Labels!$B$163,INDEX($AH$863:$AH$875,MATCH(MAX(T864:T876),T864:T876,0))),"") ->  | U142: =IF(U877<>0,IF(MAX(U864:U876)<U877,Labels!$B$163,INDEX($AH$863:$AH$875,MATCH(MAX(U864:U876),U864:U876,0))),"") ->  | V142: =IF(V877<>0,IF(MAX(V864:V876)<V877,Labels!$B$163,INDEX($AH$863:$AH$875,MATCH(MAX(V864:V876),V864:V876,0))),"") ->  | W142: =IF(W877<>0,IF(MAX(W864:W876)<W877,Labels!$B$163,INDEX($AH$863:$AH$875,MATCH(MAX(W864:W876),W864:W876,0))),"") ->  | X142: =IF(X877<>0,IF(MAX(X864:X876)<X877,Labels!$B$163,INDEX($AH$863:$AH$875,MATCH(MAX(X864:X876),X864:X876,0))),"") ->  | Y142: =IF(Y877<>0,IF(MAX(Y864:Y876)<Y877,Labels!$B$163,INDEX($AH$863:$AH$875,MATCH(MAX(Y864:Y876),Y864:Y876,0))),"") ->  | Z142: =IF(Z877<>0,IF(MAX(Z864:Z876)<Z877,Labels!$B$163,INDEX($AH$863:$AH$875,MATCH(MAX(Z864:Z876),Z864:Z876,0))),"") ->  | AA142: =IF(AA877<>0,IF(MAX(AA864:AA876)<AA877,Labels!$B$163,INDEX($AH$863:$AH$875,MATCH(MAX(AA864:AA876),AA864:AA876,0))),"") ->  | AB142: =IF(AB877<>0,IF(MAX(AB864:AB876)<AB877,Labels!$B$163,INDEX($AH$863:$AH$875,MATCH(MAX(AB864:AB876),AB864:AB876,0))),"") ->  | AC142: =IF(AC877<>0,IF(MAX(AC864:AC876)<AC877,Labels!$B$163,INDEX($AH$863:$AH$875,MATCH(MAX(AC864:AC876),AC864:AC876,0))),"") ->  | AD142: =IF(AD877<>0,IF(MAX(AD864:AD876)<AD877,Labels!$B$163,INDEX($AH$863:$AH$875,MATCH(MAX(AD864:AD876),AD864:AD876,0))),"") ->  | AE142: =IF(AE877<>0,IF(MAX(AE864:AE876)<AE877,Labels!$B$163,INDEX($AH$863:$AH$875,MATCH(MAX(AE864:AE876),AE864:AE876,0))),"") ->  | AF142: =IF(AF877<>0,IF(MAX(AF864:AF876)<AF877,Labels!$B$163,INDEX($AH$863:$AH$875,MATCH(MAX(AF864:AF876),AF864:AF876,0))),"") ->  | AG142: =SUM(B143:AF143) -> 0
A143: =$A$15 -> 00.00-06.00h | AG143: =SUM(B144:AF144) -> 0
A144: =$A$16 -> 06.00-20.00h | AG144: =SUM(B145:AF145) -> 0 | AH144: [0]
A145: =$A$17 -> 20.00-24.00h
A146: =$A$18 -> Feiertag "ft" | B146: =IF(WEEKDAY(B138,2)<=6,IF(KALENDER!E7="x",Labels!$B$118,""),"") ->  | C146: =IF(WEEKDAY(C138,2)<=6,IF(KALENDER!F7="x",Labels!$B$118,""),"") ->  | D146: =IF(WEEKDAY(D138,2)<=6,IF(KALENDER!G7="x",Labels!$B$118,""),"") ->  | E146: =IF(WEEKDAY(E138,2)<=6,IF(KALENDER!H7="x",Labels!$B$118,""),"") ->  | F146: =IF(WEEKDAY(F138,2)<=6,IF(KALENDER!I7="x",Labels!$B$118,""),"") ->  | G146: =IF(WEEKDAY(G138,2)<=6,IF(KALENDER!J7="x",Labels!$B$118,""),"") ->  | H146: =IF(WEEKDAY(H138,2)<=6,IF(KALENDER!K7="x",Labels!$B$118,""),"") ->  | I146: =IF(WEEKDAY(I138,2)<=6,IF(KALENDER!L7="x",Labels!$B$118,""),"") ->  | J146: =IF(WEEKDAY(J138,2)<=6,IF(KALENDER!M7="x",Labels!$B$118,""),"") ->  | K146: =IF(WEEKDAY(K138,2)<=6,IF(KALENDER!N7="x",Labels!$B$118,""),"") ->  | L146: =IF(WEEKDAY(L138,2)<=6,IF(KALENDER!O7="x",Labels!$B$118,""),"") ->  | M146: =IF(WEEKDAY(M138,2)<=6,IF(KALENDER!P7="x",Labels!$B$118,""),"") ->  | N146: =IF(WEEKDAY(N138,2)<=6,IF(KALENDER!Q7="x",Labels!$B$118,""),"") ->  | O146: =IF(WEEKDAY(O138,2)<=6,IF(KALENDER!R7="x",Labels!$B$118,""),"") ->  | P146: =IF(WEEKDAY(P138,2)<=6,IF(KALENDER!S7="x",Labels!$B$118,""),"") ->  | Q146: =IF(WEEKDAY(Q138,2)<=6,IF(KALENDER!T7="x",Labels!$B$118,""),"") ->  | R146: =IF(WEEKDAY(R138,2)<=6,IF(KALENDER!U7="x",Labels!$B$118,""),"") ->  | S146: =IF(WEEKDAY(S138,2)<=6,IF(KALENDER!V7="x",Labels!$B$118,""),"") ->  | T146: =IF(WEEKDAY(T138,2)<=6,IF(KALENDER!W7="x",Labels!$B$118,""),"") ->  | U146: =IF(WEEKDAY(U138,2)<=6,IF(KALENDER!X7="x",Labels!$B$118,""),"") ->  | V146: =IF(WEEKDAY(V138,2)<=6,IF(KALENDER!Y7="x",Labels!$B$118,""),"") ->  | W146: =IF(WEEKDAY(W138,2)<=6,IF(KALENDER!Z7="x",Labels!$B$118,""),"") ->  | X146: =IF(WEEKDAY(X138,2)<=6,IF(KALENDER!AA7="x",Labels!$B$118,""),"") ->  | Y146: =IF(WEEKDAY(Y138,2)<=6,IF(KALENDER!AB7="x",Labels!$B$118,""),"") ->  | Z146: =IF(WEEKDAY(Z138,2)<=6,IF(KALENDER!AC7="x",Labels!$B$118,""),"") ->  | AA146: =IF(WEEKDAY(AA138,2)<=6,IF(KALENDER!AD7="x",Labels!$B$118,""),"") ->  | AB146: =IF(WEEKDAY(AB138,2)<=6,IF(KALENDER!AE7="x",Labels!$B$118,""),"") ->  | AC146: =IF(WEEKDAY(AC138,2)<=6,IF(KALENDER!AF7="x",Labels!$B$118,""),"") ->  | AD146: =IF(WEEKDAY(AD138,2)<=6,IF(KALENDER!AG7="x",Labels!$B$118,""),"") ->  | AE146: =IF(WEEKDAY(AE138,2)<=6,IF(KALENDER!AH7="x",Labels!$B$118,""),"") ->  | AF146: =IF(WEEKDAY(AF138,2)<=6,IF(KALENDER!AI7="x",Labels!$B$118,""),"") ->  | AG146: =SUM(B147:AF147) -> 0
A147: =$A$19 -> Gutschrift "ft" | B147: =IF(AND(B146=Labels!$B$118,WEEKDAY(B138,2)<6,B$140<>""),($J$7*5/$AR$46)*$B$135%,"") ->  | C147: =IF(AND(C146=Labels!$B$118,WEEKDAY(C138,2)<6,C$140<>""),($J$7*5/$AR$46)*$B$135%,"") ->  | D147: =IF(AND(D146=Labels!$B$118,WEEKDAY(D138,2)<6,D$140<>""),($J$7*5/$AR$46)*$B$135%,"") ->  | E147: =IF(AND(E146=Labels!$B$118,WEEKDAY(E138,2)<6,E$140<>""),($J$7*5/$AR$46)*$B$135%,"") ->  | F147: =IF(AND(F146=Labels!$B$118,WEEKDAY(F138,2)<6,F$140<>""),($J$7*5/$AR$46)*$B$135%,"") ->  | G147: =IF(AND(G146=Labels!$B$118,WEEKDAY(G138,2)<6,G$140<>""),($J$7*5/$AR$46)*$B$135%,"") ->  | H147: =IF(AND(H146=Labels!$B$118,WEEKDAY(H138,2)<6,H$140<>""),($J$7*5/$AR$46)*$B$135%,"") ->  | I147: =IF(AND(I146=Labels!$B$118,WEEKDAY(I138,2)<6,I$140<>""),($J$7*5/$AR$46)*$B$135%,"") ->  | J147: =IF(AND(J146=Labels!$B$118,WEEKDAY(J138,2)<6,J$140<>""),($J$7*5/$AR$46)*$B$135%,"") ->  | K147: =IF(AND(K146=Labels!$B$118,WEEKDAY(K138,2)<6,K$140<>""),($J$7*5/$AR$46)*$B$135%,"") ->  | L147: =IF(AND(L146=Labels!$B$118,WEEKDAY(L138,2)<6,L$140<>""),($J$7*5/$AR$46)*$B$135%,"") ->  | M147: =IF(AND(M146=Labels!$B$118,WEEKDAY(M138,2)<6,M$140<>""),($J$7*5/$AR$46)*$B$135%,"") ->  | N147: =IF(AND(N146=Labels!$B$118,WEEKDAY(N138,2)<6,N$140<>""),($J$7*5/$AR$46)*$B$135%,"") ->  | O147: =IF(AND(O146=Labels!$B$118,WEEKDAY(O138,2)<6,O$140<>""),($J$7*5/$AR$46)*$B$135%,"") ->  | P147: =IF(AND(P146=Labels!$B$118,WEEKDAY(P138,2)<6,P$140<>""),($J$7*5/$AR$46)*$B$135%,"") ->  | Q147: =IF(AND(Q146=Labels!$B$118,WEEKDAY(Q138,2)<6,Q$140<>""),($J$7*5/$AR$46)*$B$135%,"") ->  | R147: =IF(AND(R146=Labels!$B$118,WEEKDAY(R138,2)<6,R$140<>""),($J$7*5/$AR$46)*$B$135%,"") ->  | S147: =IF(AND(S146=Labels!$B$118,WEEKDAY(S138,2)<6,S$140<>""),($J$7*5/$AR$46)*$B$135%,"") ->  | T147: =IF(AND(T146=Labels!$B$118,WEEKDAY(T138,2)<6,T$140<>""),($J$7*5/$AR$46)*$B$135%,"") ->  | U147: =IF(AND(U146=Labels!$B$118,WEEKDAY(U138,2)<6,U$140<>""),($J$7*5/$AR$46)*$B$135%,"") ->  | V147: =IF(AND(V146=Labels!$B$118,WEEKDAY(V138,2)<6,V$140<>""),($J$7*5/$AR$46)*$B$135%,"") ->  | W147: =IF(AND(W146=Labels!$B$118,WEEKDAY(W138,2)<6,W$140<>""),($J$7*5/$AR$46)*$B$135%,"") ->  | X147: =IF(AND(X146=Labels!$B$118,WEEKDAY(X138,2)<6,X$140<>""),($J$7*5/$AR$46)*$B$135%,"") ->  | Y147: =IF(AND(Y146=Labels!$B$118,WEEKDAY(Y138,2)<6,Y$140<>""),($J$7*5/$AR$46)*$B$135%,"") ->  | Z147: =IF(AND(Z146=Labels!$B$118,WEEKDAY(Z138,2)<6,Z$140<>""),($J$7*5/$AR$46)*$B$135%,"") ->  | AA147: =IF(AND(AA146=Labels!$B$118,WEEKDAY(AA138,2)<6,AA$140<>""),($J$7*5/$AR$46)*$B$135%,"") ->  | AB147: =IF(AND(AB146=Labels!$B$118,WEEKDAY(AB138,2)<6,AB$140<>""),($J$7*5/$AR$46)*$B$135%,"") ->  | AC147: =IF(AND(AC146=Labels!$B$118,WEEKDAY(AC138,2)<6,AC$140<>""),($J$7*5/$AR$46)*$B$135%,"") ->  | AD147: =IF(AND(AD146=Labels!$B$118,WEEKDAY(AD138,2)<6,AD$140<>""),($J$7*5/$AR$46)*$B$135%,"") ->  | AE147: =IF(AND(AE146=Labels!$B$118,WEEKDAY(AE138,2)<6,AE$140<>""),($J$7*5/$AR$46)*$B$135%,"") ->  | AF147: =IF(AND(AF146=Labels!$B$118,WEEKDAY(AF138,2)<6,AF$140<>""),($J$7*5/$AR$46)*$B$135%,"") -> 
A148: =$A$20 -> Tagestotal | B148: =SUM(B143:B145) -> 0 | C148: =SUM(C143:C145) -> 0 | D148: 0 | E148: 0 | F148: 0 | G148: 0 | H148: 0 | I148: 0 | J148: 0 | K148: 0 | L148: 0 | M148: 0 | N148: 0 | O148: 0 | P148: 0 | Q148: 0 | R148: 0 | S148: 0 | T148: 0 | U148: 0 | V148: 0 | W148: 0 | X148: 0 | Y148: 0 | Z148: 0 | AA148: 0 | AB148: 0 | AC148: 0 | AD148: 0 | AE148: 0 | AF148: 0
A149: =$A$21 -> .
A150: =$A$22 -> .
A151: =$A$23 -> Monatsübergang | B151: =IF(WEEKDAY(B138)=1,TEXT(B138-1,"MMM"&Labels!B13),"") ->  | AF151: =IF(AND(WEEKDAY(AF138)>1,WEEKDAY(AF138)<7),TEXT(DATE($B$5,MONTH(AF138)+1,1),"MMM"&Labels!B13),"") -> Apr
A152: =$A$24 -> Wochentotal | B152: =IF(WEEKDAY(B138)=7,SUMIF($B75:$AF75,B139,$B84:$AF84)+SUMIF($B139:$AF139,B139,$B148:$AF148)+SUMIF($B203:$AF203,B139,$B212:$AF212),B151) ->  | C152: =IF(WEEKDAY(C138)=7,SUMIF($B75:$AF75,C139,$B84:$AF84)+SUMIF($B139:$AF139,C139,$B148:$AF148)+SUMIF($B203:$AF203,C139,$B212:$AF212),"") ->  | F152: 0 | M152: 0 | T152: 0 | AA152: 0 | AF152: =IF(WEEKDAY(AF138)=7,SUMIF($B75:$AF75,AF139,$B84:$AF84)+SUMIF($B139:$AF139,AF139,$B148:$AF148)+SUMIF($B203:$AF203,AF139,$B212:$AF212),AF151) -> Apr | AG152: =SUM(B153:AF153) -> 0
A153: =$A$25 -> Zeitzuschlag 1) | B153: =IF(B160="FALSCH","",B160) ->  | C153: =IF(C160="FALSCH","",C160) ->  | AG153: 0 | AH153: [1]
A154: =$A$26 -> Zeitzuschlag 2) | B154: =IF((B143+B145)=0,"",SUM(B143,B145)) ->  | C154: =IF((C143+C145)=0,"",SUM(C143,C145)) ->  | AG154: =SUM(B155:AF155) -> 0 | AH154: [2]
A155: =$A$27 -> Zeitzuschlag 3) | B155: =SUM(B156:B159) -> 0 | C155: =SUM(C156:C159) -> 0 | D155: 0 | E155: 0 | F155: 0 | G155: 0 | H155: 0 | I155: 0 | J155: 0 | K155: 0 | L155: 0 | M155: 0 | N155: 0 | O155: 0 | P155: 0 | Q155: 0 | R155: 0 | S155: 0 | T155: 0 | U155: 0 | V155: 0 | W155: 0 | X155: 0 | Y155: 0 | Z155: 0 | AA155: 0 | AB155: 0 | AC155: 0 | AD155: 0 | AE155: 0 | AF155: 0 | AG155: 0 | AH155: [3]
A156: =$A$28 -> Sonntag Tag | B156: =IF(WEEKDAY(B138)=1,B144,"") ->  | C156: =IF(WEEKDAY(C138)=1,C144,"") ->  | G156: 0 | N156: 0 | U156: 0 | AB156: 0 | AG156: 0 | AH156: [4]
A157: =$A$29 -> Sonntag Nacht | B157: =IF(WEEKDAY(B138)=1,SUM(B143+B145),"") ->  | C157: =IF(WEEKDAY(C138)=1,SUM(C143+C145),"") ->  | G157: 0 | N157: 0 | U157: 0 | AB157: 0 | AG157: 0 | AH157: [5]
A158: =$A$30 -> ft-Tazuschlag | B158: =IF(B146=Labels!$B$118,B144,"") ->  | C158: =IF(C146=Labels!$B$118,C144,"") ->  | D158: =IF(D146=Labels!$B$118,D144,"") ->  | E158: =IF(E146=Labels!$B$118,E144,"") ->  | F158: =IF(F146=Labels!$B$118,F144,"") ->  | G158: =IF(G146=Labels!$B$118,G144,"") ->  | H158: =IF(H146=Labels!$B$118,H144,"") ->  | I158: =IF(I146=Labels!$B$118,I144,"") ->  | J158: =IF(J146=Labels!$B$118,J144,"") ->  | K158: =IF(K146=Labels!$B$118,K144,"") ->  | L158: =IF(L146=Labels!$B$118,L144,"") ->  | M158: =IF(M146=Labels!$B$118,M144,"") ->  | N158: =IF(N146=Labels!$B$118,N144,"") ->  | O158: =IF(O146=Labels!$B$118,O144,"") ->  | P158: =IF(P146=Labels!$B$118,P144,"") ->  | Q158: =IF(Q146=Labels!$B$118,Q144,"") ->  | R158: =IF(R146=Labels!$B$118,R144,"") ->  | S158: =IF(S146=Labels!$B$118,S144,"") ->  | T158: =IF(T146=Labels!$B$118,T144,"") ->  | U158: =IF(U146=Labels!$B$118,U144,"") ->  | V158: =IF(V146=Labels!$B$118,V144,"") ->  | W158: =IF(W146=Labels!$B$118,W144,"") ->  | X158: =IF(X146=Labels!$B$118,X144,"") ->  | Y158: =IF(Y146=Labels!$B$118,Y144,"") ->  | Z158: =IF(Z146=Labels!$B$118,Z144,"") ->  | AA158: =IF(AA146=Labels!$B$118,AA144,"") ->  | AB158: =IF(AB146=Labels!$B$118,AB144,"") ->  | AC158: =IF(AC146=Labels!$B$118,AC144,"") ->  | AD158: =IF(AD146=Labels!$B$118,AD144,"") ->  | AE158: =IF(AE146=Labels!$B$118,AE144,"") ->  | AF158: =IF(AF146=Labels!$B$118,AF144,"") ->  | AG158: 0 | AH158: [6]
A159: =$A$31 -> ft-Nazuschlag | B159: =IF(B146=Labels!$B$118,SUM(B143,B145),"") ->  | C159: =IF(C146=Labels!$B$118,SUM(C143,C145),"") ->  | D159: =IF(D146=Labels!$B$118,SUM(D143,D145),"") ->  | E159: =IF(E146=Labels!$B$118,SUM(E143,E145),"") ->  | F159: =IF(F146=Labels!$B$118,SUM(F143,F145),"") ->  | G159: =IF(G146=Labels!$B$118,SUM(G143,G145),"") ->  | H159: =IF(H146=Labels!$B$118,SUM(H143,H145),"") ->  | I159: =IF(I146=Labels!$B$118,SUM(I143,I145),"") ->  | J159: =IF(J146=Labels!$B$118,SUM(J143,J145),"") ->  | K159: =IF(K146=Labels!$B$118,SUM(K143,K145),"") ->  | L159: =IF(L146=Labels!$B$118,SUM(L143,L145),"") ->  | M159: =IF(M146=Labels!$B$118,SUM(M143,M145),"") ->  | N159: =IF(N146=Labels!$B$118,SUM(N143,N145),"") ->  | O159: =IF(O146=Labels!$B$118,SUM(O143,O145),"") ->  | P159: =IF(P146=Labels!$B$118,SUM(P143,P145),"") ->  | Q159: =IF(Q146=Labels!$B$118,SUM(Q143,Q145),"") ->  | R159: =IF(R146=Labels!$B$118,SUM(R143,R145),"") ->  | S159: =IF(S146=Labels!$B$118,SUM(S143,S145),"") ->  | T159: =IF(T146=Labels!$B$118,SUM(T143,T145),"") ->  | U159: =IF(U146=Labels!$B$118,SUM(U143,U145),"") ->  | V159: =IF(V146=Labels!$B$118,SUM(V143,V145),"") ->  | W159: =IF(W146=Labels!$B$118,SUM(W143,W145),"") ->  | X159: =IF(X146=Labels!$B$118,SUM(X143,X145),"") ->  | Y159: =IF(Y146=Labels!$B$118,SUM(Y143,Y145),"") ->  | Z159: =IF(Z146=Labels!$B$118,SUM(Z143,Z145),"") ->  | AA159: =IF(AA146=Labels!$B$118,SUM(AA143,AA145),"") ->  | AB159: =IF(AB146=Labels!$B$118,SUM(AB143,AB145),"") ->  | AC159: =IF(AC146=Labels!$B$118,SUM(AC143,AC145),"") ->  | AD159: =IF(AD146=Labels!$B$118,SUM(AD143,AD145),"") ->  | AE159: =IF(AE146=Labels!$B$118,SUM(AE143,AE145),"") ->  | AF159: =IF(AF146=Labels!$B$118,SUM(AF143,AF145),"") ->  | AG159: =AG143 -> 0 | AH159: [7]
A160: =$A$32 -> Zuschlag blind (Wochentotal) | B160: =IF(OR(ISTEXT(B152),B152="",B152<$B$7),"",ROUND(((B152-$B$7)*25%)/25,4)*25) ->  | C160: =IF(OR(ISTEXT(C152),C152="",C152<$B$7),"",ROUND(((C152-$B$7)*25%)/25,4)*25) ->  | AG160: =SUM(AG142+AG144) -> 0 | AH160: [8]
B161: =$B$33 -> 1) 25% Zeitzuschlag für Überschreitung Wochentotal | L161: =$L$33 -> 2) 100% Zeitzuschlag für Nachtarbeit | T161: =$T$33 -> Eingabe der ausbezahlten Stunden Vorjahressaldo | AG161: =SUM(AG142:AG144) -> 0 | AH161: [9]
B162: =$B$34 -> 3) 100% Zeitzuschlag für Sonn- und Feiertagsarbeit | T162: =$T$34 -> Eingabe der ausbezahlten Stunden laufendes Jahr (Überstunden) | AG162: =SUM(AG140+AG146) -> 0 | AH162: [10]
A163: =$A$35 -> Bemerkungen | AG163: =SUM(AG140:AG154) -> 0 | AH163: [11]
AG164: =AG139 -> 184
AG165: =SUM(AG163-AG139) -> -184
A167: =$A$39 -> Zusammenstellung | G167: =$G$39 -> Jan | I167: =$I$39 -> Feb | K167: =$K$39 -> Mrz | M167: =$M$39 -> Apr | O167: =$O$39 -> Mai | Q167: =$Q$39 -> Jun | S167: =$S$39 -> Jul | U167: =$U$39 -> Aug | W167: =$W$39 -> Sep | Y167: =$Y$39 -> Okt | AA167: =$AA$39 -> Nov | AC167: =$AC$39 -> Dez | AE167: =$AE$39 -> Jahr
A168: =$A$40 -> Anstellung % | G168: =IF($B$4=0,0,$B$4) -> 100 | I168: =IF($B$71=0,0,$B$71) -> 100 | K168: =IF($B$135=0,0,$B$135) -> 100 | M168: =IF($B$199=0,0,$B$199) -> 100 | O168: =IF($B$263=0,0,$B$263) -> 100 | Q168: =IF($B$327=0,0,$B$327) -> 100 | S168: =IF($B$391=0,0,$B$391) -> 100 | U168: =IF($B$455=0,0,$B$455) -> 100 | W168: =IF($B$519=0,0,$B$519) -> 100 | Y168: =IF($B$583=0,0,$B$583) -> 100 | AA168: =IF($B$647=0,0,$B$647) -> 100 | AC168: =IF($B$711=0,0,$B$711) -> 100
A169: =$A$41 -> Sollstunden gemäss GAV | G169: =IF($AG$37=0,0,$AG$37) -> 168 | I169: =IF($AG$100=0,0,$AG$100) -> 160 | K169: =IF($AG$139=0,0,$AG$139) -> 184 | M169: =IF($AG$228=0,0,$AG$228) -> 168 | O169: =IF($AG$292=0,0,$AG$292) -> 176 | Q169: =IF($AG$356=0,0,$AG$356) -> 176 | S169: =IF($AG$420=0,0,$AG$420) -> 168 | U169: =IF($AG$484=0,0,$AG$484) -> 184 | W169: =IF($AG$548=0,0,$AG$548) -> 176 | Y169: =IF($AG$612=0,0,$AG$612) -> 168 | AA169: =IF($AG$676=0,0,$AG$676) -> 176 | AC169: =IF($AG$740=0,0,$AG$740) -> 176 | AE169: =SUM(G169:AD169) -> 2080
A170: =$A$42 -> Produktive Stunden | B170: =$B$42 -> 06.00 - 20.00 Uhr | G170: =IF($AG$32=0,0,$AG$32) -> 0 | I170: =IF($AG$95=0,0,$AG$95) -> 0 | K170: =IF($AG$159=0,0,$AG$159) -> 0 | M170: =IF($AG$223=0,0,$AG$223) -> 0 | O170: =IF($AG$287=0,0,$AG$287) -> 0 | Q170: =IF($AG$351=0,0,$AG$351) -> 0 | S170: =IF($AG$415=0,0,$AG$415) -> 0 | U170: =IF($AG$479=0,0,$AG$479) -> 0 | W170: =IF($AG$543=0,0,$AG$543) -> 0 | Y170: =IF($AG$607=0,0,$AG$607) -> 0 | AA170: =IF($AG$671=0,0,$AG$671) -> 0 | AC170: =IF($AG$735=0,0,$AG$735) -> 0 | AE170: =SUM(G170:AD170) -> 0
B171: =$B$43 -> Nacht-, Sonn-, Feiertagsarbeit | G171: =IF($AG$33=0,0,$AG$33) -> 0 | I171: =IF($AG$96=0,0,$AG$96) -> 0 | K171: =IF($AG$160=0,0,$AG$160) -> 0 | M171: =IF($AG$224=0,0,$AG$224) -> 0 | O171: =IF($AG$288=0,0,$AG$288) -> 0 | Q171: =IF($AG$352=0,0,$AG$352) -> 0 | S171: =IF($AG$416=0,0,$AG$416) -> 0 | U171: =IF($AG$480=0,0,$AG$480) -> 0 | W171: =IF($AG$544=0,0,$AG$544) -> 0 | Y171: =IF($AG$608=0,0,$AG$608) -> 0 | AA171: =IF($AG$672=0,0,$AG$672) -> 0 | AC171: =IF($AG$736=0,0,$AG$736) -> 0 | AE171: =SUM(G171:AD171) -> 0
A172: =$A$44 -> Zeitzuschläge | B172: =$B$44 -> aus Wochentotal | G172: =IF($AG$25=0,0,$AG$25) -> 0 | I172: =IF($AG$88=0,0,$AG$88) -> 0 | K172: =IF($AG$152=0,0,$AG$152) -> 0 | M172: =IF($AG$216=0,0,$AG$216) -> 0 | O172: =IF($AG$280=0,0,$AG$280) -> 0 | Q172: =IF($AG$344=0,0,$AG$344) -> 0 | S172: =IF($AG$408=0,0,$AG$408) -> 0 | U172: =IF($AG$472=0,0,$AG$472) -> 0 | W172: =IF($AG$536=0,0,$AG$536) -> 0 | Y172: =IF($AG$600=0,0,$AG$600) -> 0 | AA172: =IF($AG$664=0,0,$AG$664) -> 0 | AC172: =IF($AG$728=0,0,$AG$728) -> 0 | AE172: =SUM(G172:AD172) -> 0
B173: =$B$45 -> aus Nacht-, Sonn-, Feiertagsarbeiten | G173: =IF($AJ$21=0,0,$AJ$21) -> 0 | I173: =IF($AK$21=0,0,$AK$21) -> 0 | K173: =IF($AL$21=0,0,$AL$21) -> 0 | M173: =IF($AM$21=0,0,$AM$21) -> 0 | O173: =IF($AN$21=0,0,$AN$21) -> 0 | Q173: =IF($AO$21=0,0,$AO$21) -> 0 | S173: =IF($AP$21=0,0,$AP$21) -> 0 | U173: =IF($AQ$21=0,0,$AQ$21) -> 0 | W173: =IF($AR$21=0,0,$AR$21) -> 0 | Y173: =IF($AS$21=0,0,$AS$21) -> 0 | AA173: =IF($AT$21=0,0,$AT$21) -> 0 | AC173: =IF($AU$21=0,0,$AU$21) -> 0 | AE173: =SUM(G173:AD173) -> 0
A174: =$A$46 -> Unproduktive Stunden
A175: =$A$47 -> Absenzen, Kurzabsenzen Art. 11 GAV | F175: =$F$47 -> a | G175: =IF($AJ$3=0,0,$AJ$3) -> 0 | I175: =IF($AK$3=0,0,$AK$3) -> 0 | K175: =IF($AL$3=0,0,$AL$3) -> 0 | M175: =IF($AM$3=0,0,$AM$3) -> 0 | O175: =IF($AN$3=0,0,$AN$3) -> 0 | Q175: =IF($AO$3=0,0,$AO$3) -> 0 | S175: =IF($AP$3=0,0,$AP$3) -> 0 | U175: =IF($AQ$3=0,0,$AQ$3) -> 0 | W175: =IF($AR$3=0,0,$AR$3) -> 0 | Y175: =IF($AS$3=0,0,$AS$3) -> 0 | AA175: =IF(AT$3=0,0,$AT$3) -> 0 | AC175: =IF($AU$3=0,0,$AU$3) -> 0 | AE175: =IF($AV$3=0,0,$AV$3) -> 0
A176: =$A$48 -> Ferien Art. 12.1 GAV | F176: =$F$48 -> f | G176: =IF($AJ$4=0,0,$AJ$4) -> 0 | I176: =IF($AK$4=0,0,$AK$4) -> 0 | K176: =IF($AL$4=0,0,$AL$4) -> 0 | M176: =IF($AM$4=0,0,$AM$4) -> 0 | O176: =IF($AN$4=0,0,$AN$4) -> 0 | Q176: =IF($AO$4=0,0,$AO$4) -> 0 | S176: =IF($AP$4=0,0,$AP$4) -> 0 | U176: =IF($AQ$4=0,0,$AQ$4) -> 0 | W176: =IF($AR$4=0,0,$AR$4) -> 0 | Y176: =IF($AS$4=0,0,$AS$4) -> 0 | AA176: =IF($AT$4=0,0,$AT$4) -> 0 | AC176: =IF($AU$4=0,0,$AU$4) -> 0 | AE176: =IF($AV$4=0,0,$AV$4) -> 0
A177: =Labels!$B$181 -> Ferien unbezahlt | F177: =Labels!$B$182 -> fu | G177: =IF($AJ$13=0,0,$AJ$13) -> 0 | I177: =IF($AK$13=0,0,$AK$13) -> 0 | K177: =IF($AL$13=0,0,$AL$13) -> 0 | M177: =IF($AM$13=0,0,$AM$13) -> 0 | O177: =IF($AN$13=0,0,$AN$13) -> 0 | Q177: =IF($AO$13=0,0,$AO$13) -> 0 | S177: =IF($AP$13=0,0,$AP$13) -> 0 | U177: =IF($AQ$13=0,0,$AQ$13) -> 0 | W177: =IF($AR$13=0,0,$AR$13) -> 0 | Y177: =IF($AS$13=0,0,$AS$13) -> 0 | AA177: =IF($AT$13=0,0,$AT$13) -> 0 | AC177: =IF($AU$13=0,0,$AU$13) -> 0 | AE177: =IF($AV$13=0,0,$AV$13) -> 0
A178: =$A$50 -> Feiertage Art. 12.2 GAV | C178: =IF($AJ$18="","",$AJ$18) ->  | F178: =$F$50 -> ft | G178: =IF($AJ$16=0,0,$AJ$16) -> 0 | I178: =IF($AK$16=0,0,$AK$16) -> 0 | K178: =IF($AL$16=0,0,$AL$16) -> 0 | M178: =IF($AM$16=0,0,$AM$16) -> 0 | O178: =IF($AN$16=0,0,$AN$16) -> 0 | Q178: =IF($AO$16=0,0,$AO$16) -> 0 | S178: =IF($AP$16=0,0,$AP$16) -> 0 | U178: =IF($AQ$16=0,0,$AQ$16) -> 0 | W178: =IF($AR$16=0,0,$AR$16) -> 0 | Y178: =IF($AS$16=0,0,$AS$16) -> 0 | AA178: =IF($AT$16=0,0,$AT$16) -> 0 | AC178: =IF($AU$16=0,0,$AU$16) -> 0 | AE178: =IF($AV$16=0,0,$AV$16) -> 0
A179: =$A$51 -> Krankheit Art. 13 GAV | F179: =$F$51 -> k | G179: =IF($AJ$5=0,0,$AJ$5) -> 0 | I179: =IF($AK$5=0,0,$AK$5) -> 0 | K179: =IF($AL$5=0,0,$AL$5) -> 0 | M179: =IF($AM$5=0,0,$AM$5) -> 0 | O179: =IF($AN$5=0,0,$AN$5) -> 0 | Q179: =IF($AO$5=0,0,$AO$5) -> 0 | S179: =IF($AP$5=0,0,$AP$5) -> 0 | U179: =IF($AQ$5=0,0,$AQ$5) -> 0 | W179: =IF($AR$5=0,0,$AR$5) -> 0 | Y179: =IF($AS$5=0,0,$AS$5) -> 0 | AA179: =IF($AT$5=0,0,$AT$5) -> 0 | AC179: =IF($AU$5=0,0,$AU$5) -> 0 | AE179: =IF($AV$5=0,0,$AV$5) -> 0
A180: =$A$52 -> Unfall Art. 14 GAV | F180: =$F$52 -> u | G180: =IF($AJ$6=0,0,$AJ$6) -> 0 | I180: =IF($AK$6=0,0,$AK$6) -> 0 | K180: =IF($AL$6=0,0,$AL$6) -> 0 | M180: =IF($AM$6=0,0,$AM$6) -> 0 | O180: =IF($AN$6=0,0,$AN$6) -> 0 | Q180: =IF($AO$6=0,0,$AO$6) -> 0 | S180: =IF($AP$6=0,0,$AP$6) -> 0 | U180: =IF($AQ$6=0,0,$AQ$6) -> 0 | W180: =IF($AR$6=0,0,$AR$6) -> 0 | Y180: =IF($AS$6=0,0,$AS$6) -> 0 | AA180: =IF($AT$6=0,0,$AT$6) -> 0 | AC180: =IF($AU$6=0,0,$AU$6) -> 0 | AE180: =IF($AV$6=0,0,$AV$6) -> 0
A181: =$A$53 -> Schwangerschaft/Mutterschaft Art. 15 GAV | F181: =$F$53 -> s | G181: =IF($AJ$7=0,0,$AJ$7) -> 0 | I181: =IF($AK$7=0,0,$AK$7) -> 0 | K181: =IF($AL$7=0,0,$AL$7) -> 0 | M181: =IF($AM$7=0,0,$AM$7) -> 0 | O181: =IF($AN$7=0,0,$AN$7) -> 0 | Q181: =IF($AO$7=0,0,$AO$7) -> 0 | S181: =IF($AP$7=0,0,$AP$7) -> 0 | U181: =IF($AQ$7=0,0,$AQ$7) -> 0 | W181: =IF($AR$7=0,0,$AR$7) -> 0 | Y181: =IF($AS$7=0,0,$AS$7) -> 0 | AA181: =IF($AT$7=0,0,$AT$7) -> 0 | AC181: =IF($AU$7=0,0,$AU$7) -> 0 | AE181: =IF($AV$7=0,0,$AV$7) -> 0
A182: =$A$54 -> Militär/Beförderung/Zivilschutz Art. 16 GAV | F182: =$F$54 -> m | G182: =IF($AJ$8=0,0,$AJ$8) -> 0 | I182: =IF($AK$8=0,0,$AK$8) -> 0 | K182: =IF($AL$8=0,0,$AL$8) -> 0 | M182: =IF($AM$8=0,0,$AM$8) -> 0 | O182: =IF($AN$8=0,0,$AN$8) -> 0 | Q182: =IF($AO$8=0,0,$AO$8) -> 0 | S182: =IF($AP$8=0,0,$AP$8) -> 0 | U182: =IF($AQ$8=0,0,$AQ$8) -> 0 | W182: =IF($AR$8=0,0,$AR$8) -> 0 | Y182: =IF($AS$8=0,0,$AS$8) -> 0 | AA182: =IF($AT$8=0,0,$AT$8) -> 0 | AC182: =IF($AU$8=0,0,$AU$8) -> 0 | AE182: =IF($AV$8=0,0,$AV$8) -> 0
A183: =$A$55 -> Kurzarbeit und Schlechtwetterausfälle | F183: =$F$55 -> ka | G183: =IF($AJ$11=0,0,$AJ$11) -> 0 | I183: =IF($AK$11=0,0,$AK$11) -> 0 | K183: =IF($AL$11=0,0,$AL$11) -> 0 | M183: =IF($AM$11=0,0,$AM$11) -> 0 | O183: =IF($AN$11=0,0,$AN$11) -> 0 | Q183: =IF($AO$11=0,0,$AO$11) -> 0 | S183: =IF($AP$11=0,0,$AP$11) -> 0 | U183: =IF($AQ$11=0,0,$AQ$11) -> 0 | W183: =IF($AR$11=0,0,$AR$11) -> 0 | Y183: =IF($AS$11=0,0,$AS$11) -> 0 | AA183: =IF($AT$11=0,0,$AT$11) -> 0 | AC183: =IF($AU$11=0,0,$AU$11) -> 0 | AE183: =IF($AV$11=0,0,$AV$11) -> 0
A184: =$A$56 -> Berufsschule | F184: =$F$56 -> bs | G184: =IF($AJ$9=0,0,$AJ$9) -> 0 | I184: =IF($AK$9=0,0,$AK$9) -> 0 | K184: =IF($AL$9=0,0,$AL$9) -> 0 | M184: =IF($AM$9=0,0,$AM$9) -> 0 | O184: =IF($AN$9=0,0,$AN$9) -> 0 | Q184: =IF($AO$9=0,0,$AO$9) -> 0 | S184: =IF($AP$9=0,0,$AP$9) -> 0 | U184: =IF($AQ$9=0,0,$AQ$9) -> 0 | W184: =IF($AR$9=0,0,$AR$9) -> 0 | Y184: =IF($AS$9=0,0,$AS$9) -> 0 | AA184: =IF($AT$9=0,0,$AT$9) -> 0 | AC184: =IF($AU$9=0,0,$AU$9) -> 0 | AE184: =IF($AV$9=0,0,$AV$9) -> 0
A185: =$A$57 -> Kurse | F185: =$F$57 -> ku | G185: =IF($AJ$10=0,0,$AJ$10) -> 0 | I185: =IF($AK$10=0,0,$AK$10) -> 0 | K185: =IF($AL$10=0,0,$AL$10) -> 0 | M185: =IF($AM$10=0,0,$AM$10) -> 0 | O185: =IF($AN$10=0,0,$AN$10) -> 0 | Q185: =IF($AO$10=0,0,$AO$10) -> 0 | S185: =IF($AP$10=0,0,$AP$10) -> 0 | U185: =IF($AQ$10=0,0,$AQ$10) -> 0 | W185: =IF($AR$10=0,0,$AR$10) -> 0 | Y185: =IF($AS$10=0,0,$AS$10) -> 0 | AA185: =IF($AT$10=0,0,$AT$10) -> 0 | AC185: =IF($AU$10=0,0,$AU$10) -> 0 | AE185: =IF($AV$10=0,0,$AV$10) -> 0
A186: =$A$58 -> Kompensations-Std | B186: =$B$58 -> aus Vorjahr | F186: =$F$58 -> kv | G186: =IF($AJ$12=0,0,$AJ$12) -> 0 | I186: =IF($AK$12=0,0,$AK$12) -> 0 | K186: =IF($AL$12=0,0,$AL$12) -> 0 | M186: =IF($AM$12=0,0,$AM$12) -> 0 | O186: =IF($AN$12=0,0,$AN$12) -> 0 | Q186: =IF($AO$12=0,0,$AO$12) -> 0 | S186: =IF($AP$12=0,0,$AP$12) -> 0 | U186: =IF($AQ$12=0,0,$AQ$12) -> 0 | W186: =IF($AR$12=0,0,$AR$12) -> 0 | AE186: =IF($AV$12=0,0,$AV$12) -> 0
B187: =$B$59 -> aus laufendem Jahr (Kontrolle) | F187: =$F$59 -> kj | G187: =IF($AJ$15=0,0,$AJ$15) -> 0 | I187: =IF($AK$15=0,0,$AK$15) -> 0 | K187: =IF($AL$15=0,0,$AL$15) -> 0 | M187: =IF($AM$15=0,0,$AM$15) -> 0 | O187: =IF($AN$15=0,0,$AN$15) -> 0 | Q187: =IF($AO$15=0,0,$AO$15) -> 0 | S187: =IF($AP$15=0,0,$AP$15) -> 0 | U187: =IF($AQ$15=0,0,$AQ$15) -> 0 | W187: =IF($AR$15=0,0,$AR$15) -> 0 | Y187: =IF($AS$15=0,0,$AS$15) -> 0 | AA187: =IF($AT$15=0,0,$AT$15) -> 0 | AC187: =IF($AU$15=0,0,$AU$15) -> 0 | AE187: =IF($AV$15=0,0,$AV$15) -> 0
A188: =$A$60 -> Auszahlung | B188: =$B$60 -> Stunden Vorjahressaldo | G188: =IF($AJ$19=0,0,$AJ$19) -> 0 | I188: =IF($AK$19=0,0,$AK$19) -> 0 | K188: =IF($AL$19=0,0,$AL$19) -> 0 | M188: =IF($AM$19=0,0,$AM$19) -> 0 | O188: =IF($AN$19=0,0,$AN$19) -> 0 | Q188: =IF($AO$19=0,0,$AO$19) -> 0 | S188: =IF($AP$19=0,0,$AP$19) -> 0 | U188: =IF($AQ$19=0,0,$AQ$19) -> 0 | W188: =IF($AR$19=0,0,$AR$19) -> 0 | AE188: =IF($AV$19=0,0,$AV$19) -> 0
A189: =$A$61 -> Differenz | B189: =$B$61 -> nach Kompensation und Auszahlung | G189: =IF(ROUND($P$4,3)=0,0,$P$4-SUM(G186+G188)) -> 0 | I189: =IF(ROUND(G189,3)=0,0,G189-(SUM(I188+I186))) -> 0 | K189: =IF(ROUND(I189,3)=0,0,I189-(SUM(K188+K186))) -> 0 | M189: =IF(ROUND(K189,3)=0,0,K189-(SUM(M188+M186))) -> 0 | O189: =IF(ROUND(M189,3)=0,0,M189-(SUM(O188+O186))) -> 0 | Q189: =IF(ROUND(O189,3)=0,0,O189-(SUM(Q188+Q186))) -> 0 | S189: =IF(ROUND(Q189,3)=0,0,Q189-(SUM(S188+S186))) -> 0 | U189: =IF(ROUND(S189,3)=0,0,S189-(SUM(U188+U186))) -> 0 | W189: =IF(ROUND(U189,3)=0,0,U189-(SUM(W188+W186))) -> 0 | Y189: =$Y$61 -> 
A190: =$A$62 -> Auszahlung | B190: =$B$62 -> Stunden laufendes Jahr | G190: =IF($AJ$20=0,0,$AJ$20) -> 0 | I190: =IF($AK$20=0,0,$AK$20) -> 0 | K190: =IF($AL$20=0,0,$AL$20) -> 0 | M190: =IF($AM$20=0,0,$AM$20) -> 0 | O190: =IF($AN$20=0,0,$AN$20) -> 0 | Q190: =IF($AO$20=0,0,$AO$20) -> 0 | S190: =IF($AP$20=0,0,$AP$20) -> 0 | U190: =IF($AQ$20=0,0,$AQ$20) -> 0 | W190: =IF($AR$20=0,0,$AR$20) -> 0 | Y190: =IF($AS$20=0,0,$AS$20) -> 0 | AA190: =IF($AT$20=0,0,$AT$20) -> 0 | AC190: =IF($AU$20=0,0,$AU$20) -> 0 | AE190: =IF($AV$20=0,0,$AV$20) -> 0
A191: =$A$63 -> Fehlstunden | B191: =$B$63 -> laufendes Jahr (Kontrolle) | F191: =$F$63 -> fe | G191: =IF($AJ$14=0,0,$AJ$14) -> 0 | I191: =IF($AK$14=0,0,$AK$14) -> 0 | K191: =IF($AL$14=0,0,$AL$14) -> 0 | M191: =IF($AM$14=0,0,$AM$14) -> 0 | O191: =IF($AN$14=0,0,$AN$14) -> 0 | Q191: =IF($AO$14=0,0,$AO$14) -> 0 | S191: =IF($AP$14=0,0,$AP$14) -> 0 | U191: =IF($AQ$14=0,0,$AQ$14) -> 0 | W191: =IF($AR$14=0,0,$AR$14) -> 0 | Y191: =IF($AS$14=0,0,$AS$14) -> 0 | AA191: =IF($AT$14=0,0,$AT$14) -> 0 | AC191: =IF($AU$14=0,0,$AU$14) -> 0 | AE191: =IF($AV$14=0,0,$AV$14) -> 0
A192: =$A$64 -> Total inkl. Zeitzuschläge | B192: =$B$64 -> Stunden produktiv und unproduktiv | G192: =IF($AG$36=0,0,$AG$36) -> 0 | I192: =IF($AG$99=0,0,$AG$99) -> 0 | K192: =IF($AG$163=0,0,$AG$163) -> 0 | M192: =IF($AG$227=0,0,$AG$227) -> 0 | O192: =IF($AG$291=0,0,$AG$291) -> 0 | Q192: =IF($AG$355=0,0,$AG$355) -> 0 | S192: =IF($AG$419=0,0,$AG$419) -> 0 | U192: =IF($AG$483=0,0,$AG$483) -> 0 | W192: =IF($AG$547=0,0,$AG$547) -> 0 | Y192: =IF($AG$611=0,0,$AG$611) -> 0 | AA192: =IF($AG$675=0,0,$AG$675) -> 0 | AC192: =IF($AG$739=0,0,$AG$739) -> 0 | AE192: =SUM($G$64:$AD$64) -> 0
A193: =$A$65 -> Vergleich | B193: =$B$65 -> Stunden zu Soll-Stunden (inkl. allfälli- ge Minusstunden Vorjahr) | G193: =IF($AG$38=0,0,$AG$38)-$AE$34+$P$5 -> -168 | I193: =IF($AG$101=0,0,$AG$101)-$AE$98 -> -160 | K193: =IF($AG$165=0,0,$AG$165)-$AE$162 -> -184 | M193: =IF($AG$229=0,0,$AG$229)-$AE$226 -> -168 | O193: =IF($AG$293=0,0,$AG$293)-$AE$290 -> -176 | Q193: =IF($AG$357=0,0,$AG$357)-$AE$354 -> -176 | S193: =IF($AG$421=0,0,$AG$421)-$AE$418 -> -168 | U193: =IF($AG$485=0,0,$AG$485)-$AE$482 -> -184 | W193: =IF($AG$549=0,0,$AG$549)-$AE$546 -> -176 | Y193: =IF($AG$613=0,0,$AG$613)-$AE$610 -> -168 | AA193: =IF($AG$677=0,0,$AG$677)-$AE$674 -> -176 | AC193: =IF($AG$741=0,0,$AG$741)-$AE$738 -> -176 | AE193: =SUM($G$65:$AD$65) -> -2080
B194: =$B$66 -> Stunden zu Soll-Stunden (kumuliert) | G194: =$G$66 -> -168 | I194: =$I$66 -> -328 | K194: =$K$66 -> -512 | M194: =$M$66 -> -680 | O194: =$O$66 -> -856 | Q194: =$Q$66 -> -1032 | S194: =$S$66 -> -1200 | U194: =$U$66 -> -1384 | W194: =$W$66 -> -1560 | Y194: =$Y$66 -> -1728 | AA194: =$AA$66 -> -1904 | AC194: =$AC$66 -> -2080
A195: =$A$67 -> Ferienkontrolle | B195: =$B$67 -> Ferienguthaben Vorjahr | G195: =IF($AA$4=0,0,$AA$4) -> 0 | I195: =$I$67 -> Ferienguthaben nach Art. 12.1 GAV | M195: =IF($AA$5=0,0,$AA$5) -> 0 | O195: =$O$67 -> Ferienguthaben total | S195: =SUM(G195+M195) -> 0 | U195: =$U$67 -> Ferien bezogen | Y195: =IF($AV$4=0,0,$AV$4) -> 0 | AA195: =$AA$67 -> Aktuelles Ferienguthaben | AE195: =IF(S195=0,0,S195-Y195) -> 0
A198: =$A$3 -> Mitarbeiter/In | B198: =IF($B$3="","",$B$3) -> Muster Peter | AF198: =AF3 -> 0
A199: =$A$4 -> Anstellung % | B199: =$AL$47 -> 100 | D199: =Labels!B92 -> im April
A200: =$A$5 -> Saldo für das Jahr | D200: =IF($AE$65=0,0,$AE$65) -> -2080
A201: =TEXT(DATE(YEAR(AP29),MONTH(AP29)+3,1),"MMMM"&Labels!B13) -> April | B201: =$B$9 -> Saldo Monat + / - | F201: =(AG203-(SUM(AG204:AG218)-AE226))*-1 -> -168 | K201: =$K$9 -> = | L201: =$L$9 -> Gelbe Felder müssen ausgefüllt werden (die übrigen werden automatisch berechnet) | AG201: =COUNT(B204:AF204)&" "&Labels!$B$63 -> 21 Tage
A202: =$A$10 -> Tag | B202: =AF138+1 -> 2022-04-01 | C202: =B202+1 -> 2022-04-02 | D202: =C202+1 -> 2022-04-03 | E202: 2022-04-04 | F202: 2022-04-05 | G202: 2022-04-06 | H202: 2022-04-07 | I202: 2022-04-08 | J202: 2022-04-09 | K202: 2022-04-10 | L202: 2022-04-11 | M202: 2022-04-12 | N202: 2022-04-13 | O202: 2022-04-14 | P202: 2022-04-15 | Q202: 2022-04-16 | R202: 2022-04-17 | S202: 2022-04-18 | T202: 2022-04-19 | U202: 2022-04-20 | V202: 2022-04-21 | W202: 2022-04-22 | X202: 2022-04-23 | Y202: 2022-04-24 | Z202: 2022-04-25 | AA202: 2022-04-26 | AB202: 2022-04-27 | AC202: 2022-04-28 | AD202: 2022-04-29 | AE202: 2022-04-30
A203: =$A$11 -> Kalenderwoche | B203: =IF(B202="","",TRUNC((B202-DATE(YEAR(B202+3-MOD(B202-2,7)),1,MOD(B202-2,7)-9))/7)) -> 13 | C203: 13 | D203: 13 | E203: 14 | F203: 14 | G203: 14 | H203: 14 | I203: 14 | J203: 14 | K203: 14 | L203: 15 | M203: 15 | N203: 15 | O203: 15 | P203: 15 | Q203: 15 | R203: 15 | S203: 16 | T203: 16 | U203: 16 | V203: 16 | W203: 16 | X203: 16 | Y203: 16 | Z203: 17 | AA203: 17 | AB203: 17 | AC203: 17 | AD203: 17 | AE203: 17 | AG203: =SUM(B204:AF204) -> 168
A204: =$A$12 -> Sollstunden | B204: =IF(AND(MOD(B202,7)>=2,SUMPRODUCT(($AM$56:$AQ$56=MOD(B202,7))*$AM$47:$AQ$47)),($J$7*5/$AR$47)*$B$199%,"") -> 8 | C204: =IF(AND(MOD(C202,7)>=2,SUMPRODUCT(($AM$56:$AQ$56=MOD(C202,7))*$AM$47:$AQ$47)),($J$7*5/$AR$47)*$B$199%,"") ->  | D204: =IF(AND(MOD(D202,7)>=2,SUMPRODUCT(($AM$56:$AQ$56=MOD(D202,7))*$AM$47:$AQ$47)),($J$7*5/$AR$47)*$B$199%,"") ->  | E204: =IF(AND(MOD(E202,7)>=2,SUMPRODUCT(($AM$56:$AQ$56=MOD(E202,7))*$AM$47:$AQ$47)),($J$7*5/$AR$47)*$B$199%,"") -> 8 | F204: =IF(AND(MOD(F202,7)>=2,SUMPRODUCT(($AM$56:$AQ$56=MOD(F202,7))*$AM$47:$AQ$47)),($J$7*5/$AR$47)*$B$199%,"") -> 8 | G204: =IF(AND(MOD(G202,7)>=2,SUMPRODUCT(($AM$56:$AQ$56=MOD(G202,7))*$AM$47:$AQ$47)),($J$7*5/$AR$47)*$B$199%,"") -> 8 | H204: =IF(AND(MOD(H202,7)>=2,SUMPRODUCT(($AM$56:$AQ$56=MOD(H202,7))*$AM$47:$AQ$47)),($J$7*5/$AR$47)*$B$199%,"") -> 8 | I204: =IF(AND(MOD(I202,7)>=2,SUMPRODUCT(($AM$56:$AQ$56=MOD(I202,7))*$AM$47:$AQ$47)),($J$7*5/$AR$47)*$B$199%,"") -> 8 | J204: =IF(AND(MOD(J202,7)>=2,SUMPRODUCT(($AM$56:$AQ$56=MOD(J202,7))*$AM$47:$AQ$47)),($J$7*5/$AR$47)*$B$199%,"") ->  | K204: =IF(AND(MOD(K202,7)>=2,SUMPRODUCT(($AM$56:$AQ$56=MOD(K202,7))*$AM$47:$AQ$47)),($J$7*5/$AR$47)*$B$199%,"") ->  | L204: =IF(AND(MOD(L202,7)>=2,SUMPRODUCT(($AM$56:$AQ$56=MOD(L202,7))*$AM$47:$AQ$47)),($J$7*5/$AR$47)*$B$199%,"") -> 8 | M204: =IF(AND(MOD(M202,7)>=2,SUMPRODUCT(($AM$56:$AQ$56=MOD(M202,7))*$AM$47:$AQ$47)),($J$7*5/$AR$47)*$B$199%,"") -> 8 | N204: =IF(AND(MOD(N202,7)>=2,SUMPRODUCT(($AM$56:$AQ$56=MOD(N202,7))*$AM$47:$AQ$47)),($J$7*5/$AR$47)*$B$199%,"") -> 8 | O204: =IF(AND(MOD(O202,7)>=2,SUMPRODUCT(($AM$56:$AQ$56=MOD(O202,7))*$AM$47:$AQ$47)),($J$7*5/$AR$47)*$B$199%,"") -> 8 | P204: =IF(AND(MOD(P202,7)>=2,SUMPRODUCT(($AM$56:$AQ$56=MOD(P202,7))*$AM$47:$AQ$47)),($J$7*5/$AR$47)*$B$199%,"") -> 8 | Q204: =IF(AND(MOD(Q202,7)>=2,SUMPRODUCT(($AM$56:$AQ$56=MOD(Q202,7))*$AM$47:$AQ$47)),($J$7*5/$AR$47)*$B$199%,"") ->  | R204: =IF(AND(MOD(R202,7)>=2,SUMPRODUCT(($AM$56:$AQ$56=MOD(R202,7))*$AM$47:$AQ$47)),($J$7*5/$AR$47)*$B$199%,"") ->  | S204: =IF(AND(MOD(S202,7)>=2,SUMPRODUCT(($AM$56:$AQ$56=MOD(S202,7))*$AM$47:$AQ$47)),($J$7*5/$AR$47)*$B$199%,"") -> 8 | T204: =IF(AND(MOD(T202,7)>=2,SUMPRODUCT(($AM$56:$AQ$56=MOD(T202,7))*$AM$47:$AQ$47)),($J$7*5/$AR$47)*$B$199%,"") -> 8 | U204: =IF(AND(MOD(U202,7)>=2,SUMPRODUCT(($AM$56:$AQ$56=MOD(U202,7))*$AM$47:$AQ$47)),($J$7*5/$AR$47)*$B$199%,"") -> 8 | V204: =IF(AND(MOD(V202,7)>=2,SUMPRODUCT(($AM$56:$AQ$56=MOD(V202,7))*$AM$47:$AQ$47)),($J$7*5/$AR$47)*$B$199%,"") -> 8 | W204: =IF(AND(MOD(W202,7)>=2,SUMPRODUCT(($AM$56:$AQ$56=MOD(W202,7))*$AM$47:$AQ$47)),($J$7*5/$AR$47)*$B$199%,"") -> 8 | X204: =IF(AND(MOD(X202,7)>=2,SUMPRODUCT(($AM$56:$AQ$56=MOD(X202,7))*$AM$47:$AQ$47)),($J$7*5/$AR$47)*$B$199%,"") ->  | Y204: =IF(AND(MOD(Y202,7)>=2,SUMPRODUCT(($AM$56:$AQ$56=MOD(Y202,7))*$AM$47:$AQ$47)),($J$7*5/$AR$47)*$B$199%,"") ->  | Z204: =IF(AND(MOD(Z202,7)>=2,SUMPRODUCT(($AM$56:$AQ$56=MOD(Z202,7))*$AM$47:$AQ$47)),($J$7*5/$AR$47)*$B$199%,"") -> 8 | AA204: =IF(AND(MOD(AA202,7)>=2,SUMPRODUCT(($AM$56:$AQ$56=MOD(AA202,7))*$AM$47:$AQ$47)),($J$7*5/$AR$47)*$B$199%,"") -> 8 | AB204: =IF(AND(MOD(AB202,7)>=2,SUMPRODUCT(($AM$56:$AQ$56=MOD(AB202,7))*$AM$47:$AQ$47)),($J$7*5/$AR$47)*$B$199%,"") -> 8 | AC204: =IF(AND(MOD(AC202,7)>=2,SUMPRODUCT(($AM$56:$AQ$56=MOD(AC202,7))*$AM$47:$AQ$47)),($J$7*5/$AR$47)*$B$199%,"") -> 8 | AD204: =IF(AND(MOD(AD202,7)>=2,SUMPRODUCT(($AM$56:$AQ$56=MOD(AD202,7))*$AM$47:$AQ$47)),($J$7*5/$AR$47)*$B$199%,"") -> 8 | AE204: =IF(AND(MOD(AE202,7)>=2,SUMPRODUCT(($AM$56:$AQ$56=MOD(AE202,7))*$AM$47:$AQ$47)),($J$7*5/$AR$47)*$B$199%,"") ->  | AG204: =SUM(AM3:AM13) -> 0
A205: =$A$13 -> Absenz in Std | B205: =B900 -> 0 | C205: =C900 -> 0 | D205: 0 | E205: 0 | F205: 0 | G205: 0 | H205: 0 | I205: 0 | J205: 0 | K205: 0 | L205: 0 | M205: 0 | N205: 0 | O205: 0 | P205: 0 | Q205: 0 | R205: 0 | S205: 0 | T205: 0 | U205: 0 | V205: 0 | W205: 0 | X205: 0 | Y205: 0 | Z205: 0 | AA205: 0 | AB205: 0 | AC205: 0 | AD205: 0 | AE205: 0
A206: =$A$14 -> Code | B206: =IF(B900<>0,IF(MAX(B887:B899)<B900,Labels!$B$163,INDEX($AH$886:$AH$898,MATCH(MAX(B887:B899),B887:B899,0))),"") ->  | C206: =IF(C900<>0,IF(MAX(C887:C899)<C900,Labels!$B$163,INDEX($AH$886:$AH$898,MATCH(MAX(C887:C899),C887:C899,0))),"") ->  | D206: =IF(D900<>0,IF(MAX(D887:D899)<D900,Labels!$B$163,INDEX($AH$886:$AH$898,MATCH(MAX(D887:D899),D887:D899,0))),"") ->  | E206: =IF(E900<>0,IF(MAX(E887:E899)<E900,Labels!$B$163,INDEX($AH$886:$AH$898,MATCH(MAX(E887:E899),E887:E899,0))),"") ->  | F206: =IF(F900<>0,IF(MAX(F887:F899)<F900,Labels!$B$163,INDEX($AH$886:$AH$898,MATCH(MAX(F887:F899),F887:F899,0))),"") ->  | G206: =IF(G900<>0,IF(MAX(G887:G899)<G900,Labels!$B$163,INDEX($AH$886:$AH$898,MATCH(MAX(G887:G899),G887:G899,0))),"") ->  | H206: =IF(H900<>0,IF(MAX(H887:H899)<H900,Labels!$B$163,INDEX($AH$886:$AH$898,MATCH(MAX(H887:H899),H887:H899,0))),"") ->  | I206: =IF(I900<>0,IF(MAX(I887:I899)<I900,Labels!$B$163,INDEX($AH$886:$AH$898,MATCH(MAX(I887:I899),I887:I899,0))),"") ->  | J206: =IF(J900<>0,IF(MAX(J887:J899)<J900,Labels!$B$163,INDEX($AH$886:$AH$898,MATCH(MAX(J887:J899),J887:J899,0))),"") ->  | K206: =IF(K900<>0,IF(MAX(K887:K899)<K900,Labels!$B$163,INDEX($AH$886:$AH$898,MATCH(MAX(K887:K899),K887:K899,0))),"") ->  | L206: =IF(L900<>0,IF(MAX(L887:L899)<L900,Labels!$B$163,INDEX($AH$886:$AH$898,MATCH(MAX(L887:L899),L887:L899,0))),"") ->  | M206: =IF(M900<>0,IF(MAX(M887:M899)<M900,Labels!$B$163,INDEX($AH$886:$AH$898,MATCH(MAX(M887:M899),M887:M899,0))),"") ->  | N206: =IF(N900<>0,IF(MAX(N887:N899)<N900,Labels!$B$163,INDEX($AH$886:$AH$898,MATCH(MAX(N887:N899),N887:N899,0))),"") ->  | O206: =IF(O900<>0,IF(MAX(O887:O899)<O900,Labels!$B$163,INDEX($AH$886:$AH$898,MATCH(MAX(O887:O899),O887:O899,0))),"") ->  | P206: =IF(P900<>0,IF(MAX(P887:P899)<P900,Labels!$B$163,INDEX($AH$886:$AH$898,MATCH(MAX(P887:P899),P887:P899,0))),"") ->  | Q206: =IF(Q900<>0,IF(MAX(Q887:Q899)<Q900,Labels!$B$163,INDEX($AH$886:$AH$898,MATCH(MAX(Q887:Q899),Q887:Q899,0))),"") ->  | R206: =IF(R900<>0,IF(MAX(R887:R899)<R900,Labels!$B$163,INDEX($AH$886:$AH$898,MATCH(MAX(R887:R899),R887:R899,0))),"") ->  | S206: =IF(S900<>0,IF(MAX(S887:S899)<S900,Labels!$B$163,INDEX($AH$886:$AH$898,MATCH(MAX(S887:S899),S887:S899,0))),"") ->  | T206: =IF(T900<>0,IF(MAX(T887:T899)<T900,Labels!$B$163,INDEX($AH$886:$AH$898,MATCH(MAX(T887:T899),T887:T899,0))),"") ->  | U206: =IF(U900<>0,IF(MAX(U887:U899)<U900,Labels!$B$163,INDEX($AH$886:$AH$898,MATCH(MAX(U887:U899),U887:U899,0))),"") ->  | V206: =IF(V900<>0,IF(MAX(V887:V899)<V900,Labels!$B$163,INDEX($AH$886:$AH$898,MATCH(MAX(V887:V899),V887:V899,0))),"") ->  | W206: =IF(W900<>0,IF(MAX(W887:W899)<W900,Labels!$B$163,INDEX($AH$886:$AH$898,MATCH(MAX(W887:W899),W887:W899,0))),"") ->  | X206: =IF(X900<>0,IF(MAX(X887:X899)<X900,Labels!$B$163,INDEX($AH$886:$AH$898,MATCH(MAX(X887:X899),X887:X899,0))),"") ->  | Y206: =IF(Y900<>0,IF(MAX(Y887:Y899)<Y900,Labels!$B$163,INDEX($AH$886:$AH$898,MATCH(MAX(Y887:Y899),Y887:Y899,0))),"") ->  | Z206: =IF(Z900<>0,IF(MAX(Z887:Z899)<Z900,Labels!$B$163,INDEX($AH$886:$AH$898,MATCH(MAX(Z887:Z899),Z887:Z899,0))),"") ->  | AA206: =IF(AA900<>0,IF(MAX(AA887:AA899)<AA900,Labels!$B$163,INDEX($AH$886:$AH$898,MATCH(MAX(AA887:AA899),AA887:AA899,0))),"") ->  | AB206: =IF(AB900<>0,IF(MAX(AB887:AB899)<AB900,Labels!$B$163,INDEX($AH$886:$AH$898,MATCH(MAX(AB887:AB899),AB887:AB899,0))),"") ->  | AC206: =IF(AC900<>0,IF(MAX(AC887:AC899)<AC900,Labels!$B$163,INDEX($AH$886:$AH$898,MATCH(MAX(AC887:AC899),AC887:AC899,0))),"") ->  | AD206: =IF(AD900<>0,IF(MAX(AD887:AD899)<AD900,Labels!$B$163,INDEX($AH$886:$AH$898,MATCH(MAX(AD887:AD899),AD887:AD899,0))),"") ->  | AE206: =IF(AE900<>0,IF(MAX(AE887:AE899)<AE900,Labels!$B$163,INDEX($AH$886:$AH$898,MATCH(MAX(AE887:AE899),AE887:AE899,0))),"") ->  | AG206: =SUM(B207:AF207) -> 0
A207: =$A$15 -> 00.00-06.00h | AG207: =SUM(B208:AF208) -> 0
A208: =$A$16 -> 06.00-20.00h | AG208: =SUM(B209:AF209) -> 0 | AH208: [0]
... 782 more rows

Sheet KONTROLLE
A1: =Labels!B164 -> Den gewünschten Monat mit einem Klick wählen (gehe zu) Den gewünschten Monat mit einem Klick in die Druckvorschau versetzen (für Druck)
A2: =Labels!B17 &B5 -> A r b e i t s z e i t k o n t r o l l e 2022 | AG2: 2022 | AI2: Hilfstabelle | AJ2: =Labels!B77 -> Jan | AK2: =Labels!B78 -> Feb | AL2: =Labels!B79 -> Mrz | AM2: =Labels!B80 -> Apr | AN2: =Labels!B81 -> Mai | AO2: =Labels!B82 -> Jun | AP2: =Labels!B83 -> Jul | AQ2: =Labels!B84 -> Aug | AR2: =Labels!B85 -> Sep | AS2: =Labels!B86 -> Okt | AT2: =Labels!B87 -> Nov | AU2: =Labels!B88 -> Dez | AV2: =Labels!B102 -> Total | AX2: Legenden, Erklärungen & Meldungen
A3: =Labels!B18 -> Mitarbeiter/In | B3: =Labels!B19 -> Muster Peter | AI3: =Labels!B113 -> a | AJ3: =AG820 -> 0 | AK3: =AG843 -> 0 | AL3: =AG866 -> 0 | AM3: =AG889 -> 0 | AN3: =AG912 -> 0 | AO3: =AG935 -> 0 | AP3: =AG958 -> 0 | AQ3: =AG981 -> 0 | AR3: =AG1004 -> 0 | AS3: =AG1027 -> 0 | AT3: =AG1050 -> 0 | AU3: =AG1073 -> 0 | AV3: =SUM(AJ3:AU3) -> 0
A4: =Labels!B20 -> Anstellung % | B4: =$AL$44 -> 100 | D4: =Labels!B89 -> im Januar | K4: =Labels!B22 -> Saldo Vorjahresstunden (+) | U4: =Labels!B24 -> Ferienguthaben Vorjahr | AC4: =Labels!B26 -> Stunden | AI4: =Labels!B115 -> f | AJ4: =AG817 -> 0 | AK4: =AG840 -> 0 | AL4: =AG863 -> 0 | AM4: =AG886 -> 0 | AN4: =AG909 -> 0 | AO4: =AG932 -> 0 | AP4: =AG955 -> 0 | AQ4: =AG978 -> 0 | AR4: =AG1001 -> 0 | AS4: =AG1024 -> 0 | AT4: =AG1047 -> 0 | AU4: =AG1070 -> 0 | AV4: 0 | AX4: Legende Stunden zu Zuschläge (DE)
A5: =Labels!B21 -> Saldo für das Jahr | B5: =AG2 -> 2022 | D5: =IF($AE$65=0,0,$AE$65) -> -2080 | K5: =Labels!B23 -> Saldo Vorjahresstunden (-) | U5: =Labels!B25 -> Ferienguthaben laufendes Jahr | AC5: =Labels!B26 -> Stunden | AI5: =Labels!B120 -> k | AJ5: =AG821 -> 0 | AK5: =AG844 -> 0 | AL5: =AG867 -> 0 | AM5: =AG890 -> 0 | AN5: =AG913 -> 0 | AO5: =AG936 -> 0 | AP5: =AG959 -> 0 | AQ5: =AG982 -> 0 | AR5: =AG1005 -> 0 | AS5: =AG1028 -> 0 | AT5: =AG1051 -> 0 | AU5: =AG1074 -> 0 | AV5: 0
AI6: =Labels!B122 -> u | AJ6: 0 | AK6: 0 | AL6: 0 | AM6: 0 | AN6: 0 | AO6: 0 | AP6: 0 | AQ6: 0 | AR6: 0 | AS6: 0 | AT6: 0 | AU6: 0 | AV6: 0 | AX6: [0] | AY6: Feiertagzuschläge gemäss Anstellungsprozent
A7: =IF(ISERROR(DATEVALUE(TEXT("01.01."&B5,"TT.MM.JJ"))),"01/01/"&B5,"01.01."&B5) -> 01.01.2022 | B7: 48 | C7: =Labels!B27 -> Max. Std / Woche gemäss GAV | J7: 8 | K7: =Labels!B28 -> Std/Tag gemäss GAV | P7: =IF(MOD(YEAR($A$7),400)=0,"n",IF(MOD(YEAR($A$7),100)=0,"n",IF(MOD(YEAR($A$7),4)=0,"j","n"))) -> n | Q7: =Labels!B29 -> Schaltjahr (j/n) | U7: =NETWORKDAYS(DATE(B5,1,1),DATE(B5,12,31)) -> 260 | V7: =Labels!B30 -> Arbeitstage (Jahr) | Z7: =J7*U7 -> 2080 | AA7: =Labels!B31 -> Jahresbruttosollstunden | AI7: =Labels!B124 -> s | AJ7: 0 | AK7: 0 | AL7: 0 | AM7: 0 | AN7: 0 | AO7: 0 | AP7: 0 | AQ7: 0 | AR7: 0 | AS7: 0 | AT7: 0 | AU7: 0 | AV7: 0 | AX7: [1] | AY7: Sonntag Tag Zuschlag
AI8: =Labels!B126 -> m | AJ8: 0 | AK8: 0 | AL8: 0 | AM8: 0 | AN8: 0 | AO8: 0 | AP8: 0 | AQ8: 0 | AR8: 0 | AS8: 0 | AT8: 0 | AU8: 0 | AV8: 0 | AX8: [2] | AY8: Sonntag Nacht Zuschlag
A9: =TEXT(AP29,"MMMM"&Labels!B13) -> Januar | B9: =Labels!B32 -> Saldo Monat + / - | F9: =(AG12-(SUM(AG13:AG27)-AE34))*-1 -> -168 | K9: =Labels!B33 -> = | L9: =Labels!B34 -> Gelbe Felder müssen ausgefüllt werden (die übrigen werden automatisch berechnet) | AI9: =Labels!B130 -> bs | AJ9: 0 | AK9: 0 | AL9: 0 | AM9: 0 | AN9: 0 | AO9: 0 | AP9: 0 | AQ9: 0 | AR9: 0 | AS9: 0 | AT9: 0 | AU9: 0 | AV9: 0 | AX9: [3] | AY9: Zuschläge für ft-Tagarbeit
A10: =Labels!B35 -> Tag | B10: =AP29 -> 2022-01-01 | C10: =B10+1 -> 2022-01-02 | D10: 2022-01-03 | E10: 2022-01-04 | F10: 2022-01-05 | G10: 2022-01-06 | H10: 2022-01-07 | I10: 2022-01-08 | J10: 2022-01-09 | K10: 2022-01-10 | L10: 2022-01-11 | M10: 2022-01-12 | N10: 2022-01-13 | O10: 2022-01-14 | P10: 2022-01-15 | Q10: 2022-01-16 | R10: 2022-01-17 | S10: 2022-01-18 | T10: 2022-01-19 | U10: 2022-01-20 | V10: 2022-01-21 | W10: 2022-01-22 | X10: 2022-01-23 | Y10: 2022-01-24 | Z10: 2022-01-25 | AA10: 2022-01-26 | AB10: 2022-01-27 | AC10: 2022-01-28 | AD10: 2022-01-29 | AE10: 2022-01-30 | AF10: 2022-01-31 | AG10: =COUNT(B12:AF12)&" "&Labels!$B$63 -> 21 Tage | AI10: =Labels!B132 -> ku | AJ10: 0 | AK10: 0 | AL10: 0 | AM10: 0 | AN10: 0 | AO10: 0 | AP10: 0 | AQ10: 0 | AR10: 0 | AS10: 0 | AT10: 0 | AU10: 0 | AV10: 0 | AX10: [4] | AY10: Zuschläge für ft-Nachtarbeit
A11: =Labels!B36 -> Kalenderwoche | B11: =IF(B10="","",TRUNC((B10-DATE(YEAR(B10+3-MOD(B10-2,7)),1,MOD(B10-2,7)-9))/7)) -> 52 | C11: =IF(C10="","",TRUNC((C10-DATE(YEAR(C10+3-MOD(C10-2,7)),1,MOD(C10-2,7)-9))/7)) -> 52 | D11: 1 | E11: 1 | F11: 1 | G11: 1 | H11: 1 | I11: 1 | J11: 1 | K11: 2 | L11: 2 | M11: 2 | N11: 2 | O11: 2 | P11: 2 | Q11: 2 | R11: 3 | S11: 3 | T11: 3 | U11: 3 | V11: 3 | W11: 3 | X11: 3 | Y11: 4 | Z11: 4 | AA11: 4 | AB11: 4 | AC11: 4 | AD11: 4 | AE11: 4 | AF11: 5 | AI11: =Labels!B128 -> ka | AJ11: 0 | AK11: 0 | AL11: 0 | AM11: 0 | AN11: 0 | AO11: 0 | AP11: 0 | AQ11: 0 | AR11: 0 | AS11: 0 | AT11: 0 | AU11: 0 | AV11: 0 | AX11: [5] | AY11: Produktive Stunden Tag 06.00-20.00 Uhr
A12: =Labels!B37 -> Sollstunden | B12: =IF(AND(MOD(B10,7)>=2,SUMPRODUCT(($AM$56:$AQ$56=MOD(B10,7))*$AM$44:$AQ$44)),($J$7*5/$AR$44)*$B$4%,"") ->  | C12: =IF(AND(MOD(C10,7)>=2,SUMPRODUCT(($AM$56:$AQ$56=MOD(C10,7))*$AM$44:$AQ$44)),($J$7*5/$AR$44)*$B$4%,"") ->  | D12: =IF(AND(MOD(D10,7)>=2,SUMPRODUCT(($AM$56:$AQ$56=MOD(D10,7))*$AM$44:$AQ$44)),($J$7*5/$AR$44)*$B$4%,"") -> 8 | E12: =IF(AND(MOD(E10,7)>=2,SUMPRODUCT(($AM$56:$AQ$56=MOD(E10,7))*$AM$44:$AQ$44)),($J$7*5/$AR$44)*$B$4%,"") -> 8 | F12: =IF(AND(MOD(F10,7)>=2,SUMPRODUCT(($AM$56:$AQ$56=MOD(F10,7))*$AM$44:$AQ$44)),($J$7*5/$AR$44)*$B$4%,"") -> 8 | G12: =IF(AND(MOD(G10,7)>=2,SUMPRODUCT(($AM$56:$AQ$56=MOD(G10,7))*$AM$44:$AQ$44)),($J$7*5/$AR$44)*$B$4%,"") -> 8 | H12: =IF(AND(MOD(H10,7)>=2,SUMPRODUCT(($AM$56:$AQ$56=MOD(H10,7))*$AM$44:$AQ$44)),($J$7*5/$AR$44)*$B$4%,"") -> 8 | I12: =IF(AND(MOD(I10,7)>=2,SUMPRODUCT(($AM$56:$AQ$56=MOD(I10,7))*$AM$44:$AQ$44)),($J$7*5/$AR$44)*$B$4%,"") ->  | J12: =IF(AND(MOD(J10,7)>=2,SUMPRODUCT(($AM$56:$AQ$56=MOD(J10,7))*$AM$44:$AQ$44)),($J$7*5/$AR$44)*$B$4%,"") ->  | K12: =IF(AND(MOD(K10,7)>=2,SUMPRODUCT(($AM$56:$AQ$56=MOD(K10,7))*$AM$44:$AQ$44)),($J$7*5/$AR$44)*$B$4%,"") -> 8 | L12: =IF(AND(MOD(L10,7)>=2,SUMPRODUCT(($AM$56:$AQ$56=MOD(L10,7))*$AM$44:$AQ$44)),($J$7*5/$AR$44)*$B$4%,"") -> 8 | M12: =IF(AND(MOD(M10,7)>=2,SUMPRODUCT(($AM$56:$AQ$56=MOD(M10,7))*$AM$44:$AQ$44)),($J$7*5/$AR$44)*$B$4%,"") -> 8 | N12: =IF(AND(MOD(N10,7)>=2,SUMPRODUCT(($AM$56:$AQ$56=MOD(N10,7))*$AM$44:$AQ$44)),($J$7*5/$AR$44)*$B$4%,"") -> 8 | O12: =IF(AND(MOD(O10,7)>=2,SUMPRODUCT(($AM$56:$AQ$56=MOD(O10,7))*$AM$44:$AQ$44)),($J$7*5/$AR$44)*$B$4%,"") -> 8 | P12: =IF(AND(MOD(P10,7)>=2,SUMPRODUCT(($AM$56:$AQ$56=MOD(P10,7))*$AM$44:$AQ$44)),($J$7*5/$AR$44)*$B$4%,"") ->  | Q12: =IF(AND(MOD(Q10,7)>=2,SUMPRODUCT(($AM$56:$AQ$56=MOD(Q10,7))*$AM$44:$AQ$44)),($J$7*5/$AR$44)*$B$4%,"") ->  | R12: =IF(AND(MOD(R10,7)>=2,SUMPRODUCT(($AM$56:$AQ$56=MOD(R10,7))*$AM$44:$AQ$44)),($J$7*5/$AR$44)*$B$4%,"") -> 8 | S12: =IF(AND(MOD(S10,7)>=2,SUMPRODUCT(($AM$56:$AQ$56=MOD(S10,7))*$AM$44:$AQ$44)),($J$7*5/$AR$44)*$B$4%,"") -> 8 | T12: =IF(AND(MOD(T10,7)>=2,SUMPRODUCT(($AM$56:$AQ$56=MOD(T10,7))*$AM$44:$AQ$44)),($J$7*5/$AR$44)*$B$4%,"") -> 8 | U12: =IF(AND(MOD(U10,7)>=2,SUMPRODUCT(($AM$56:$AQ$56=MOD(U10,7))*$AM$44:$AQ$44)),($J$7*5/$AR$44)*$B$4%,"") -> 8 | V12: =IF(AND(MOD(V10,7)>=2,SUMPRODUCT(($AM$56:$AQ$56=MOD(V10,7))*$AM$44:$AQ$44)),($J$7*5/$AR$44)*$B$4%,"") -> 8 | W12: =IF(AND(MOD(W10,7)>=2,SUMPRODUCT(($AM$56:$AQ$56=MOD(W10,7))*$AM$44:$AQ$44)),($J$7*5/$AR$44)*$B$4%,"") ->  | X12: =IF(AND(MOD(X10,7)>=2,SUMPRODUCT(($AM$56:$AQ$56=MOD(X10,7))*$AM$44:$AQ$44)),($J$7*5/$AR$44)*$B$4%,"") ->  | Y12: =IF(AND(MOD(Y10,7)>=2,SUMPRODUCT(($AM$56:$AQ$56=MOD(Y10,7))*$AM$44:$AQ$44)),($J$7*5/$AR$44)*$B$4%,"") -> 8 | Z12: =IF(AND(MOD(Z10,7)>=2,SUMPRODUCT(($AM$56:$AQ$56=MOD(Z10,7))*$AM$44:$AQ$44)),($J$7*5/$AR$44)*$B$4%,"") -> 8 | AA12: =IF(AND(MOD(AA10,7)>=2,SUMPRODUCT(($AM$56:$AQ$56=MOD(AA10,7))*$AM$44:$AQ$44)),($J$7*5/$AR$44)*$B$4%,"") -> 8 | AB12: =IF(AND(MOD(AB10,7)>=2,SUMPRODUCT(($AM$56:$AQ$56=MOD(AB10,7))*$AM$44:$AQ$44)),($J$7*5/$AR$44)*$B$4%,"") -> 8 | AC12: =IF(AND(MOD(AC10,7)>=2,SUMPRODUCT(($AM$56:$AQ$56=MOD(AC10,7))*$AM$44:$AQ$44)),($J$7*5/$AR$44)*$B$4%,"") -> 8 | AD12: =IF(AND(MOD(AD10,7)>=2,SUMPRODUCT(($AM$56:$AQ$56=MOD(AD10,7))*$AM$44:$AQ$44)),($J$7*5/$AR$44)*$B$4%,"") ->  | AE12: =IF(AND(MOD(AE10,7)>=2,SUMPRODUCT(($AM$56:$AQ$56=MOD(AE10,7))*$AM$44:$AQ$44)),($J$7*5/$AR$44)*$B$4%,"") ->  | AF12: =IF(AND(MOD(AF10,7)>=2,SUMPRODUCT(($AM$56:$AQ$56=MOD(AF10,7))*$AM$44:$AQ$44)),($J$7*5/$AR$44)*$B$4%,"") -> 8 | AG12: =SUM(B12:AF12) -> 168 | AI12: =Labels!B135 -> kv | AJ12: =AG818 -> 0 | AK12: =AG841 -> 0 | AL12: =AG864 -> 0 | AM12: =AG887 -> 0 | AN12: =AG910 -> 0 | AO12: =AG933 -> 0 | AP12: =AG956 -> 0 | AQ12: =AG979 -> 0 | AR12: =AG1002 -> 0 | AS12: =AG1025 -> 0 | AT12: =AG1048 -> 0 | AU12: =AG1071 -> 0 | AV12: =SUM(AJ12:AU12) -> 0 | AX12: [6] | AY12: Produktive Stunden Nacht 20.00-06.00 Uhr
A13: =Labels!B38 -> Absenz in Std | B13: =B831 -> 0 | C13: =C831 -> 0 | D13: 0 | E13: 0 | F13: 0 | G13: 0 | H13: 0 | I13: 0 | J13: 0 | K13: 0 | L13: 0 | M13: 0 | N13: 0 | O13: 0 | P13: 0 | Q13: 0 | R13: 0 | S13: 0 | T13: 0 | U13: 0 | V13: 0 | W13: 0 | X13: 0 | Y13: 0 | Z13: 0 | AA13: 0 | AB13: 0 | AC13: 0 | AD13: 0 | AE13: 0 | AF13: 0 | AG13: =SUM(AJ3:AJ13) -> 0 | AI13: =Labels!B180 -> fu | AJ13: =AG828 -> 0 | AK13: =AG851 -> 0 | AL13: =AG874 -> 0 | AM13: =AG897 -> 0 | AN13: =AG920 -> 0 | AO13: =AG943 -> 0 | AP13: =AG966 -> 0 | AQ13: =AG989 -> 0 | AR13: =AG1012 -> 0 | AS13: =AG1035 -> 0 | AT13: =AG1058 -> 0 | AU13: =AG1081 -> 0 | AV13: =SUM(AJ13:AU13) -> 0 | AX13: [7] | AY13: Produktive Stunden im Monat ohne Zeitzuschläge und Absenzen
A14: =Labels!B39 -> Code | B14: =IF(B831<>0,IF(MAX(B818:B830)<B831,Labels!$B$163,INDEX($AH$817:$AH$829,MATCH(MAX(B818:B830),B818:B830,0))),"") ->  | C14: =IF(C831<>0,IF(MAX(C818:C830)<C831,Labels!$B$163,INDEX($AH$817:$AH$829,MATCH(MAX(C818:C830),C818:C830,0))),"") ->  | D14: =IF(D831<>0,IF(MAX(D818:D830)<D831,Labels!$B$163,INDEX($AH$817:$AH$829,MATCH(MAX(D818:D830),D818:D830,0))),"") ->  | E14: =IF(E831<>0,IF(MAX(E818:E830)<E831,Labels!$B$163,INDEX($AH$817:$AH$829,MATCH(MAX(E818:E830),E818:E830,0))),"") ->  | F14: =IF(F831<>0,IF(MAX(F818:F830)<F831,Labels!$B$163,INDEX($AH$817:$AH$829,MATCH(MAX(F818:F830),F818:F830,0))),"") ->  | G14: =IF(G831<>0,IF(MAX(G818:G830)<G831,Labels!$B$163,INDEX($AH$817:$AH$829,MATCH(MAX(G818:G830),G818:G830,0))),"") ->  | H14: =IF(H831<>0,IF(MAX(H818:H830)<H831,Labels!$B$163,INDEX($AH$817:$AH$829,MATCH(MAX(H818:H830),H818:H830,0))),"") ->  | I14: =IF(I831<>0,IF(MAX(I818:I830)<I831,Labels!$B$163,INDEX($AH$817:$AH$829,MATCH(MAX(I818:I830),I818:I830,0))),"") ->  | J14: =IF(J831<>0,IF(MAX(J818:J830)<J831,Labels!$B$163,INDEX($AH$817:$AH$829,MATCH(MAX(J818:J830),J818:J830,0))),"") ->  | K14: =IF(K831<>0,IF(MAX(K818:K830)<K831,Labels!$B$163,INDEX($AH$817:$AH$829,MATCH(MAX(K818:K830),K818:K830,0))),"") ->  | L14: =IF(L831<>0,IF(MAX(L818:L830)<L831,Labels!$B$163,INDEX($AH$817:$AH$829,MATCH(MAX(L818:L830),L818:L830,0))),"") ->  | M14: =IF(M831<>0,IF(MAX(M818:M830)<M831,Labels!$B$163,INDEX($AH$817:$AH$829,MATCH(MAX(M818:M830),M818:M830,0))),"") ->  | N14: =IF(N831<>0,IF(MAX(N818:N830)<N831,Labels!$B$163,INDEX($AH$817:$AH$829,MATCH(MAX(N818:N830),N818:N830,0))),"") ->  | O14: =IF(O831<>0,IF(MAX(O818:O830)<O831,Labels!$B$163,INDEX($AH$817:$AH$829,MATCH(MAX(O818:O830),O818:O830,0))),"") ->  | P14: =IF(P831<>0,IF(MAX(P818:P830)<P831,Labels!$B$163,INDEX($AH$817:$AH$829,MATCH(MAX(P818:P830),P818:P830,0))),"") ->  | Q14: =IF(Q831<>0,IF(MAX(Q818:Q830)<Q831,Labels!$B$163,INDEX($AH$817:$AH$829,MATCH(MAX(Q818:Q830),Q818:Q830,0))),"") ->  | R14: =IF(R831<>0,IF(MAX(R818:R830)<R831,Labels!$B$163,INDEX($AH$817:$AH$829,MATCH(MAX(R818:R830),R818:R830,0))),"") ->  | S14: =IF(S831<>0,IF(MAX(S818:S830)<S831,Labels!$B$163,INDEX($AH$817:$AH$829,MATCH(MAX(S818:S830),S818:S830,0))),"") ->  | T14: =IF(T831<>0,IF(MAX(T818:T830)<T831,Labels!$B$163,INDEX($AH$817:$AH$829,MATCH(MAX(T818:T830),T818:T830,0))),"") ->  | U14: =IF(U831<>0,IF(MAX(U818:U830)<U831,Labels!$B$163,INDEX($AH$817:$AH$829,MATCH(MAX(U818:U830),U818:U830,0))),"") ->  | V14: =IF(V831<>0,IF(MAX(V818:V830)<V831,Labels!$B$163,INDEX($AH$817:$AH$829,MATCH(MAX(V818:V830),V818:V830,0))),"") ->  | W14: =IF(W831<>0,IF(MAX(W818:W830)<W831,Labels!$B$163,INDEX($AH$817:$AH$829,MATCH(MAX(W818:W830),W818:W830,0))),"") ->  | X14: =IF(X831<>0,IF(MAX(X818:X830)<X831,Labels!$B$163,INDEX($AH$817:$AH$829,MATCH(MAX(X818:X830),X818:X830,0))),"") ->  | Y14: =IF(Y831<>0,IF(MAX(Y818:Y830)<Y831,Labels!$B$163,INDEX($AH$817:$AH$829,MATCH(MAX(Y818:Y830),Y818:Y830,0))),"") ->  | Z14: =IF(Z831<>0,IF(MAX(Z818:Z830)<Z831,Labels!$B$163,INDEX($AH$817:$AH$829,MATCH(MAX(Z818:Z830),Z818:Z830,0))),"") ->  | AA14: =IF(AA831<>0,IF(MAX(AA818:AA830)<AA831,Labels!$B$163,INDEX($AH$817:$AH$829,MATCH(MAX(AA818:AA830),AA818:AA830,0))),"") ->  | AB14: =IF(AB831<>0,IF(MAX(AB818:AB830)<AB831,Labels!$B$163,INDEX($AH$817:$AH$829,MATCH(MAX(AB818:AB830),AB818:AB830,0))),"") ->  | AC14: =IF(AC831<>0,IF(MAX(AC818:AC830)<AC831,Labels!$B$163,INDEX($AH$817:$AH$829,MATCH(MAX(AC818:AC830),AC818:AC830,0))),"") ->  | AD14: =IF(AD831<>0,IF(MAX(AD818:AD830)<AD831,Labels!$B$163,INDEX($AH$817:$AH$829,MATCH(MAX(AD818:AD830),AD818:AD830,0))),"") ->  | AE14: =IF(AE831<>0,IF(MAX(AE818:AE830)<AE831,Labels!$B$163,INDEX($AH$817:$AH$829,MATCH(MAX(AE818:AE830),AE818:AE830,0))),"") ->  | AF14: =IF(AF831<>0,IF(MAX(AF818:AF830)<AF831,Labels!$B$163,INDEX($AH$817:$AH$829,MATCH(MAX(AF818:AF830),AF818:AF830,0))),"") ->  | AI14: =Labels!B145 -> fe | AJ14: =AG829 -> 0 | AK14: =AG852 -> 0 | AL14: =AG875 -> 0 | AM14: =AG898 -> 0 | AN14: =AG921 -> 0 | AO14: =AG944 -> 0 | AP14: =AG967 -> 0 | AQ14: =AG990 -> 0 | AR14: =AG1013 -> 0 | AS14: =AG1036 -> 0 | AT14: =AG1059 -> 0 | AU14: =AG1082 -> 0 | AV14: =SUM(AJ14:AU14) -> 0 | AX14: [8] | AY14: Unproduktive Stunden (Feiertag, Absenzen)
A15: =Labels!B40 -> 00.00-06.00h | AG15: =SUM(B15:AF15) -> 0 | AI15: =Labels!B137 -> kj | AJ15: =AG819 -> 0 | AK15: =AG842 -> 0 | AL15: =AG865 -> 0 | AM15: =AG888 -> 0 | AN15: =AG911 -> 0 | AO15: =AG934 -> 0 | AP15: =AG957 -> 0 | AQ15: =AG980 -> 0 | AR15: =AG1003 -> 0 | AS15: =AG1026 -> 0 | AT15: =AG1049 -> 0 | AU15: =AG1072 -> 0 | AV15: =SUM(AJ15:AU15) -> 0 | AX15: [9] | AY15: Total gearbeitete Std. im Monat mit Zeitzuschlägen und Absenzen abz. ausbezahlte Stunden
A16: =Labels!B41 -> 06.00-20.00h | AG16: =SUM(B16:AF16) -> 0 | AI16: =Labels!B118 -> ft | AJ16: =SUMIF($B$18:$AF$18,$AI$16,$B$19:$AF$19) -> 0 | AK16: =SUMIF($B$82:$AD$82,$AI$16,$B$83:$AD$83) -> 0 | AL16: =SUMIF($B$146:$AF$146,$AI$16,$B$147:$AF$147) -> 0 | AM16: =SUMIF($B$210:$AE$210,$AI$16,$B$211:$AE$211) -> 0 | AN16: =SUMIF($B$274:$AF$274,$AI$16,$B$275:$AF$275) -> 0 | AO16: =SUMIF($B$338:$AE$338,$AI$16,$B$339:$AE$339) -> 0 | AP16: =SUMIF($B$402:$AF$402,$AI$16,$B$403:$AF$403) -> 0 | AQ16: =SUMIF($B$466:$AF$466,$AI$16,$B$467:$AF$467) -> 0 | AR16: =SUMIF($B$530:$AE$530,$AI$16,$B$531:$AE$531) -> 0 | AS16: =SUMIF($B$594:$AF$594,$AI$16,$B$595:$AF$595) -> 0 | AT16: =SUMIF($B$658:$AE$658,$AI$16,$B$659:$AE$659) -> 0 | AU16: =SUMIF($B$722:$AF$722,$AI$16,$B$723:$AF$723) -> 0 | AV16: 0 | AX16: [10] | AY16: Soll-Stunden
A17: =Labels!B42 -> 20.00-24.00h | AG17: =SUM(B17:AF17) -> 0 | AI17: =Labels!B160 -> Anzahl ft | AJ17: =COUNTIF($B$18:$AF$18,$AI$16) -> 0 | AK17: =COUNTIF($B$82:$AD$82,$AI$16) -> 0 | AL17: =COUNTIF($B$146:$AF$146,$AI$16) -> 0 | AM17: =COUNTIF($B$210:$AE$210,$AI$16) -> 0 | AN17: =COUNTIF($B$274:$AF$274,$AI$16) -> 0 | AO17: =COUNTIF($B$338:$AE$338,$AI$16) -> 0 | AP17: =COUNTIF($B$402:$AF$402,$AI$16) -> 0 | AQ17: =COUNTIF($B$466:$AF$466,$AI$16) -> 0 | AR17: =COUNTIF($B$530:$AE$530,$AI$16) -> 0 | AS17: =COUNTIF($B$594:$AF$594,$AI$16) -> 0 | AT17: =COUNTIF($B$658:$AE$658,$AI$16) -> 0 | AU17: =COUNTIF($B$722:$AF$722,$AI$16) -> 0 | AV17: 0 | AX17: [11] | AY17: Vergleich im Monat gearbeitete Std. inkl. Zeitzuschläge minus Zahlung Vorjahr zu Soll-Stunden + / -
A18: =Labels!B43 -> Feiertag "ft" | B18: =IF(WEEKDAY(B10,2)<=6,IF(KALENDER!E3="x",Labels!$B$118,""),"") ->  | C18: =IF(WEEKDAY(C10,2)<=6,IF(KALENDER!F3="x",Labels!$B$118,""),"") ->  | D18: =IF(WEEKDAY(D10,2)<=6,IF(KALENDER!G3="x",Labels!$B$118,""),"") ->  | E18: =IF(WEEKDAY(E10,2)<=6,IF(KALENDER!H3="x",Labels!$B$118,""),"") ->  | F18: =IF(WEEKDAY(F10,2)<=6,IF(KALENDER!I3="x",Labels!$B$118,""),"") ->  | G18: =IF(WEEKDAY(G10,2)<=6,IF(KALENDER!J3="x",Labels!$B$118,""),"") ->  | H18: =IF(WEEKDAY(H10,2)<=6,IF(KALENDER!K3="x",Labels!$B$118,""),"") ->  | I18: =IF(WEEKDAY(I10,2)<=6,IF(KALENDER!L3="x",Labels!$B$118,""),"") ->  | J18: =IF(WEEKDAY(J10,2)<=6,IF(KALENDER!M3="x",Labels!$B$118,""),"") ->  | K18: =IF(WEEKDAY(K10,2)<=6,IF(KALENDER!N3="x",Labels!$B$118,""),"") ->  | L18: =IF(WEEKDAY(L10,2)<=6,IF(KALENDER!O3="x",Labels!$B$118,""),"") ->  | M18: =IF(WEEKDAY(M10,2)<=6,IF(KALENDER!P3="x",Labels!$B$118,""),"") ->  | N18: =IF(WEEKDAY(N10,2)<=6,IF(KALENDER!Q3="x",Labels!$B$118,""),"") ->  | O18: =IF(WEEKDAY(O10,2)<=6,IF(KALENDER!R3="x",Labels!$B$118,""),"") ->  | P18: =IF(WEEKDAY(P10,2)<=6,IF(KALENDER!S3="x",Labels!$B$118,""),"") ->  | Q18: =IF(WEEKDAY(Q10,2)<=6,IF(KALENDER!T3="x",Labels!$B$118,""),"") ->  | R18: =IF(WEEKDAY(R10,2)<=6,IF(KALENDER!U3="x",Labels!$B$118,""),"") ->  | S18: =IF(WEEKDAY(S10,2)<=6,IF(KALENDER!V3="x",Labels!$B$118,""),"") ->  | T18: =IF(WEEKDAY(T10,2)<=6,IF(KALENDER!W3="x",Labels!$B$118,""),"") ->  | U18: =IF(WEEKDAY(U10,2)<=6,IF(KALENDER!X3="x",Labels!$B$118,""),"") ->  | V18: =IF(WEEKDAY(V10,2)<=6,IF(KALENDER!Y3="x",Labels!$B$118,""),"") ->  | W18: =IF(WEEKDAY(W10,2)<=6,IF(KALENDER!Z3="x",Labels!$B$118,""),"") ->  | X18: =IF(WEEKDAY(X10,2)<=6,IF(KALENDER!AA3="x",Labels!$B$118,""),"") ->  | Y18: =IF(WEEKDAY(Y10,2)<=6,IF(KALENDER!AB3="x",Labels!$B$118,""),"") ->  | Z18: =IF(WEEKDAY(Z10,2)<=6,IF(KALENDER!AC3="x",Labels!$B$118,""),"") ->  | AA18: =IF(WEEKDAY(AA10,2)<=6,IF(KALENDER!AD3="x",Labels!$B$118,""),"") ->  | AB18: =IF(WEEKDAY(AB10,2)<=6,IF(KALENDER!AE3="x",Labels!$B$118,""),"") ->  | AC18: =IF(WEEKDAY(AC10,2)<=6,IF(KALENDER!AF3="x",Labels!$B$118,""),"") ->  | AD18: =IF(WEEKDAY(AD10,2)<=6,IF(KALENDER!AG3="x",Labels!$B$118,""),"") ->  | AE18: =IF(WEEKDAY(AE10,2)<=6,IF(KALENDER!AH3="x",Labels!$B$118,""),"") ->  | AF18: =IF(WEEKDAY(AF10,2)<=6,IF(KALENDER!AI3="x",Labels!$B$118,""),"") ->  | AH18: [0] | AI18: =Labels!B161 -> Meldung | AJ18: =IF($AV$17>9,"(" & $AV$17 & " = " & Labels!B117,"") -> 
A19: =Labels!B44 -> Gutschrift "ft" | B19: =IF(AND(B18=Labels!$B$118,WEEKDAY(B10,2)<6,B$12<>""),($J$7*5/$AR$44)*$B$4%,"") ->  | C19: =IF(AND(C18=Labels!$B$118,WEEKDAY(C10,2)<6,C$12<>""),($J$7*5/$AR$44)*$B$4%,"") ->  | D19: =IF(AND(D18=Labels!$B$118,WEEKDAY(D10,2)<6,D$12<>""),($J$7*5/$AR$44)*$B$4%,"") ->  | E19: =IF(AND(E18=Labels!$B$118,WEEKDAY(E10,2)<6,E$12<>""),($J$7*5/$AR$44)*$B$4%,"") ->  | F19: =IF(AND(F18=Labels!$B$118,WEEKDAY(F10,2)<6,F$12<>""),($J$7*5/$AR$44)*$B$4%,"") ->  | G19: =IF(AND(G18=Labels!$B$118,WEEKDAY(G10,2)<6,G$12<>""),($J$7*5/$AR$44)*$B$4%,"") ->  | H19: =IF(AND(H18=Labels!$B$118,WEEKDAY(H10,2)<6,H$12<>""),($J$7*5/$AR$44)*$B$4%,"") ->  | I19: =IF(AND(I18=Labels!$B$118,WEEKDAY(I10,2)<6,I$12<>""),($J$7*5/$AR$44)*$B$4%,"") ->  | J19: =IF(AND(J18=Labels!$B$118,WEEKDAY(J10,2)<6,J$12<>""),($J$7*5/$AR$44)*$B$4%,"") ->  | K19: =IF(AND(K18=Labels!$B$118,WEEKDAY(K10,2)<6,K$12<>""),($J$7*5/$AR$44)*$B$4%,"") ->  | L19: =IF(AND(L18=Labels!$B$118,WEEKDAY(L10,2)<6,L$12<>""),($J$7*5/$AR$44)*$B$4%,"") ->  | M19: =IF(AND(M18=Labels!$B$118,WEEKDAY(M10,2)<6,M$12<>""),($J$7*5/$AR$44)*$B$4%,"") ->  | N19: =IF(AND(N18=Labels!$B$118,WEEKDAY(N10,2)<6,N$12<>""),($J$7*5/$AR$44)*$B$4%,"") ->  | O19: =IF(AND(O18=Labels!$B$118,WEEKDAY(O10,2)<6,O$12<>""),($J$7*5/$AR$44)*$B$4%,"") ->  | P19: =IF(AND(P18=Labels!$B$118,WEEKDAY(P10,2)<6,P$12<>""),($J$7*5/$AR$44)*$B$4%,"") ->  | Q19: =IF(AND(Q18=Labels!$B$118,WEEKDAY(Q10,2)<6,Q$12<>""),($J$7*5/$AR$44)*$B$4%,"") ->  | R19: =IF(AND(R18=Labels!$B$118,WEEKDAY(R10,2)<6,R$12<>""),($J$7*5/$AR$44)*$B$4%,"") ->  | S19: =IF(AND(S18=Labels!$B$118,WEEKDAY(S10,2)<6,S$12<>""),($J$7*5/$AR$44)*$B$4%,"") ->  | T19: =IF(AND(T18=Labels!$B$118,WEEKDAY(T10,2)<6,T$12<>""),($J$7*5/$AR$44)*$B$4%,"") ->  | U19: =IF(AND(U18=Labels!$B$118,WEEKDAY(U10,2)<6,U$12<>""),($J$7*5/$AR$44)*$B$4%,"") ->  | V19: =IF(AND(V18=Labels!$B$118,WEEKDAY(V10,2)<6,V$12<>""),($J$7*5/$AR$44)*$B$4%,"") ->  | W19: =IF(AND(W18=Labels!$B$118,WEEKDAY(W10,2)<6,W$12<>""),($J$7*5/$AR$44)*$B$4%,"") ->  | X19: =IF(AND(X18=Labels!$B$118,WEEKDAY(X10,2)<6,X$12<>""),($J$7*5/$AR$44)*$B$4%,"") ->  | Y19: =IF(AND(Y18=Labels!$B$118,WEEKDAY(Y10,2)<6,Y$12<>""),($J$7*5/$AR$44)*$B$4%,"") ->  | Z19: =IF(AND(Z18=Labels!$B$118,WEEKDAY(Z10,2)<6,Z$12<>""),($J$7*5/$AR$44)*$B$4%,"") ->  | AA19: =IF(AND(AA18=Labels!$B$118,WEEKDAY(AA10,2)<6,AA$12<>""),($J$7*5/$AR$44)*$B$4%,"") ->  | AB19: =IF(AND(AB18=Labels!$B$118,WEEKDAY(AB10,2)<6,AB$12<>""),($J$7*5/$AR$44)*$B$4%,"") ->  | AC19: =IF(AND(AC18=Labels!$B$118,WEEKDAY(AC10,2)<6,AC$12<>""),($J$7*5/$AR$44)*$B$4%,"") ->  | AD19: =IF(AND(AD18=Labels!$B$118,WEEKDAY(AD10,2)<6,AD$12<>""),($J$7*5/$AR$44)*$B$4%,"") ->  | AE19: =IF(AND(AE18=Labels!$B$118,WEEKDAY(AE10,2)<6,AE$12<>""),($J$7*5/$AR$44)*$B$4%,"") ->  | AF19: =IF(AND(AF18=Labels!$B$118,WEEKDAY(AF10,2)<6,AF$12<>""),($J$7*5/$AR$44)*$B$4%,"") ->  | AG19: =SUM(B19:AF19) -> 0 | AI19: Bez VoJa | AJ19: =$AE$33 -> 0 | AK19: =$AE$97 -> 0 | AL19: =$AE$161 -> 0 | AM19: =$AE$225 -> 0 | AN19: =$AE$289 -> 0 | AO19: =$AE$353 -> 0 | AP19: =$AE$417 -> 0 | AQ19: =$AE$481 -> 0 | AR19: =$AE$545 -> 0 | AV19: =SUM(AJ19:AU19) -> 0
A20: =Labels!B45 -> Tagestotal | B20: =SUM(B15:B17) -> 0 | C20: =SUM(C15:C17) -> 0 | D20: 0 | E20: 0 | F20: 0 | G20: 0 | H20: 0 | I20: 0 | J20: 0 | K20: 0 | L20: 0 | M20: 0 | N20: 0 | O20: 0 | P20: 0 | Q20: 0 | R20: 0 | S20: 0 | T20: 0 | U20: 0 | V20: 0 | W20: 0 | X20: 0 | Y20: 0 | Z20: 0 | AA20: 0 | AB20: 0 | AC20: 0 | AD20: 0 | AE20: 0 | AF20: 0 | AI20: Bez LaJa | AJ20: =$AE$34 -> 0 | AK20: =$AE$98 -> 0 | AL20: =$AE$162 -> 0 | AM20: =$AE$226 -> 0 | AN20: =$AE$290 -> 0 | AO20: =$AE$354 -> 0 | AP20: =$AE$418 -> 0 | AQ20: =$AE$482 -> 0 | AR20: =$AE$546 -> 0 | AS20: =$AE$610 -> 0 | AT20: =$AE$674 -> 0 | AU20: =$AE$738 -> 0 | AV20: =SUM(AJ20:AU20) -> 0 | AX20: Legende Absenztypen (DE)
A21: =Labels!B46 -> . | AI21: Zuschläge Nacht/Sonn-/Feiertag | AJ21: =SUM(AG26+AG27) -> 0 | AK21: =SUM(AG89+AG90) -> 0 | AL21: =SUM(AG153+AG154) -> 0 | AM21: =SUM(AG217+AG218) -> 0 | AN21: =SUM(AG281+AG282) -> 0 | AO21: =SUM(AG345+AG346) -> 0 | AP21: =SUM(AG409+AG410) -> 0 | AQ21: =SUM(AG473+AG474) -> 0 | AR21: =SUM(AG537+AG538) -> 0 | AS21: =SUM(AG601+AG602) -> 0 | AT21: =SUM(AG665+AG666) -> 0 | AU21: =SUM(AG729+AG730) -> 0 | AV21: =SUM(AJ21:AU21) -> 0
A22: =Labels!B47 -> . | AX22: a | AY22: Absenzen, Kurzabsenzen Art. 11 GAV
A23: =Labels!B48 -> Monatsübergang | B23: =IF(WEEKDAY(B10)=1,TEXT(B10-1,"MMM"&Labels!B13),"") ->  | AF23: =IF(AND(WEEKDAY(AF10)>1,WEEKDAY(AF10)<7),TEXT(DATE($B$5,MONTH(AF10)+1,1),"MMM"&Labels!B13),"") -> Feb | AX23: f | AY23: Ferien Art. 12.1. GAV
A24: =Labels!B49 -> Wochentotal | B24: =IF(WEEKDAY(B10)=7,SUMIF($B11:$AF11,B11,$B20:$AF20)+SUMIF($B75:$AD75,B11,$B84:$AD84),IF(WEEKDAY(B10)=1,SUMIF($B11:$AF11,B11,$B20:$AF20)+SUMIF($B75:$AD75,B11,$B84:$AD84),"")) -> 0 | C24: =IF(WEEKDAY(C10)=7,SUMIF($B11:$AF11,C11,$B20:$AF20)+SUMIF($B75:$AD75,C11,$B84:$AD84),"") ->  | I24: 0 | P24: 0 | W24: 0 | AD24: 0 | AF24: =IF(WEEKDAY(AF10)=7,SUMIF($B11:$AF11,AF11,$B20:$AF20)+SUMIF($B75:$AD75,AF11,$B84:$AD84),AF23) -> Feb | AX24: k | AY24: Krankheit Art. 13 GAV
A25: =Labels!B50 -> Zeitzuschlag 1) | B25: =IF(B32="FALSCH","",B32) ->  | C25: =IF(C32="FALSCH","",C32) ->  | AG25: =SUM(B25:AF25) -> 0 | AX25: m | AY25: Militär, Zivilschutz Art. 16 GAV
A26: =Labels!B51 -> Zeitzuschlag 2) | B26: =IF((B15+B17)=0,"",SUM(B15,B17)) ->  | C26: =IF((C15+C17)=0,"",SUM(C15,C17)) ->  | D26: =IF((D15+D17)=0,"",SUM(D15,D17)) ->  | E26: =IF((E15+E17)=0,"",SUM(E15,E17)) ->  | AG26: 0 | AH26: [1] | AX26: s | AY26: Schwanger-/Mutterschaft Art. 15 GAV
A27: =Labels!B52 -> Zeitzuschlag 3) | B27: =SUM(B28:B31) -> 0 | C27: 0 | D27: 0 | E27: 0 | F27: 0 | G27: 0 | H27: 0 | I27: 0 | J27: 0 | K27: 0 | L27: 0 | M27: 0 | N27: 0 | O27: 0 | P27: 0 | Q27: 0 | R27: 0 | S27: 0 | T27: 0 | U27: 0 | V27: 0 | W27: 0 | X27: 0 | Y27: 0 | Z27: 0 | AA27: 0 | AB27: 0 | AC27: 0 | AD27: 0 | AE27: 0 | AF27: 0 | AG27: =SUM(B27:AF27) -> 0 | AH27: [2] | AI27: Konfiguration (lokal) | AX27: u | AY27: Unfall Art. 14 GAV
A28: =Labels!B53 -> Sonntag Tag | B28: =IF(WEEKDAY(B10)=1,B16,"") ->  | C28: =IF(WEEKDAY(C10)=1,C16,"") -> 0 | J28: 0 | Q28: 0 | X28: 0 | AE28: 0 | AG28: 0 | AH28: [3] | AX28: bs | AY28: Berufsschule
A29: =Labels!B54 -> Sonntag Nacht | B29: =IF(WEEKDAY(B10)=1,SUM(B15+B17),"") ->  | C29: =IF(WEEKDAY(C10)=1,SUM(C15+C17),"") -> 0 | J29: 0 | Q29: 0 | X29: 0 | AE29: 0 | AG29: 0 | AH29: [4] | AI29: Erster Januar aktuelles Jahr | AP29: =DATE(YEAR($A$7),MONTH($A$7),DAY($A$7)) -> 2022-01-01 | AX29: fe | AY29: Fehlstunden zur Information ohne Berechnung in der Zusammenfassung
A30: =Labels!B55 -> ft-Tazuschlag | B30: =IF(B18=Labels!$B$118,B16,"") ->  | C30: =IF(C18=Labels!$B$118,C16,"") ->  | D30: =IF(D18=Labels!$B$118,D16,"") ->  | E30: =IF(E18=Labels!$B$118,E16,"") ->  | F30: =IF(F18=Labels!$B$118,F16,"") ->  | G30: =IF(G18=Labels!$B$118,G16,"") ->  | H30: =IF(H18=Labels!$B$118,H16,"") ->  | I30: =IF(I18=Labels!$B$118,I16,"") ->  | J30: =IF(J18=Labels!$B$118,J16,"") ->  | K30: =IF(K18=Labels!$B$118,K16,"") ->  | L30: =IF(L18=Labels!$B$118,L16,"") ->  | M30: =IF(M18=Labels!$B$118,M16,"") ->  | N30: =IF(N18=Labels!$B$118,N16,"") ->  | O30: =IF(O18=Labels!$B$118,O16,"") ->  | P30: =IF(P18=Labels!$B$118,P16,"") ->  | Q30: =IF(Q18=Labels!$B$118,Q16,"") ->  | R30: =IF(R18=Labels!$B$118,R16,"") ->  | S30: =IF(S18=Labels!$B$118,S16,"") ->  | T30: =IF(T18=Labels!$B$118,T16,"") ->  | U30: =IF(U18=Labels!$B$118,U16,"") ->  | V30: =IF(V18=Labels!$B$118,V16,"") ->  | W30: =IF(W18=Labels!$B$118,W16,"") ->  | X30: =IF(X18=Labels!$B$118,X16,"") ->  | Y30: =IF(Y18=Labels!$B$118,Y16,"") ->  | Z30: =IF(Z18=Labels!$B$118,Z16,"") ->  | AA30: =IF(AA18=Labels!$B$118,AA16,"") ->  | AB30: =IF(AB18=Labels!$B$118,AB16,"") ->  | AC30: =IF(AC18=Labels!$B$118,AC16,"") ->  | AD30: =IF(AD18=Labels!$B$118,AD16,"") ->  | AE30: =IF(AE18=Labels!$B$118,AE16,"") ->  | AF30: =IF(AF18=Labels!$B$118,AF16,"") ->  | AG30: 0 | AH30: [5] | AI30: (Berechnungsgrundlage Kalender) | AX30: ka | AY30: Kurzabeit, Schlechtwetterausfälle
A31: =Labels!B56 -> ft-Nazuschlag | B31: =IF(B18=Labels!$B$118,SUM(B15,B17),"") ->  | C31: =IF(C18=Labels!$B$118,SUM(C15,C17),"") ->  | D31: =IF(D18=Labels!$B$118,SUM(D15,D17),"") ->  | E31: =IF(E18=Labels!$B$118,SUM(E15,E17),"") ->  | F31: =IF(F18=Labels!$B$118,SUM(F15,F17),"") ->  | G31: =IF(G18=Labels!$B$118,SUM(G15,G17),"") ->  | H31: =IF(H18=Labels!$B$118,SUM(H15,H17),"") ->  | I31: =IF(I18=Labels!$B$118,SUM(I15,I17),"") ->  | J31: =IF(J18=Labels!$B$118,SUM(J15,J17),"") ->  | K31: =IF(K18=Labels!$B$118,SUM(K15,K17),"") ->  | L31: =IF(L18=Labels!$B$118,SUM(L15,L17),"") ->  | M31: =IF(M18=Labels!$B$118,SUM(M15,M17),"") ->  | N31: =IF(N18=Labels!$B$118,SUM(N15,N17),"") ->  | O31: =IF(O18=Labels!$B$118,SUM(O15,O17),"") ->  | P31: =IF(P18=Labels!$B$118,SUM(P15,P17),"") ->  | Q31: =IF(Q18=Labels!$B$118,SUM(Q15,Q17),"") ->  | R31: =IF(R18=Labels!$B$118,SUM(R15,R17),"") ->  | S31: =IF(S18=Labels!$B$118,SUM(S15,S17),"") ->  | T31: =IF(T18=Labels!$B$118,SUM(T15,T17),"") ->  | U31: =IF(U18=Labels!$B$118,SUM(U15,U17),"") ->  | V31: =IF(V18=Labels!$B$118,SUM(V15,V17),"") ->  | W31: =IF(W18=Labels!$B$118,SUM(W15,W17),"") ->  | X31: =IF(X18=Labels!$B$118,SUM(X15,X17),"") ->  | Y31: =IF(Y18=Labels!$B$118,SUM(Y15,Y17),"") ->  | Z31: =IF(Z18=Labels!$B$118,SUM(Z15,Z17),"") ->  | AA31: =IF(AA18=Labels!$B$118,SUM(AA15,AA17),"") ->  | AB31: =IF(AB18=Labels!$B$118,SUM(AB15,AB17),"") ->  | AC31: =IF(AC18=Labels!$B$118,SUM(AC15,AC17),"") ->  | AD31: =IF(AD18=Labels!$B$118,SUM(AD15,AD17),"") ->  | AE31: =IF(AE18=Labels!$B$118,SUM(AE15,AE17),"") ->  | AF31: =IF(AF18=Labels!$B$118,SUM(AF15,AF17),"") ->  | AG31: 0 | AH31: [6] | AX31: kj | AY31: Kompensation laufendes Jahr siehe Zusammenfassung
A32: =Labels!B57 -> Zuschlag blind (Wochentotal) | B32: =IF(OR(ISTEXT(B24),B24="",B24<$B$7),"",ROUND(((B24-$B$7)*25%)/25,4)*25) ->  | C32: =IF(OR(ISTEXT(C24),C24="",C24<$B$7),"",ROUND(((C24-$B$7)*25%)/25,4)*25) ->  | AG32: =AG16 -> 0 | AH32: [7] | AI32: Hilfszelle Feiertage | AQ32: =Labels!$B$118 -> ft | AX32: ku | AY32: Kurse
B33: =Labels!B58 -> 1) 25% Zeitzuschlag für Überschreitung Wochentotal | L33: =Labels!B59 -> 2) 100% Zeitzuschlag für Nachtarbeit | T33: =Labels!B61 -> Eingabe der ausbezahlten Stunden Vorjahressaldo | AG33: =SUM(AG15+AG17) -> 0 | AH33: [8] | AX33: kv | AY33: Kompensation Vorjahressaldo für Abrechnung in der Zusammenfassung
B34: =Labels!B60 -> 3) 100% Zeitzuschlag für Sonn- und Feiertagsarbeit | T34: =Labels!B62 -> Eingabe der ausbezahlten Stunden laufendes Jahr (Überstunden) | AG34: =SUM(AG15:AG17) -> 0 | AH34: [9] | AI34: aktueller Kalender | AK34: calendar | AQ34: KALENDER | AX34: fu | AY34: Ferien unbezahlt
A35: =Labels!B159 -> Bemerkungen | AG35: =SUM(AG13+AG19) -> 0 | AH35: [10]
AG36: =SUM(AG13:AG27) -> 0 | AH36: [11]
AG37: =AG12 -> 168 | AI37: alter Kalender | AK37: calendar1 | AQ37: Kalender Müller | AX37: Meldungen & Beschriftungen
AG38: =SUM(AG36-AG12) -> -168 | AI38: neuer Kalender | AK38: calendar | AQ38: KALENDER
A39: =Labels!B103 -> Zusammenstellung | G39: =Labels!B77 -> Jan | I39: =Labels!B78 -> Feb | K39: =Labels!B79 -> Mrz | M39: =Labels!B80 -> Apr | O39: =Labels!B81 -> Mai | Q39: =Labels!B82 -> Jun | S39: =Labels!B83 -> Jul | U39: =Labels!B84 -> Aug | W39: =Labels!B85 -> Sep | Y39: =Labels!B86 -> Okt | AA39: =Labels!B87 -> Nov | AC39: =Labels!B88 -> Dez | AE39: =Labels!B101 -> Jahr | AY39: ="Das Vorjahresguthaben beträgt noch "&TEXT(W61,"0.0000")&" Std." -> Das Vorjahresguthaben beträgt noch 0.0000 Std.
A40: =Labels!B20 -> Anstellung % | G40: =IF($B$4=0,0,$B$4) -> 100 | I40: =IF($B$71=0,0,$B$71) -> 100 | K40: =IF($B$135=0,0,$B$135) -> 100 | M40: =IF($B$199=0,0,$B$199) -> 100 | O40: =IF($B$263=0,0,$B$263) -> 100 | Q40: =IF($B$327=0,0,$B$327) -> 100 | S40: =IF($B$391=0,0,$B$391) -> 100 | U40: =IF($B$455=0,0,$B$455) -> 100 | W40: =IF($B$519=0,0,$B$519) -> 100 | Y40: =IF($B$583=0,0,$B$583) -> 100 | AA40: =IF($B$647=0,0,$B$647) -> 100 | AC40: =IF($B$711=0,0,$B$711) -> 100 | AY40: Total
A41: =Labels!B104 -> Sollstunden gemäss GAV | G41: =IF($AG$37=0,0,$AG$37) -> 168 | I41: =IF($AG$100=0,0,$AG$100) -> 160 | K41: =IF($AG$139=0,0,$AG$139) -> 184 | M41: =IF($AG$228=0,0,$AG$228) -> 168 | O41: =IF($AG$292=0,0,$AG$292) -> 176 | Q41: =IF($AG$356=0,0,$AG$356) -> 176 | S41: =IF($AG$420=0,0,$AG$420) -> 168 | U41: =IF($AG$484=0,0,$AG$484) -> 184 | W41: =IF($AG$548=0,0,$AG$548) -> 176 | Y41: =IF($AG$612=0,0,$AG$612) -> 168 | AA41: =IF($AG$676=0,0,$AG$676) -> 176 | AC41: =IF($AG$740=0,0,$AG$740) -> 176 | AE41: =SUM(G41:AD41) -> 2080 | AI41: Anstellungsdetails | AK41: Name: | AL41: Muster Peter | AO41: Default-% | AQ41: 100
A42: =Labels!B105 -> Produktive Stunden | B42: =Labels!B106 -> 06.00 - 20.00 Uhr | G42: =IF($AG$32=0,0,$AG$32) -> 0 | I42: =IF($AG$95=0,0,$AG$95) -> 0 | K42: =IF($AG$159=0,0,$AG$159) -> 0 | M42: =IF($AG$223=0,0,$AG$223) -> 0 | O42: =IF($AG$287=0,0,$AG$287) -> 0 | Q42: =IF($AG$351=0,0,$AG$351) -> 0 | S42: =IF($AG$415=0,0,$AG$415) -> 0 | U42: =IF($AG$479=0,0,$AG$479) -> 0 | W42: =IF($AG$543=0,0,$AG$543) -> 0 | Y42: =IF($AG$607=0,0,$AG$607) -> 0 | AA42: =IF($AG$671=0,0,$AG$671) -> 0 | AC42: =IF($AG$735=0,0,$AG$735) -> 0 | AE42: =SUM(G42:AD42) -> 0
B43: =Labels!B107 -> Nacht-, Sonn-, Feiertagsarbeit | G43: =IF($AG$33=0,0,$AG$33) -> 0 | I43: =IF($AG$96=0,0,$AG$96) -> 0 | K43: =IF($AG$160=0,0,$AG$160) -> 0 | M43: =IF($AG$224=0,0,$AG$224) -> 0 | O43: =IF($AG$288=0,0,$AG$288) -> 0 | Q43: =IF($AG$352=0,0,$AG$352) -> 0 | S43: =IF($AG$416=0,0,$AG$416) -> 0 | U43: =IF($AG$480=0,0,$AG$480) -> 0 | W43: =IF($AG$544=0,0,$AG$544) -> 0 | Y43: =IF($AG$608=0,0,$AG$608) -> 0 | AA43: =IF($AG$672=0,0,$AG$672) -> 0 | AC43: =IF($AG$736=0,0,$AG$736) -> 0 | AE43: =SUM(G43:AD43) -> 0 | AI43: Ganzes Jahr gleich? | AJ43: TRUE | AL43: % | AM43: MO | AN43: DI | AO43: MI | AP43: DO | AQ43: FR | AR43: Arbeitst.
A44: =Labels!B108 -> Zeitzuschläge | B44: =Labels!B109 -> aus Wochentotal | G44: =IF($AG$25=0,0,$AG$25) -> 0 | I44: =IF($AG$88=0,0,$AG$88) -> 0 | K44: =IF($AG$152=0,0,$AG$152) -> 0 | M44: =IF($AG$216=0,0,$AG$216) -> 0 | O44: =IF($AG$280=0,0,$AG$280) -> 0 | Q44: =IF($AG$344=0,0,$AG$344) -> 0 | S44: =IF($AG$408=0,0,$AG$408) -> 0 | U44: =IF($AG$472=0,0,$AG$472) -> 0 | W44: =IF($AG$536=0,0,$AG$536) -> 0 | Y44: =IF($AG$600=0,0,$AG$600) -> 0 | AA44: =IF($AG$664=0,0,$AG$664) -> 0 | AC44: =IF($AG$728=0,0,$AG$728) -> 0 | AE44: =SUM(G44:AD44) -> 0 | AK44: Jan | AL44: 100 | AM44: TRUE | AN44: TRUE | AO44: TRUE | AP44: TRUE | AQ44: TRUE | AR44: =COUNTIF(AM44:AQ44,TRUE) -> 5
B45: =Labels!B110 -> aus Nacht-, Sonn-, Feiertagsarbeiten | G45: =IF($AJ$21=0,0,$AJ$21) -> 0 | I45: =IF($AK$21=0,0,$AK$21) -> 0 | K45: =IF($AL$21=0,0,$AL$21) -> 0 | M45: =IF($AM$21=0,0,$AM$21) -> 0 | O45: =IF($AN$21=0,0,$AN$21) -> 0 | Q45: =IF($AO$21=0,0,$AO$21) -> 0 | S45: =IF($AP$21=0,0,$AP$21) -> 0 | U45: =IF($AQ$21=0,0,$AQ$21) -> 0 | W45: =IF($AR$21=0,0,$AR$21) -> 0 | Y45: =IF($AS$21=0,0,$AS$21) -> 0 | AA45: =IF($AT$21=0,0,$AT$21) -> 0 | AC45: =IF($AU$21=0,0,$AU$21) -> 0 | AE45: =SUM(G45:AD45) -> 0 | AK45: Feb | AL45: 100 | AM45: TRUE | AN45: TRUE | AO45: TRUE | AP45: TRUE | AQ45: TRUE | AR45: =COUNTIF(AM45:AQ45,TRUE) -> 5
A46: =Labels!B111 -> Unproduktive Stunden | AK46: Mrz | AL46: 100 | AM46: TRUE | AN46: TRUE | AO46: TRUE | AP46: TRUE | AQ46: TRUE | AR46: 5
A47: =Labels!B112 -> Absenzen, Kurzabsenzen Art. 11 GAV | F47: =Labels!B113 -> a | G47: =IF($AJ$3=0,0,$AJ$3) -> 0 | I47: =IF($AK$3=0,0,$AK$3) -> 0 | K47: =IF($AL$3=0,0,$AL$3) -> 0 | M47: =IF($AM$3=0,0,$AM$3) -> 0 | O47: =IF($AN$3=0,0,$AN$3) -> 0 | Q47: =IF($AO$3=0,0,$AO$3) -> 0 | S47: =IF($AP$3=0,0,$AP$3) -> 0 | U47: =IF($AQ$3=0,0,$AQ$3) -> 0 | W47: =IF($AR$3=0,0,$AR$3) -> 0 | Y47: =IF($AS$3=0,0,$AS$3) -> 0 | AA47: =IF(AT$3=0,0,$AT$3) -> 0 | AC47: =IF($AU$3=0,0,$AU$3) -> 0 | AE47: =IF($AV$3=0,0,$AV$3) -> 0 | AK47: Apr | AL47: 100 | AM47: TRUE | AN47: TRUE | AO47: TRUE | AP47: TRUE | AQ47: TRUE | AR47: 5
A48: =Labels!B114 -> Ferien Art. 12.1 GAV | F48: =Labels!B115 -> f | G48: =IF($AJ$4=0,0,$AJ$4) -> 0 | I48: =IF($AK$4=0,0,$AK$4) -> 0 | K48: =IF($AL$4=0,0,$AL$4) -> 0 | M48: =IF($AM$4=0,0,$AM$4) -> 0 | O48: =IF($AN$4=0,0,$AN$4) -> 0 | Q48: =IF($AO$4=0,0,$AO$4) -> 0 | S48: =IF($AP$4=0,0,$AP$4) -> 0 | U48: =IF($AQ$4=0,0,$AQ$4) -> 0 | W48: =IF($AR$4=0,0,$AR$4) -> 0 | Y48: =IF($AS$4=0,0,$AS$4) -> 0 | AA48: =IF($AT$4=0,0,$AT$4) -> 0 | AC48: =IF($AU$4=0,0,$AU$4) -> 0 | AE48: =IF($AV$4=0,0,$AV$4) -> 0 | AK48: Mai | AL48: 100 | AM48: TRUE | AN48: TRUE | AO48: TRUE | AP48: TRUE | AQ48: TRUE | AR48: 5
A49: =Labels!$B$181 -> Ferien unbezahlt | F49: =Labels!$B$182 -> fu | G49: =IF($AJ$13=0,0,$AJ$13) -> 0 | I49: =IF($AK$13=0,0,$AK$13) -> 0 | K49: =IF($AL$13=0,0,$AL$13) -> 0 | M49: =IF($AM$13=0,0,$AM$13) -> 0 | O49: =IF($AN$13=0,0,$AN$13) -> 0 | Q49: =IF($AO$13=0,0,$AO$13) -> 0 | S49: =IF($AP$13=0,0,$AP$13) -> 0 | U49: =IF($AQ$13=0,0,$AQ$13) -> 0 | W49: =IF($AR$13=0,0,$AR$13) -> 0 | Y49: =IF($AS$13=0,0,$AS$13) -> 0 | AA49: =IF($AT$13=0,0,$AT$13) -> 0 | AC49: =IF($AU$13=0,0,$AU$13) -> 0 | AE49: =IF($AV$13=0,0,$AV$13) -> 0 | AK49: Jun | AL49: 100 | AM49: TRUE | AN49: TRUE | AO49: TRUE | AP49: TRUE | AQ49: TRUE | AR49: 5
A50: =Labels!B116 -> Feiertage Art. 12.2 GAV | C50: =IF($AJ$18="","",$AJ$18) ->  | F50: =Labels!B118 -> ft | G50: =IF($AJ$16=0,0,$AJ$16) -> 0 | I50: =IF($AK$16=0,0,$AK$16) -> 0 | K50: =IF($AL$16=0,0,$AL$16) -> 0 | M50: =IF($AM$16=0,0,$AM$16) -> 0 | O50: =IF($AN$16=0,0,$AN$16) -> 0 | Q50: =IF($AO$16=0,0,$AO$16) -> 0 | S50: =IF($AP$16=0,0,$AP$16) -> 0 | U50: =IF($AQ$16=0,0,$AQ$16) -> 0 | W50: =IF($AR$16=0,0,$AR$16) -> 0 | Y50: =IF($AS$16=0,0,$AS$16) -> 0 | AA50: =IF($AT$16=0,0,$AT$16) -> 0 | AC50: =IF($AU$16=0,0,$AU$16) -> 0 | AE50: =IF($AV$16=0,0,$AV$16) -> 0 | AK50: Jul | AL50: 100 | AM50: TRUE | AN50: TRUE | AO50: TRUE | AP50: TRUE | AQ50: TRUE | AR50: 5
A51: =Labels!B119 -> Krankheit Art. 13 GAV | F51: =Labels!B120 -> k | G51: =IF($AJ$5=0,0,$AJ$5) -> 0 | I51: =IF($AK$5=0,0,$AK$5) -> 0 | K51: =IF($AL$5=0,0,$AL$5) -> 0 | M51: =IF($AM$5=0,0,$AM$5) -> 0 | O51: =IF($AN$5=0,0,$AN$5) -> 0 | Q51: =IF($AO$5=0,0,$AO$5) -> 0 | S51: =IF($AP$5=0,0,$AP$5) -> 0 | U51: =IF($AQ$5=0,0,$AQ$5) -> 0 | W51: =IF($AR$5=0,0,$AR$5) -> 0 | Y51: =IF($AS$5=0,0,$AS$5) -> 0 | AA51: =IF($AT$5=0,0,$AT$5) -> 0 | AC51: =IF($AU$5=0,0,$AU$5) -> 0 | AE51: =IF($AV$5=0,0,$AV$5) -> 0 | AK51: Aug | AL51: 100 | AM51: TRUE | AN51: TRUE | AO51: TRUE | AP51: TRUE | AQ51: TRUE | AR51: 5
A52: =Labels!B121 -> Unfall Art. 14 GAV | F52: =Labels!B122 -> u | G52: =IF($AJ$6=0,0,$AJ$6) -> 0 | I52: =IF($AK$6=0,0,$AK$6) -> 0 | K52: =IF($AL$6=0,0,$AL$6) -> 0 | M52: =IF($AM$6=0,0,$AM$6) -> 0 | O52: =IF($AN$6=0,0,$AN$6) -> 0 | Q52: =IF($AO$6=0,0,$AO$6) -> 0 | S52: =IF($AP$6=0,0,$AP$6) -> 0 | U52: =IF($AQ$6=0,0,$AQ$6) -> 0 | W52: =IF($AR$6=0,0,$AR$6) -> 0 | Y52: =IF($AS$6=0,0,$AS$6) -> 0 | AA52: =IF($AT$6=0,0,$AT$6) -> 0 | AC52: =IF($AU$6=0,0,$AU$6) -> 0 | AE52: =IF($AV$6=0,0,$AV$6) -> 0 | AK52: Sep | AL52: 100 | AM52: TRUE | AN52: TRUE | AO52: TRUE | AP52: TRUE | AQ52: TRUE | AR52: 5
A53: =Labels!B123 -> Schwangerschaft/Mutterschaft Art. 15 GAV | F53: =Labels!B124 -> s | G53: =IF($AJ$7=0,0,$AJ$7) -> 0 | I53: =IF($AK$7=0,0,$AK$7) -> 0 | K53: =IF($AL$7=0,0,$AL$7) -> 0 | M53: =IF($AM$7=0,0,$AM$7) -> 0 | O53: =IF($AN$7=0,0,$AN$7) -> 0 | Q53: =IF($AO$7=0,0,$AO$7) -> 0 | S53: =IF($AP$7=0,0,$AP$7) -> 0 | U53: =IF($AQ$7=0,0,$AQ$7) -> 0 | W53: =IF($AR$7=0,0,$AR$7) -> 0 | Y53: =IF($AS$7=0,0,$AS$7) -> 0 | AA53: =IF($AT$7=0,0,$AT$7) -> 0 | AC53: =IF($AU$7=0,0,$AU$7) -> 0 | AE53: =IF($AV$7=0,0,$AV$7) -> 0 | AK53: Okt | AL53: 100 | AM53: TRUE | AN53: TRUE | AO53: TRUE | AP53: TRUE | AQ53: TRUE | AR53: 5
A54: =Labels!B125 -> Militär/Beförderung/Zivilschutz Art. 16 GAV | F54: =Labels!B126 -> m | G54: =IF($AJ$8=0,0,$AJ$8) -> 0 | I54: =IF($AK$8=0,0,$AK$8) -> 0 | K54: =IF($AL$8=0,0,$AL$8) -> 0 | M54: =IF($AM$8=0,0,$AM$8) -> 0 | O54: =IF($AN$8=0,0,$AN$8) -> 0 | Q54: =IF($AO$8=0,0,$AO$8) -> 0 | S54: =IF($AP$8=0,0,$AP$8) -> 0 | U54: =IF($AQ$8=0,0,$AQ$8) -> 0 | W54: =IF($AR$8=0,0,$AR$8) -> 0 | Y54: =IF($AS$8=0,0,$AS$8) -> 0 | AA54: =IF($AT$8=0,0,$AT$8) -> 0 | AC54: =IF($AU$8=0,0,$AU$8) -> 0 | AE54: =IF($AV$8=0,0,$AV$8) -> 0 | AK54: Nov | AL54: 100 | AM54: TRUE | AN54: TRUE | AO54: TRUE | AP54: TRUE | AQ54: TRUE | AR54: 5
A55: =Labels!B127 -> Kurzarbeit und Schlechtwetterausfälle | F55: =Labels!B128 -> ka | G55: =IF($AJ$11=0,0,$AJ$11) -> 0 | I55: =IF($AK$11=0,0,$AK$11) -> 0 | K55: =IF($AL$11=0,0,$AL$11) -> 0 | M55: =IF($AM$11=0,0,$AM$11) -> 0 | O55: =IF($AN$11=0,0,$AN$11) -> 0 | Q55: =IF($AO$11=0,0,$AO$11) -> 0 | S55: =IF($AP$11=0,0,$AP$11) -> 0 | U55: =IF($AQ$11=0,0,$AQ$11) -> 0 | W55: =IF($AR$11=0,0,$AR$11) -> 0 | Y55: =IF($AS$11=0,0,$AS$11) -> 0 | AA55: =IF($AT$11=0,0,$AT$11) -> 0 | AC55: =IF($AU$11=0,0,$AU$11) -> 0 | AE55: =IF($AV$11=0,0,$AV$11) -> 0 | AK55: Dez | AL55: 100 | AM55: TRUE | AN55: TRUE | AO55: TRUE | AP55: TRUE | AQ55: TRUE | AR55: 5
A56: =Labels!B129 -> Berufsschule | F56: =Labels!B130 -> bs | G56: =IF($AJ$9=0,0,$AJ$9) -> 0 | I56: =IF($AK$9=0,0,$AK$9) -> 0 | K56: =IF($AL$9=0,0,$AL$9) -> 0 | M56: =IF($AM$9=0,0,$AM$9) -> 0 | O56: =IF($AN$9=0,0,$AN$9) -> 0 | Q56: =IF($AO$9=0,0,$AO$9) -> 0 | S56: =IF($AP$9=0,0,$AP$9) -> 0 | U56: =IF($AQ$9=0,0,$AQ$9) -> 0 | W56: =IF($AR$9=0,0,$AR$9) -> 0 | Y56: =IF($AS$9=0,0,$AS$9) -> 0 | AA56: =IF($AT$9=0,0,$AT$9) -> 0 | AC56: =IF($AU$9=0,0,$AU$9) -> 0 | AE56: =IF($AV$9=0,0,$AV$9) -> 0 | AK56: Avg | AL56: =SUM(AL44:AL55)/12 -> 100 | AM56: 2 | AN56: 3 | AO56: 4 | AP56: 5 | AQ56: 6
A57: =Labels!B131 -> Kurse | F57: =Labels!B132 -> ku | G57: =IF($AJ$10=0,0,$AJ$10) -> 0 | I57: =IF($AK$10=0,0,$AK$10) -> 0 | K57: =IF($AL$10=0,0,$AL$10) -> 0 | M57: =IF($AM$10=0,0,$AM$10) -> 0 | O57: =IF($AN$10=0,0,$AN$10) -> 0 | Q57: =IF($AO$10=0,0,$AO$10) -> 0 | S57: =IF($AP$10=0,0,$AP$10) -> 0 | U57: =IF($AQ$10=0,0,$AQ$10) -> 0 | W57: =IF($AR$10=0,0,$AR$10) -> 0 | Y57: =IF($AS$10=0,0,$AS$10) -> 0 | AA57: =IF($AT$10=0,0,$AT$10) -> 0 | AC57: =IF($AU$10=0,0,$AU$10) -> 0 | AE57: =IF($AV$10=0,0,$AV$10) -> 0
A58: =Labels!B133 -> Kompensations-Std | B58: =Labels!B134 -> aus Vorjahr | F58: =Labels!B135 -> kv | G58: =IF($AJ$12=0,0,$AJ$12) -> 0 | I58: =IF($AK$12=0,0,$AK$12) -> 0 | K58: =IF($AL$12=0,0,$AL$12) -> 0 | M58: =IF($AM$12=0,0,$AM$12) -> 0 | O58: =IF($AN$12=0,0,$AN$12) -> 0 | Q58: =IF($AO$12=0,0,$AO$12) -> 0 | S58: =IF($AP$12=0,0,$AP$12) -> 0 | U58: =IF($AQ$12=0,0,$AQ$12) -> 0 | W58: =IF($AR$12=0,0,$AR$12) -> 0 | AE58: =IF($AV$12=0,0,$AV$12) -> 0
B59: =Labels!B136 -> aus laufendem Jahr (Kontrolle) | F59: =Labels!B137 -> kj | G59: =IF($AJ$15=0,0,$AJ$15) -> 0 | I59: =IF($AK$15=0,0,$AK$15) -> 0 | K59: =IF($AL$15=0,0,$AL$15) -> 0 | M59: =IF($AM$15=0,0,$AM$15) -> 0 | O59: =IF($AN$15=0,0,$AN$15) -> 0 | Q59: =IF($AO$15=0,0,$AO$15) -> 0 | S59: =IF($AP$15=0,0,$AP$15) -> 0 | U59: =IF($AQ$15=0,0,$AQ$15) -> 0 | W59: =IF($AR$15=0,0,$AR$15) -> 0 | Y59: =IF($AS$15=0,0,$AS$15) -> 0 | AA59: =IF($AT$15=0,0,$AT$15) -> 0 | AC59: =IF($AU$15=0,0,$AU$15) -> 0 | AE59: =IF($AV$15=0,0,$AV$15) -> 0
A60: =Labels!B138 -> Auszahlung | B60: =Labels!B139 -> Stunden Vorjahressaldo | G60: =IF($AJ$19=0,0,$AJ$19) -> 0 | I60: =IF($AK$19=0,0,$AK$19) -> 0 | K60: =IF($AL$19=0,0,$AL$19) -> 0 | M60: =IF($AM$19=0,0,$AM$19) -> 0 | O60: =IF($AN$19=0,0,$AN$19) -> 0 | Q60: =IF($AO$19=0,0,$AO$19) -> 0 | S60: =IF($AP$19=0,0,$AP$19) -> 0 | U60: =IF($AQ$19=0,0,$AQ$19) -> 0 | W60: =IF($AR$19=0,0,$AR$19) -> 0 | AE60: =IF($AV$19=0,0,$AV$19) -> 0
A61: =Labels!B140 -> Differenz | B61: =Labels!B141 -> nach Kompensation und Auszahlung | G61: =IF(ROUND($P$4,3)=0,0,$P$4-G58-G60) -> 0 | I61: =IF(ROUND(G61,3)=0,0,G61-(SUM(I58+I60))) -> 0 | K61: =IF(ROUND(I61,3)=0,0,I61-K60-K58) -> 0 | M61: =IF(ROUND(K61,3)=0,0,K61-(SUM(M60+M58))) -> 0 | O61: =IF(ROUND(M61,3)=0,0,M61-(SUM(O60+O58))) -> 0 | Q61: =IF(ROUND(O61,3)=0,0,O61-(SUM(Q60+Q58))) -> 0 | S61: =IF(ROUND(Q61,3)=0,0,Q61-(SUM(S60+S58))) -> 0 | U61: =IF(ROUND(S61,3)=0,0,S61-(SUM(U60+U58))) -> 0 | W61: =IF(ROUND(U61,3)=0,0,U61-(SUM(W60+W58))) -> 0 | Y61: =IF($W$61<0.1,"",AY39) -> 
A62: =Labels!B138 -> Auszahlung | B62: =Labels!B142 -> Stunden laufendes Jahr | G62: =IF($AJ$20=0,0,$AJ$20) -> 0 | I62: =IF($AK$20=0,0,$AK$20) -> 0 | K62: =IF($AL$20=0,0,$AL$20) -> 0 | M62: =IF($AM$20=0,0,$AM$20) -> 0 | O62: =IF($AN$20=0,0,$AN$20) -> 0 | Q62: =IF($AO$20=0,0,$AO$20) -> 0 | S62: =IF($AP$20=0,0,$AP$20) -> 0 | U62: =IF($AQ$20=0,0,$AQ$20) -> 0 | W62: =IF($AR$20=0,0,$AR$20) -> 0 | Y62: =IF($AS$20=0,0,$AS$20) -> 0 | AA62: =IF($AT$20=0,0,$AT$20) -> 0 | AC62: =IF($AU$20=0,0,$AU$20) -> 0 | AE62: =IF($AV$20=0,0,$AV$20) -> 0
A63: =Labels!B143 -> Fehlstunden | B63: =Labels!B144 -> laufendes Jahr (Kontrolle) | F63: =Labels!B145 -> fe | G63: =IF($AJ$14=0,0,$AJ$14) -> 0 | I63: =IF($AK$14=0,0,$AK$14) -> 0 | K63: =IF($AL$14=0,0,$AL$14) -> 0 | M63: =IF($AM$14=0,0,$AM$14) -> 0 | O63: =IF($AN$14=0,0,$AN$14) -> 0 | Q63: =IF($AO$14=0,0,$AO$14) -> 0 | S63: =IF($AP$14=0,0,$AP$14) -> 0 | U63: =IF($AQ$14=0,0,$AQ$14) -> 0 | W63: =IF($AR$14=0,0,$AR$14) -> 0 | Y63: =IF($AS$14=0,0,$AS$14) -> 0 | AA63: =IF($AT$14=0,0,$AT$14) -> 0 | AC63: =IF($AU$14=0,0,$AU$14) -> 0 | AE63: =IF($AV$14=0,0,$AV$14) -> 0
A64: =Labels!B146 -> Total inkl. Zeitzuschläge | B64: =Labels!B147 -> Stunden produktiv und unproduktiv | G64: =IF($AG$36=0,0,$AG$36) -> 0 | I64: =IF($AG$99=0,0,$AG$99) -> 0 | K64: =IF($AG$163=0,0,$AG$163) -> 0 | M64: =IF($AG$227=0,0,$AG$227) -> 0 | O64: =IF($AG$291=0,0,$AG$291) -> 0 | Q64: =IF($AG$355=0,0,$AG$355) -> 0 | S64: =IF($AG$419=0,0,$AG$419) -> 0 | U64: =IF($AG$483=0,0,$AG$483) -> 0 | W64: =IF($AG$547=0,0,$AG$547) -> 0 | Y64: =IF($AG$611=0,0,$AG$611) -> 0 | AA64: =IF($AG$675=0,0,$AG$675) -> 0 | AC64: =IF($AG$739=0,0,$AG$739) -> 0 | AE64: =SUM($G$64:$AD$64) -> 0
A65: =Labels!B148 -> Vergleich | B65: =Labels!B149 -> Stunden zu Soll-Stunden (inkl. allfälli- ge Minusstunden Vorjahr) | G65: =IF($AG$38=0,0,$AG$38)-$AE$34+$P$5 -> -168 | I65: =IF($AG$101=0,0,$AG$101)-$AE$98 -> -160 | K65: =IF($AG$165=0,0,$AG$165)-$AE$162 -> -184 | M65: =IF($AG$229=0,0,$AG$229)-$AE$226 -> -168 | O65: =IF($AG$293=0,0,$AG$293)-$AE$290 -> -176 | Q65: =IF($AG$357=0,0,$AG$357)-$AE$354 -> -176 | S65: =IF($AG$421=0,0,$AG$421)-$AE$418 -> -168 | U65: =IF($AG$485=0,0,$AG$485)-$AE$482 -> -184 | W65: =IF($AG$549=0,0,$AG$549)-$AE$546 -> -176 | Y65: =IF($AG$613=0,0,$AG$613)-$AE$610 -> -168 | AA65: =IF($AG$677=0,0,$AG$677)-$AE$674 -> -176 | AC65: =IF($AG$741=0,0,$AG$741)-$AE$738 -> -176 | AE65: =SUM($G$65:$AD$65) -> -2080
B66: =Labels!B151 -> Stunden zu Soll-Stunden (kumuliert) | G66: =IF(G40=0,0,$G$65) -> -168 | I66: =IF(I40=0,0,SUM($G$65:$J$65)) -> -328 | K66: =IF(K40=0,0,SUM($G$65:$L$65)) -> -512 | M66: =IF(M40=0,0,SUM($G$65:$N$65)) -> -680 | O66: =IF(O40=0,0,SUM($G$65:$P$65)) -> -856 | Q66: =IF(Q40=0,0,SUM($G$65:$R$65)) -> -1032 | S66: =IF(S40=0,0,SUM($G$65:$T$65)) -> -1200 | U66: =IF(U40=0,0,SUM($G$65:$V$65)) -> -1384 | W66: =IF(W40=0,0,SUM($G$65:$X$65)) -> -1560 | Y66: =IF(Y40=0,0,SUM($G$65:$Z$65)) -> -1728 | AA66: =IF(AA40=0,0,SUM($G$65:$AB$65)) -> -1904 | AC66: =IF(AC40=0,0,SUM($G$65:$AD$65)) -> -2080
A67: =Labels!B153 -> Ferienkontrolle | B67: =Labels!B154 -> Ferienguthaben Vorjahr | G67: =IF($AA$4=0,0,$AA$4) -> 0 | I67: =Labels!B155 -> Ferienguthaben nach Art. 12.1 GAV | M67: =IF($AA$5=0,0,$AA$5) -> 0 | O67: =Labels!B156 -> Ferienguthaben total | S67: =SUM(G67+M67) -> 0 | U67: =Labels!B157 -> Ferien bezogen | Y67: =IF($AV$4=0,0,$AV$4) -> 0 | AA67: =Labels!B158 -> Aktuelles Ferienguthaben | AE67: =IF(S67=0,0,S67-Y67) -> 0
A70: =$A$3 -> Mitarbeiter/In | B70: =IF($B$3="","",$B$3) -> Muster Peter | AF70: =AF3 -> 0
A71: =$A$4 -> Anstellung % | B71: =$AL$45 -> 100 | D71: =Labels!B90 -> im Februar
A72: =$A$5 -> Saldo für das Jahr | D72: =IF($AE$65=0,0,$AE$65) -> -2080
A73: =TEXT(DATE(YEAR(AP29),MONTH(AP29)+1,1),"MMMM"&Labels!B13) -> Februar | B73: =$B$9 -> Saldo Monat + / - | F73: =(AG75-(SUM(AG76:AG90)-AE98))*-1 -> -160 | K73: =$K$9 -> = | L73: =$L$9 -> Gelbe Felder müssen ausgefüllt werden (die übrigen werden automatisch berechnet) | AG73: =COUNT(B76:AF76)&" "&Labels!$B$63 -> 20 Tage
A74: =$A$10 -> Tag | B74: =AF10+1 -> 2022-02-01 | C74: =B74+1 -> 2022-02-02 | D74: 2022-02-03 | E74: 2022-02-04 | F74: 2022-02-05 | G74: 2022-02-06 | H74: 2022-02-07 | I74: 2022-02-08 | J74: 2022-02-09 | K74: 2022-02-10 | L74: 2022-02-11 | M74: 2022-02-12 | N74: 2022-02-13 | O74: 2022-02-14 | P74: 2022-02-15 | Q74: 2022-02-16 | R74: 2022-02-17 | S74: 2022-02-18 | T74: 2022-02-19 | U74: 2022-02-20 | V74: 2022-02-21 | W74: 2022-02-22 | X74: 2022-02-23 | Y74: 2022-02-24 | Z74: 2022-02-25 | AA74: 2022-02-26 | AB74: 2022-02-27 | AC74: 2022-02-28 | AD74: =IF(MOD($AE$96,4)=0,$AC$74+1,"") -> 
A75: =$A$11 -> Kalenderwoche | B75: =IF(B74="","",TRUNC((B74-DATE(YEAR(B74+3-MOD(B74-2,7)),1,MOD(B74-2,7)-9))/7)) -> 5 | C75: 5 | D75: 5 | E75: 5 | F75: 5 | G75: 5 | H75: 6 | I75: 6 | J75: 6 | K75: 6 | L75: 6 | M75: 6 | N75: 6 | O75: 7 | P75: 7 | Q75: 7 | R75: 7 | S75: 7 | T75: 7 | U75: 7 | V75: 8 | W75: 8 | X75: 8 | Y75: 8 | Z75: 8 | AA75: 8 | AB75: 8 | AC75: 9 | AG75: =IF($AD$74="",SUM(B76:AC76),SUM(B76:AF76)) -> 160
A76: =$A$12 -> Sollstunden | B76: =IF(AND(MOD(B74,7)>=2,SUMPRODUCT(($AM$56:$AQ$56=MOD(B74,7))*$AM$45:$AQ$45)),($J$7*5/$AR$45)*$B$71%,"") -> 8 | C76: =IF(AND(MOD(C74,7)>=2,SUMPRODUCT(($AM$56:$AQ$56=MOD(C74,7))*$AM$45:$AQ$45)),($J$7*5/$AR$45)*$B$71%,"") -> 8 | D76: =IF(AND(MOD(D74,7)>=2,SUMPRODUCT(($AM$56:$AQ$56=MOD(D74,7))*$AM$45:$AQ$45)),($J$7*5/$AR$45)*$B$71%,"") -> 8 | E76: =IF(AND(MOD(E74,7)>=2,SUMPRODUCT(($AM$56:$AQ$56=MOD(E74,7))*$AM$45:$AQ$45)),($J$7*5/$AR$45)*$B$71%,"") -> 8 | F76: =IF(AND(MOD(F74,7)>=2,SUMPRODUCT(($AM$56:$AQ$56=MOD(F74,7))*$AM$45:$AQ$45)),($J$7*5/$AR$45)*$B$71%,"") ->  | G76: =IF(AND(MOD(G74,7)>=2,SUMPRODUCT(($AM$56:$AQ$56=MOD(G74,7))*$AM$45:$AQ$45)),($J$7*5/$AR$45)*$B$71%,"") ->  | H76: =IF(AND(MOD(H74,7)>=2,SUMPRODUCT(($AM$56:$AQ$56=MOD(H74,7))*$AM$45:$AQ$45)),($J$7*5/$AR$45)*$B$71%,"") -> 8 | I76: =IF(AND(MOD(I74,7)>=2,SUMPRODUCT(($AM$56:$AQ$56=MOD(I74,7))*$AM$45:$AQ$45)),($J$7*5/$AR$45)*$B$71%,"") -> 8 | J76: =IF(AND(MOD(J74,7)>=2,SUMPRODUCT(($AM$56:$AQ$56=MOD(J74,7))*$AM$45:$AQ$45)),($J$7*5/$AR$45)*$B$71%,"") -> 8 | K76: =IF(AND(MOD(K74,7)>=2,SUMPRODUCT(($AM$56:$AQ$56=MOD(K74,7))*$AM$45:$AQ$45)),($J$7*5/$AR$45)*$B$71%,"") -> 8 | L76: =IF(AND(MOD(L74,7)>=2,SUMPRODUCT(($AM$56:$AQ$56=MOD(L74,7))*$AM$45:$AQ$45)),($J$7*5/$AR$45)*$B$71%,"") -> 8 | M76: =IF(AND(MOD(M74,7)>=2,SUMPRODUCT(($AM$56:$AQ$56=MOD(M74,7))*$AM$45:$AQ$45)),($J$7*5/$AR$45)*$B$71%,"") ->  | N76: =IF(AND(MOD(N74,7)>=2,SUMPRODUCT(($AM$56:$AQ$56=MOD(N74,7))*$AM$45:$AQ$45)),($J$7*5/$AR$45)*$B$71%,"") ->  | O76: =IF(AND(MOD(O74,7)>=2,SUMPRODUCT(($AM$56:$AQ$56=MOD(O74,7))*$AM$45:$AQ$45)),($J$7*5/$AR$45)*$B$71%,"") -> 8 | P76: =IF(AND(MOD(P74,7)>=2,SUMPRODUCT(($AM$56:$AQ$56=MOD(P74,7))*$AM$45:$AQ$45)),($J$7*5/$AR$45)*$B$71%,"") -> 8 | Q76: =IF(AND(MOD(Q74,7)>=2,SUMPRODUCT(($AM$56:$AQ$56=MOD(Q74,7))*$AM$45:$AQ$45)),($J$7*5/$AR$45)*$B$71%,"") -> 8 | R76: =IF(AND(MOD(R74,7)>=2,SUMPRODUCT(($AM$56:$AQ$56=MOD(R74,7))*$AM$45:$AQ$45)),($J$7*5/$AR$45)*$B$71%,"") -> 8 | S76: =IF(AND(MOD(S74,7)>=2,SUMPRODUCT(($AM$56:$AQ$56=MOD(S74,7))*$AM$45:$AQ$45)),($J$7*5/$AR$45)*$B$71%,"") -> 8 | T76: =IF(AND(MOD(T74,7)>=2,SUMPRODUCT(($AM$56:$AQ$56=MOD(T74,7))*$AM$45:$AQ$45)),($J$7*5/$AR$45)*$B$71%,"") ->  | U76: =IF(AND(MOD(U74,7)>=2,SUMPRODUCT(($AM$56:$AQ$56=MOD(U74,7))*$AM$45:$AQ$45)),($J$7*5/$AR$45)*$B$71%,"") ->  | V76: =IF(AND(MOD(V74,7)>=2,SUMPRODUCT(($AM$56:$AQ$56=MOD(V74,7))*$AM$45:$AQ$45)),($J$7*5/$AR$45)*$B$71%,"") -> 8 | W76: =IF(AND(MOD(W74,7)>=2,SUMPRODUCT(($AM$56:$AQ$56=MOD(W74,7))*$AM$45:$AQ$45)),($J$7*5/$AR$45)*$B$71%,"") -> 8 | X76: =IF(AND(MOD(X74,7)>=2,SUMPRODUCT(($AM$56:$AQ$56=MOD(X74,7))*$AM$45:$AQ$45)),($J$7*5/$AR$45)*$B$71%,"") -> 8 | Y76: =IF(AND(MOD(Y74,7)>=2,SUMPRODUCT(($AM$56:$AQ$56=MOD(Y74,7))*$AM$45:$AQ$45)),($J$7*5/$AR$45)*$B$71%,"") -> 8 | Z76: =IF(AND(MOD(Z74,7)>=2,SUMPRODUCT(($AM$56:$AQ$56=MOD(Z74,7))*$AM$45:$AQ$45)),($J$7*5/$AR$45)*$B$71%,"") -> 8 | AA76: =IF(AND(MOD(AA74,7)>=2,SUMPRODUCT(($AM$56:$AQ$56=MOD(AA74,7))*$AM$45:$AQ$45)),($J$7*5/$AR$45)*$B$71%,"") ->  | AB76: =IF(AND(MOD(AB74,7)>=2,SUMPRODUCT(($AM$56:$AQ$56=MOD(AB74,7))*$AM$45:$AQ$45)),($J$7*5/$AR$45)*$B$71%,"") ->  | AC76: =IF(AND(MOD(AC74,7)>=2,SUMPRODUCT(($AM$56:$AQ$56=MOD(AC74,7))*$AM$45:$AQ$45)),($J$7*5/$AR$45)*$B$71%,"") -> 8 | AD76: =IF(AND(MOD(AD74,7)>=2,SUMPRODUCT(($AM$56:$AQ$56=MOD(AD74,7))*$AM$45:$AQ$45)),($J$7*5/$AR$45)*$B$71%,"") ->  | AG76: =SUM(AK3:AK13) -> 0
A77: =$A$13 -> Absenz in Std | B77: =B854 -> 0 | C77: =C854 -> 0 | D77: 0 | E77: 0 | F77: 0 | G77: 0 | H77: 0 | I77: 0 | J77: 0 | K77: 0 | L77: 0 | M77: 0 | N77: 0 | O77: 0 | P77: 0 | Q77: 0 | R77: 0 | S77: 0 | T77: 0 | U77: 0 | V77: 0 | W77: 0 | X77: 0 | Y77: 0 | Z77: 0 | AA77: 0 | AB77: 0 | AC77: 0 | AD77: =IF(AD74<>"",AD854,"") -> 
A78: =$A$14 -> Code | B78: =IF(B854<>0,IF(MAX(B841:B853)<B854,Labels!$B$163,INDEX($AH$840:$AH$852,MATCH(MAX(B841:B853),B841:B853,0))),"") ->  | C78: =IF(C854<>0,IF(MAX(C841:C853)<C854,Labels!$B$163,INDEX($AH$840:$AH$852,MATCH(MAX(C841:C853),C841:C853,0))),"") ->  | D78: =IF(D854<>0,IF(MAX(D841:D853)<D854,Labels!$B$163,INDEX($AH$840:$AH$852,MATCH(MAX(D841:D853),D841:D853,0))),"") ->  | E78: =IF(E854<>0,IF(MAX(E841:E853)<E854,Labels!$B$163,INDEX($AH$840:$AH$852,MATCH(MAX(E841:E853),E841:E853,0))),"") ->  | F78: =IF(F854<>0,IF(MAX(F841:F853)<F854,Labels!$B$163,INDEX($AH$840:$AH$852,MATCH(MAX(F841:F853),F841:F853,0))),"") ->  | G78: =IF(G854<>0,IF(MAX(G841:G853)<G854,Labels!$B$163,INDEX($AH$840:$AH$852,MATCH(MAX(G841:G853),G841:G853,0))),"") ->  | H78: =IF(H854<>0,IF(MAX(H841:H853)<H854,Labels!$B$163,INDEX($AH$840:$AH$852,MATCH(MAX(H841:H853),H841:H853,0))),"") ->  | I78: =IF(I854<>0,IF(MAX(I841:I853)<I854,Labels!$B$163,INDEX($AH$840:$AH$852,MATCH(MAX(I841:I853),I841:I853,0))),"") ->  | J78: =IF(J854<>0,IF(MAX(J841:J853)<J854,Labels!$B$163,INDEX($AH$840:$AH$852,MATCH(MAX(J841:J853),J841:J853,0))),"") ->  | K78: =IF(K854<>0,IF(MAX(K841:K853)<K854,Labels!$B$163,INDEX($AH$840:$AH$852,MATCH(MAX(K841:K853),K841:K853,0))),"") ->  | L78: =IF(L854<>0,IF(MAX(L841:L853)<L854,Labels!$B$163,INDEX($AH$840:$AH$852,MATCH(MAX(L841:L853),L841:L853,0))),"") ->  | M78: =IF(M854<>0,IF(MAX(M841:M853)<M854,Labels!$B$163,INDEX($AH$840:$AH$852,MATCH(MAX(M841:M853),M841:M853,0))),"") ->  | N78: =IF(N854<>0,IF(MAX(N841:N853)<N854,Labels!$B$163,INDEX($AH$840:$AH$852,MATCH(MAX(N841:N853),N841:N853,0))),"") ->  | O78: =IF(O854<>0,IF(MAX(O841:O853)<O854,Labels!$B$163,INDEX($AH$840:$AH$852,MATCH(MAX(O841:O853),O841:O853,0))),"") ->  | P78: =IF(P854<>0,IF(MAX(P841:P853)<P854,Labels!$B$163,INDEX($AH$840:$AH$852,MATCH(MAX(P841:P853),P841:P853,0))),"") ->  | Q78: =IF(Q854<>0,IF(MAX(Q841:Q853)<Q854,Labels!$B$163,INDEX($AH$840:$AH$852,MATCH(MAX(Q841:Q853),Q841:Q853,0))),"") ->  | R78: =IF(R854<>0,IF(MAX(R841:R853)<R854,Labels!$B$163,INDEX($AH$840:$AH$852,MATCH(MAX(R841:R853),R841:R853,0))),"") ->  | S78: =IF(S854<>0,IF(MAX(S841:S853)<S854,Labels!$B$163,INDEX($AH$840:$AH$852,MATCH(MAX(S841:S853),S841:S853,0))),"") ->  | T78: =IF(T854<>0,IF(MAX(T841:T853)<T854,Labels!$B$163,INDEX($AH$840:$AH$852,MATCH(MAX(T841:T853),T841:T853,0))),"") ->  | U78: =IF(U854<>0,IF(MAX(U841:U853)<U854,Labels!$B$163,INDEX($AH$840:$AH$852,MATCH(MAX(U841:U853),U841:U853,0))),"") ->  | V78: =IF(V854<>0,IF(MAX(V841:V853)<V854,Labels!$B$163,INDEX($AH$840:$AH$852,MATCH(MAX(V841:V853),V841:V853,0))),"") ->  | W78: =IF(W854<>0,IF(MAX(W841:W853)<W854,Labels!$B$163,INDEX($AH$840:$AH$852,MATCH(MAX(W841:W853),W841:W853,0))),"") ->  | X78: =IF(X854<>0,IF(MAX(X841:X853)<X854,Labels!$B$163,INDEX($AH$840:$AH$852,MATCH(MAX(X841:X853),X841:X853,0))),"") ->  | Y78: =IF(Y854<>0,IF(MAX(Y841:Y853)<Y854,Labels!$B$163,INDEX($AH$840:$AH$852,MATCH(MAX(Y841:Y853),Y841:Y853,0))),"") ->  | Z78: =IF(Z854<>0,IF(MAX(Z841:Z853)<Z854,Labels!$B$163,INDEX($AH$840:$AH$852,MATCH(MAX(Z841:Z853),Z841:Z853,0))),"") ->  | AA78: =IF(AA854<>0,IF(MAX(AA841:AA853)<AA854,Labels!$B$163,INDEX($AH$840:$AH$852,MATCH(MAX(AA841:AA853),AA841:AA853,0))),"") ->  | AB78: =IF(AB854<>0,IF(MAX(AB841:AB853)<AB854,Labels!$B$163,INDEX($AH$840:$AH$852,MATCH(MAX(AB841:AB853),AB841:AB853,0))),"") ->  | AC78: =IF(AC854<>0,IF(MAX(AC841:AC853)<AC854,Labels!$B$163,INDEX($AH$840:$AH$852,MATCH(MAX(AC841:AC853),AC841:AC853,0))),"") ->  | AD78: =IF(AD854<>0,IF(MAX(AD841:AD853)<AD854,Labels!$B$163,INDEX($AH$840:$AH$852,MATCH(MAX(AD841:AD853),AD841:AD853,0))),"") -> div | AG78: =IF($AD$74="",SUM(B79:AC79),SUM(B79:AF79)) -> 0
A79: =$A$15 -> 00.00-06.00h | AG79: =IF($AD$74="",SUM(B80:AC80),SUM(B80:AF80)) -> 0
A80: =$A$16 -> 06.00-20.00h | AG80: =IF($AD$74="",SUM(B81:AC81),SUM(B81:AF81)) -> 0 | AH80: [0]
A81: =$A$17 -> 20.00-24.00h
A82: =$A$18 -> Feiertag "ft" | B82: =IF(WEEKDAY(B74,2)<=6,IF(KALENDER!E5="x",Labels!$B$118,""),"") ->  | C82: =IF(WEEKDAY(C74,2)<=6,IF(KALENDER!F5="x",Labels!$B$118,""),"") ->  | D82: =IF(WEEKDAY(D74,2)<=6,IF(KALENDER!G5="x",Labels!$B$118,""),"") ->  | E82: =IF(WEEKDAY(E74,2)<=6,IF(KALENDER!H5="x",Labels!$B$118,""),"") ->  | F82: =IF(WEEKDAY(F74,2)<=6,IF(KALENDER!I5="x",Labels!$B$118,""),"") ->  | G82: =IF(WEEKDAY(G74,2)<=6,IF(KALENDER!J5="x",Labels!$B$118,""),"") ->  | H82: =IF(WEEKDAY(H74,2)<=6,IF(KALENDER!K5="x",Labels!$B$118,""),"") ->  | I82: =IF(WEEKDAY(I74,2)<=6,IF(KALENDER!L5="x",Labels!$B$118,""),"") ->  | J82: =IF(WEEKDAY(J74,2)<=6,IF(KALENDER!M5="x",Labels!$B$118,""),"") ->  | K82: =IF(WEEKDAY(K74,2)<=6,IF(KALENDER!N5="x",Labels!$B$118,""),"") ->  | L82: =IF(WEEKDAY(L74,2)<=6,IF(KALENDER!O5="x",Labels!$B$118,""),"") ->  | M82: =IF(WEEKDAY(M74,2)<=6,IF(KALENDER!P5="x",Labels!$B$118,""),"") ->  | N82: =IF(WEEKDAY(N74,2)<=6,IF(KALENDER!Q5="x",Labels!$B$118,""),"") ->  | O82: =IF(WEEKDAY(O74,2)<=6,IF(KALENDER!R5="x",Labels!$B$118,""),"") ->  | P82: =IF(WEEKDAY(P74,2)<=6,IF(KALENDER!S5="x",Labels!$B$118,""),"") ->  | Q82: =IF(WEEKDAY(Q74,2)<=6,IF(KALENDER!T5="x",Labels!$B$118,""),"") ->  | R82: =IF(WEEKDAY(R74,2)<=6,IF(KALENDER!U5="x",Labels!$B$118,""),"") ->  | S82: =IF(WEEKDAY(S74,2)<=6,IF(KALENDER!V5="x",Labels!$B$118,""),"") ->  | T82: =IF(WEEKDAY(T74,2)<=6,IF(KALENDER!W5="x",Labels!$B$118,""),"") ->  | U82: =IF(WEEKDAY(U74,2)<=6,IF(KALENDER!X5="x",Labels!$B$118,""),"") ->  | V82: =IF(WEEKDAY(V74,2)<=6,IF(KALENDER!Y5="x",Labels!$B$118,""),"") ->  | W82: =IF(WEEKDAY(W74,2)<=6,IF(KALENDER!Z5="x",Labels!$B$118,""),"") ->  | X82: =IF(WEEKDAY(X74,2)<=6,IF(KALENDER!AA5="x",Labels!$B$118,""),"") ->  | Y82: =IF(WEEKDAY(Y74,2)<=6,IF(KALENDER!AB5="x",Labels!$B$118,""),"") ->  | Z82: =IF(WEEKDAY(Z74,2)<=6,IF(KALENDER!AC5="x",Labels!$B$118,""),"") ->  | AA82: =IF(WEEKDAY(AA74,2)<=6,IF(KALENDER!AD5="x",Labels!$B$118,""),"") ->  | AB82: =IF(WEEKDAY(AB74,2)<=6,IF(KALENDER!AE5="x",Labels!$B$118,""),"") ->  | AC82: =IF(WEEKDAY(AC74,2)<=6,IF(KALENDER!AF5="x",Labels!$B$118,""),"") ->  | AD82: =IF(WEEKDAY(AD74,2)<=6,IF(KALENDER!AG5="x",Labels!$B$118,""),"") ->  | AE82: =IF(WEEKDAY(AE74,2)<=6,IF(KALENDER!AH5="x",Labels!$B$118,""),"") ->  | AF82: =IF(WEEKDAY(AF74,2)<=6,IF(KALENDER!AI5="x",Labels!$B$118,""),"") ->  | AG82: 0
A83: =$A$19 -> Gutschrift "ft" | B83: =IF(AND(B82=Labels!$B$118,WEEKDAY(B74,2)<6,B$76<>""),($J$7*5/$AR$45)*$B$71%,"") ->  | C83: =IF(AND(C82=Labels!$B$118,WEEKDAY(C74,2)<6,C$76<>""),($J$7*5/$AR$45)*$B$71%,"") ->  | D83: =IF(AND(D82=Labels!$B$118,WEEKDAY(D74,2)<6,D$76<>""),($J$7*5/$AR$45)*$B$71%,"") ->  | E83: =IF(AND(E82=Labels!$B$118,WEEKDAY(E74,2)<6,E$76<>""),($J$7*5/$AR$45)*$B$71%,"") ->  | F83: =IF(AND(F82=Labels!$B$118,WEEKDAY(F74,2)<6,F$76<>""),($J$7*5/$AR$45)*$B$71%,"") ->  | G83: =IF(AND(G82=Labels!$B$118,WEEKDAY(G74,2)<6,G$76<>""),($J$7*5/$AR$45)*$B$71%,"") ->  | H83: =IF(AND(H82=Labels!$B$118,WEEKDAY(H74,2)<6,H$76<>""),($J$7*5/$AR$45)*$B$71%,"") ->  | I83: =IF(AND(I82=Labels!$B$118,WEEKDAY(I74,2)<6,I$76<>""),($J$7*5/$AR$45)*$B$71%,"") ->  | J83: =IF(AND(J82=Labels!$B$118,WEEKDAY(J74,2)<6,J$76<>""),($J$7*5/$AR$45)*$B$71%,"") ->  | K83: =IF(AND(K82=Labels!$B$118,WEEKDAY(K74,2)<6,K$76<>""),($J$7*5/$AR$45)*$B$71%,"") ->  | L83: =IF(AND(L82=Labels!$B$118,WEEKDAY(L74,2)<6,L$76<>""),($J$7*5/$AR$45)*$B$71%,"") ->  | M83: =IF(AND(M82=Labels!$B$118,WEEKDAY(M74,2)<6,M$76<>""),($J$7*5/$AR$45)*$B$71%,"") ->  | N83: =IF(AND(N82=Labels!$B$118,WEEKDAY(N74,2)<6,N$76<>""),($J$7*5/$AR$45)*$B$71%,"") ->  | O83: =IF(AND(O82=Labels!$B$118,WEEKDAY(O74,2)<6,O$76<>""),($J$7*5/$AR$45)*$B$71%,"") ->  | P83: =IF(AND(P82=Labels!$B$118,WEEKDAY(P74,2)<6,P$76<>""),($J$7*5/$AR$45)*$B$71%,"") ->  | Q83: =IF(AND(Q82=Labels!$B$118,WEEKDAY(Q74,2)<6,Q$76<>""),($J$7*5/$AR$45)*$B$71%,"") ->  | R83: =IF(AND(R82=Labels!$B$118,WEEKDAY(R74,2)<6,R$76<>""),($J$7*5/$AR$45)*$B$71%,"") ->  | S83: =IF(AND(S82=Labels!$B$118,WEEKDAY(S74,2)<6,S$76<>""),($J$7*5/$AR$45)*$B$71%,"") ->  | T83: =IF(AND(T82=Labels!$B$118,WEEKDAY(T74,2)<6,T$76<>""),($J$7*5/$AR$45)*$B$71%,"") ->  | U83: =IF(AND(U82=Labels!$B$118,WEEKDAY(U74,2)<6,U$76<>""),($J$7*5/$AR$45)*$B$71%,"") ->  | V83: =IF(AND(V82=Labels!$B$118,WEEKDAY(V74,2)<6,V$76<>""),($J$7*5/$AR$45)*$B$71%,"") ->  | W83: =IF(AND(W82=Labels!$B$118,WEEKDAY(W74,2)<6,W$76<>""),($J$7*5/$AR$45)*$B$71%,"") ->  | X83: =IF(AND(X82=Labels!$B$118,WEEKDAY(X74,2)<6,X$76<>""),($J$7*5/$AR$45)*$B$71%,"") ->  | Y83: =IF(AND(Y82=Labels!$B$118,WEEKDAY(Y74,2)<6,Y$76<>""),($J$7*5/$AR$45)*$B$71%,"") ->  | Z83: =IF(AND(Z82=Labels!$B$118,WEEKDAY(Z74,2)<6,Z$76<>""),($J$7*5/$AR$45)*$B$71%,"") ->  | AA83: =IF(AND(AA82=Labels!$B$118,WEEKDAY(AA74,2)<6,AA$76<>""),($J$7*5/$AR$45)*$B$71%,"") ->  | AB83: =IF(AND(AB82=Labels!$B$118,WEEKDAY(AB74,2)<6,AB$76<>""),($J$7*5/$AR$45)*$B$71%,"") ->  | AC83: =IF(AND(AC82=Labels!$B$118,WEEKDAY(AC74,2)<6,AC$76<>""),($J$7*5/$AR$45)*$B$71%,"") ->  | AD83: =IF(AND(AD82=Labels!$B$118,WEEKDAY(AD74,2)<6,AD$76<>""),($J$7*5/$AR$45)*$B$71%,"") ->  | AE83: =IF(AND(AE82=Labels!$B$118,WEEKDAY(AE74,2)<6),$J$7*$B$71%,"") ->  | AF83: =IF(AND(AF82=Labels!$B$118,WEEKDAY(AF74,2)<6),$J$7*$B$71%,"") -> 
A84: =$A$20 -> Tagestotal | B84: =SUM(B79:B81) -> 0 | C84: =SUM(C79:C81) -> 0 | D84: 0 | E84: 0 | F84: 0 | G84: 0 | H84: 0 | I84: 0 | J84: 0 | K84: 0 | L84: 0 | M84: 0 | N84: 0 | O84: 0 | P84: 0 | Q84: 0 | R84: 0 | S84: 0 | T84: 0 | U84: 0 | V84: 0 | W84: 0 | X84: 0 | Y84: 0 | Z84: 0 | AA84: 0 | AB84: 0 | AC84: 0 | AD84: =IF(AD74="","",SUM(AD79:AD81)) -> 
A85: =$A$21 -> .
A86: =$A$22 -> .
A87: =$A$23 -> Monatsübergang | B87: =IF(WEEKDAY(B74)=1,TEXT(B74-1,"MMM"&Labels!B13),"") ->  | AC87: =IF(AND(WEEKDAY(AC74)>1,WEEKDAY(AC74)<7,AD74=""),TEXT(DATE($B$5,MONTH(AC74)+1,1),"MMM"&Labels!B13),"") -> Mär | AD87: =IF(ISERROR(WEEKDAY(AD74)),"",IF(AND(WEEKDAY(AD74)>1,WEEKDAY(AD74)<7),TEXT(DATE($B$5,MONTH(AD74)+1,1),"MMM"&Labels!B13),"")) -> 
A88: =$A$24 -> Wochentotal | B88: =IF(WEEKDAY(B74)=7,SUMIF($B11:$AF11,B75,$B20:$AF20)+SUMIF($B75:$AF75,B75,$B84:$AF84)+SUMIF($B139:$AF139,B75,$B148:$AF148),B87) ->  | C88: =IF(WEEKDAY(C74)=7,SUMIF($B11:$AF11,C75,$B20:$AF20)+SUMIF($B75:$AF75,C75,$B84:$AF84)+SUMIF($B139:$AF139,C75,$B148:$AF148),"") ->  | F88: 0 | M88: 0 | T88: 0 | AA88: 0 | AC88: =IF(WEEKDAY(AC74)=7,SUMIF($B11:$AF11,AC75,$B20:$AF20)+SUMIF($B75:$AF75,AC75,$B84:$AF84)+SUMIF($B139:$AF139,AC75,$B148:$AF148),AC87) -> Mär | AD88: =IF(ISERROR(WEEKDAY(AD74)=7),"",IF(WEEKDAY(AD74)=7,SUMIF($B11:$AF11,AD75,$B20:$AF20)+SUMIF($B75:$AF75,AD75,$B84:$AF84)+SUMIF($B139:$AF139,AD75,$B148:$AF148),AD87)) ->  | AG88: 0
A89: =$A$25 -> Zeitzuschlag 1) | B89: =IF(B96="FALSCH","",B96) ->  | C89: =IF(C96="FALSCH","",C96) ->  | AG89: 0 | AH89: [1]
A90: =$A$26 -> Zeitzuschlag 2) | B90: =IF((B79+B81)=0,"",SUM(B79,B81)) ->  | C90: =IF((C79+C81)=0,"",SUM(C79,C81)) ->  | AG90: 0 | AH90: [2]
A91: =$A$27 -> Zeitzuschlag 3) | B91: =SUM(B92:B95) -> 0 | C91: =SUM(C92:C95) -> 0 | D91: 0 | E91: 0 | F91: 0 | G91: 0 | H91: 0 | I91: 0 | J91: 0 | K91: 0 | L91: 0 | M91: 0 | N91: 0 | O91: 0 | P91: 0 | Q91: 0 | R91: 0 | S91: 0 | T91: 0 | U91: 0 | V91: 0 | W91: 0 | X91: 0 | Y91: 0 | Z91: 0 | AA91: 0 | AB91: 0 | AC91: 0 | AD91: =IF(ISERROR(WEEKDAY(AD74)=1),"",SUM(AD92:AD95)) ->  | AG91: 0 | AH91: [3]
A92: =$A$28 -> Sonntag Tag | B92: =IF(WEEKDAY(B74)=1,B80,"") ->  | C92: =IF(WEEKDAY(C74)=1,C80,"") ->  | G92: 0 | N92: 0 | U92: 0 | AB92: 0 | AD92: =IF(ISERROR(WEEKDAY(AD74)=1),"",IF(WEEKDAY(AD74)=1,AD80,"")) ->  | AG92: 0 | AH92: [4]
A93: =$A$29 -> Sonntag Nacht | B93: =IF(WEEKDAY(B74)=1,SUM(B79+B81),"") ->  | C93: =IF(WEEKDAY(C74)=1,SUM(C79+C81),"") ->  | G93: 0 | N93: 0 | U93: 0 | AB93: 0 | AD93: =IF(ISERROR(WEEKDAY(AD74)=1),"",IF(WEEKDAY(AD74)=1,SUM(AD79+AD81),"")) ->  | AG93: 0 | AH93: [5]
A94: =$A$30 -> ft-Tazuschlag | B94: =IF(B82=Labels!$B$118,B80,"") ->  | C94: =IF(C82=Labels!$B$118,C80,"") ->  | D94: =IF(D82=Labels!$B$118,D80,"") ->  | E94: =IF(E82=Labels!$B$118,E80,"") ->  | F94: =IF(F82=Labels!$B$118,F80,"") ->  | G94: =IF(G82=Labels!$B$118,G80,"") ->  | H94: =IF(H82=Labels!$B$118,H80,"") ->  | I94: =IF(I82=Labels!$B$118,I80,"") ->  | J94: =IF(J82=Labels!$B$118,J80,"") ->  | K94: =IF(K82=Labels!$B$118,K80,"") ->  | L94: =IF(L82=Labels!$B$118,L80,"") ->  | M94: =IF(M82=Labels!$B$118,M80,"") ->  | N94: =IF(N82=Labels!$B$118,N80,"") ->  | O94: =IF(O82=Labels!$B$118,O80,"") ->  | P94: =IF(P82=Labels!$B$118,P80,"") ->  | Q94: =IF(Q82=Labels!$B$118,Q80,"") ->  | R94: =IF(R82=Labels!$B$118,R80,"") ->  | S94: =IF(S82=Labels!$B$118,S80,"") ->  | T94: =IF(T82=Labels!$B$118,T80,"") ->  | U94: =IF(U82=Labels!$B$118,U80,"") ->  | V94: =IF(V82=Labels!$B$118,V80,"") ->  | W94: =IF(W82=Labels!$B$118,W80,"") ->  | X94: =IF(X82=Labels!$B$118,X80,"") ->  | Y94: =IF(Y82=Labels!$B$118,Y80,"") ->  | Z94: =IF(Z82=Labels!$B$118,Z80,"") ->  | AA94: =IF(AA82=Labels!$B$118,AA80,"") ->  | AB94: =IF(AB82=Labels!$B$118,AB80,"") ->  | AC94: =IF(AC82=Labels!$B$118,AC80,"") ->  | AD94: =IF(AD82=Labels!$B$118,AD80,"") ->  | AG94: 0 | AH94: [6]
A95: =$A$31 -> ft-Nazuschlag | B95: =IF(B82=Labels!$B$118,SUM(B79,B81),"") ->  | C95: =IF(C82=Labels!$B$118,SUM(C79,C81),"") ->  | D95: =IF(D82=Labels!$B$118,SUM(D79,D81),"") ->  | E95: =IF(E82=Labels!$B$118,SUM(E79,E81),"") ->  | F95: =IF(F82=Labels!$B$118,SUM(F79,F81),"") ->  | G95: =IF(G82=Labels!$B$118,SUM(G79,G81),"") ->  | H95: =IF(H82=Labels!$B$118,SUM(H79,H81),"") ->  | I95: =IF(I82=Labels!$B$118,SUM(I79,I81),"") ->  | J95: =IF(J82=Labels!$B$118,SUM(J79,J81),"") ->  | K95: =IF(K82=Labels!$B$118,SUM(K79,K81),"") ->  | L95: =IF(L82=Labels!$B$118,SUM(L79,L81),"") ->  | M95: =IF(M82=Labels!$B$118,SUM(M79,M81),"") ->  | N95: =IF(N82=Labels!$B$118,SUM(N79,N81),"") ->  | O95: =IF(O82=Labels!$B$118,SUM(O79,O81),"") ->  | P95: =IF(P82=Labels!$B$118,SUM(P79,P81),"") ->  | Q95: =IF(Q82=Labels!$B$118,SUM(Q79,Q81),"") ->  | R95: =IF(R82=Labels!$B$118,SUM(R79,R81),"") ->  | S95: =IF(S82=Labels!$B$118,SUM(S79,S81),"") ->  | T95: =IF(T82=Labels!$B$118,SUM(T79,T81),"") ->  | U95: =IF(U82=Labels!$B$118,SUM(U79,U81),"") ->  | V95: =IF(V82=Labels!$B$118,SUM(V79,V81),"") ->  | W95: =IF(W82=Labels!$B$118,SUM(W79,W81),"") ->  | X95: =IF(X82=Labels!$B$118,SUM(X79,X81),"") ->  | Y95: =IF(Y82=Labels!$B$118,SUM(Y79,Y81),"") ->  | Z95: =IF(Z82=Labels!$B$118,SUM(Z79,Z81),"") ->  | AA95: =IF(AA82=Labels!$B$118,SUM(AA79,AA81),"") ->  | AB95: =IF(AB82=Labels!$B$118,SUM(AB79,AB81),"") ->  | AC95: =IF(AC82=Labels!$B$118,SUM(AC79,AC81),"") ->  | AD95: =IF(AD82=Labels!$B$118,SUM(AD79,AD81),"") ->  | AG95: =AG79 -> 0 | AH95: [7]
A96: =$A$32 -> Zuschlag blind (Wochentotal) | B96: =IF(OR(ISTEXT(B88),B88="",B88<$B$7),"",ROUND(((B88-$B$7)*25%)/25,4)*25) ->  | C96: =IF(OR(ISTEXT(C88),C88="",C88<$B$7),"",ROUND(((C88-$B$7)*25%)/25,4)*25) ->  | AE96: =YEAR(AC74) -> 2022 | AG96: =SUM(AG78+AG80) -> 0 | AH96: [8]
B97: =$B$33 -> 1) 25% Zeitzuschlag für Überschreitung Wochentotal | L97: =$L$33 -> 2) 100% Zeitzuschlag für Nachtarbeit | T97: =$T$33 -> Eingabe der ausbezahlten Stunden Vorjahressaldo | AG97: =SUM(AG78:AG80) -> 0 | AH97: [9]
B98: =$B$34 -> 3) 100% Zeitzuschlag für Sonn- und Feiertagsarbeit | T98: =$T$34 -> Eingabe der ausbezahlten Stunden laufendes Jahr (Überstunden) | AG98: =SUM(AG76+AG82) -> 0 | AH98: [10]
A99: =$A$35 -> Bemerkungen | AG99: =SUM(AG76:AG90) -> 0 | AH99: [11]
AG100: =AG75 -> 160
AG101: =SUM(AG99-AG75) -> -160
A103: =$A$39 -> Zusammenstellung | G103: =$G$39 -> Jan | I103: =$I$39 -> Feb | K103: =$K$39 -> Mrz | M103: =$M$39 -> Apr | O103: =$O$39 -> Mai | Q103: =$Q$39 -> Jun | S103: =$S$39 -> Jul | U103: =$U$39 -> Aug | W103: =$W$39 -> Sep | Y103: =$Y$39 -> Okt | AA103: =$AA$39 -> Nov | AC103: =$AC$39 -> Dez | AE103: =$AE$39 -> Jahr
A104: =$A$40 -> Anstellung % | G104: =IF($B$4=0,0,$B$4) -> 100 | I104: =IF($B$71=0,0,$B$71) -> 100 | K104: =IF($B$135=0,0,$B$135) -> 100 | M104: =IF($B$199=0,0,$B$199) -> 100 | O104: =IF($B$263=0,0,$B$263) -> 100 | Q104: =IF($B$327=0,0,$B$327) -> 100 | S104: =IF($B$391=0,0,$B$391) -> 100 | U104: =IF($B$455=0,0,$B$455) -> 100 | W104: =IF($B$519=0,0,$B$519) -> 100 | Y104: =IF($B$583=0,0,$B$583) -> 100 | AA104: =IF($B$647=0,0,$B$647) -> 100 | AC104: =IF($B$711=0,0,$B$711) -> 100
A105: =$A$41 -> Sollstunden gemäss GAV | G105: =IF($AG$37=0,0,$AG$37) -> 168 | I105: =IF($AG$100=0,0,$AG$100) -> 160 | K105: =IF($AG$139=0,0,$AG$139) -> 184 | M105: =IF($AG$228=0,0,$AG$228) -> 168 | O105: =IF($AG$292=0,0,$AG$292) -> 176 | Q105: =IF($AG$356=0,0,$AG$356) -> 176 | S105: =IF($AG$420=0,0,$AG$420) -> 168 | U105: =IF($AG$484=0,0,$AG$484) -> 184 | W105: =IF($AG$548=0,0,$AG$548) -> 176 | Y105: =IF($AG$612=0,0,$AG$612) -> 168 | AA105: =IF($AG$676=0,0,$AG$676) -> 176 | AC105: =IF($AG$740=0,0,$AG$740) -> 176 | AE105: =SUM(G105:AD105) -> 2080
A106: =$A$42 -> Produktive Stunden | B106: =$B$42 -> 06.00 - 20.00 Uhr | G106: =IF($AG$32=0,0,$AG$32) -> 0 | I106: =IF($AG$95=0,0,$AG$95) -> 0 | K106: =IF($AG$159=0,0,$AG$159) -> 0 | M106: =IF($AG$223=0,0,$AG$223) -> 0 | O106: =IF($AG$287=0,0,$AG$287) -> 0 | Q106: =IF($AG$351=0,0,$AG$351) -> 0 | S106: =IF($AG$415=0,0,$AG$415) -> 0 | U106: =IF($AG$479=0,0,$AG$479) -> 0 | W106: =IF($AG$543=0,0,$AG$543) -> 0 | Y106: =IF($AG$607=0,0,$AG$607) -> 0 | AA106: =IF($AG$671=0,0,$AG$671) -> 0 | AC106: =IF($AG$735=0,0,$AG$735) -> 0 | AE106: =SUM(G106:AD106) -> 0
B107: =$B$43 -> Nacht-, Sonn-, Feiertagsarbeit | G107: =IF($AG$33=0,0,$AG$33) -> 0 | I107: =IF($AG$96=0,0,$AG$96) -> 0 | K107: =IF($AG$160=0,0,$AG$160) -> 0 | M107: =IF($AG$224=0,0,$AG$224) -> 0 | O107: =IF($AG$288=0,0,$AG$288) -> 0 | Q107: =IF($AG$352=0,0,$AG$352) -> 0 | S107: =IF($AG$416=0,0,$AG$416) -> 0 | U107: =IF($AG$480=0,0,$AG$480) -> 0 | W107: =IF($AG$544=0,0,$AG$544) -> 0 | Y107: =IF($AG$608=0,0,$AG$608) -> 0 | AA107: =IF($AG$672=0,0,$AG$672) -> 0 | AC107: =IF($AG$736=0,0,$AG$736) -> 0 | AE107: =SUM(G107:AD107) -> 0
A108: =$A$44 -> Zeitzuschläge | B108: =$B$44 -> aus Wochentotal | G108: =IF($AG$25=0,0,$AG$25) -> 0 | I108: =IF($AG$88=0,0,$AG$88) -> 0 | K108: =IF($AG$152=0,0,$AG$152) -> 0 | M108: =IF($AG$216=0,0,$AG$216) -> 0 | O108: =IF($AG$280=0,0,$AG$280) -> 0 | Q108: =IF($AG$344=0,0,$AG$344) -> 0 | S108: =IF($AG$408=0,0,$AG$408) -> 0 | U108: =IF($AG$472=0,0,$AG$472) -> 0 | W108: =IF($AG$536=0,0,$AG$536) -> 0 | Y108: =IF($AG$600=0,0,$AG$600) -> 0 | AA108: =IF($AG$664=0,0,$AG$664) -> 0 | AC108: =IF($AG$728=0,0,$AG$728) -> 0 | AE108: =SUM(G108:AD108) -> 0
B109: =$B$45 -> aus Nacht-, Sonn-, Feiertagsarbeiten | G109: =IF($AJ$21=0,0,$AJ$21) -> 0 | I109: =IF($AK$21=0,0,$AK$21) -> 0 | K109: =IF($AL$21=0,0,$AL$21) -> 0 | M109: =IF($AM$21=0,0,$AM$21) -> 0 | O109: =IF($AN$21=0,0,$AN$21) -> 0 | Q109: =IF($AO$21=0,0,$AO$21) -> 0 | S109: =IF($AP$21=0,0,$AP$21) -> 0 | U109: =IF($AQ$21=0,0,$AQ$21) -> 0 | W109: =IF($AR$21=0,0,$AR$21) -> 0 | Y109: =IF($AS$21=0,0,$AS$21) -> 0 | AA109: =IF($AT$21=0,0,$AT$21) -> 0 | AC109: =IF($AU$21=0,0,$AU$21) -> 0 | AE109: =SUM(G109:AD109) -> 0
A110: =$A$46 -> Unproduktive Stunden
A111: =$A$47 -> Absenzen, Kurzabsenzen Art. 11 GAV | F111: =$F$47 -> a | G111: =IF($AJ$3=0,0,$AJ$3) -> 0 | I111: =IF($AK$3=0,0,$AK$3) -> 0 | K111: =IF($AL$3=0,0,$AL$3) -> 0 | M111: =IF($AM$3=0,0,$AM$3) -> 0 | O111: =IF($AN$3=0,0,$AN$3) -> 0 | Q111: =IF($AO$3=0,0,$AO$3) -> 0 | S111: =IF($AP$3=0,0,$AP$3) -> 0 | U111: =IF($AQ$3=0,0,$AQ$3) -> 0 | W111: =IF($AR$3=0,0,$AR$3) -> 0 | Y111: =IF($AS$3=0,0,$AS$3) -> 0 | AA111: =IF(AT$3=0,0,$AT$3) -> 0 | AC111: =IF($AU$3=0,0,$AU$3) -> 0 | AE111: =IF($AV$3=0,0,$AV$3) -> 0
A112: =$A$48 -> Ferien Art. 12.1 GAV | F112: =$F$48 -> f | G112: =IF($AJ$4=0,0,$AJ$4) -> 0 | I112: =IF($AK$4=0,0,$AK$4) -> 0 | K112: =IF($AL$4=0,0,$AL$4) -> 0 | M112: =IF($AM$4=0,0,$AM$4) -> 0 | O112: =IF($AN$4=0,0,$AN$4) -> 0 | Q112: =IF($AO$4=0,0,$AO$4) -> 0 | S112: =IF($AP$4=0,0,$AP$4) -> 0 | U112: =IF($AQ$4=0,0,$AQ$4) -> 0 | W112: =IF($AR$4=0,0,$AR$4) -> 0 | Y112: =IF($AS$4=0,0,$AS$4) -> 0 | AA112: =IF($AT$4=0,0,$AT$4) -> 0 | AC112: =IF($AU$4=0,0,$AU$4) -> 0 | AE112: =IF($AV$4=0,0,$AV$4) -> 0
A113: =Labels!$B$181 -> Ferien unbezahlt | F113: =Labels!$B$182 -> fu | G113: =IF($AJ$13=0,0,$AJ$13) -> 0 | I113: =IF($AK$13=0,0,$AK$13) -> 0 | K113: =IF($AL$13=0,0,$AL$13) -> 0 | M113: =IF($AM$13=0,0,$AM$13) -> 0 | O113: =IF($AN$13=0,0,$AN$13) -> 0 | Q113: =IF($AO$13=0,0,$AO$13) -> 0 | S113: =IF($AP$13=0,0,$AP$13) -> 0 | U113: =IF($AQ$13=0,0,$AQ$13) -> 0 | W113: =IF($AR$13=0,0,$AR$13) -> 0 | Y113: =IF($AS$13=0,0,$AS$13) -> 0 | AA113: =IF($AT$13=0,0,$AT$13) -> 0 | AC113: =IF($AU$13=0,0,$AU$13) -> 0 | AE113: =IF($AV$13=0,0,$AV$13) -> 0
A114: =$A$50 -> Feiertage Art. 12.2 GAV | C114: =IF($AJ$18="","",$AJ$18) ->  | F114: =$F$50 -> ft | G114: =IF($AJ$16=0,0,$AJ$16) -> 0 | I114: =IF($AK$16=0,0,$AK$16) -> 0 | K114: =IF($AL$16=0,0,$AL$16) -> 0 | M114: =IF($AM$16=0,0,$AM$16) -> 0 | O114: =IF($AN$16=0,0,$AN$16) -> 0 | Q114: =IF($AO$16=0,0,$AO$16) -> 0 | S114: =IF($AP$16=0,0,$AP$16) -> 0 | U114: =IF($AQ$16=0,0,$AQ$16) -> 0 | W114: =IF($AR$16=0,0,$AR$16) -> 0 | Y114: =IF($AS$16=0,0,$AS$16) -> 0 | AA114: =IF($AT$16=0,0,$AT$16) -> 0 | AC114: =IF($AU$16=0,0,$AU$16) -> 0 | AE114: =IF($AV$16=0,0,$AV$16) -> 0
A115: =$A$51 -> Krankheit Art. 13 GAV | F115: =$F$51 -> k | G115: =IF($AJ$5=0,0,$AJ$5) -> 0 | I115: =IF($AK$5=0,0,$AK$5) -> 0 | K115: =IF($AL$5=0,0,$AL$5) -> 0 | M115: =IF($AM$5=0,0,$AM$5) -> 0 | O115: =IF($AN$5=0,0,$AN$5) -> 0 | Q115: =IF($AO$5=0,0,$AO$5) -> 0 | S115: =IF($AP$5=0,0,$AP$5) -> 0 | U115: =IF($AQ$5=0,0,$AQ$5) -> 0 | W115: =IF($AR$5=0,0,$AR$5) -> 0 | Y115: =IF($AS$5=0,0,$AS$5) -> 0 | AA115: =IF($AT$5=0,0,$AT$5) -> 0 | AC115: =IF($AU$5=0,0,$AU$5) -> 0 | AE115: =IF($AV$5=0,0,$AV$5) -> 0
A116: =$A$52 -> Unfall Art. 14 GAV | F116: =$F$52 -> u | G116: =IF($AJ$6=0,0,$AJ$6) -> 0 | I116: =IF($AK$6=0,0,$AK$6) -> 0 | K116: =IF($AL$6=0,0,$AL$6) -> 0 | M116: =IF($AM$6=0,0,$AM$6) -> 0 | O116: =IF($AN$6=0,0,$AN$6) -> 0 | Q116: =IF($AO$6=0,0,$AO$6) -> 0 | S116: =IF($AP$6=0,0,$AP$6) -> 0 | U116: =IF($AQ$6=0,0,$AQ$6) -> 0 | W116: =IF($AR$6=0,0,$AR$6) -> 0 | Y116: =IF($AS$6=0,0,$AS$6) -> 0 | AA116: =IF($AT$6=0,0,$AT$6) -> 0 | AC116: =IF($AU$6=0,0,$AU$6) -> 0 | AE116: =IF($AV$6=0,0,$AV$6) -> 0
A117: =$A$53 -> Schwangerschaft/Mutterschaft Art. 15 GAV | F117: =$F$53 -> s | G117: =IF($AJ$7=0,0,$AJ$7) -> 0 | I117: =IF($AK$7=0,0,$AK$7) -> 0 | K117: =IF($AL$7=0,0,$AL$7) -> 0 | M117: =IF($AM$7=0,0,$AM$7) -> 0 | O117: =IF($AN$7=0,0,$AN$7) -> 0 | Q117: =IF($AO$7=0,0,$AO$7) -> 0 | S117: =IF($AP$7=0,0,$AP$7) -> 0 | U117: =IF($AQ$7=0,0,$AQ$7) -> 0 | W117: =IF($AR$7=0,0,$AR$7) -> 0 | Y117: =IF($AS$7=0,0,$AS$7) -> 0 | AA117: =IF($AT$7=0,0,$AT$7) -> 0 | AC117: =IF($AU$7=0,0,$AU$7) -> 0 | AE117: =IF($AV$7=0,0,$AV$7) -> 0
A118: =$A$54 -> Militär/Beförderung/Zivilschutz Art. 16 GAV | F118: =$F$54 -> m | G118: =IF($AJ$8=0,0,$AJ$8) -> 0 | I118: =IF($AK$8=0,0,$AK$8) -> 0 | K118: =IF($AL$8=0,0,$AL$8) -> 0 | M118: =IF($AM$8=0,0,$AM$8) -> 0 | O118: =IF($AN$8=0,0,$AN$8) -> 0 | Q118: =IF($AO$8=0,0,$AO$8) -> 0 | S118: =IF($AP$8=0,0,$AP$8) -> 0 | U118: =IF($AQ$8=0,0,$AQ$8) -> 0 | W118: =IF($AR$8=0,0,$AR$8) -> 0 | Y118: =IF($AS$8=0,0,$AS$8) -> 0 | AA118: =IF($AT$8=0,0,$AT$8) -> 0 | AC118: =IF($AU$8=0,0,$AU$8) -> 0 | AE118: =IF($AV$8=0,0,$AV$8) -> 0
A119: =$A$55 -> Kurzarbeit und Schlechtwetterausfälle | F119: =$F$55 -> ka | G119: =IF($AJ$11=0,0,$AJ$11) -> 0 | I119: =IF($AK$11=0,0,$AK$11) -> 0 | K119: =IF($AL$11=0,0,$AL$11) -> 0 | M119: =IF($AM$11=0,0,$AM$11) -> 0 | O119: =IF($AN$11=0,0,$AN$11) -> 0 | Q119: =IF($AO$11=0,0,$AO$11) -> 0 | S119: =IF($AP$11=0,0,$AP$11) -> 0 | U119: =IF($AQ$11=0,0,$AQ$11) -> 0 | W119: =IF($AR$11=0,0,$AR$11) -> 0 | Y119: =IF($AS$11=0,0,$AS$11) -> 0 | AA119: =IF($AT$11=0,0,$AT$11) -> 0 | AC119: =IF($AU$11=0,0,$AU$11) -> 0 | AE119: =IF($AV$11=0,0,$AV$11) -> 0
A120: =$A$56 -> Berufsschule | F120: =$F$56 -> bs | G120: =IF($AJ$9=0,0,$AJ$9) -> 0 | I120: =IF($AK$9=0,0,$AK$9) -> 0 | K120: =IF($AL$9=0,0,$AL$9) -> 0 | M120: =IF($AM$9=0,0,$AM$9) -> 0 | O120: =IF($AN$9=0,0,$AN$9) -> 0 | Q120: =IF($AO$9=0,0,$AO$9) -> 0 | S120: =IF($AP$9=0,0,$AP$9) -> 0 | U120: =IF($AQ$9=0,0,$AQ$9) -> 0 | W120: =IF($AR$9=0,0,$AR$9) -> 0 | Y120: =IF($AS$9=0,0,$AS$9) -> 0 | AA120: =IF($AT$9=0,0,$AT$9) -> 0 | AC120: =IF($AU$9=0,0,$AU$9) -> 0 | AE120: =IF($AV$9=0,0,$AV$9) -> 0
A121: =$A$57 -> Kurse | F121: =$F$57 -> ku | G121: =IF($AJ$10=0,0,$AJ$10) -> 0 | I121: =IF($AK$10=0,0,$AK$10) -> 0 | K121: =IF($AL$10=0,0,$AL$10) -> 0 | M121: =IF($AM$10=0,0,$AM$10) -> 0 | O121: =IF($AN$10=0,0,$AN$10) -> 0 | Q121: =IF($AO$10=0,0,$AO$10) -> 0 | S121: =IF($AP$10=0,0,$AP$10) -> 0 | U121: =IF($AQ$10=0,0,$AQ$10) -> 0 | W121: =IF($AR$10=0,0,$AR$10) -> 0 | Y121: =IF($AS$10=0,0,$AS$10) -> 0 | AA121: =IF($AT$10=0,0,$AT$10) -> 0 | AC121: =IF($AU$10=0,0,$AU$10) -> 0 | AE121: =IF($AV$10=0,0,$AV$10) -> 0
A122: =$A$58 -> Kompensations-Std | B122: =$B$58 -> aus Vorjahr | F122: =$F$58 -> kv | G122: =IF($AJ$12=0,0,$AJ$12) -> 0 | I122: =IF($AK$12=0,0,$AK$12) -> 0 | K122: =IF($AL$12=0,0,$AL$12) -> 0 | M122: =IF($AM$12=0,0,$AM$12) -> 0 | O122: =IF($AN$12=0,0,$AN$12) -> 0 | Q122: =IF($AO$12=0,0,$AO$12) -> 0 | S122: =IF($AP$12=0,0,$AP$12) -> 0 | U122: =IF($AQ$12=0,0,$AQ$12) -> 0 | W122: =IF($AR$12=0,0,$AR$12) -> 0 | AE122: =IF($AV$12=0,0,$AV$12) -> 0
B123: =$B$59 -> aus laufendem Jahr (Kontrolle) | F123: =$F$59 -> kj | G123: =IF($AJ$15=0,0,$AJ$15) -> 0 | I123: =IF($AK$15=0,0,$AK$15) -> 0 | K123: =IF($AL$15=0,0,$AL$15) -> 0 | M123: =IF($AM$15=0,0,$AM$15) -> 0 | O123: =IF($AN$15=0,0,$AN$15) -> 0 | Q123: =IF($AO$15=0,0,$AO$15) -> 0 | S123: =IF($AP$15=0,0,$AP$15) -> 0 | U123: =IF($AQ$15=0,0,$AQ$15) -> 0 | W123: =IF($AR$15=0,0,$AR$15) -> 0 | Y123: =IF($AS$15=0,0,$AS$15) -> 0 | AA123: =IF($AT$15=0,0,$AT$15) -> 0 | AC123: =IF($AU$15=0,0,$AU$15) -> 0 | AE123: =IF($AV$15=0,0,$AV$15) -> 0
A124: =$A$60 -> Auszahlung | B124: =$B$60 -> Stunden Vorjahressaldo | G124: =IF($AJ$19=0,0,$AJ$19) -> 0 | I124: =IF($AK$19=0,0,$AK$19) -> 0 | K124: =IF($AL$19=0,0,$AL$19) -> 0 | M124: =IF($AM$19=0,0,$AM$19) -> 0 | O124: =IF($AN$19=0,0,$AN$19) -> 0 | Q124: =IF($AO$19=0,0,$AO$19) -> 0 | S124: =IF($AP$19=0,0,$AP$19) -> 0 | U124: =IF($AQ$19=0,0,$AQ$19) -> 0 | W124: =IF($AR$19=0,0,$AR$19) -> 0 | AE124: =IF($AV$19=0,0,$AV$19) -> 0
A125: =$A$61 -> Differenz | B125: =$B$61 -> nach Kompensation und Auszahlung | G125: =IF(ROUND($P$4,3)=0,0,$P$4-SUM(G122+G124)) -> 0 | I125: =IF(ROUND(G125,3)=0,0,G125-(SUM(I124+I122))) -> 0 | K125: =IF(ROUND(I125,3)=0,0,I125-(SUM(K124+K122))) -> 0 | M125: =IF(ROUND(K125,3)=0,0,K125-(SUM(M124+M122))) -> 0 | O125: =IF(ROUND(M125,3)=0,0,M125-(SUM(O124+O122))) -> 0 | Q125: =IF(ROUND(O125,3)=0,0,O125-(SUM(Q124+Q122))) -> 0 | S125: =IF(ROUND(Q125,3)=0,0,Q125-(SUM(S124+S122))) -> 0 | U125: =IF(ROUND(S125,3)=0,0,S125-(SUM(U124+U122))) -> 0 | W125: =IF(ROUND(U125,3)=0,0,U125-(SUM(W124+W122))) -> 0 | Y125: =$Y$61 -> 
A126: =$A$62 -> Auszahlung | B126: =$B$62 -> Stunden laufendes Jahr | G126: =IF($AJ$20=0,0,$AJ$20) -> 0 | I126: =IF($AK$20=0,0,$AK$20) -> 0 | K126: =IF($AL$20=0,0,$AL$20) -> 0 | M126: =IF($AM$20=0,0,$AM$20) -> 0 | O126: =IF($AN$20=0,0,$AN$20) -> 0 | Q126: =IF($AO$20=0,0,$AO$20) -> 0 | S126: =IF($AP$20=0,0,$AP$20) -> 0 | U126: =IF($AQ$20=0,0,$AQ$20) -> 0 | W126: =IF($AR$20=0,0,$AR$20) -> 0 | Y126: =IF($AS$20=0,0,$AS$20) -> 0 | AA126: =IF($AT$20=0,0,$AT$20) -> 0 | AC126: =IF($AU$20=0,0,$AU$20) -> 0 | AE126: =IF($AV$20=0,0,$AV$20) -> 0
A127: =$A$63 -> Fehlstunden | B127: =$B$63 -> laufendes Jahr (Kontrolle) | F127: =$F$63 -> fe | G127: =IF($AJ$14=0,0,$AJ$14) -> 0 | I127: =IF($AK$14=0,0,$AK$14) -> 0 | K127: =IF($AL$14=0,0,$AL$14) -> 0 | M127: =IF($AM$14=0,0,$AM$14) -> 0 | O127: =IF($AN$14=0,0,$AN$14) -> 0 | Q127: =IF($AO$14=0,0,$AO$14) -> 0 | S127: =IF($AP$14=0,0,$AP$14) -> 0 | U127: =IF($AQ$14=0,0,$AQ$14) -> 0 | W127: =IF($AR$14=0,0,$AR$14) -> 0 | Y127: =IF($AS$14=0,0,$AS$14) -> 0 | AA127: =IF($AT$14=0,0,$AT$14) -> 0 | AC127: =IF($AU$14=0,0,$AU$14) -> 0 | AE127: =IF($AV$14=0,0,$AV$14) -> 0
A128: =$A$64 -> Total inkl. Zeitzuschläge | B128: =$B$64 -> Stunden produktiv und unproduktiv | G128: =IF($AG$36=0,0,$AG$36) -> 0 | I128: =IF($AG$99=0,0,$AG$99) -> 0 | K128: =IF($AG$163=0,0,$AG$163) -> 0 | M128: =IF($AG$227=0,0,$AG$227) -> 0 | O128: =IF($AG$291=0,0,$AG$291) -> 0 | Q128: =IF($AG$355=0,0,$AG$355) -> 0 | S128: =IF($AG$419=0,0,$AG$419) -> 0 | U128: =IF($AG$483=0,0,$AG$483) -> 0 | W128: =IF($AG$547=0,0,$AG$547) -> 0 | Y128: =IF($AG$611=0,0,$AG$611) -> 0 | AA128: =IF($AG$675=0,0,$AG$675) -> 0 | AC128: =IF($AG$739=0,0,$AG$739) -> 0 | AE128: =SUM($G$64:$AD$64) -> 0
A129: =$A$65 -> Vergleich | B129: =$B$65 -> Stunden zu Soll-Stunden (inkl. allfälli- ge Minusstunden Vorjahr) | G129: =$G$65 -> -168 | I129: =$I$65 -> -160 | K129: =$K$65 -> -184 | M129: =$M$65 -> -168 | O129: =$O$65 -> -176 | Q129: =$Q$65 -> -176 | S129: =$S$65 -> -168 | U129: =$U$65 -> -184 | W129: =$W$65 -> -176 | Y129: =$Y$65 -> -168 | AA129: =$AA$65 -> -176 | AC129: =$AC$65 -> -176 | AE129: =$AE$65 -> -2080
B130: =$B$66 -> Stunden zu Soll-Stunden (kumuliert) | G130: =$G$66 -> -168 | I130: =$I$66 -> -328 | K130: =$K$66 -> -512 | M130: =$M$66 -> -680 | O130: =$O$66 -> -856 | Q130: =$Q$66 -> -1032 | S130: =$S$66 -> -1200 | U130: =$U$66 -> -1384 | W130: =$W$66 -> -1560 | Y130: =$Y$66 -> -1728 | AA130: =$AA$66 -> -1904 | AC130: =$AC$66 -> -2080 | AE130: =$AE$66 -> 0
A131: =$A$67 -> Ferienkontrolle | B131: =$B$67 -> Ferienguthaben Vorjahr | G131: =IF($AA$4=0,0,$AA$4) -> 0 | I131: =$I$67 -> Ferienguthaben nach Art. 12.1 GAV | M131: =IF($AA$5=0,0,$AA$5) -> 0 | O131: =$O$67 -> Ferienguthaben total | S131: =SUM(G131+M131) -> 0 | U131: =$U$67 -> Ferien bezogen | Y131: =IF($AV$4=0,0,$AV$4) -> 0 | AA131: =$AA$67 -> Aktuelles Ferienguthaben | AE131: =IF(S131=0,0,S131-Y131) -> 0
A134: =$A$3 -> Mitarbeiter/In | B134: =IF($B$3="","",$B$3) -> Muster Peter | AF134: =AF3 -> 0
A135: =$A$4 -> Anstellung % | B135: =$AL$46 -> 100 | D135: =Labels!B91 -> im März
A136: =$A$5 -> Saldo für das Jahr | D136: =IF($AE$65=0,0,$AE$65) -> -2080
A137: =TEXT(DATE(YEAR(AP29),MONTH(AP29)+2,1),"MMMM"&Labels!B13) -> März | B137: =$B$9 -> Saldo Monat + / - | F137: =(AG139-(SUM(AG140:AG154)-AE162))*-1 -> -184 | K137: =$K$9 -> = | L137: =$L$9 -> Gelbe Felder müssen ausgefüllt werden (die übrigen werden automatisch berechnet) | AG137: =COUNT(B140:AF140)&" "&Labels!$B$63 -> 23 Tage
A138: =$A$10 -> Tag | B138: =IF(MOD($AE$96,4)>=1,$AC$74+1,$AC$74+2) -> 2022-03-01 | C138: =B138+1 -> 2022-03-02 | D138: 2022-03-03 | E138: 2022-03-04 | F138: 2022-03-05 | G138: 2022-03-06 | H138: 2022-03-07 | I138: 2022-03-08 | J138: 2022-03-09 | K138: 2022-03-10 | L138: 2022-03-11 | M138: 2022-03-12 | N138: 2022-03-13 | O138: 2022-03-14 | P138: 2022-03-15 | Q138: 2022-03-16 | R138: 2022-03-17 | S138: 2022-03-18 | T138: 2022-03-19 | U138: 2022-03-20 | V138: 2022-03-21 | W138: 2022-03-22 | X138: 2022-03-23 | Y138: 2022-03-24 | Z138: 2022-03-25 | AA138: 2022-03-26 | AB138: 2022-03-27 | AC138: 2022-03-28 | AD138: 2022-03-29 | AE138: 2022-03-30 | AF138: 2022-03-31
A139: =$A$11 -> Kalenderwoche | B139: =IF(B138="","",TRUNC((B138-DATE(YEAR(B138+3-MOD(B138-2,7)),1,MOD(B138-2,7)-9))/7)) -> 9 | C139: 9 | D139: 9 | E139: 9 | F139: 9 | G139: 9 | H139: 10 | I139: 10 | J139: 10 | K139: 10 | L139: 10 | M139: 10 | N139: 10 | O139: 11 | P139: 11 | Q139: 11 | R139: 11 | S139: 11 | T139: 11 | U139: 11 | V139: 12 | W139: 12 | X139: 12 | Y139: 12 | Z139: 12 | AA139: 12 | AB139: 12 | AC139: 13 | AD139: 13 | AE139: 13 | AF139: 13 | AG139: =SUM(B140:AF140) -> 184
A140: =$A$12 -> Sollstunden | B140: =IF(AND(MOD(B138,7)>=2,SUMPRODUCT(($AM$56:$AQ$56=MOD(B138,7))*$AM$46:$AQ$46)),($J$7*5/$AR$46)*$B$135%,"") -> 8 | C140: =IF(AND(MOD(C138,7)>=2,SUMPRODUCT(($AM$56:$AQ$56=MOD(C138,7))*$AM$46:$AQ$46)),($J$7*5/$AR$46)*$B$135%,"") -> 8 | D140: =IF(AND(MOD(D138,7)>=2,SUMPRODUCT(($AM$56:$AQ$56=MOD(D138,7))*$AM$46:$AQ$46)),($J$7*5/$AR$46)*$B$135%,"") -> 8 | E140: =IF(AND(MOD(E138,7)>=2,SUMPRODUCT(($AM$56:$AQ$56=MOD(E138,7))*$AM$46:$AQ$46)),($J$7*5/$AR$46)*$B$135%,"") -> 8 | F140: =IF(AND(MOD(F138,7)>=2,SUMPRODUCT(($AM$56:$AQ$56=MOD(F138,7))*$AM$46:$AQ$46)),($J$7*5/$AR$46)*$B$135%,"") ->  | G140: =IF(AND(MOD(G138,7)>=2,SUMPRODUCT(($AM$56:$AQ$56=MOD(G138,7))*$AM$46:$AQ$46)),($J$7*5/$AR$46)*$B$135%,"") ->  | H140: =IF(AND(MOD(H138,7)>=2,SUMPRODUCT(($AM$56:$AQ$56=MOD(H138,7))*$AM$46:$AQ$46)),($J$7*5/$AR$46)*$B$135%,"") -> 8 | I140: =IF(AND(MOD(I138,7)>=2,SUMPRODUCT(($AM$56:$AQ$56=MOD(I138,7))*$AM$46:$AQ$46)),($J$7*5/$AR$46)*$B$135%,"") -> 8 | J140: =IF(AND(MOD(J138,7)>=2,SUMPRODUCT(($AM$56:$AQ$56=MOD(J138,7))*$AM$46:$AQ$46)),($J$7*5/$AR$46)*$B$135%,"") -> 8 | K140: =IF(AND(MOD(K138,7)>=2,SUMPRODUCT(($AM$56:$AQ$56=MOD(K138,7))*$AM$46:$AQ$46)),($J$7*5/$AR$46)*$B$135%,"") -> 8 | L140: =IF(AND(MOD(L138,7)>=2,SUMPRODUCT(($AM$56:$AQ$56=MOD(L138,7))*$AM$46:$AQ$46)),($J$7*5/$AR$46)*$B$135%,"") -> 8 | M140: =IF(AND(MOD(M138,7)>=2,SUMPRODUCT(($AM$56:$AQ$56=MOD(M138,7))*$AM$46:$AQ$46)),($J$7*5/$AR$46)*$B$135%,"") ->  | N140: =IF(AND(MOD(N138,7)>=2,SUMPRODUCT(($AM$56:$AQ$56=MOD(N138,7))*$AM$46:$AQ$46)),($J$7*5/$AR$46)*$B$135%,"") ->  | O140: =IF(AND(MOD(O138,7)>=2,SUMPRODUCT(($AM$56:$AQ$56=MOD(O138,7))*$AM$46:$AQ$46)),($J$7*5/$AR$46)*$B$135%,"") -> 8 | P140: =IF(AND(MOD(P138,7)>=2,SUMPRODUCT(($AM$56:$AQ$56=MOD(P138,7))*$AM$46:$AQ$46)),($J$7*5/$AR$46)*$B$135%,"") -> 8 | Q140: =IF(AND(MOD(Q138,7)>=2,SUMPRODUCT(($AM$56:$AQ$56=MOD(Q138,7))*$AM$46:$AQ$46)),($J$7*5/$AR$46)*$B$135%,"") -> 8 | R140: =IF(AND(MOD(R138,7)>=2,SUMPRODUCT(($AM$56:$AQ$56=MOD(R138,7))*$AM$46:$AQ$46)),($J$7*5/$AR$46)*$B$135%,"") -> 8 | S140: =IF(AND(MOD(S138,7)>=2,SUMPRODUCT(($AM$56:$AQ$56=MOD(S138,7))*$AM$46:$AQ$46)),($J$7*5/$AR$46)*$B$135%,"") -> 8 | T140: =IF(AND(MOD(T138,7)>=2,SUMPRODUCT(($AM$56:$AQ$56=MOD(T138,7))*$AM$46:$AQ$46)),($J$7*5/$AR$46)*$B$135%,"") ->  | U140: =IF(AND(MOD(U138,7)>=2,SUMPRODUCT(($AM$56:$AQ$56=MOD(U138,7))*$AM$46:$AQ$46)),($J$7*5/$AR$46)*$B$135%,"") ->  | V140: =IF(AND(MOD(V138,7)>=2,SUMPRODUCT(($AM$56:$AQ$56=MOD(V138,7))*$AM$46:$AQ$46)),($J$7*5/$AR$46)*$B$135%,"") -> 8 | W140: =IF(AND(MOD(W138,7)>=2,SUMPRODUCT(($AM$56:$AQ$56=MOD(W138,7))*$AM$46:$AQ$46)),($J$7*5/$AR$46)*$B$135%,"") -> 8 | X140: =IF(AND(MOD(X138,7)>=2,SUMPRODUCT(($AM$56:$AQ$56=MOD(X138,7))*$AM$46:$AQ$46)),($J$7*5/$AR$46)*$B$135%,"") -> 8 | Y140: =IF(AND(MOD(Y138,7)>=2,SUMPRODUCT(($AM$56:$AQ$56=MOD(Y138,7))*$AM$46:$AQ$46)),($J$7*5/$AR$46)*$B$135%,"") -> 8 | Z140: =IF(AND(MOD(Z138,7)>=2,SUMPRODUCT(($AM$56:$AQ$56=MOD(Z138,7))*$AM$46:$AQ$46)),($J$7*5/$AR$46)*$B$135%,"") -> 8 | AA140: =IF(AND(MOD(AA138,7)>=2,SUMPRODUCT(($AM$56:$AQ$56=MOD(AA138,7))*$AM$46:$AQ$46)),($J$7*5/$AR$46)*$B$135%,"") ->  | AB140: =IF(AND(MOD(AB138,7)>=2,SUMPRODUCT(($AM$56:$AQ$56=MOD(AB138,7))*$AM$46:$AQ$46)),($J$7*5/$AR$46)*$B$135%,"") ->  | AC140: =IF(AND(MOD(AC138,7)>=2,SUMPRODUCT(($AM$56:$AQ$56=MOD(AC138,7))*$AM$46:$AQ$46)),($J$7*5/$AR$46)*$B$135%,"") -> 8 | AD140: =IF(AND(MOD(AD138,7)>=2,SUMPRODUCT(($AM$56:$AQ$56=MOD(AD138,7))*$AM$46:$AQ$46)),($J$7*5/$AR$46)*$B$135%,"") -> 8 | AE140: =IF(AND(MOD(AE138,7)>=2,SUMPRODUCT(($AM$56:$AQ$56=MOD(AE138,7))*$AM$46:$AQ$46)),($J$7*5/$AR$46)*$B$135%,"") -> 8 | AF140: =IF(AND(MOD(AF138,7)>=2,SUMPRODUCT(($AM$56:$AQ$56=MOD(AF138,7))*$AM$46:$AQ$46)),($J$7*5/$AR$46)*$B$135%,"") -> 8 | AG140: =SUM(AL3:AL13) -> 0
A141: =$A$13 -> Absenz in Std | B141: =B877 -> 0 | C141: =C877 -> 0 | D141: 0 | E141: 0 | F141: 0 | G141: 0 | H141: 0 | I141: 0 | J141: 0 | K141: 0 | L141: 0 | M141: 0 | N141: 0 | O141: 0 | P141: 0 | Q141: 0 | R141: 0 | S141: 0 | T141: 0 | U141: 0 | V141: 0 | W141: 0 | X141: 0 | Y141: 0 | Z141: 0 | AA141: 0 | AB141: 0 | AC141: 0 | AD141: 0 | AE141: 0 | AF141: 0
A142: =$A$14 -> Code | B142: =IF(B877<>0,IF(MAX(B864:B876)<B877,Labels!$B$163,INDEX($AH$863:$AH$875,MATCH(MAX(B864:B876),B864:B876,0))),"") ->  | C142: =IF(C877<>0,IF(MAX(C864:C876)<C877,Labels!$B$163,INDEX($AH$863:$AH$875,MATCH(MAX(C864:C876),C864:C876,0))),"") ->  | D142: =IF(D877<>0,IF(MAX(D864:D876)<D877,Labels!$B$163,INDEX($AH$863:$AH$875,MATCH(MAX(D864:D876),D864:D876,0))),"") ->  | E142: =IF(E877<>0,IF(MAX(E864:E876)<E877,Labels!$B$163,INDEX($AH$863:$AH$875,MATCH(MAX(E864:E876),E864:E876,0))),"") ->  | F142: =IF(F877<>0,IF(MAX(F864:F876)<F877,Labels!$B$163,INDEX($AH$863:$AH$875,MATCH(MAX(F864:F876),F864:F876,0))),"") ->  | G142: =IF(G877<>0,IF(MAX(G864:G876)<G877,Labels!$B$163,INDEX($AH$863:$AH$875,MATCH(MAX(G864:G876),G864:G876,0))),"") ->  | H142: =IF(H877<>0,IF(MAX(H864:H876)<H877,Labels!$B$163,INDEX($AH$863:$AH$875,MATCH(MAX(H864:H876),H864:H876,0))),"") ->  | I142: =IF(I877<>0,IF(MAX(I864:I876)<I877,Labels!$B$163,INDEX($AH$863:$AH$875,MATCH(MAX(I864:I876),I864:I876,0))),"") ->  | J142: =IF(J877<>0,IF(MAX(J864:J876)<J877,Labels!$B$163,INDEX($AH$863:$AH$875,MATCH(MAX(J864:J876),J864:J876,0))),"") ->  | K142: =IF(K877<>0,IF(MAX(K864:K876)<K877,Labels!$B$163,INDEX($AH$863:$AH$875,MATCH(MAX(K864:K876),K864:K876,0))),"") ->  | L142: =IF(L877<>0,IF(MAX(L864:L876)<L877,Labels!$B$163,INDEX($AH$863:$AH$875,MATCH(MAX(L864:L876),L864:L876,0))),"") ->  | M142: =IF(M877<>0,IF(MAX(M864:M876)<M877,Labels!$B$163,INDEX($AH$863:$AH$875,MATCH(MAX(M864:M876),M864:M876,0))),"") ->  | N142: =IF(N877<>0,IF(MAX(N864:N876)<N877,Labels!$B$163,INDEX($AH$863:$AH$875,MATCH(MAX(N864:N876),N864:N876,0))),"") ->  | O142: =IF(O877<>0,IF(MAX(O864:O876)<O877,Labels!$B$163,INDEX($AH$863:$AH$875,MATCH(MAX(O864:O876),O864:O876,0))),"") ->  | P142: =IF(P877<>0,IF(MAX(P864:P876)<P877,Labels!$B$163,INDEX($AH$863:$AH$875,MATCH(MAX(P864:P876),P864:P876,0))),"") ->  | Q142: =IF(Q877<>0,IF(MAX(Q864:Q876)<Q877,Labels!$B$163,INDEX($AH$863:$AH$875,MATCH(MAX(Q864:Q876),Q864:Q876,0))),"") ->  | R142: =IF(R877<>0,IF(MAX(R864:R876)<R877,Labels!$B$163,INDEX($AH$863:$AH$875,MATCH(MAX(R864:R876),R864:R876,0))),"") ->  | S142: =IF(S877<>0,IF(MAX(S864:S876)<S877,Labels!$B$163,INDEX($AH$863:$AH$875,MATCH(MAX(S864:S876),S864:S876,0))),"") ->  | T142: =IF(T877<>0,IF(MAX(T864:T876)<T877,Labels!$B$163,INDEX($AH$863:$AH$875,MATCH(MAX(T864:T876),T864:T876,0))),"") ->  | U142: =IF(U877<>0,IF(MAX(U864:U876)<U877,Labels!$B$163,INDEX($AH$863:$AH$875,MATCH(MAX(U864:U876),U864:U876,0))),"") ->  | V142: =IF(V877<>0,IF(MAX(V864:V876)<V877,Labels!$B$163,INDEX($AH$863:$AH$875,MATCH(MAX(V864:V876),V864:V876,0))),"") ->  | W142: =IF(W877<>0,IF(MAX(W864:W876)<W877,Labels!$B$163,INDEX($AH$863:$AH$875,MATCH(MAX(W864:W876),W864:W876,0))),"") ->  | X142: =IF(X877<>0,IF(MAX(X864:X876)<X877,Labels!$B$163,INDEX($AH$863:$AH$875,MATCH(MAX(X864:X876),X864:X876,0))),"") ->  | Y142: =IF(Y877<>0,IF(MAX(Y864:Y876)<Y877,Labels!$B$163,INDEX($AH$863:$AH$875,MATCH(MAX(Y864:Y876),Y864:Y876,0))),"") ->  | Z142: =IF(Z877<>0,IF(MAX(Z864:Z876)<Z877,Labels!$B$163,INDEX($AH$863:$AH$875,MATCH(MAX(Z864:Z876),Z864:Z876,0))),"") ->  | AA142: =IF(AA877<>0,IF(MAX(AA864:AA876)<AA877,Labels!$B$163,INDEX($AH$863:$AH$875,MATCH(MAX(AA864:AA876),AA864:AA876,0))),"") ->  | AB142: =IF(AB877<>0,IF(MAX(AB864:AB876)<AB877,Labels!$B$163,INDEX($AH$863:$AH$875,MATCH(MAX(AB864:AB876),AB864:AB876,0))),"") ->  | AC142: =IF(AC877<>0,IF(MAX(AC864:AC876)<AC877,Labels!$B$163,INDEX($AH$863:$AH$875,MATCH(MAX(AC864:AC876),AC864:AC876,0))),"") ->  | AD142: =IF(AD877<>0,IF(MAX(AD864:AD876)<AD877,Labels!$B$163,INDEX($AH$863:$AH$875,MATCH(MAX(AD864:AD876),AD864:AD876,0))),"") ->  | AE142: =IF(AE877<>0,IF(MAX(AE864:AE876)<AE877,Labels!$B$163,INDEX($AH$863:$AH$875,MATCH(MAX(AE864:AE876),AE864:AE876,0))),"") ->  | AF142: =IF(AF877<>0,IF(MAX(AF864:AF876)<AF877,Labels!$B$163,INDEX($AH$863:$AH$875,MATCH(MAX(AF864:AF876),AF864:AF876,0))),"") ->  | AG142: =SUM(B143:AF143) -> 0
A143: =$A$15 -> 00.00-06.00h | AG143: =SUM(B144:AF144) -> 0
A144: =$A$16 -> 06.00-20.00h | AG144: =SUM(B145:AF145) -> 0 | AH144: [0]
A145: =$A$17 -> 20.00-24.00h
A146: =$A$18 -> Feiertag "ft" | B146: =IF(WEEKDAY(B138,2)<=6,IF(KALENDER!E7="x",Labels!$B$118,""),"") ->  | C146: =IF(WEEKDAY(C138,2)<=6,IF(KALENDER!F7="x",Labels!$B$118,""),"") ->  | D146: =IF(WEEKDAY(D138,2)<=6,IF(KALENDER!G7="x",Labels!$B$118,""),"") ->  | E146: =IF(WEEKDAY(E138,2)<=6,IF(KALENDER!H7="x",Labels!$B$118,""),"") ->  | F146: =IF(WEEKDAY(F138,2)<=6,IF(KALENDER!I7="x",Labels!$B$118,""),"") ->  | G146: =IF(WEEKDAY(G138,2)<=6,IF(KALENDER!J7="x",Labels!$B$118,""),"") ->  | H146: =IF(WEEKDAY(H138,2)<=6,IF(KALENDER!K7="x",Labels!$B$118,""),"") ->  | I146: =IF(WEEKDAY(I138,2)<=6,IF(KALENDER!L7="x",Labels!$B$118,""),"") ->  | J146: =IF(WEEKDAY(J138,2)<=6,IF(KALENDER!M7="x",Labels!$B$118,""),"") ->  | K146: =IF(WEEKDAY(K138,2)<=6,IF(KALENDER!N7="x",Labels!$B$118,""),"") ->  | L146: =IF(WEEKDAY(L138,2)<=6,IF(KALENDER!O7="x",Labels!$B$118,""),"") ->  | M146: =IF(WEEKDAY(M138,2)<=6,IF(KALENDER!P7="x",Labels!$B$118,""),"") ->  | N146: =IF(WEEKDAY(N138,2)<=6,IF(KALENDER!Q7="x",Labels!$B$118,""),"") ->  | O146: =IF(WEEKDAY(O138,2)<=6,IF(KALENDER!R7="x",Labels!$B$118,""),"") ->  | P146: =IF(WEEKDAY(P138,2)<=6,IF(KALENDER!S7="x",Labels!$B$118,""),"") ->  | Q146: =IF(WEEKDAY(Q138,2)<=6,IF(KALENDER!T7="x",Labels!$B$118,""),"") ->  | R146: =IF(WEEKDAY(R138,2)<=6,IF(KALENDER!U7="x",Labels!$B$118,""),"") ->  | S146: =IF(WEEKDAY(S138,2)<=6,IF(KALENDER!V7="x",Labels!$B$118,""),"") ->  | T146: =IF(WEEKDAY(T138,2)<=6,IF(KALENDER!W7="x",Labels!$B$118,""),"") ->  | U146: =IF(WEEKDAY(U138,2)<=6,IF(KALENDER!X7="x",Labels!$B$118,""),"") ->  | V146: =IF(WEEKDAY(V138,2)<=6,IF(KALENDER!Y7="x",Labels!$B$118,""),"") ->  | W146: =IF(WEEKDAY(W138,2)<=6,IF(KALENDER!Z7="x",Labels!$B$118,""),"") ->  | X146: =IF(WEEKDAY(X138,2)<=6,IF(KALENDER!AA7="x",Labels!$B$118,""),"") ->  | Y146: =IF(WEEKDAY(Y138,2)<=6,IF(KALENDER!AB7="x",Labels!$B$118,""),"") ->  | Z146: =IF(WEEKDAY(Z138,2)<=6,IF(KALENDER!AC7="x",Labels!$B$118,""),"") ->  | AA146: =IF(WEEKDAY(AA138,2)<=6,IF(KALENDER!AD7="x",Labels!$B$118,""),"") ->  | AB146: =IF(WEEKDAY(AB138,2)<=6,IF(KALENDER!AE7="x",Labels!$B$118,""),"") ->  | AC146: =IF(WEEKDAY(AC138,2)<=6,IF(KALENDER!AF7="x",Labels!$B$118,""),"") ->  | AD146: =IF(WEEKDAY(AD138,2)<=6,IF(KALENDER!AG7="x",Labels!$B$118,""),"") ->  | AE146: =IF(WEEKDAY(AE138,2)<=6,IF(KALENDER!AH7="x",Labels!$B$118,""),"") ->  | AF146: =IF(WEEKDAY(AF138,2)<=6,IF(KALENDER!AI7="x",Labels!$B$118,""),"") ->  | AG146: =SUM(B147:AF147) -> 0
A147: =$A$19 -> Gutschrift "ft" | B147: =IF(AND(B146=Labels!$B$118,WEEKDAY(B138,2)<6,B$140<>""),($J$7*5/$AR$46)*$B$135%,"") ->  | C147: =IF(AND(C146=Labels!$B$118,WEEKDAY(C138,2)<6,C$140<>""),($J$7*5/$AR$46)*$B$135%,"") ->  | D147: =IF(AND(D146=Labels!$B$118,WEEKDAY(D138,2)<6,D$140<>""),($J$7*5/$AR$46)*$B$135%,"") ->  | E147: =IF(AND(E146=Labels!$B$118,WEEKDAY(E138,2)<6,E$140<>""),($J$7*5/$AR$46)*$B$135%,"") ->  | F147: =IF(AND(F146=Labels!$B$118,WEEKDAY(F138,2)<6,F$140<>""),($J$7*5/$AR$46)*$B$135%,"") ->  | G147: =IF(AND(G146=Labels!$B$118,WEEKDAY(G138,2)<6,G$140<>""),($J$7*5/$AR$46)*$B$135%,"") ->  | H147: =IF(AND(H146=Labels!$B$118,WEEKDAY(H138,2)<6,H$140<>""),($J$7*5/$AR$46)*$B$135%,"") ->  | I147: =IF(AND(I146=Labels!$B$118,WEEKDAY(I138,2)<6,I$140<>""),($J$7*5/$AR$46)*$B$135%,"") ->  | J147: =IF(AND(J146=Labels!$B$118,WEEKDAY(J138,2)<6,J$140<>""),($J$7*5/$AR$46)*$B$135%,"") ->  | K147: =IF(AND(K146=Labels!$B$118,WEEKDAY(K138,2)<6,K$140<>""),($J$7*5/$AR$46)*$B$135%,"") ->  | L147: =IF(AND(L146=Labels!$B$118,WEEKDAY(L138,2)<6,L$140<>""),($J$7*5/$AR$46)*$B$135%,"") ->  | M147: =IF(AND(M146=Labels!$B$118,WEEKDAY(M138,2)<6,M$140<>""),($J$7*5/$AR$46)*$B$135%,"") ->  | N147: =IF(AND(N146=Labels!$B$118,WEEKDAY(N138,2)<6,N$140<>""),($J$7*5/$AR$46)*$B$135%,"") ->  | O147: =IF(AND(O146=Labels!$B$118,WEEKDAY(O138,2)<6,O$140<>""),($J$7*5/$AR$46)*$B$135%,"") ->  | P147: =IF(AND(P146=Labels!$B$118,WEEKDAY(P138,2)<6,P$140<>""),($J$7*5/$AR$46)*$B$135%,"") ->  | Q147: =IF(AND(Q146=Labels!$B$118,WEEKDAY(Q138,2)<6,Q$140<>""),($J$7*5/$AR$46)*$B$135%,"") ->  | R147: =IF(AND(R146=Labels!$B$118,WEEKDAY(R138,2)<6,R$140<>""),($J$7*5/$AR$46)*$B$135%,"") ->  | S147: =IF(AND(S146=Labels!$B$118,WEEKDAY(S138,2)<6,S$140<>""),($J$7*5/$AR$46)*$B$135%,"") ->  | T147: =IF(AND(T146=Labels!$B$118,WEEKDAY(T138,2)<6,T$140<>""),($J$7*5/$AR$46)*$B$135%,"") ->  | U147: =IF(AND(U146=Labels!$B$118,WEEKDAY(U138,2)<6,U$140<>""),($J$7*5/$AR$46)*$B$135%,"") ->  | V147: =IF(AND(V146=Labels!$B$118,WEEKDAY(V138,2)<6,V$140<>""),($J$7*5/$AR$46)*$B$135%,"") ->  | W147: =IF(AND(W146=Labels!$B$118,WEEKDAY(W138,2)<6,W$140<>""),($J$7*5/$AR$46)*$B$135%,"") ->  | X147: =IF(AND(X146=Labels!$B$118,WEEKDAY(X138,2)<6,X$140<>""),($J$7*5/$AR$46)*$B$135%,"") ->  | Y147: =IF(AND(Y146=Labels!$B$118,WEEKDAY(Y138,2)<6,Y$140<>""),($J$7*5/$AR$46)*$B$135%,"") ->  | Z147: =IF(AND(Z146=Labels!$B$118,WEEKDAY(Z138,2)<6,Z$140<>""),($J$7*5/$AR$46)*$B$135%,"") ->  | AA147: =IF(AND(AA146=Labels!$B$118,WEEKDAY(AA138,2)<6,AA$140<>""),($J$7*5/$AR$46)*$B$135%,"") ->  | AB147: =IF(AND(AB146=Labels!$B$118,WEEKDAY(AB138,2)<6,AB$140<>""),($J$7*5/$AR$46)*$B$135%,"") ->  | AC147: =IF(AND(AC146=Labels!$B$118,WEEKDAY(AC138,2)<6,AC$140<>""),($J$7*5/$AR$46)*$B$135%,"") ->  | AD147: =IF(AND(AD146=Labels!$B$118,WEEKDAY(AD138,2)<6,AD$140<>""),($J$7*5/$AR$46)*$B$135%,"") ->  | AE147: =IF(AND(AE146=Labels!$B$118,WEEKDAY(AE138,2)<6,AE$140<>""),($J$7*5/$AR$46)*$B$135%,"") ->  | AF147: =IF(AND(AF146=Labels!$B$118,WEEKDAY(AF138,2)<6,AF$140<>""),($J$7*5/$AR$46)*$B$135%,"") -> 
A148: =$A$20 -> Tagestotal | B148: =SUM(B143:B145) -> 0 | C148: =SUM(C143:C145) -> 0 | D148: 0 | E148: 0 | F148: 0 | G148: 0 | H148: 0 | I148: 0 | J148: 0 | K148: 0 | L148: 0 | M148: 0 | N148: 0 | O148: 0 | P148: 0 | Q148: 0 | R148: 0 | S148: 0 | T148: 0 | U148: 0 | V148: 0 | W148: 0 | X148: 0 | Y148: 0 | Z148: 0 | AA148: 0 | AB148: 0 | AC148: 0 | AD148: 0 | AE148: 0 | AF148: 0
A149: =$A$21 -> .
A150: =$A$22 -> .
A151: =$A$23 -> Monatsübergang | B151: =IF(WEEKDAY(B138)=1,TEXT(B138-1,"MMM"&Labels!B13),"") ->  | AF151: =IF(AND(WEEKDAY(AF138)>1,WEEKDAY(AF138)<7),TEXT(DATE($B$5,MONTH(AF138)+1,1),"MMM"&Labels!B13),"") -> Apr
A152: =$A$24 -> Wochentotal | B152: =IF(WEEKDAY(B138)=7,SUMIF($B75:$AF75,B139,$B84:$AF84)+SUMIF($B139:$AF139,B139,$B148:$AF148)+SUMIF($B203:$AF203,B139,$B212:$AF212),B151) ->  | C152: =IF(WEEKDAY(C138)=7,SUMIF($B75:$AF75,C139,$B84:$AF84)+SUMIF($B139:$AF139,C139,$B148:$AF148)+SUMIF($B203:$AF203,C139,$B212:$AF212),"") ->  | F152: 0 | M152: 0 | T152: 0 | AA152: 0 | AF152: =IF(WEEKDAY(AF138)=7,SUMIF($B75:$AF75,AF139,$B84:$AF84)+SUMIF($B139:$AF139,AF139,$B148:$AF148)+SUMIF($B203:$AF203,AF139,$B212:$AF212),AF151) -> Apr | AG152: =SUM(B153:AF153) -> 0
A153: =$A$25 -> Zeitzuschlag 1) | B153: =IF(B160="FALSCH","",B160) ->  | C153: =IF(C160="FALSCH","",C160) ->  | AG153: 0 | AH153: [1]
A154: =$A$26 -> Zeitzuschlag 2) | B154: =IF((B143+B145)=0,"",SUM(B143,B145)) ->  | C154: =IF((C143+C145)=0,"",SUM(C143,C145)) ->  | AG154: =SUM(B155:AF155) -> 0 | AH154: [2]
A155: =$A$27 -> Zeitzuschlag 3) | B155: =SUM(B156:B159) -> 0 | C155: =SUM(C156:C159) -> 0 | D155: 0 | E155: 0 | F155: 0 | G155: 0 | H155: 0 | I155: 0 | J155: 0 | K155: 0 | L155: 0 | M155: 0 | N155: 0 | O155: 0 | P155: 0 | Q155: 0 | R155: 0 | S155: 0 | T155: 0 | U155: 0 | V155: 0 | W155: 0 | X155: 0 | Y155: 0 | Z155: 0 | AA155: 0 | AB155: 0 | AC155: 0 | AD155: 0 | AE155: 0 | AF155: 0 | AG155: 0 | AH155: [3]
A156: =$A$28 -> Sonntag Tag | B156: =IF(WEEKDAY(B138)=1,B144,"") ->  | C156: =IF(WEEKDAY(C138)=1,C144,"") ->  | G156: 0 | N156: 0 | U156: 0 | AB156: 0 | AG156: 0 | AH156: [4]
A157: =$A$29 -> Sonntag Nacht | B157: =IF(WEEKDAY(B138)=1,SUM(B143+B145),"") ->  | C157: =IF(WEEKDAY(C138)=1,SUM(C143+C145),"") ->  | G157: 0 | N157: 0 | U157: 0 | AB157: 0 | AG157: 0 | AH157: [5]
A158: =$A$30 -> ft-Tazuschlag | B158: =IF(B146=Labels!$B$118,B144,"") ->  | C158: =IF(C146=Labels!$B$118,C144,"") ->  | D158: =IF(D146=Labels!$B$118,D144,"") ->  | E158: =IF(E146=Labels!$B$118,E144,"") ->  | F158: =IF(F146=Labels!$B$118,F144,"") ->  | G158: =IF(G146=Labels!$B$118,G144,"") ->  | H158: =IF(H146=Labels!$B$118,H144,"") ->  | I158: =IF(I146=Labels!$B$118,I144,"") ->  | J158: =IF(J146=Labels!$B$118,J144,"") ->  | K158: =IF(K146=Labels!$B$118,K144,"") ->  | L158: =IF(L146=Labels!$B$118,L144,"") ->  | M158: =IF(M146=Labels!$B$118,M144,"") ->  | N158: =IF(N146=Labels!$B$118,N144,"") ->  | O158: =IF(O146=Labels!$B$118,O144,"") ->  | P158: =IF(P146=Labels!$B$118,P144,"") ->  | Q158: =IF(Q146=Labels!$B$118,Q144,"") ->  | R158: =IF(R146=Labels!$B$118,R144,"") ->  | S158: =IF(S146=Labels!$B$118,S144,"") ->  | T158: =IF(T146=Labels!$B$118,T144,"") ->  | U158: =IF(U146=Labels!$B$118,U144,"") ->  | V158: =IF(V146=Labels!$B$118,V144,"") ->  | W158: =IF(W146=Labels!$B$118,W144,"") ->  | X158: =IF(X146=Labels!$B$118,X144,"") ->  | Y158: =IF(Y146=Labels!$B$118,Y144,"") ->  | Z158: =IF(Z146=Labels!$B$118,Z144,"") ->  | AA158: =IF(AA146=Labels!$B$118,AA144,"") ->  | AB158: =IF(AB146=Labels!$B$118,AB144,"") ->  | AC158: =IF(AC146=Labels!$B$118,AC144,"") ->  | AD158: =IF(AD146=Labels!$B$118,AD144,"") ->  | AE158: =IF(AE146=Labels!$B$118,AE144,"") ->  | AF158: =IF(AF146=Labels!$B$118,AF144,"") ->  | AG158: 0 | AH158: [6]
A159: =$A$31 -> ft-Nazuschlag | B159: =IF(B146=Labels!$B$118,SUM(B143,B145),"") ->  | C159: =IF(C146=Labels!$B$118,SUM(C143,C145),"") ->  | D159: =IF(D146=Labels!$B$118,SUM(D143,D145),"") ->  | E159: =IF(E146=Labels!$B$118,SUM(E143,E145),"") ->  | F159: =IF(F146=Labels!$B$118,SUM(F143,F145),"") ->  | G159: =IF(G146=Labels!$B$118,SUM(G143,G145),"") ->  | H159: =IF(H146=Labels!$B$118,SUM(H143,H145),"") ->  | I159: =IF(I146=Labels!$B$118,SUM(I143,I145),"") ->  | J159: =IF(J146=Labels!$B$118,SUM(J143,J145),"") ->  | K159: =IF(K146=Labels!$B$118,SUM(K143,K145),"") ->  | L159: =IF(L146=Labels!$B$118,SUM(L143,L145),"") ->  | M159: =IF(M146=Labels!$B$118,SUM(M143,M145),"") ->  | N159: =IF(N146=Labels!$B$118,SUM(N143,N145),"") ->  | O159: =IF(O146=Labels!$B$118,SUM(O143,O145),"") ->  | P159: =IF(P146=Labels!$B$118,SUM(P143,P145),"") ->  | Q159: =IF(Q146=Labels!$B$118,SUM(Q143,Q145),"") ->  | R159: =IF(R146=Labels!$B$118,SUM(R143,R145),"") ->  | S159: =IF(S146=Labels!$B$118,SUM(S143,S145),"") ->  | T159: =IF(T146=Labels!$B$118,SUM(T143,T145),"") ->  | U159: =IF(U146=Labels!$B$118,SUM(U143,U145),"") ->  | V159: =IF(V146=Labels!$B$118,SUM(V143,V145),"") ->  | W159: =IF(W146=Labels!$B$118,SUM(W143,W145),"") ->  | X159: =IF(X146=Labels!$B$118,SUM(X143,X145),"") ->  | Y159: =IF(Y146=Labels!$B$118,SUM(Y143,Y145),"") ->  | Z159: =IF(Z146=Labels!$B$118,SUM(Z143,Z145),"") ->  | AA159: =IF(AA146=Labels!$B$118,SUM(AA143,AA145),"") ->  | AB159: =IF(AB146=Labels!$B$118,SUM(AB143,AB145),"") ->  | AC159: =IF(AC146=Labels!$B$118,SUM(AC143,AC145),"") ->  | AD159: =IF(AD146=Labels!$B$118,SUM(AD143,AD145),"") ->  | AE159: =IF(AE146=Labels!$B$118,SUM(AE143,AE145),"") ->  | AF159: =IF(AF146=Labels!$B$118,SUM(AF143,AF145),"") ->  | AG159: =AG143 -> 0 | AH159: [7]
A160: =$A$32 -> Zuschlag blind (Wochentotal) | B160: =IF(OR(ISTEXT(B152),B152="",B152<$B$7),"",ROUND(((B152-$B$7)*25%)/25,4)*25) ->  | C160: =IF(OR(ISTEXT(C152),C152="",C152<$B$7),"",ROUND(((C152-$B$7)*25%)/25,4)*25) ->  | AG160: =SUM(AG142+AG144) -> 0 | AH160: [8]
B161: =$B$33 -> 1) 25% Zeitzuschlag für Überschreitung Wochentotal | L161: =$L$33 -> 2) 100% Zeitzuschlag für Nachtarbeit | T161: =$T$33 -> Eingabe der ausbezahlten Stunden Vorjahressaldo | AG161: =SUM(AG142:AG144) -> 0 | AH161: [9]
B162: =$B$34 -> 3) 100% Zeitzuschlag für Sonn- und Feiertagsarbeit | T162: =$T$34 -> Eingabe der ausbezahlten Stunden laufendes Jahr (Überstunden) | AG162: =SUM(AG140+AG146) -> 0 | AH162: [10]
A163: =$A$35 -> Bemerkungen | AG163: =SUM(AG140:AG154) -> 0 | AH163: [11]
AG164: =AG139 -> 184
AG165: =SUM(AG163-AG139) -> -184
A167: =$A$39 -> Zusammenstellung | G167: =$G$39 -> Jan | I167: =$I$39 -> Feb | K167: =$K$39 -> Mrz | M167: =$M$39 -> Apr | O167: =$O$39 -> Mai | Q167: =$Q$39 -> Jun | S167: =$S$39 -> Jul | U167: =$U$39 -> Aug | W167: =$W$39 -> Sep | Y167: =$Y$39 -> Okt | AA167: =$AA$39 -> Nov | AC167: =$AC$39 -> Dez | AE167: =$AE$39 -> Jahr
A168: =$A$40 -> Anstellung % | G168: =IF($B$4=0,0,$B$4) -> 100 | I168: =IF($B$71=0,0,$B$71) -> 100 | K168: =IF($B$135=0,0,$B$135) -> 100 | M168: =IF($B$199=0,0,$B$199) -> 100 | O168: =IF($B$263=0,0,$B$263) -> 100 | Q168: =IF($B$327=0,0,$B$327) -> 100 | S168: =IF($B$391=0,0,$B$391) -> 100 | U168: =IF($B$455=0,0,$B$455) -> 100 | W168: =IF($B$519=0,0,$B$519) -> 100 | Y168: =IF($B$583=0,0,$B$583) -> 100 | AA168: =IF($B$647=0,0,$B$647) -> 100 | AC168: =IF($B$711=0,0,$B$711) -> 100
A169: =$A$41 -> Sollstunden gemäss GAV | G169: =IF($AG$37=0,0,$AG$37) -> 168 | I169: =IF($AG$100=0,0,$AG$100) -> 160 | K169: =IF($AG$139=0,0,$AG$139) -> 184 | M169: =IF($AG$228=0,0,$AG$228) -> 168 | O169: =IF($AG$292=0,0,$AG$292) -> 176 | Q169: =IF($AG$356=0,0,$AG$356) -> 176 | S169: =IF($AG$420=0,0,$AG$420) -> 168 | U169: =IF($AG$484=0,0,$AG$484) -> 184 | W169: =IF($AG$548=0,0,$AG$548) -> 176 | Y169: =IF($AG$612=0,0,$AG$612) -> 168 | AA169: =IF($AG$676=0,0,$AG$676) -> 176 | AC169: =IF($AG$740=0,0,$AG$740) -> 176 | AE169: =SUM(G169:AD169) -> 2080
A170: =$A$42 -> Produktive Stunden | B170: =$B$42 -> 06.00 - 20.00 Uhr | G170: =IF($AG$32=0,0,$AG$32) -> 0 | I170: =IF($AG$95=0,0,$AG$95) -> 0 | K170: =IF($AG$159=0,0,$AG$159) -> 0 | M170: =IF($AG$223=0,0,$AG$223) -> 0 | O170: =IF($AG$287=0,0,$AG$287) -> 0 | Q170: =IF($AG$351=0,0,$AG$351) -> 0 | S170: =IF($AG$415=0,0,$AG$415) -> 0 | U170: =IF($AG$479=0,0,$AG$479) -> 0 | W170: =IF($AG$543=0,0,$AG$543) -> 0 | Y170: =IF($AG$607=0,0,$AG$607) -> 0 | AA170: =IF($AG$671=0,0,$AG$671) -> 0 | AC170: =IF($AG$735=0,0,$AG$735) -> 0 | AE170: =SUM(G170:AD170) -> 0
B171: =$B$43 -> Nacht-, Sonn-, Feiertagsarbeit | G171: =IF($AG$33=0,0,$AG$33) -> 0 | I171: =IF($AG$96=0,0,$AG$96) -> 0 | K171: =IF($AG$160=0,0,$AG$160) -> 0 | M171: =IF($AG$224=0,0,$AG$224) -> 0 | O171: =IF($AG$288=0,0,$AG$288) -> 0 | Q171: =IF($AG$352=0,0,$AG$352) -> 0 | S171: =IF($AG$416=0,0,$AG$416) -> 0 | U171: =IF($AG$480=0,0,$AG$480) -> 0 | W171: =IF($AG$544=0,0,$AG$544) -> 0 | Y171: =IF($AG$608=0,0,$AG$608) -> 0 | AA171: =IF($AG$672=0,0,$AG$672) -> 0 | AC171: =IF($AG$736=0,0,$AG$736) -> 0 | AE171: =SUM(G171:AD171) -> 0
A172: =$A$44 -> Zeitzuschläge | B172: =$B$44 -> aus Wochentotal | G172: =IF($AG$25=0,0,$AG$25) -> 0 | I172: =IF($AG$88=0,0,$AG$88) -> 0 | K172: =IF($AG$152=0,0,$AG$152) -> 0 | M172: =IF($AG$216=0,0,$AG$216) -> 0 | O172: =IF($AG$280=0,0,$AG$280) -> 0 | Q172: =IF($AG$344=0,0,$AG$344) -> 0 | S172: =IF($AG$408=0,0,$AG$408) -> 0 | U172: =IF($AG$472=0,0,$AG$472) -> 0 | W172: =IF($AG$536=0,0,$AG$536) -> 0 | Y172: =IF($AG$600=0,0,$AG$600) -> 0 | AA172: =IF($AG$664=0,0,$AG$664) -> 0 | AC172: =IF($AG$728=0,0,$AG$728) -> 0 | AE172: =SUM(G172:AD172) -> 0
B173: =$B$45 -> aus Nacht-, Sonn-, Feiertagsarbeiten | G173: =IF($AJ$21=0,0,$AJ$21) -> 0 | I173: =IF($AK$21=0,0,$AK$21) -> 0 | K173: =IF($AL$21=0,0,$AL$21) -> 0 | M173: =IF($AM$21=0,0,$AM$21) -> 0 | O173: =IF($AN$21=0,0,$AN$21) -> 0 | Q173: =IF($AO$21=0,0,$AO$21) -> 0 | S173: =IF($AP$21=0,0,$AP$21) -> 0 | U173: =IF($AQ$21=0,0,$AQ$21) -> 0 | W173: =IF($AR$21=0,0,$AR$21) -> 0 | Y173: =IF($AS$21=0,0,$AS$21) -> 0 | AA173: =IF($AT$21=0,0,$AT$21) -> 0 | AC173: =IF($AU$21=0,0,$AU$21) -> 0 | AE173: =SUM(G173:AD173) -> 0
A174: =$A$46 -> Unproduktive Stunden
A175: =$A$47 -> Absenzen, Kurzabsenzen Art. 11 GAV | F175: =$F$47 -> a | G175: =IF($AJ$3=0,0,$AJ$3) -> 0 | I175: =IF($AK$3=0,0,$AK$3) -> 0 | K175: =IF($AL$3=0,0,$AL$3) -> 0 | M175: =IF($AM$3=0,0,$AM$3) -> 0 | O175: =IF($AN$3=0,0,$AN$3) -> 0 | Q175: =IF($AO$3=0,0,$AO$3) -> 0 | S175: =IF($AP$3=0,0,$AP$3) -> 0 | U175: =IF($AQ$3=0,0,$AQ$3) -> 0 | W175: =IF($AR$3=0,0,$AR$3) -> 0 | Y175: =IF($AS$3=0,0,$AS$3) -> 0 | AA175: =IF(AT$3=0,0,$AT$3) -> 0 | AC175: =IF($AU$3=0,0,$AU$3) -> 0 | AE175: =IF($AV$3=0,0,$AV$3) -> 0
A176: =$A$48 -> Ferien Art. 12.1 GAV | F176: =$F$48 -> f | G176: =IF($AJ$4=0,0,$AJ$4) -> 0 | I176: =IF($AK$4=0,0,$AK$4) -> 0 | K176: =IF($AL$4=0,0,$AL$4) -> 0 | M176: =IF($AM$4=0,0,$AM$4) -> 0 | O176: =IF($AN$4=0,0,$AN$4) -> 0 | Q176: =IF($AO$4=0,0,$AO$4) -> 0 | S176: =IF($AP$4=0,0,$AP$4) -> 0 | U176: =IF($AQ$4=0,0,$AQ$4) -> 0 | W176: =IF($AR$4=0,0,$AR$4) -> 0 | Y176: =IF($AS$4=0,0,$AS$4) -> 0 | AA176: =IF($AT$4=0,0,$AT$4) -> 0 | AC176: =IF($AU$4=0,0,$AU$4) -> 0 | AE176: =IF($AV$4=0,0,$AV$4) -> 0
A177: =Labels!$B$181 -> Ferien unbezahlt | F177: =Labels!$B$182 -> fu | G177: =IF($AJ$13=0,0,$AJ$13) -> 0 | I177: =IF($AK$13=0,0,$AK$13) -> 0 | K177: =IF($AL$13=0,0,$AL$13) -> 0 | M177: =IF($AM$13=0,0,$AM$13) -> 0 | O177: =IF($AN$13=0,0,$AN$13) -> 0 | Q177: =IF($AO$13=0,0,$AO$13) -> 0 | S177: =IF($AP$13=0,0,$AP$13) -> 0 | U177: =IF($AQ$13=0,0,$AQ$13) -> 0 | W177: =IF($AR$13=0,0,$AR$13) -> 0 | Y177: =IF($AS$13=0,0,$AS$13) -> 0 | AA177: =IF($AT$13=0,0,$AT$13) -> 0 | AC177: =IF($AU$13=0,0,$AU$13) -> 0 | AE177: =IF($AV$13=0,0,$AV$13) -> 0
A178: =$A$50 -> Feiertage Art. 12.2 GAV | C178: =IF($AJ$18="","",$AJ$18) ->  | F178: =$F$50 -> ft | G178: =IF($AJ$16=0,0,$AJ$16) -> 0 | I178: =IF($AK$16=0,0,$AK$16) -> 0 | K178: =IF($AL$16=0,0,$AL$16) -> 0 | M178: =IF($AM$16=0,0,$AM$16) -> 0 | O178: =IF($AN$16=0,0,$AN$16) -> 0 | Q178: =IF($AO$16=0,0,$AO$16) -> 0 | S178: =IF($AP$16=0,0,$AP$16) -> 0 | U178: =IF($AQ$16=0,0,$AQ$16) -> 0 | W178: =IF($AR$16=0,0,$AR$16) -> 0 | Y178: =IF($AS$16=0,0,$AS$16) -> 0 | AA178: =IF($AT$16=0,0,$AT$16) -> 0 | AC178: =IF($AU$16=0,0,$AU$16) -> 0 | AE178: =IF($AV$16=0,0,$AV$16) -> 0
A179: =$A$51 -> Krankheit Art. 13 GAV | F179: =$F$51 -> k | G179: =IF($AJ$5=0,0,$AJ$5) -> 0 | I179: =IF($AK$5=0,0,$AK$5) -> 0 | K179: =IF($AL$5=0,0,$AL$5) -> 0 | M179: =IF($AM$5=0,0,$AM$5) -> 0 | O179: =IF($AN$5=0,0,$AN$5) -> 0 | Q179: =IF($AO$5=0,0,$AO$5) -> 0 | S179: =IF($AP$5=0,0,$AP$5) -> 0 | U179: =IF($AQ$5=0,0,$AQ$5) -> 0 | W179: =IF($AR$5=0,0,$AR$5) -> 0 | Y179: =IF($AS$5=0,0,$AS$5) -> 0 | AA179: =IF($AT$5=0,0,$AT$5) -> 0 | AC179: =IF($AU$5=0,0,$AU$5) -> 0 | AE179: =IF($AV$5=0,0,$AV$5) -> 0
A180: =$A$52 -> Unfall Art. 14 GAV | F180: =$F$52 -> u | G180: =IF($AJ$6=0,0,$AJ$6) -> 0 | I180: =IF($AK$6=0,0,$AK$6) -> 0 | K180: =IF($AL$6=0,0,$AL$6) -> 0 | M180: =IF($AM$6=0,0,$AM$6) -> 0 | O180: =IF($AN$6=0,0,$AN$6) -> 0 | Q180: =IF($AO$6=0,0,$AO$6) -> 0 | S180: =IF($AP$6=0,0,$AP$6) -> 0 | U180: =IF($AQ$6=0,0,$AQ$6) -> 0 | W180: =IF($AR$6=0,0,$AR$6) -> 0 | Y180: =IF($AS$6=0,0,$AS$6) -> 0 | AA180: =IF($AT$6=0,0,$AT$6) -> 0 | AC180: =IF($AU$6=0,0,$AU$6) -> 0 | AE180: =IF($AV$6=0,0,$AV$6) -> 0
A181: =$A$53 -> Schwangerschaft/Mutterschaft Art. 15 GAV | F181: =$F$53 -> s | G181: =IF($AJ$7=0,0,$AJ$7) -> 0 | I181: =IF($AK$7=0,0,$AK$7) -> 0 | K181: =IF($AL$7=0,0,$AL$7) -> 0 | M181: =IF($AM$7=0,0,$AM$7) -> 0 | O181: =IF($AN$7=0,0,$AN$7) -> 0 | Q181: =IF($AO$7=0,0,$AO$7) -> 0 | S181: =IF($AP$7=0,0,$AP$7) -> 0 | U181: =IF($AQ$7=0,0,$AQ$7) -> 0 | W181: =IF($AR$7=0,0,$AR$7) -> 0 | Y181: =IF($AS$7=0,0,$AS$7) -> 0 | AA181: =IF($AT$7=0,0,$AT$7) -> 0 | AC181: =IF($AU$7=0,0,$AU$7) -> 0 | AE181: =IF($AV$7=0,0,$AV$7) -> 0
A182: =$A$54 -> Militär/Beförderung/Zivilschutz Art. 16 GAV | F182: =$F$54 -> m | G182: =IF($AJ$8=0,0,$AJ$8) -> 0 | I182: =IF($AK$8=0,0,$AK$8) -> 0 | K182: =IF($AL$8=0,0,$AL$8) -> 0 | M182: =IF($AM$8=0,0,$AM$8) -> 0 | O182: =IF($AN$8=0,0,$AN$8) -> 0 | Q182: =IF($AO$8=0,0,$AO$8) -> 0 | S182: =IF($AP$8=0,0,$AP$8) -> 0 | U182: =IF($AQ$8=0,0,$AQ$8) -> 0 | W182: =IF($AR$8=0,0,$AR$8) -> 0 | Y182: =IF($AS$8=0,0,$AS$8) -> 0 | AA182: =IF($AT$8=0,0,$AT$8) -> 0 | AC182: =IF($AU$8=0,0,$AU$8) -> 0 | AE182: =IF($AV$8=0,0,$AV$8) -> 0
A183: =$A$55 -> Kurzarbeit und Schlechtwetterausfälle | F183: =$F$55 -> ka | G183: =IF($AJ$11=0,0,$AJ$11) -> 0 | I183: =IF($AK$11=0,0,$AK$11) -> 0 | K183: =IF($AL$11=0,0,$AL$11) -> 0 | M183: =IF($AM$11=0,0,$AM$11) -> 0 | O183: =IF($AN$11=0,0,$AN$11) -> 0 | Q183: =IF($AO$11=0,0,$AO$11) -> 0 | S183: =IF($AP$11=0,0,$AP$11) -> 0 | U183: =IF($AQ$11=0,0,$AQ$11) -> 0 | W183: =IF($AR$11=0,0,$AR$11) -> 0 | Y183: =IF($AS$11=0,0,$AS$11) -> 0 | AA183: =IF($AT$11=0,0,$AT$11) -> 0 | AC183: =IF($AU$11=0,0,$AU$11) -> 0 | AE183: =IF($AV$11=0,0,$AV$11) -> 0
A184: =$A$56 -> Berufsschule | F184: =$F$56 -> bs | G184: =IF($AJ$9=0,0,$AJ$9) -> 0 | I184: =IF($AK$9=0,0,$AK$9) -> 0 | K184: =IF($AL$9=0,0,$AL$9) -> 0 | M184: =IF($AM$9=0,0,$AM$9) -> 0 | O184: =IF($AN$9=0,0,$AN$9) -> 0 | Q184: =IF($AO$9=0,0,$AO$9) -> 0 | S184: =IF($AP$9=0,0,$AP$9) -> 0 | U184: =IF($AQ$9=0,0,$AQ$9) -> 0 | W184: =IF($AR$9=0,0,$AR$9) -> 0 | Y184: =IF($AS$9=0,0,$AS$9) -> 0 | AA184: =IF($AT$9=0,0,$AT$9) -> 0 | AC184: =IF($AU$9=0,0,$AU$9) -> 0 | AE184: =IF($AV$9=0,0,$AV$9) -> 0
A185: =$A$57 -> Kurse | F185: =$F$57 -> ku | G185: =IF($AJ$10=0,0,$AJ$10) -> 0 | I185: =IF($AK$10=0,0,$AK$10) -> 0 | K185: =IF($AL$10=0,0,$AL$10) -> 0 | M185: =IF($AM$10=0,0,$AM$10) -> 0 | O185: =IF($AN$10=0,0,$AN$10) -> 0 | Q185: =IF($AO$10=0,0,$AO$10) -> 0 | S185: =IF($AP$10=0,0,$AP$10) -> 0 | U185: =IF($AQ$10=0,0,$AQ$10) -> 0 | W185: =IF($AR$10=0,0,$AR$10) -> 0 | Y185: =IF($AS$10=0,0,$AS$10) -> 0 | AA185: =IF($AT$10=0,0,$AT$10) -> 0 | AC185: =IF($AU$10=0,0,$AU$10) -> 0 | AE185: =IF($AV$10=0,0,$AV$10) -> 0
A186: =$A$58 -> Kompensations-Std | B186: =$B$58 -> aus Vorjahr | F186: =$F$58 -> kv | G186: =IF($AJ$12=0,0,$AJ$12) -> 0 | I186: =IF($AK$12=0,0,$AK$12) -> 0 | K186: =IF($AL$12=0,0,$AL$12) -> 0 | M186: =IF($AM$12=0,0,$AM$12) -> 0 | O186: =IF($AN$12=0,0,$AN$12) -> 0 | Q186: =IF($AO$12=0,0,$AO$12) -> 0 | S186: =IF($AP$12=0,0,$AP$12) -> 0 | U186: =IF($AQ$12=0,0,$AQ$12) -> 0 | W186: =IF($AR$12=0,0,$AR$12) -> 0 | AE186: =IF($AV$12=0,0,$AV$12) -> 0
B187: =$B$59 -> aus laufendem Jahr (Kontrolle) | F187: =$F$59 -> kj | G187: =IF($AJ$15=0,0,$AJ$15) -> 0 | I187: =IF($AK$15=0,0,$AK$15) -> 0 | K187: =IF($AL$15=0,0,$AL$15) -> 0 | M187: =IF($AM$15=0,0,$AM$15) -> 0 | O187: =IF($AN$15=0,0,$AN$15) -> 0 | Q187: =IF($AO$15=0,0,$AO$15) -> 0 | S187: =IF($AP$15=0,0,$AP$15) -> 0 | U187: =IF($AQ$15=0,0,$AQ$15) -> 0 | W187: =IF($AR$15=0,0,$AR$15) -> 0 | Y187: =IF($AS$15=0,0,$AS$15) -> 0 | AA187: =IF($AT$15=0,0,$AT$15) -> 0 | AC187: =IF($AU$15=0,0,$AU$15) -> 0 | AE187: =IF($AV$15=0,0,$AV$15) -> 0
A188: =$A$60 -> Auszahlung | B188: =$B$60 -> Stunden Vorjahressaldo | G188: =IF($AJ$19=0,0,$AJ$19) -> 0 | I188: =IF($AK$19=0,0,$AK$19) -> 0 | K188: =IF($AL$19=0,0,$AL$19) -> 0 | M188: =IF($AM$19=0,0,$AM$19) -> 0 | O188: =IF($AN$19=0,0,$AN$19) -> 0 | Q188: =IF($AO$19=0,0,$AO$19) -> 0 | S188: =IF($AP$19=0,0,$AP$19) -> 0 | U188: =IF($AQ$19=0,0,$AQ$19) -> 0 | W188: =IF($AR$19=0,0,$AR$19) -> 0 | AE188: =IF($AV$19=0,0,$AV$19) -> 0
A189: =$A$61 -> Differenz | B189: =$B$61 -> nach Kompensation und Auszahlung | G189: =IF(ROUND($P$4,3)=0,0,$P$4-SUM(G186+G188)) -> 0 | I189: =IF(ROUND(G189,3)=0,0,G189-(SUM(I188+I186))) -> 0 | K189: =IF(ROUND(I189,3)=0,0,I189-(SUM(K188+K186))) -> 0 | M189: =IF(ROUND(K189,3)=0,0,K189-(SUM(M188+M186))) -> 0 | O189: =IF(ROUND(M189,3)=0,0,M189-(SUM(O188+O186))) -> 0 | Q189: =IF(ROUND(O189,3)=0,0,O189-(SUM(Q188+Q186))) -> 0 | S189: =IF(ROUND(Q189,3)=0,0,Q189-(SUM(S188+S186))) -> 0 | U189: =IF(ROUND(S189,3)=0,0,S189-(SUM(U188+U186))) -> 0 | W189: =IF(ROUND(U189,3)=0,0,U189-(SUM(W188+W186))) -> 0 | Y189: =$Y$61 -> 
A190: =$A$62 -> Auszahlung | B190: =$B$62 -> Stunden laufendes Jahr | G190: =IF($AJ$20=0,0,$AJ$20) -> 0 | I190: =IF($AK$20=0,0,$AK$20) -> 0 | K190: =IF($AL$20=0,0,$AL$20) -> 0 | M190: =IF($AM$20=0,0,$AM$20) -> 0 | O190: =IF($AN$20=0,0,$AN$20) -> 0 | Q190: =IF($AO$20=0,0,$AO$20) -> 0 | S190: =IF($AP$20=0,0,$AP$20) -> 0 | U190: =IF($AQ$20=0,0,$AQ$20) -> 0 | W190: =IF($AR$20=0,0,$AR$20) -> 0 | Y190: =IF($AS$20=0,0,$AS$20) -> 0 | AA190: =IF($AT$20=0,0,$AT$20) -> 0 | AC190: =IF($AU$20=0,0,$AU$20) -> 0 | AE190: =IF($AV$20=0,0,$AV$20) -> 0
A191: =$A$63 -> Fehlstunden | B191: =$B$63 -> laufendes Jahr (Kontrolle) | F191: =$F$63 -> fe | G191: =IF($AJ$14=0,0,$AJ$14) -> 0 | I191: =IF($AK$14=0,0,$AK$14) -> 0 | K191: =IF($AL$14=0,0,$AL$14) -> 0 | M191: =IF($AM$14=0,0,$AM$14) -> 0 | O191: =IF($AN$14=0,0,$AN$14) -> 0 | Q191: =IF($AO$14=0,0,$AO$14) -> 0 | S191: =IF($AP$14=0,0,$AP$14) -> 0 | U191: =IF($AQ$14=0,0,$AQ$14) -> 0 | W191: =IF($AR$14=0,0,$AR$14) -> 0 | Y191: =IF($AS$14=0,0,$AS$14) -> 0 | AA191: =IF($AT$14=0,0,$AT$14) -> 0 | AC191: =IF($AU$14=0,0,$AU$14) -> 0 | AE191: =IF($AV$14=0,0,$AV$14) -> 0
A192: =$A$64 -> Total inkl. Zeitzuschläge | B192: =$B$64 -> Stunden produktiv und unproduktiv | G192: =IF($AG$36=0,0,$AG$36) -> 0 | I192: =IF($AG$99=0,0,$AG$99) -> 0 | K192: =IF($AG$163=0,0,$AG$163) -> 0 | M192: =IF($AG$227=0,0,$AG$227) -> 0 | O192: =IF($AG$291=0,0,$AG$291) -> 0 | Q192: =IF($AG$355=0,0,$AG$355) -> 0 | S192: =IF($AG$419=0,0,$AG$419) -> 0 | U192: =IF($AG$483=0,0,$AG$483) -> 0 | W192: =IF($AG$547=0,0,$AG$547) -> 0 | Y192: =IF($AG$611=0,0,$AG$611) -> 0 | AA192: =IF($AG$675=0,0,$AG$675) -> 0 | AC192: =IF($AG$739=0,0,$AG$739) -> 0 | AE192: =SUM($G$64:$AD$64) -> 0
A193: =$A$65 -> Vergleich | B193: =$B$65 -> Stunden zu Soll-Stunden (inkl. allfälli- ge Minusstunden Vorjahr) | G193: =IF($AG$38=0,0,$AG$38)-$AE$34+$P$5 -> -168 | I193: =IF($AG$101=0,0,$AG$101)-$AE$98 -> -160 | K193: =IF($AG$165=0,0,$AG$165)-$AE$162 -> -184 | M193: =IF($AG$229=0,0,$AG$229)-$AE$226 -> -168 | O193: =IF($AG$293=0,0,$AG$293)-$AE$290 -> -176 | Q193: =IF($AG$357=0,0,$AG$357)-$AE$354 -> -176 | S193: =IF($AG$421=0,0,$AG$421)-$AE$418 -> -168 | U193: =IF($AG$485=0,0,$AG$485)-$AE$482 -> -184 | W193: =IF($AG$549=0,0,$AG$549)-$AE$546 -> -176 | Y193: =IF($AG$613=0,0,$AG$613)-$AE$610 -> -168 | AA193: =IF($AG$677=0,0,$AG$677)-$AE$674 -> -176 | AC193: =IF($AG$741=0,0,$AG$741)-$AE$738 -> -176 | AE193: =SUM($G$65:$AD$65) -> -2080
B194: =$B$66 -> Stunden zu Soll-Stunden (kumuliert) | G194: =$G$66 -> -168 | I194: =$I$66 -> -328 | K194: =$K$66 -> -512 | M194: =$M$66 -> -680 | O194: =$O$66 -> -856 | Q194: =$Q$66 -> -1032 | S194: =$S$66 -> -1200 | U194: =$U$66 -> -1384 | W194: =$W$66 -> -1560 | Y194: =$Y$66 -> -1728 | AA194: =$AA$66 -> -1904 | AC194: =$AC$66 -> -2080
A195: =$A$67 -> Ferienkontrolle | B195: =$B$67 -> Ferienguthaben Vorjahr | G195: =IF($AA$4=0,0,$AA$4) -> 0 | I195: =$I$67 -> Ferienguthaben nach Art. 12.1 GAV | M195: =IF($AA$5=0,0,$AA$5) -> 0 | O195: =$O$67 -> Ferienguthaben total | S195: =SUM(G195+M195) -> 0 | U195: =$U$67 -> Ferien bezogen | Y195: =IF($AV$4=0,0,$AV$4) -> 0 | AA195: =$AA$67 -> Aktuelles Ferienguthaben | AE195: =IF(S195=0,0,S195-Y195) -> 0
A198: =$A$3 -> Mitarbeiter/In | B198: =IF($B$3="","",$B$3) -> Muster Peter | AF198: =AF3 -> 0
A199: =$A$4 -> Anstellung % | B199: =$AL$47 -> 100 | D199: =Labels!B92 -> im April
A200: =$A$5 -> Saldo für das Jahr | D200: =IF($AE$65=0,0,$AE$65) -> -2080
A201: =TEXT(DATE(YEAR(AP29),MONTH(AP29)+3,1),"MMMM"&Labels!B13) -> April | B201: =$B$9 -> Saldo Monat + / - | F201: =(AG203-(SUM(AG204:AG218)-AE226))*-1 -> -168 | K201: =$K$9 -> = | L201: =$L$9 -> Gelbe Felder müssen ausgefüllt werden (die übrigen werden automatisch berechnet) | AG201: =COUNT(B204:AF204)&" "&Labels!$B$63 -> 21 Tage
A202: =$A$10 -> Tag | B202: =AF138+1 -> 2022-04-01 | C202: =B202+1 -> 2022-04-02 | D202: =C202+1 -> 2022-04-03 | E202: 2022-04-04 | F202: 2022-04-05 | G202: 2022-04-06 | H202: 2022-04-07 | I202: 2022-04-08 | J202: 2022-04-09 | K202: 2022-04-10 | L202: 2022-04-11 | M202: 2022-04-12 | N202: 2022-04-13 | O202: 2022-04-14 | P202: 2022-04-15 | Q202: 2022-04-16 | R202: 2022-04-17 | S202: 2022-04-18 | T202: 2022-04-19 | U202: 2022-04-20 | V202: 2022-04-21 | W202: 2022-04-22 | X202: 2022-04-23 | Y202: 2022-04-24 | Z202: 2022-04-25 | AA202: 2022-04-26 | AB202: 2022-04-27 | AC202: 2022-04-28 | AD202: 2022-04-29 | AE202: 2022-04-30
A203: =$A$11 -> Kalenderwoche | B203: =IF(B202="","",TRUNC((B202-DATE(YEAR(B202+3-MOD(B202-2,7)),1,MOD(B202-2,7)-9))/7)) -> 13 | C203: 13 | D203: 13 | E203: 14 | F203: 14 | G203: 14 | H203: 14 | I203: 14 | J203: 14 | K203: 14 | L203: 15 | M203: 15 | N203: 15 | O203: 15 | P203: 15 | Q203: 15 | R203: 15 | S203: 16 | T203: 16 | U203: 16 | V203: 16 | W203: 16 | X203: 16 | Y203: 16 | Z203: 17 | AA203: 17 | AB203: 17 | AC203: 17 | AD203: 17 | AE203: 17 | AG203: =SUM(B204:AF204) -> 168
A204: =$A$12 -> Sollstunden | B204: =IF(AND(MOD(B202,7)>=2,SUMPRODUCT(($AM$56:$AQ$56=MOD(B202,7))*$AM$47:$AQ$47)),($J$7*5/$AR$47)*$B$199%,"") -> 8 | C204: =IF(AND(MOD(C202,7)>=2,SUMPRODUCT(($AM$56:$AQ$56=MOD(C202,7))*$AM$47:$AQ$47)),($J$7*5/$AR$47)*$B$199%,"") ->  | D204: =IF(AND(MOD(D202,7)>=2,SUMPRODUCT(($AM$56:$AQ$56=MOD(D202,7))*$AM$47:$AQ$47)),($J$7*5/$AR$47)*$B$199%,"") ->  | E204: =IF(AND(MOD(E202,7)>=2,SUMPRODUCT(($AM$56:$AQ$56=MOD(E202,7))*$AM$47:$AQ$47)),($J$7*5/$AR$47)*$B$199%,"") -> 8 | F204: =IF(AND(MOD(F202,7)>=2,SUMPRODUCT(($AM$56:$AQ$56=MOD(F202,7))*$AM$47:$AQ$47)),($J$7*5/$AR$47)*$B$199%,"") -> 8 | G204: =IF(AND(MOD(G202,7)>=2,SUMPRODUCT(($AM$56:$AQ$56=MOD(G202,7))*$AM$47:$AQ$47)),($J$7*5/$AR$47)*$B$199%,"") -> 8 | H204: =IF(AND(MOD(H202,7)>=2,SUMPRODUCT(($AM$56:$AQ$56=MOD(H202,7))*$AM$47:$AQ$47)),($J$7*5/$AR$47)*$B$199%,"") -> 8 | I204: =IF(AND(MOD(I202,7)>=2,SUMPRODUCT(($AM$56:$AQ$56=MOD(I202,7))*$AM$47:$AQ$47)),($J$7*5/$AR$47)*$B$199%,"") -> 8 | J204: =IF(AND(MOD(J202,7)>=2,SUMPRODUCT(($AM$56:$AQ$56=MOD(J202,7))*$AM$47:$AQ$47)),($J$7*5/$AR$47)*$B$199%,"") ->  | K204: =IF(AND(MOD(K202,7)>=2,SUMPRODUCT(($AM$56:$AQ$56=MOD(K202,7))*$AM$47:$AQ$47)),($J$7*5/$AR$47)*$B$199%,"") ->  | L204: =IF(AND(MOD(L202,7)>=2,SUMPRODUCT(($AM$56:$AQ$56=MOD(L202,7))*$AM$47:$AQ$47)),($J$7*5/$AR$47)*$B$199%,"") -> 8 | M204: =IF(AND(MOD(M202,7)>=2,SUMPRODUCT(($AM$56:$AQ$56=MOD(M202,7))*$AM$47:$AQ$47)),($J$7*5/$AR$47)*$B$199%,"") -> 8 | N204: =IF(AND(MOD(N202,7)>=2,SUMPRODUCT(($AM$56:$AQ$56=MOD(N202,7))*$AM$47:$AQ$47)),($J$7*5/$AR$47)*$B$199%,"") -> 8 | O204: =IF(AND(MOD(O202,7)>=2,SUMPRODUCT(($AM$56:$AQ$56=MOD(O202,7))*$AM$47:$AQ$47)),($J$7*5/$AR$47)*$B$199%,"") -> 8 | P204: =IF(AND(MOD(P202,7)>=2,SUMPRODUCT(($AM$56:$AQ$56=MOD(P202,7))*$AM$47:$AQ$47)),($J$7*5/$AR$47)*$B$199%,"") -> 8 | Q204: =IF(AND(MOD(Q202,7)>=2,SUMPRODUCT(($AM$56:$AQ$56=MOD(Q202,7))*$AM$47:$AQ$47)),($J$7*5/$AR$47)*$B$199%,"") ->  | R204: =IF(AND(MOD(R202,7)>=2,SUMPRODUCT(($AM$56:$AQ$56=MOD(R202,7))*$AM$47:$AQ$47)),($J$7*5/$AR$47)*$B$199%,"") ->  | S204: =IF(AND(MOD(S202,7)>=2,SUMPRODUCT(($AM$56:$AQ$56=MOD(S202,7))*$AM$47:$AQ$47)),($J$7*5/$AR$47)*$B$199%,"") -> 8 | T204: =IF(AND(MOD(T202,7)>=2,SUMPRODUCT(($AM$56:$AQ$56=MOD(T202,7))*$AM$47:$AQ$47)),($J$7*5/$AR$47)*$B$199%,"") -> 8 | U204: =IF(AND(MOD(U202,7)>=2,SUMPRODUCT(($AM$56:$AQ$56=MOD(U202,7))*$AM$47:$AQ$47)),($J$7*5/$AR$47)*$B$199%,"") -> 8 | V204: =IF(AND(MOD(V202,7)>=2,SUMPRODUCT(($AM$56:$AQ$56=MOD(V202,7))*$AM$47:$AQ$47)),($J$7*5/$AR$47)*$B$199%,"") -> 8 | W204: =IF(AND(MOD(W202,7)>=2,SUMPRODUCT(($AM$56:$AQ$56=MOD(W202,7))*$AM$47:$AQ$47)),($J$7*5/$AR$47)*$B$199%,"") -> 8 | X204: =IF(AND(MOD(X202,7)>=2,SUMPRODUCT(($AM$56:$AQ$56=MOD(X202,7))*$AM$47:$AQ$47)),($J$7*5/$AR$47)*$B$199%,"") ->  | Y204: =IF(AND(MOD(Y202,7)>=2,SUMPRODUCT(($AM$56:$AQ$56=MOD(Y202,7))*$AM$47:$AQ$47)),($J$7*5/$AR$47)*$B$199%,"") ->  | Z204: =IF(AND(MOD(Z202,7)>=2,SUMPRODUCT(($AM$56:$AQ$56=MOD(Z202,7))*$AM$47:$AQ$47)),($J$7*5/$AR$47)*$B$199%,"") -> 8 | AA204: =IF(AND(MOD(AA202,7)>=2,SUMPRODUCT(($AM$56:$AQ$56=MOD(AA202,7))*$AM$47:$AQ$47)),($J$7*5/$AR$47)*$B$199%,"") -> 8 | AB204: =IF(AND(MOD(AB202,7)>=2,SUMPRODUCT(($AM$56:$AQ$56=MOD(AB202,7))*$AM$47:$AQ$47)),($J$7*5/$AR$47)*$B$199%,"") -> 8 | AC204: =IF(AND(MOD(AC202,7)>=2,SUMPRODUCT(($AM$56:$AQ$56=MOD(AC202,7))*$AM$47:$AQ$47)),($J$7*5/$AR$47)*$B$199%,"") -> 8 | AD204: =IF(AND(MOD(AD202,7)>=2,SUMPRODUCT(($AM$56:$AQ$56=MOD(AD202,7))*$AM$47:$AQ$47)),($J$7*5/$AR$47)*$B$199%,"") -> 8 | AE204: =IF(AND(MOD(AE202,7)>=2,SUMPRODUCT(($AM$56:$AQ$56=MOD(AE202,7))*$AM$47:$AQ$47)),($J$7*5/$AR$47)*$B$199%,"") ->  | AG204: =SUM(AM3:AM13) -> 0
A205: =$A$13 -> Absenz in Std | B205: =B900 -> 0 | C205: =C900 -> 0 | D205: 0 | E205: 0 | F205: 0 | G205: 0 | H205: 0 | I205: 0 | J205: 0 | K205: 0 | L205: 0 | M205: 0 | N205: 0 | O205: 0 | P205: 0 | Q205: 0 | R205: 0 | S205: 0 | T205: 0 | U205: 0 | V205: 0 | W205: 0 | X205: 0 | Y205: 0 | Z205: 0 | AA205: 0 | AB205: 0 | AC205: 0 | AD205: 0 | AE205: 0
A206: =$A$14 -> Code | B206: =IF(B900<>0,IF(MAX(B887:B899)<B900,Labels!$B$163,INDEX($AH$886:$AH$898,MATCH(MAX(B887:B899),B887:B899,0))),"") ->  | C206: =IF(C900<>0,IF(MAX(C887:C899)<C900,Labels!$B$163,INDEX($AH$886:$AH$898,MATCH(MAX(C887:C899),C887:C899,0))),"") ->  | D206: =IF(D900<>0,IF(MAX(D887:D899)<D900,Labels!$B$163,INDEX($AH$886:$AH$898,MATCH(MAX(D887:D899),D887:D899,0))),"") ->  | E206: =IF(E900<>0,IF(MAX(E887:E899)<E900,Labels!$B$163,INDEX($AH$886:$AH$898,MATCH(MAX(E887:E899),E887:E899,0))),"") ->  | F206: =IF(F900<>0,IF(MAX(F887:F899)<F900,Labels!$B$163,INDEX($AH$886:$AH$898,MATCH(MAX(F887:F899),F887:F899,0))),"") ->  | G206: =IF(G900<>0,IF(MAX(G887:G899)<G900,Labels!$B$163,INDEX($AH$886:$AH$898,MATCH(MAX(G887:G899),G887:G899,0))),"") ->  | H206: =IF(H900<>0,IF(MAX(H887:H899)<H900,Labels!$B$163,INDEX($AH$886:$AH$898,MATCH(MAX(H887:H899),H887:H899,0))),"") ->  | I206: =IF(I900<>0,IF(MAX(I887:I899)<I900,Labels!$B$163,INDEX($AH$886:$AH$898,MATCH(MAX(I887:I899),I887:I899,0))),"") ->  | J206: =IF(J900<>0,IF(MAX(J887:J899)<J900,Labels!$B$163,INDEX($AH$886:$AH$898,MATCH(MAX(J887:J899),J887:J899,0))),"") ->  | K206: =IF(K900<>0,IF(MAX(K887:K899)<K900,Labels!$B$163,INDEX($AH$886:$AH$898,MATCH(MAX(K887:K899),K887:K899,0))),"") ->  | L206: =IF(L900<>0,IF(MAX(L887:L899)<L900,Labels!$B$163,INDEX($AH$886:$AH$898,MATCH(MAX(L887:L899),L887:L899,0))),"") ->  | M206: =IF(M900<>0,IF(MAX(M887:M899)<M900,Labels!$B$163,INDEX($AH$886:$AH$898,MATCH(MAX(M887:M899),M887:M899,0))),"") ->  | N206: =IF(N900<>0,IF(MAX(N887:N899)<N900,Labels!$B$163,INDEX($AH$886:$AH$898,MATCH(MAX(N887:N899),N887:N899,0))),"") ->  | O206: =IF(O900<>0,IF(MAX(O887:O899)<O900,Labels!$B$163,INDEX($AH$886:$AH$898,MATCH(MAX(O887:O899),O887:O899,0))),"") ->  | P206: =IF(P900<>0,IF(MAX(P887:P899)<P900,Labels!$B$163,INDEX($AH$886:$AH$898,MATCH(MAX(P887:P899),P887:P899,0))),"") ->  | Q206: =IF(Q900<>0,IF(MAX(Q887:Q899)<Q900,Labels!$B$163,INDEX($AH$886:$AH$898,MATCH(MAX(Q887:Q899),Q887:Q899,0))),"") ->  | R206: =IF(R900<>0,IF(MAX(R887:R899)<R900,Labels!$B$163,INDEX($AH$886:$AH$898,MATCH(MAX(R887:R899),R887:R899,0))),"") ->  | S206: =IF(S900<>0,IF(MAX(S887:S899)<S900,Labels!$B$163,INDEX($AH$886:$AH$898,MATCH(MAX(S887:S899),S887:S899,0))),"") ->  | T206: =IF(T900<>0,IF(MAX(T887:T899)<T900,Labels!$B$163,INDEX($AH$886:$AH$898,MATCH(MAX(T887:T899),T887:T899,0))),"") ->  | U206: =IF(U900<>0,IF(MAX(U887:U899)<U900,Labels!$B$163,INDEX($AH$886:$AH$898,MATCH(MAX(U887:U899),U887:U899,0))),"") ->  | V206: =IF(V900<>0,IF(MAX(V887:V899)<V900,Labels!$B$163,INDEX($AH$886:$AH$898,MATCH(MAX(V887:V899),V887:V899,0))),"") ->  | W206: =IF(W900<>0,IF(MAX(W887:W899)<W900,Labels!$B$163,INDEX($AH$886:$AH$898,MATCH(MAX(W887:W899),W887:W899,0))),"") ->  | X206: =IF(X900<>0,IF(MAX(X887:X899)<X900,Labels!$B$163,INDEX($AH$886:$AH$898,MATCH(MAX(X887:X899),X887:X899,0))),"") ->  | Y206: =IF(Y900<>0,IF(MAX(Y887:Y899)<Y900,Labels!$B$163,INDEX($AH$886:$AH$898,MATCH(MAX(Y887:Y899),Y887:Y899,0))),"") ->  | Z206: =IF(Z900<>0,IF(MAX(Z887:Z899)<Z900,Labels!$B$163,INDEX($AH$886:$AH$898,MATCH(MAX(Z887:Z899),Z887:Z899,0))),"") ->  | AA206: =IF(AA900<>0,IF(MAX(AA887:AA899)<AA900,Labels!$B$163,INDEX($AH$886:$AH$898,MATCH(MAX(AA887:AA899),AA887:AA899,0))),"") ->  | AB206: =IF(AB900<>0,IF(MAX(AB887:AB899)<AB900,Labels!$B$163,INDEX($AH$886:$AH$898,MATCH(MAX(AB887:AB899),AB887:AB899,0))),"") ->  | AC206: =IF(AC900<>0,IF(MAX(AC887:AC899)<AC900,Labels!$B$163,INDEX($AH$886:$AH$898,MATCH(MAX(AC887:AC899),AC887:AC899,0))),"") ->  | AD206: =IF(AD900<>0,IF(MAX(AD887:AD899)<AD900,Labels!$B$163,INDEX($AH$886:$AH$898,MATCH(MAX(AD887:AD899),AD887:AD899,0))),"") ->  | AE206: =IF(AE900<>0,IF(MAX(AE887:AE899)<AE900,Labels!$B$163,INDEX($AH$886:$AH$898,MATCH(MAX(AE887:AE899),AE887:AE899,0))),"") ->  | AG206: =SUM(B207:AF207) -> 0
A207: =$A$15 -> 00.00-06.00h | AG207: =SUM(B208:AF208) -> 0
A208: =$A$16 -> 06.00-20.00h | AG208: =SUM(B209:AF209) -> 0 | AH208: [0]
... 782 more rows
